Workbook

Sheet Info
D1: -1 | E1: 0 | F1: 1 | G1: 2 | H1: 3 | I1: 4 | J1: 5 | K1: 6 | L1: 7 | M1: 8 | N1: 9 | O1: 10 | P1: 11 | Q1: 12 | R1: 13 | S1: 14 | T1: 15 | Y1: =IF(OR(Z3="",Z4=""),"※ 市町村（左側）から順に選択してください","") -> ※ 市町村（左側）から順に選択してください | AD1: ｖ | AK1: v
V2: 表示行 | W2: 旧市町村数 | X2: 市町村行 | Y2: 参照シート、セル | Z2: check | AA2: 表示名 | AD2: 表示行 | AE2: 集落数 | AF2: 旧市町村行 | AG2: 参照シート | AH2: check | AK2: 表示行 | AL2: 集落数 | AM2: 旧市町村行 | AN2: 参照シート | AO2: check
D3: 県名 | G3: 市町村名 | J3: 旧市町村名 | V3: =IF(M4="",-1,IFERROR(MATCH(M4,OFFSET(集落2010,1,0,ROWS(集落2010),1),0)-1,3000))+AF3 -> 5 | W3: =COUNTIF('2010年'!B:B,Info!G4)-1 -> -1 | X3: =IF(G4="",6,MATCH(G4,'2010年'!B:B,0)) -> 6 | Y3: '2010年'!$A$1 | Z3: =OFFSET(INDIRECT(Y3),V3,1)&OFFSET(INDIRECT(Y3),V3,2)&OFFSET(INDIRECT(Y3),V3,3) ->  | AA3: =IF(OR(ISERROR(G4),ISERROR(J4),ISERROR(M4)),"表示できません",IF(G4&J4&M4="",D4,IF(M4<>"",M4,IF(J4<>"",IF($G$4=$J$4,"（旧）","")&$J$4,IF(J4<>"",J4,G4))))) -> 埼玉県 | AD3: =IF(M4="",-1,IFERROR(MATCH(M4,OFFSET(集落2010,1,0,ROWS(集落2010),1),0)-1,999))+AF3 -> 5 | AE3: =COUNTIF('2010年'!C:C,Info!J4)-1 -> 1043493 | AF3: =IF(J4="",X3,MATCH(J4,'2010年'!C:C,0)) -> 6 | AG3: '2010年'!$A$1 | AH3: =OFFSET(INDIRECT(AG3),AD3,1)&OFFSET(INDIRECT(AG3),AD3,2)&OFFSET(INDIRECT(AG3),AD3,3) ->  | AI3: =IF(OR(ISERROR(AJ3),ISERROR(AL3)),"表示できません",IF(V4<>"",V4,IF(R4<>"",IF($G$4=$J$4,"（旧）","")&$J$4,IF(O4<>"",O4,L4)))) -> 5 | AK3: =IF(M4="",-1,IFERROR(MATCH(M4,OFFSET(集落2010,1,0,ROWS(集落2010),1),0)-1,999))+AM3 -> 5 | AL3: =COUNTIF('2010年'!C:C,Info!J4)-1 -> 1043493 | AM3: =IF(J4="",X3,MATCH(J4,'2010年'!C:C,0)) -> 6 | AN3: '2010年'!$A$1 | AO3: =OFFSET(INDIRECT(AN3),AK3,1)&OFFSET(INDIRECT(AN3),AK3,2)&OFFSET(INDIRECT(AN3),AK3,3) ->  | AP3: =IF(OR(ISERROR(AQ3),ISERROR(AS3)),"表示できません",IF(AC4<>"",AC4,IF(Y4<>"",IF($G$4=$J$4,"（旧）","")&$J$4,IF(V4<>"",V4,S4)))) -> （旧）
D4: 埼玉県 | V4: =IF(M4="",-1,IFERROR(MATCH(M4,OFFSET(集落2015,1,0,ROWS(集落2015),1),0)-1,3000))+AF4 -> 5 | W4: =COUNTIF('2015年'!B:B,Info!G4)-1 -> -1 | X4: =IF(G4="",6,MATCH(G4,'2015年'!B:B,0)) -> 6 | Y4: '2015年'!$A$1 | Z4: =OFFSET(INDIRECT(Y4),V4,1)&OFFSET(INDIRECT(Y4),V4,2)&OFFSET(INDIRECT(Y4),V4,3) ->  | AD4: =IF(M4="",-1,IFERROR(MATCH(M4,OFFSET(集落2015,1,0,ROWS(集落2015),1),0)-1,999))+AF4 -> 5 | AE4: =COUNTIF('2015年'!C:C,Info!J4)-1 -> 1043493 | AF4: =IF(J4="",X3,MATCH(J4,'2015年'!C:C,0)) -> 6 | AG4: '2015年'!$A$1 | AH4: =OFFSET(INDIRECT(AG4),AD4,1)&OFFSET(INDIRECT(AG4),AD4,2)&OFFSET(INDIRECT(AG4),AD4,3) ->  | AK4: =IF(M4="",-1,IFERROR(MATCH(M4,OFFSET(集落2015,1,0,ROWS(集落2015),1),0)-1,999))+AM4 -> 5 | AL4: =COUNTIF('2015年'!C:C,Info!J4)-1 -> 1043493 | AM4: =IF(J4="",X4,MATCH(J4,'2010年'!C:C,0)) -> 6 | AN4: '2015年'!$A$1 | AO4: =OFFSET(INDIRECT(AN4),AK4,1)&OFFSET(INDIRECT(AN4),AK4,2)&OFFSET(INDIRECT(AN4),AK4,3) -> 
C6: ="総農家数" -> 総農家数 | G6: =IFERROR("◎ "&W11&IF(LEFT(R8,1)="県","の総農家に占める割合は "&TEXT(G13,"0.0")&"% で、"&D4&"（"&TEXT(G14,"0.0")&"%） "&X13,"は "&TEXT(G12,"#,###戸 で ")&W13&"、"&"総農家の "&TEXT(G13,"0.0")&"% を占める"),"") -> ◎ 販売農家は 36,743戸 で 7,771戸（17.5%） 減少、総農家の 57.3% を占める
K7: 単位：戸 | L7: 《主副業別割合》
F8: 総農家 | L8: =" "&IF(AND(LEFT(R8,1)<>"県",G4=""),D4,IF(LEFT(R8,1)="県",D12,$AA$3)) -> 埼玉県 | R8: 前回との比較
G9: 販売 農家 | K9: 自給的農家 | R9: ="外円："&IF(AND(LEFT(R8,1)="県",G4=""),D4,IF(LEFT(R8,1)="県",$AA$3,"2015年"))&CHAR(10)&"内円："&IF(LEFT(R8,1)="県",$D$4,"2010年") -> 外円：2015年 内円：2010年
H10: 主業 農家 | I10: 準主業 農家 | J10: 副業的 農家 | V10: 列番号 | W10: 概要 | Y10: 凡例 | AC10: 内円
D11: 2010年 | F11: =IFERROR(OFFSET(INDIRECT($Y$3),$V$3,$V11+E$1),"nc") -> 72,957 | G11: =IFERROR(OFFSET(INDIRECT($Y$3),$V$3,$V11+F$1),"nc") -> 44,514 | H11: =IFERROR(OFFSET(INDIRECT($Y$3),$V$3,$V11+G$1),"nc") -> 8,956 | I11: =IFERROR(OFFSET(INDIRECT($Y$3),$V$3,$V11+I$1),"nc") -> 10,531 | J11: =IFERROR(OFFSET(INDIRECT($Y$3),$V$3,$V11+K$1),"nc") -> 25,027 | K11: =IFERROR(OFFSET(INDIRECT($Y$3),$V$3,$V11+L$1),"nc") -> 28,443 | V11: =CELL("col",'2010年'!E6)-1 -> 4 | W11: 販売農家 | X11: 対県 | Y11: 主業農家 | Z11: 準主業農家 | AA11: 副業的農家 | AB11: 自給的農家 | AC11: =IF(LEFT(R8,1)="県",2,-1) -> -1
D12: 2015年 | F12: =IFERROR(OFFSET(INDIRECT($Y$4),$V$4,$V12+E$1),"nc") -> 64,178 | G12: =IFERROR(OFFSET(INDIRECT($Y$4),$V$4,$V12+F$1),"nc") -> 36,743 | H12: =IFERROR(OFFSET(INDIRECT($Y$4),$V$4,$V12+G$1),"nc") -> 7,518 | I12: =IFERROR(OFFSET(INDIRECT($Y$4),$V$4,$V12+I$1),"nc") -> 7,258 | J12: =IFERROR(OFFSET(INDIRECT($Y$4),$V$4,$V12+K$1),"nc") -> 21,967 | K12: =IFERROR(OFFSET(INDIRECT($Y$4),$V$4,$V12+L$1),"nc") -> 27,435 | V12: =CELL("col",'2015年'!E6)-1 -> 4 | W12: =G12/G11-1 -> -0.1745742912 | X12: =G13-G14 -> 0.0
E13: 構成比(%) | F13: =IF(OR(AND(ISTEXT($F12),$F12<>"X",$F12<>"-"),AND(ISTEXT(F12),F12<>"X",F12<>"-")),"nc",IF(OR($F12="X",F12="X"),"X",IF(ROUND(SUM($F12),0)=0,"nc",SUM(F12)/$F12%))) -> 100.0 | G13: =IF(OR(AND(ISTEXT($F12),$F12<>"X",$F12<>"-"),AND(ISTEXT(G12),G12<>"X",G12<>"-")),"nc",IF(OR($F12="X",G12="X"),"X",IF(ROUND(SUM($F12),0)=0,"nc",SUM(G12)/$F12%))) -> 57.3 | H13: =IF(OR(AND(ISTEXT($F12),$F12<>"X",$F12<>"-"),AND(ISTEXT(H12),H12<>"X",H12<>"-")),"nc",IF(OR($F12="X",H12="X"),"X",IF(ROUND(SUM($F12),0)=0,"nc",SUM(H12)/$F12%))) -> 11.7 | I13: 11.3 | J13: =IF(OR(AND(ISTEXT($F12),$F12<>"X",$F12<>"-"),AND(ISTEXT(J12),J12<>"X",J12<>"-")),"nc",IF(OR($F12="X",J12="X"),"X",IF(ROUND(SUM($F12),0)=0,"nc",SUM(J12)/$F12%))) -> 34.2 | K13: 42.7 | W13: =IF(W12=0,"変化なし",TEXT(ABS(G12-G11),"#,##0")&"戸（"&TEXT(ABS(W12),"0.0%")&"） "&IF(W12>0,"増加","減少")) -> 7,771戸（17.5%） 減少 | X13: =IF(X12=0,"と同率である","を"&TEXT(ABS(X12),"#,##0.0")&"ポイント "&IF(X12>0,"上回る","下回る")) -> と同率である
E14: 県計 構成比(%) | F14: 100.0 | G14: =IFERROR(OFFSET(INDIRECT($Y$4),5,$V$12+F1)/OFFSET(INDIRECT($Y$4),5,V12)*100,"nc") -> 57.3 | H14: =IFERROR(OFFSET(INDIRECT($Y$4),5,$V$12+G1)/OFFSET(INDIRECT($Y$4),5,V12)*100,"nc") -> 11.7 | I14: =IFERROR(OFFSET(INDIRECT($Y$4),5,$V$12+I1)/OFFSET(INDIRECT($Y$4),5,V12)*100,"nc") -> 11.3 | J14: =IFERROR(OFFSET(INDIRECT($Y$4),5,$V$12+K1)/OFFSET(INDIRECT($Y$4),5,V12)*100,"nc") -> 34.2 | K14: =IFERROR(OFFSET(INDIRECT($Y$4),5,$V$12+L1)/OFFSET(INDIRECT($Y$4),5,V12)*100,"nc") -> 42.7
D15: =IFERROR("《参考》"&G4&"の総農家数の全国順位："&TEXT(OFFSET(#REF!,MATCH(Info!G4,#REF!,0),0),"#,##0")&"位","") -> 
C18: 農業就業人口
D19: =IFERROR(IF(RIGHT(C18,4)="ください","","◎ "&C18&"は "&TEXT(F23,"#,##0人 で ")&W24&IFERROR("、平均年齢 "&TEXT(S23,"0.0歳は")&IF(LEFT(R28,1)="県","県平均","2010年")&X24,"")),"") -> ◎ 農業就業人口は 58,575人 で 13,216人（18.4%） 減少、平均年齢 66.9歳は2010年を 0.5歳上回る
S20: 単位：人
F21: 計 | G21: 15～39歳 | H21: 40～44 | I21: 45～49 | J21: 50～54 | K21: 55～59 | L21: 60～64 | M21: 65～69 | N21: 70～74 | O21: 75～79 | P21: 80～84 | Q21: 85歳以上 | R21: 65歳以上 | S21: 平均 年齢 （歳） | V21: 列番号 | W21: 概要 | Y21: 縦棒 左 | Z21: 縦棒 右 | AA21: 凡例
D22: 2010年 | F22: =IFERROR(OFFSET(INDIRECT($Y$3),$V$3,V23-1),"nc") -> 71,791 | G22: =IFERROR(IF(COUNTIF(OFFSET(INDIRECT($Y$3),$V$3,V23,1,5),"@")>0,"@",IF(COUNTIF(OFFSET(INDIRECT($Y$3),$V$3,V23,1,5),"X")>0,"X",SUM(OFFSET(INDIRECT($Y$3),$V$3,V23,1,5)))),"nc") -> 4,199 | H22: =IFERROR(OFFSET(INDIRECT($Y$3),$V$3,$V23+J$1),"nc") -> 1,762 | I22: =IFERROR(OFFSET(INDIRECT($Y$3),$V$3,$V23+K$1),"nc") -> 2,269 | J22: 3,473 | K22: 6,435 | L22: 9,054 | M22: 9,907 | N22: 11,727 | O22: 11,394 | P22: 8,073 | Q22: 3,498 | R22: =IF(COUNTIF(M22:Q22,"@"),"@",(IF(COUNTIF(M22:Q22,"X"),"X",SUM(M22:Q22)))) -> 44,599 | S22: =IFERROR(OFFSET(INDIRECT($Y$3),$V$3,V23+15),"nc") -> 66.4 | V22: =IF(C18="農業従事者数",1,IF(C18="農業就業人口",2,IF(C18="基幹的農業従事者数",3,ERROR.TYPE(5)))) -> 2 | W22: 人数 | X22: 平均年齢 | Y22: =IF(LEFT(R28,1)="県",3,-1) -> -1 | Z22: =IF(LEFT(R28,1)="県",1,0) -> 0 | AA22: =IF(LEFT(R28,1)="県",$D$4,$D22) -> 2010年
D23: 2015年 | F23: =IFERROR(OFFSET(INDIRECT($Y$4),$V$4,$V24-1),"nc") -> 58,575 | G23: =IFERROR(IF(COUNTIF(OFFSET(INDIRECT($Y$4),$V$4,$V24,1,5),"X")>0,"X",SUM(OFFSET(INDIRECT($Y$4),$V$4,$V24,1,5))),"nc") -> 3,377 | H23: =IFERROR(OFFSET(INDIRECT($Y$4),$V$4,$V24+5),"nc") -> 1,550 | I23: =IFERROR(OFFSET(INDIRECT($Y$4),$V$4,$V24+6),"nc") -> 1,755 | J23: =IFERROR(OFFSET(INDIRECT($Y$4),$V$4,$V24+7),"nc") -> 2,316 | K23: =IFERROR(OFFSET(INDIRECT($Y$4),$V$4,$V24+8),"nc") -> 3,815 | L23: =IFERROR(OFFSET(INDIRECT($Y$4),$V$4,$V24+9),"nc") -> 8,244 | M23: =IFERROR(OFFSET(INDIRECT($Y$4),$V$4,$V24+10),"nc") -> 9,913 | N23: =IFERROR(OFFSET(INDIRECT($Y$4),$V$4,$V24+11),"nc") -> 8,815 | O23: =IFERROR(OFFSET(INDIRECT($Y$4),$V$4,$V24+12),"nc") -> 8,731 | P23: =IFERROR(OFFSET(INDIRECT($Y$4),$V$4,$V24+13),"nc") -> 6,307 | Q23: =IFERROR(OFFSET(INDIRECT($Y$4),$V$4,$V24+14),"nc") -> 3,752 | R23: =IF(COUNTIF(M23:Q23,"X"),"X",SUM(M23:Q23)) -> 37,518 | S23: =IFERROR(OFFSET(INDIRECT($Y$4),$V$4,$V24+15),"nc") -> 66.9 | V23: =IFERROR(CHOOSE(V22,CELL("col",'2010年'!N6),CELL("col",'2010年'!AG6),CELL("col",'2010年'!AZ6))-1,555) -> 32 | W23: =F23/F22-1 -> -0.1840899277 | X23: =S23-IF(LEFT(R28,1)="県",S26,S22) -> 0.5 | AA23: =IF(AND(LEFT(R28,1)="県",G4=""),D4,IF(LEFT(R28,1)="県",AA3,D23)) -> 2015年
E24: 構成比(%) | F24: =IF(OR(AND(ISTEXT($F23),$F23<>"X",$F23<>"-"),AND(ISTEXT(F23),F23<>"X",F23<>"-")),"nc",IF(OR($F23="X",F23="X"),"X",IF(ROUND(SUM($F23),0)=0,"nc",SUM(F23)/$F23%))) -> 100.0 | G24: 5.8 | H24: 2.6 | I24: 3.0 | J24: 4.0 | K24: 6.5 | L24: 14.1 | M24: 16.9 | N24: 15.0 | O24: 14.9 | P24: 10.8 | Q24: 6.4 | R24: 64.1 | V24: =IFERROR(CHOOSE(V22,CELL("col",'2015年'!N6),CELL("col",'2015年'!AG6),CELL("col",'2015年'!AZ6))-1,555) -> 32 | W24: =IF(W23=0,"変化なし",TEXT(ABS(F23-F22),"#,##0人")&"（"&TEXT(ABS(W23),"0.0%")&"） "&IF(W23>0,"増加","減少")) -> 13,216人（18.4%） 減少 | X24: =IF(X23=0,"と同じである","を "&TEXT(ABS(X23),"0.0歳")&IF(X23>0,"上回る","下回る")) -> を 0.5歳上回る
E25: 2015年 | F25: =IFERROR(OFFSET(INDIRECT($Y$4),5,V24-1),"nc") -> 58,575 | G25: =IFERROR(SUM(OFFSET(INDIRECT($Y$4),5,V24,1,5)),"nc") -> 3,377 | H25: =IFERROR(OFFSET(INDIRECT($Y$4),5,V24+5),"nc") -> 1,550 | I25: =IFERROR(OFFSET(INDIRECT($Y$4),5,V24+6),"nc") -> 1,755 | J25: =IFERROR(OFFSET(INDIRECT($Y$4),5,V24+7),"nc") -> 2,316 | K25: =IFERROR(OFFSET(INDIRECT($Y$4),5,V24+8),"nc") -> 3,815 | L25: =IFERROR(OFFSET(INDIRECT($Y$4),5,V24+9),"nc") -> 8,244 | M25: =IFERROR(OFFSET(INDIRECT($Y$4),5,V24+10),"nc") -> 9,913 | N25: =IFERROR(OFFSET(INDIRECT($Y$4),5,V24+11),"nc") -> 8,815 | O25: =IFERROR(OFFSET(INDIRECT($Y$4),5,V24+12),"nc") -> 8,731 | P25: =IFERROR(OFFSET(INDIRECT($Y$4),5,V24+13),"nc") -> 6,307 | Q25: =IFERROR(OFFSET(INDIRECT($Y$4),5,V24+14),"nc") -> 3,752 | R25: =SUM(M25:Q25) -> 37,518
E26: 県計 構成比(%) | F26: 100.0 | G26: =IFERROR(ROUND(G25/$F25*100,1),"nc") -> 5.8 | H26: =IFERROR(ROUND(H25/$F25*100,1),"nc") -> 2.6 | I26: 3.0 | J26: 4.0 | K26: 6.5 | L26: 14.1 | M26: 16.9 | N26: 15.0 | O26: 14.9 | P26: 10.8 | Q26: 6.4 | R26: 64.1 | S26: =IFERROR(OFFSET(INDIRECT($Y$4),5,V24+15),"nc") -> 66.9
D27: =IF(LEFT(R28,1)="県","（％）","（人）") -> （人） | G27: ="《年齢階層別"&C18&IF(LEFT(R28,1)="県","割合","")&"》 "&IF(AND(LEFT(R28,1)<>"県",G4=""),D4,IF(LEFT(R28,1)="県",D23,AA3)) -> 《年齢階層別農業就業人口》 埼玉県
R28: 前回との比較
C41: 後継者がいる農家数（販売農家）
D42: =IFERROR(" ◎ 後継者がいる農家数の割合は "&TEXT(H51,"0.0")&"％（"&TEXT(H50,"#,##0")&"戸）で、"&IF(LEFT(Z48,1)="県","県平均の "&TEXT(H52,"0.0"),"2010年の "&TEXT(H48,"0.0"))&"％"&AB49,"") -> ◎ 後継者がいる農家数の割合は 46.8％（17,178戸）で、県平均の 46.8％と同率である
D43: =IFERROR(IF(LEFT(Z49,1)="県","県平均の "&TEXT(H52,"0.0")," 2010年の "&TEXT(H48,"0.0"))&"％"&AB47,"") -> 2010年の 60.6％ を 13.9ポイント 下回る
H44: 単位：戸 | J44: ="《後継者のいる農家数"&IF(LEFT(Z49,1)="県","割合","")&"》 "&IF(AND(LEFT(Z49,1)<>"県",G4=""),D4,IF(LEFT(Z49,1)="県","2015年",AA3)) -> 《後継者のいる農家数》 埼玉県 | P44: ="《後継者のいる農家数"&IF(LEFT(Z48,1)="県","割合","")&"》 "&IF(AND(LEFT(Z48,1)<>"県",M4=""),J4,IF(LEFT(Z48,1)="県","2015年",AA3)) -> 《後継者のいる農家数割合》 2015年
H45: 計 | V45: 列番号 | W45: 2015年 | X45: 2010年 | Y45: 縦棒左 | Z45: 縦棒右 | AA45: 凡例 | AB45: 差
D46: 2010年 | E46: 農家数 | H46: =IFERROR(OFFSET(INDIRECT($Y$3),$V$3,X46-1),"nc") -> 44,514 | V46: 農家数 | W46: =CELL("col",'2015年'!BS6)-1 -> 70 | X46: =CELL("col",'2010年'!BS6)-1 -> 70 | Y46: 1 | Z46: 0 | AA46: =IF(LEFT(Z49,1)="県",$D$4,$D46) -> 2010年 | AB46: =H51-IF(LEFT(Z49,1)="県",H52,H48) -> -13.86062936670810
G47: 後継者がいる農家数 | H47: =IFERROR(OFFSET(INDIRECT(Y3),V3,X47-1),"nc") -> 26,981 | V47: 後継者有 | W47: =CELL("col",'2015年'!CI5)-1 -> 86 | X47: =CELL("col",'2010年'!CI5)-1 -> 86 | Y47: -4 | Z47: -1 | AA47: =IF(AND(LEFT(Z49,1)="県",G4=""),D4,IF(LEFT(Z49,1)="県",AA3,D49)) -> 2015年 | AB47: =IF(AB46=0,"と同率である"," を "&TEXT(ABS(AB46),"0.0")&"ポイント "&IF(AB46>0,"上回る","下回る")) -> を 13.9ポイント 下回る
G48: 割合(%) | H48: =IF(OR(AND(ISTEXT(H46),H46<>"X",H46<>"-"),AND(ISTEXT(H47),H47<>"X",H47<>"-")),"nc",IF(OR(H46="X",H47="X"),"X",IF(ROUND(SUM(H46),0)=0,"nc",SUM(H47)/H46%))) -> 60.6 | Z48: 県との比較 | AA48: =IF(LEFT(Z48,1)="県",$D$4,$D46) -> 埼玉県 | AB48: =H51-IF(LEFT(Z48,1)="県",H52,H48) -> 0.00000000000000
D49: 2015年 | E49: 農家数 | H49: =IFERROR(OFFSET(INDIRECT($Y$4),$V$4,W46-1),"nc") -> 36,743 | Z49: 前回との比較 | AA49: =AA3 -> 埼玉県 | AB49: =IF(AB48=0,"と同率である"," を "&TEXT(ABS(AB48),"0.0")&"ポイント "&IF(AB48>0,"上回る","下回る")) -> と同率である
G50: 後継者がいる農家数 | H50: =IFERROR(OFFSET(INDIRECT($Y$4),$V$4,$W47-1),"nc") -> 17,178
G51: 割合(%) | H51: =IF(OR(AND(ISTEXT(H49),H49<>"X",H49<>"-"),AND(ISTEXT(H50),H50<>"X",H50<>"-")),"nc",IF(OR(H49="X",H50="X"),"X",IF(ROUND(SUM(H49),0)=0,"nc",SUM(H50)/H49%))) -> 46.8
D52: 県計 | G52: 後継者がいる割合(%) | H52: =IFERROR(OFFSET(INDIRECT($Y$4),5,$W$47-1)/OFFSET(INDIRECT($Y$4),5,$W$46-1)*100,"nc") -> 46.8
D73: =IFERROR(" ◎ 一世代家族経営の割合は "&TEXT(G79/100,"0.0%")&"（"&TEXT(G78,"#,##0")&"戸）で、"&IF(LEFT(R75,1)="県","県平均の "&TEXT(G80/100,"0.0%"),"2010年の "&TEXT(G77/F77,"0.0%"))&W78,"") -> 
L74: 単位：戸
F75: 計 | G75: 一世代家族 経営 | J75: 二世代家族 経営 | L75: 三世代家族 経営 | R75: 前回との比較
H76: 一人家族経営 | I76: 夫婦家族経営 | K76: 親子家族経営 | V76: 列番号 | W76: 県、前回との差 | X76: グラフ用 | Y76: 一世代 | Z76: 二世代 | AA76: 三世代
D77: 2010年 | F77: =IFERROR(OFFSET(INDIRECT($Y$3),$V$3,$V77),"nc") -> nc | G77: =IFERROR(OFFSET(INDIRECT($Y$3),$V$3,$V$77+F1),"nc") -> nc | H77: nc | I77: nc | J77: nc | K77: nc | L77: nc | V77: =CELL("col",#REF!)-1 ->  | W77: =IF(LEFT(R75,1)="県",G79-G80,G79-G77/F77*100) ->  | X77: =IF(LEFT($R$75,1)="県",AA3,D77) -> 2010年 | Y77: =IF(LEFT($R$75,1)="県",G79,G77/F77*100) ->  | Z77: =IF(LEFT($R$75,1)="県",J79,J77/F77*100) ->  | AA77: =IF(LEFT($R$75,1)="県",L79,L77/F77*100) -> 
D78: 2015年 | F78: =IFERROR(OFFSET(INDIRECT($Y$4),$V$4,$V78),"nc") -> 0 | G78: =IFERROR(SUM(OFFSET(INDIRECT($Y$4),$V$4,$V$78+F1)),"nc") -> 0 | H78: 0 | I78: 0 | J78: 0 | K78: 0 | L78: 0 | V78: =CELL("col",'2015年'!CV6)-1 -> 99 | W78: =IF(W77=0," と同率である"," を "&TEXT(ABS(W77),"0.0")&"ポイント "&IF(W77>0,"上回る","下回る")) ->  | X78: =IF(LEFT($R$75,1)="県",D4,D78) -> 2015年 | Y78: =IF(LEFT($R$75,1)="県",G80,G79) -> nc | Z78: =IF(LEFT($R$75,1)="県",J80,J79) -> nc | AA78: =IF(LEFT($R$75,1)="県",L80,L79) -> nc
E79: 構成比(%) | F79: =IF(OR(AND(ISTEXT($F78),$F78<>"X",$F78<>"-"),AND(ISTEXT(F78),F78<>"X",F78<>"-")),"nc",IF(OR($F78="X",F78="X"),"X",IF(ROUND(SUM($F78),0)=0,"nc",SUM(F78)/$F78%))) -> nc | G79: nc | H79: nc | I79: nc | J79: nc | K79: nc | L79: nc
E80: 県計 構成比(%) | F80: 100.0 | G80: =IFERROR(OFFSET(INDIRECT($Y$4),5,$V$78+F1)/OFFSET(INDIRECT($Y$4),5,$V$78)%,"nc") -> nc | H80: nc | I80: nc | J80: nc | K80: nc | L80: nc
C84: 過去１年間の生活の主な状態別世帯員数（計）
D85: =IFERROR(" ◎ 「自営農業が主」の割合は "&TEXT(H91/100,"0.0%")&"（"&TEXT(H90,"#,###")&"戸）で、"&IF(LEFT(R87,1)="県"," 県平均"&"の "&TEXT(H93/100,"0.0%")&W90,"2010年の "&TEXT(H89/F89,"0.0%")&X90),"") -> ◎ 「自営農業が主」の割合は 40.7%（50,813戸）で、2010年の 35.7% を 5.0ポイント 上回る
M86: 単位：人 | N86: =" 《主な状態別世帯員数割合》 " -> 《主な状態別世帯員数割合》
F87: 計 | G87: 主に仕事 | K87: 主に 家事・育児 | L87: 学生 | M87: その他 | N87: =" "&IF(AND(LEFT(R87,1)<>"県",G4=""),D4,IF(LEFT(R87,1)="県",D90,AA3)) -> 埼玉県 | R87: 前回との比較 | W87: 自営農業の増減 | Y87: 凡例用 | AE87: 内円
G88: 小計 | H88: 自営農業が主 | I88: 勤務が主 | J88: 農業以外の自営が主 | R88: ="外円："&IF(AND(LEFT(R87,1)="県",G4=""),D4,IF(LEFT(R87,1)="県",$AA$3,"2015年"))&CHAR(10)&"内円："&IF(LEFT(R87,1)="県",$D$4,"2010年") -> 外円：2015年 内円：2010年 | V88: 列番号 | W88: 県 | X88: 前回 | Y88: 自営農業 | Z88: 勤務 | AA88: 農業以外の自営 | AB88: 家事・育児 | AC88: 学生 | AD88: その他 | AE88: offset 行数
A89: 15 | D89: 2010年 | F89: =IFERROR(OFFSET(INDIRECT($Y$3),$V$3,$V95-1),"nc") -> 164,573 | G89: =IFERROR(OFFSET(INDIRECT($Y$3),$V$3,$V95),"nc") -> 116,962 | H89: =IFERROR(OFFSET(INDIRECT($Y$3),$V$3,$V95+1),"nc") -> 58,785 | I89: =IFERROR(OFFSET(INDIRECT($Y$3),$V$3,$V95+2),"nc") -> 52,309 | J89: =IFERROR(OFFSET(INDIRECT($Y$3),$V$3,$V95+3),"nc") -> 5,868 | K89: =IFERROR(OFFSET(INDIRECT($Y$3),$V$3,$V95+4),"nc") -> 17,575 | L89: =IFERROR(OFFSET(INDIRECT($Y$3),$V$3,$V95+5),"nc") -> 12,539 | M89: =IFERROR(OFFSET(INDIRECT($Y$3),$V$3,$V95+6),"nc") -> 17,497 | V89: =CELL("col",'2010年'!DC6)-1 -> 106 | W89: =H91-H93 -> 0.00 | X89: =H91-H89/F89*100 -> 4.976594423 | AE89: =IF(LEFT(R87,1)="県",2,-1) -> -1
D90: 2015年 | F90: =IFERROR(OFFSET(INDIRECT($Y$4),$V$4,$V96-1),"nc") -> 124,859 | G90: =IFERROR((OFFSET(INDIRECT($Y$4),$V$4,$V96)),"nc") -> 92,803 | H90: =IFERROR((OFFSET(INDIRECT($Y$4),$V$4,$V96+1)),"nc") -> 50,813 | I90: =IFERROR((OFFSET(INDIRECT($Y$4),$V$4,$V96+2)),"nc") -> 36,456 | J90: =IFERROR((OFFSET(INDIRECT($Y$4),$V$4,$V96+3)),"nc") -> 5,534 | K90: =IFERROR((OFFSET(INDIRECT($Y$4),$V$4,$V96+4)),"nc") -> 12,088 | L90: =IFERROR((OFFSET(INDIRECT($Y$4),$V$4,$V96+5)),"nc") -> 8,124 | M90: =IFERROR((OFFSET(INDIRECT($Y$4),$V$4,$V96+6)),"nc") -> 11,844 | V90: =CELL("col",'2015年'!DC6)-1 -> 106 | W90: =" "&IF(W89=0,"と同率である"," を "&TEXT(ABS(W89),"0.0")&"ポイント "&IF(W89>0,"上回る","下回る")) -> と同率である | X90: =IF(X89=0,"と同率である"," を "&TEXT(ABS(X89),"0.0")&"ポイント "&IF(X89>0,"上回る","下回る")) -> を 5.0ポイント 上回る
E91: 構成比(%) | F91: =IF(OR(AND(ISTEXT($F90),$F90<>"X",$F90<>"-"),AND(ISTEXT(F90),F90<>"X",F90<>"-")),"nc",IF(OR($F90="X",F90="X"),"X",IF(ROUND(SUM($F90),0)=0,"nc",SUM(F90)/$F90%))) -> 100.0 | G91: 74.3 | H91: 40.7 | I91: 29.2 | J91: 4.4 | K91: 9.7 | L91: 6.5 | M91: 9.5
E92: 県計 実数 | F92: =IFERROR(OFFSET(INDIRECT($Y$4),5,V96-1),"nc") -> 124,859 | G92: =IFERROR(OFFSET(INDIRECT($Y$4),5,$V$96),"nc") -> 92,803 | H92: =IFERROR(OFFSET(INDIRECT($Y$4),5,V96+1),"nc") -> 50,813 | I92: =IFERROR(OFFSET(INDIRECT($Y$4),5,V96+2),"nc") -> 36,456 | J92: =IFERROR(OFFSET(INDIRECT($Y$4),5,V96+3),"nc") -> 5,534 | K92: =IFERROR(OFFSET(INDIRECT($Y$4),5,V96+4),"nc") -> 12,088 | L92: =IFERROR(OFFSET(INDIRECT($Y$4),5,V96+5),"nc") -> 8,124 | M92: =IFERROR(OFFSET(INDIRECT($Y$4),5,V96+6),"nc") -> 11,844
E93: 県計 構成比(%) | F93: 100.0 | G93: =IFERROR(OFFSET(INDIRECT($Y$4),5,$V$96)/OFFSET(INDIRECT($Y$4),5,$V$96-1)*100,"nc") -> 74.3 | H93: =IFERROR(OFFSET(INDIRECT($Y$4),5,$V$96+F1)/OFFSET(INDIRECT($Y$4),5,$V$96-1)*100,"nc") -> 40.7 | I93: 29.2 | J93: 4.4 | K93: 9.7 | L93: 6.5 | M93: 9.5 | V93: 列番号 | W93: 概要 | Y93: 縦棒 左 | Z93: 縦棒 右 | AA93: 凡例
V94: =IF(C84="過去１年間の生活の主な状態別世帯員数（計）",1,IF(C84="過去１年間の生活の主な状態別世帯員数（男）",2,IF(C84="過去１年間の生活の主な状態別世帯員数（女）",3,ERROR.TYPE(5)))) -> 1 | W94: 人数 | X94: 平均年齢 | Y94: =IF(LEFT(R100,1)="県",3,-1) -> -1 | Z94: =IF(LEFT(R100,1)="県",1,0) -> 0 | AA94: =IF(LEFT(R100,1)="県",$D$4,$D94) -> 0
V95: =IFERROR(CHOOSE(V94,CELL("col",'2010年'!DD6),CELL("col",'2010年'!EG6),CELL("col",'2010年'!EO6))-1,555) -> 107 | W95: =F95/F94-1 ->  | X95: =S95-IF(LEFT(R100,1)="県",S98,S94) -> 0.0 | AA95: =IF(LEFT(R100,1)="県",AA75,D95) -> 0
V96: =IFERROR(CHOOSE(V94,CELL("col",'2015年'!DD6),CELL("col",'2015年'!EG6),CELL("col",'2015年'!EO6))-1,555) -> 107 | W96: =IF(W95=0,"変化なし",TEXT(ABS(F95-F94),"#,##0人")&"（"&TEXT(ABS(W95),"0.0%")&"） "&IF(W95>0,"増加","減少")) ->  | X96: =IF(X95=0,"と同じである","を "&TEXT(ABS(X95),"0.0歳")&IF(X95>0,"上回る","下回る")) -> と同じである
C98: 農産物販売金額１位の部門別農家数（販売のあった農家）
D99: =IF(AA105="",""," ◎ "&AA105&"（"&TEXT(Z105,"0.0")&"%） が最も多く、次いで"&SUBSTITUTE(AA106&AA107,"」「","」、「")&"の順で、この"&DBCS(COUNTIF(AB103:AN103,"<4"))&"部門で全体の "&TEXT(Z104,"0.0")&"% を占める") -> ◎ 「稲作」（57.5%） が最も多く、次いで「露地野菜」、「施設野菜」の順で、この３部門で全体の 83.9% を占める
S100: 単位：戸
F101: 計 | G101: 稲作 | H101: 麦類作 | I101: 雑穀・ いも類・ 豆類 | J101: 工芸農作物 | K101: 野菜類 | M101: 果樹類 | N101: 花き・ 花木 | O101: その他の作物 | P101: 酪農 | Q101: 肉用牛 | R101: 養豚 | S101: 養鶏
K102: 露地 | L102: 施設 | O102: その他の作物 | P102: 畜産 | V102: 列番号 | W102: offset行数 | Y102: 凡例 | Z102: 上位 | AB102: 稲作 | AC102: 麦類作 | AD102: 雑穀・ いも類・ 豆類 | AE102: 工芸 農作物 | AF102: 露地 野菜 | AG102: 施設 野菜 | AH102: 果樹類 | AI102: 花き・ 花木 | AJ102: その他 の作物 | AK102: 酪農 | AL102: 肉用牛 | AM102: 養豚 | AN102: 養鶏
D103: 2010年 | F103: =IFERROR(OFFSET(INDIRECT($Y$3),$V$3,$V103),"nc") -> 36,509 | G103: =IFERROR(OFFSET(INDIRECT($Y$3),$V$3,$V103+F$1),"nc") -> 21,233 | H103: 213 | I103: 414 | J103: 598 | K103: 6,916 | L103: 2,503 | M103: 1,775 | N103: 1,886 | O103: 306 | P103: =IFERROR(OFFSET(INDIRECT($Y$3),$V$3,$V103+O$1),"nc") -> 315 | Q103: =IFERROR(OFFSET(INDIRECT($Y$3),$V$3,$V103+P$1),"nc") -> 108 | R103: =IFERROR(OFFSET(INDIRECT($Y$3),$V$3,$V103+Q$1),"nc") -> 101 | S103: =IFERROR(OFFSET(INDIRECT($Y$3),$V$3,$V103+R$1),"nc") -> 85 | V103: =CELL("col",'2010年'!DK6)-1 -> 114 | W103: 縦棒左 | X103: 縦棒右 | Y103: =IF(LEFT(R108,1)="県",D4,D103) -> 2010年 | Z103: ３品目計 | AA103: 順位 | AB103: =IFERROR(RANK(G104,$G$104:$S$104,0),99) -> 1 | AC103: 7 | AD103: 8 | AE103: 6 | AF103: 2 | AG103: 3 | AH103: 4 | AI103: 5 | AJ103: 10 | AK103: 9 | AL103: 11 | AM103: 13 | AN103: 12
D104: 2015年 | F104: =IFERROR(OFFSET(INDIRECT($Y$4),$V$4,V104),"nc") -> 31,166 | G104: =IFERROR(OFFSET(INDIRECT($Y$4),$V$4,$V104+F1),"nc") -> 17,918 | H104: 399 | I104: 306 | J104: 469 | K104: 6,404 | L104: 1,841 | M104: 1,600 | N104: 1,578 | O104: 197 | P104: =IFERROR(OFFSET(INDIRECT($Y$4),$V$4,$V104+O1),"nc") -> 208 | Q104: =IFERROR(OFFSET(INDIRECT($Y$4),$V$4,$V104+P1),"nc") -> 86 | R104: =IFERROR(OFFSET(INDIRECT($Y$4),$V$4,$V104+Q1),"nc") -> 63 | S104: =IFERROR(OFFSET(INDIRECT($Y$4),$V$4,$V104+R1),"nc") -> 66 | V104: =CELL("col",'2015年'!DK6)-1 -> 114 | W104: =IF(LEFT(R108,1)="県",2,-1) -> -1 | X104: =IF(LEFT(R108,1)="県",1,0) -> 0 | Y104: =IF(AND(LEFT(R108,1)="県",G4=""),D4,IF(LEFT(R108,1)="県",AA3,D104)) -> 2015年 | Z104: =SUM(AB104:AN104) -> 83.94725021 | AA104: ％ | AB104: =IF(AB103<4,G104/$F$104%,0) -> 57.49213887 | AC104: =IF(AC103<4,H104/$F$104%,0) -> 0 | AD104: =IF(AD103<4,I104/$F$104%,0) -> 0 | AE104: 0 | AF104: 20.54803311 | AG104: 5.907078226 | AH104: 0 | AI104: 0 | AJ104: 0 | AK104: 0 | AL104: 0 | AM104: 0 | AN104: 0
E105: 構成比(%) | F105: =IF(OR(AND(ISTEXT($F104),$F104<>"X",$F104<>"-"),AND(ISTEXT(F104),F104<>"X",F104<>"-")),"nc",IF(OR($F104="X",F104="X"),"X",IF(ROUND(SUM($F104),0)=0,"nc",SUM(F104)/$F104%))) -> 100.0 | G105: 57.5 | H105: 1.3 | I105: 1.0 | J105: 1.5 | K105: 20.5 | L105: 5.9 | M105: 5.1 | N105: 5.1 | O105: 0.6 | P105: 0.7 | Q105: 0.3 | R105: 0.2 | S105: 0.2 | Y105: １位 | Z105: =SUMIF($AB$103:$AN$103,1,AB104:AN104) -> 57.49213887 | AA105: =SUBSTITUTE(AB105&AC105&AD105&AE105&AF105&AG105&AH105&AI105&AJ105&AK105&AL105&AM105&AN105,"」「","」と「") -> 「稲作」 | AB105: =IF(AB103=1,"「"&CLEAN(AB102)&"」","") -> 「稲作」
E106: 県計 構成比(%) | F106: 100.0 | G106: =IFERROR(IF(OFFSET(INDIRECT($Y$4),5,$V$104+F1)="-","-",ROUND(OFFSET(INDIRECT($Y$4),5,$V$104+F1)/OFFSET(INDIRECT($Y$4),5,$V$104)*100,1)),"nc") -> 57.5 | H106: =IFERROR(IF(OFFSET(INDIRECT($Y$4),5,$V$104+G1)="-","-",ROUND(OFFSET(INDIRECT($Y$4),5,$V$104+G1)/OFFSET(INDIRECT($Y$4),5,$V$104)*100,1)),"nc") -> 1.3 | I106: =IFERROR(IF(OFFSET(INDIRECT($Y$4),5,$V$104+H1)="-","-",ROUND(OFFSET(INDIRECT($Y$4),5,$V$104+H1)/OFFSET(INDIRECT($Y$4),5,$V$104)*100,1)),"nc") -> 1.0 | J106: =IFERROR(IF(OFFSET(INDIRECT($Y$4),5,$V$104+I1)="-","-",ROUND(OFFSET(INDIRECT($Y$4),5,$V$104+I1)/OFFSET(INDIRECT($Y$4),5,$V$104)*100,1)),"nc") -> 1.5 | K106: =IFERROR(IF(OFFSET(INDIRECT($Y$4),5,$V$104+J1)="-","-",ROUND(OFFSET(INDIRECT($Y$4),5,$V$104+J1)/OFFSET(INDIRECT($Y$4),5,$V$104)*100,1)),"nc") -> 20.5 | L106: 5.9 | M106: 5.1 | N106: 5.1 | O106: 0.6 | P106: =IFERROR(IF(OFFSET(INDIRECT($Y$4),5,$V$104+O1)="-","-",ROUND(OFFSET(INDIRECT($Y$4),5,$V$104+O1)/OFFSET(INDIRECT($Y$4),5,$V$104)*100,1)),"nc") -> 0.7 | Q106: =IFERROR(IF(OFFSET(INDIRECT($Y$4),5,$V$104+P1)="-","-",ROUND(OFFSET(INDIRECT($Y$4),5,$V$104+P1)/OFFSET(INDIRECT($Y$4),5,$V$104)*100,1)),"nc") -> 0.3 | R106: =IFERROR(IF(OFFSET(INDIRECT($Y$4),5,$V$104+Q1)="-","-",ROUND(OFFSET(INDIRECT($Y$4),5,$V$104+Q1)/OFFSET(INDIRECT($Y$4),5,$V$104)*100,1)),"nc") -> 0.2 | S106: =IFERROR(IF(OFFSET(INDIRECT($Y$4),5,$V$104+R1)="-","-",ROUND(OFFSET(INDIRECT($Y$4),5,$V$104+R1)/OFFSET(INDIRECT($Y$4),5,$V$104)*100,1)),"nc") -> 0.2 | Y106: ２位 | Z106: =SUMIF($AB$103:$AN$103,2,$AB$104:$AN$104) -> 20.54803311 | AA106: =SUBSTITUTE(AB106&AC106&AD106&AE106&AF106&AG106&AH106&AI106&AJ106&AK106&AL106&AM106&AN106,"」「","」と「") -> 「露地野菜」 | AB106: =IF(AB103=2,"「"&CLEAN(AB102)&"」","") ->  | AF106: 「露地野菜」
D107: =IF(LEFT(R108,1)="県","（％）","（戸）") -> （戸） | H107: ="《農産物販売金額１位の部門別農家数"&IF(LEFT(R108,1)="県","割合","")&"》 "&IF(AND(LEFT(R108,1)<>"県",G4=""),D4,IF(LEFT(R108,1)="県","2015年",AA3)) -> 《農産物販売金額１位の部門別農家数》 埼玉県 | Y107: ３位 | Z107: =SUMIF($AB$103:$AN$103,3,$AB$104:$AN$104) -> 5.907078226 | AA107: =SUBSTITUTE(AB107&AC107&AD107&AE107&AF107&AG107&AH107&AI107&AJ107&AK107&AL107&AM107&AN107,"」「","」と「") -> 「施設野菜」 | AB107: =IF(AB103=3,"「"&CLEAN(AB102)&"」","") ->  | AG107: 「施設野菜」
R108: 前回との比較
C121: 経営耕地面積（販売農家） | I121: =IFERROR(" ◎ 経営耕地面積は "&IF(G126=G125,"変化なし",TEXT(ABS(G126-G125),"#,##0")&"ha（"&TEXT(ABS(G126/G125-1),"0.0%"&"） "))&IF(F126=F125,"",IF(G126<G125,"減少","増加"))&"、１戸当たりでは "&IF(X125=0,"変動無し",TEXT(ABS(X125),"0.00")&"ha "&IF(X125>0,"増加","減少")),"") -> ◎ 経営耕地面積は 5,007ha（9.3%) 減少、１戸当たりでは 0.12ha 増加
D122: =AA3 -> 埼玉県 | K122: 単位：ha
F123: 経 営 耕 地 のある農家数 | G123: 経 営 耕 地 面 積 | K123: １戸当たり経営耕地面積
H124: 田 | I124: 畑 （樹園地を除く） | J124: 樹園地 | V124: 列番号 | W124: 凡例用 | X124: １戸当たり増減
D125: 2010年 | F125: =IFERROR(OFFSET(INDIRECT($Y$3),$V$3,V125),"nc") -> 44,464 | G125: =IFERROR(ROUND(OFFSET(INDIRECT($Y$3),$V$3,$V$125+F1)/100,0),OFFSET(INDIRECT($Y$3),$V$3,$V$125+F1)) -> 53,682 | H125: =IFERROR(ROUND(OFFSET(INDIRECT($Y$3),$V$3,$V$125+G1)/100,0),OFFSET(INDIRECT($Y$3),$V$3,$V$125+G1)) -> 33,989 | I125: =IFERROR(ROUND(OFFSET(INDIRECT($Y$3),$V$3,$V$125+H1)/100,0),OFFSET(INDIRECT($Y$3),$V$3,$V$125+H1)) -> 17,319 | J125: =IFERROR(ROUND(OFFSET(INDIRECT($Y$3),$V$3,$V$125+I1)/100,0),OFFSET(INDIRECT($Y$3),$V$3,$V$125+I1)) -> 2,374 | K125: =IF(OR(AND(ISTEXT($F125),$F125<>"X",$F125<>"-"),AND(ISTEXT(G125),G125<>"X",G125<>"-")),"nc",IF(OR($F125="X",G125="X"),"X",IF(ROUND(SUM($F125),0)=0,"nc",ROUND(SUM(G125)/$F125,2)))) -> 1.21 | V125: =CELL("col",'2010年'!EA6)-1 -> 130 | W125: 田 | X125: =K126-K125 -> 0.12
D126: 2015年 | F126: =IFERROR(OFFSET(INDIRECT($Y$4),$V$4,$V126),"nc") -> 36,637 | G126: =IFERROR(ROUND(OFFSET(INDIRECT($Y$4),$V$4,$V126+F1)/100,0),OFFSET(INDIRECT($Y$4),$V$4,$V126+F1)) -> 48,675 | H126: =IFERROR(ROUND(OFFSET(INDIRECT($Y$4),$V$4,$V126+G1)/100,0),OFFSET(INDIRECT($Y$4),$V$4,$V126+G1)) -> 31,143 | I126: =IFERROR(ROUND(OFFSET(INDIRECT($Y$4),$V$4,$V126+H1)/100,0),OFFSET(INDIRECT($Y$4),$V$4,$V126+H1)) -> 15,658 | J126: =IFERROR(ROUND(OFFSET(INDIRECT($Y$4),$V$4,$V126+I1)/100,0),OFFSET(INDIRECT($Y$4),$V$4,$V126+I1)) -> 1,874 | K126: =IF(OR(AND(ISTEXT($F126),$F126<>"X",$F126<>"-"),AND(ISTEXT(G126),G126<>"X",G126<>"-")),"nc",IF(OR($F126="X",G126="X"),"X",IF(ROUND(SUM($F126),0)=0,"nc",ROUND(SUM(G126)/$F126,2)))) -> 1.33 | V126: =CELL("col",'2015年'!EA6)-1 -> 130 | W126: 畑
E127: 構成比(%) | G127: =IF(OR(AND(ISTEXT($G126),$G126<>"X",$G126<>"-"),AND(ISTEXT(G126),G126<>"X",G126<>"-")),"nc",IF(OR($G126="X",G126="X"),"X",IF(ROUND(SUM($G126),0)=0,"nc",SUM(G126)/$G126%))) -> 100.0 | H127: =IF(OR(AND(ISTEXT($G126),$G126<>"X",$G126<>"-"),AND(ISTEXT(H126),H126<>"X",H126<>"-")),"nc",IF(OR($G126="X",H126="X"),"X",IF(ROUND(SUM($G126),0)=0,"nc",SUM(H126)/$G126%))) -> 64.0 | I127: 32.2 | J127: 3.9 | W127: 樹園地
E128: 県計 構成比(%) | G128: 100.0 | H128: =IFERROR(ROUND(OFFSET(INDIRECT($Y$4),5,$V$126+G1)/OFFSET(INDIRECT($Y$4),5,$V$126+1)*100,1),"nc") -> 64.0 | I128: =IFERROR(ROUND(OFFSET(INDIRECT($Y$4),5,$V$126+H1)/OFFSET(INDIRECT($Y$4),5,$V$126+1)*100,1),"nc") -> 32.2 | J128: =IFERROR(ROUND(OFFSET(INDIRECT($Y$4),5,$V$126+I1)/OFFSET(INDIRECT($Y$4),5,$V$126+1)*100,1),"nc") -> 3.9 | K128: =IFERROR(OFFSET(INDIRECT($Y$4),5,V126+1)/OFFSET(INDIRECT($Y$4),5,V126)/100,"nc") -> 1.33
D129: =IFERROR("《参考》"&G4&"の経営耕地面積の全国順位："&TEXT(OFFSET(#REF!,MATCH(Info!G4,#REF!,0),0),"#,##0")&"位","") -> 

Sheet 2010年 (hidden)
A1: 都道府県名（支庁名） | B1: 市区町村名 | C1: 旧市区町村名 | D1: 農業集落名 | E1: 総農家数 | M1: （７）年齢別の農業従事者数（自営農業に従事した世帯員数）男女計 | AC1: 農業従事者の平均年齢 | AF1: 年齢別の農業就業人口（自営農業に主として従事した世帯員数）男女計 | AV1: 農業就業人口 | AY1: （11）年齢別の基幹的農業従事者数（自営農業に主として従事した世帯員のうち仕事が主の世帯員数）男女計 | BO1: 基幹的農業従事者 平均年齢 | BR1: （２）年齢別の経営者数男女計 | CH1: ウ後継者がいる経営者 | CV1: 家族経営構成別農家数 | DC1: （６）過去１年間の生活の主な状態別世帯員数 | DH1: 男女計 | DK1: （４）農産物販売金額１位の部門別農家数 | EA1: （１）経営耕地の状況 | EF1: （６）過去１年間の生活の主な状態別世帯員数(男) | EN1: （６）過去１年間の生活の主な状態別世帯員数(女)
F2: 販売農家数 | L2: 自給的農家 | M2: 計 | N2: 15～19歳 | O2: 20～24 | P2: 25～29 | Q2: 30～34 | R2: 35～39 | S2: 40～44 | T2: 45～49 | U2: 50～54 | V2: 55～59 | W2: 60～64 | X2: 65～69 | Y2: 70～74 | Z2: 75～79 | AA2: 80～84 | AB2: 85歳以上 | AC2: 男女計 | AD2: 男 | AE2: 女 | AF2: 計 | AG2: 15～19歳 | AH2: 20～24 | AI2: 25～29 | AJ2: 30～34 | AK2: 35～39 | AL2: 40～44 | AM2: 45～49 | AN2: 50～54 | AO2: 55～59 | AP2: 60～64 | AQ2: 65～69 | AR2: 70～74 | AS2: 75～79 | AT2: 80～84 | AU2: 85歳以上 | AY2: 計 | AZ2: 15～19歳 | BA2: 20～24 | BB2: 25～29 | BC2: 30～34 | BD2: 35～39 | BE2: 40～44 | BF2: 45～49 | BG2: 50～54 | BH2: 55～59 | BI2: 60～64 | BJ2: 65～69 | BK2: 70～74 | BL2: 75～79 | BM2: 80～84 | BN2: 85歳以上 | BR2: 計 | BS2: 15～19歳 | BT2: 20～24 | BU2: 25～29 | BV2: 30～34 | BW2: 35～39 | BX2: 40～44 | BY2: 45～49 | BZ2: 50～54 | CA2: 55～59 | CB2: 60～64 | CC2: 65～69 | CD2: 70～74 | CE2: 75～79 | CF2: 80～84 | CG2: 85歳以上 | CH2: 計 | CI2: 30歳未満 | CJ2: 30～34 | CK2: 35～39 | CL2: 40～44 | CM2: 45～49 | CN2: 50～54 | CO2: 55～59 | CP2: 60～64 | CQ2: 65～69 | CR2: 70～74 | CS2: 75～79 | CT2: 80～84 | CU2: 85歳以上 | DD2: 主に仕事 | DN2: 雑穀・ | EA2: 経営耕地 のある 農家数 | EB2: 経営耕地 総面積 | EC2: 田 | ED2: 畑（樹園地を除く） | EE2: 樹園地 | EF2: 計 | EG2: 主に仕事 | EK2: 主に家事 ・育児 | EL2: 学生 | EM2: その他 | EN2: 計 | EO2: 主に仕事 | ES2: 主に家事 ・育児 | ET2: 学生 | EU2: その他
G3: 主業農家 | I3: 準主業農家 | K3: 副業的農家 | AV3: 男女計の 平均年齢 | AW3: 男の 平均年齢 | AX3: 女の 平均年齢 | BO3: 男女計 | BP3: 男 | BQ3: 女 | DC3: 計 | DD3: 小計 | DE3: 自営農業 が主 | DF3: 勤務が主 | DG3: 農業以外の | DH3: 主に家事 ・育児 | DI3: 学生 | DJ3: その他 | DK3: 計 | DL3: 稲作 | DM3: 麦類作 | DN3: いも類 | DO3: 工芸農作物 | DP3: 露地野菜 | DQ3: 施設野菜 | DR3: 果樹類 | DS3: 花き・花木 | DT3: その他の 作物 | DU3: 酪農 | DV3: 肉用牛 | DW3: 養豚 | DX3: 養鶏 | DY3: 養蚕 | DZ3: その他の 畜産 | EG3: 小計 | EH3: 自営農業 が主 | EI3: 勤務が主 | EJ3: 農業以外の 自営業が主 | EO3: 小計 | EP3: 自営農業 が主 | EQ3: 勤務が主 | ER3: 農業以外の 自営業が主
H4: 65歳未満の農業専従者がいる | J4: 65歳未満の農業専従者がいる | DG4: 自営業が主 | DN4: ・豆類
A6: 埼玉県 | E6: 72,957 | F6: 44,514 | G6: 8,956 | H6: 7,539 | I6: 10,531 | J6: 3,865 | K6: 25,027 | L6: 28,443 | M6: 118,336 | N6: 1,367 | O6: 2,822 | P6: 3,327 | Q6: 3,885 | R6: 4,644 | S6: 5,465 | T6: 7,283 | U6: 10,538 | V6: 14,637 | W6: 14,394 | X6: 11,989 | Y6: 12,947 | Z6: 12,283 | AA6: 8,803 | AB6: 3,952 | AC6: 59.7 | AD6: 58.3 | AE6: 61.4 | AF6: 71,791 | AG6: 517 | AH6: 575 | AI6: 674 | AJ6: 1,071 | AK6: 1,362 | AL6: 1,762 | AM6: 2,269 | AN6: 3,473 | AO6: 6,435 | AP6: 9,054 | AQ6: 9,907 | AR6: 11,727 | AS6: 11,394 | AT6: 8,073 | AU6: 3,498 | AV6: 66.4 | AW6: 66.2 | AX6: 66.6 | AY6: 58,681 | AZ6: 11 | BA6: 154 | BB6: 496 | BC6: 776 | BD6: 950 | BE6: 1,240 | BF6: 1,708 | BG6: 2,761 | BH6: 5,432 | BI6: 7,788 | BJ6: 8,676 | BK6: 10,378 | BL6: 9,640 | BM6: 6,329 | BN6: 2,342 | BO6: 67.1 | BP6: 66.7 | BQ6: 67.6 | BR6: 44,514 | BS6: 1 | BT6: 10 | BU6: 32 | BV6: 89 | BW6: 271 | BX6: 682 | BY6: 1,549 | BZ6: 3,283 | CA6: 6,216 | CB6: 7,345 | CC6: 6,216 | CD6: 6,867 | CE6: 6,263 | CF6: 4,083 | CG6: 1,607 | CH6: 26,981 | CI6: 1 | CJ6: 6 | CK6: 26 | CL6: 115 | CM6: 494 | CN6: 1,464 | CO6: 3,318 | CP6: 4,311 | CQ6: 3,846 | CR6: 4,524 | CS6: 4,326 | CT6: 3,191 | CU6: 1,359 | DC6: 164,573 | DD6: 116,962 | DE6: 58,785 | DF6: 52,309 | DG6: 5,868 | DH6: 17,575 | DI6: 12,539 | DJ6: 17,497 | DK6: 36,509 | DL6: 21,233 | DM6: 213 | DN6: 414 | DO6: 598 | DP6: 6,916 | DQ6: 2,503 | DR6: 1,775 | DS6: 1,886 | DT6: 306 | DU6: 315 | DV6: 108 | DW6: 101 | DX6: 85 | DY6: 39 | DZ6: 17 | EA6: 44,464 | EB6: 5,368,245 | EC6: 3,398,924 | ED6: 1,731,901 | EE6: 237,420 | EF6: 82,447 | EG6: 69,097 | EH6: 33,212 | EI6: 31,776 | EJ6: 4,109 | EK6: 228 | EL6: 6,719 | EM6: 6,403 | EN6: 82,126 | EO6: 47,865 | EP6: 25,573 | EQ6: 20,533 | ER6: 1,759 | ES6: 17,347 | ET6: 5,820 | EU6: 11,094
A7: 埼玉県 | B7: さいたま市 | E7: 4,252 | F7: 2,477 | G7: 596 | H7: 504 | I7: 607 | J7: 290 | K7: 1,274 | L7: 1,775 | M7: 6,845 | N7: 74 | O7: 154 | P7: 205 | Q7: 227 | R7: 278 | S7: 300 | T7: 402 | U7: 582 | V7: 781 | W7: 864 | X7: 727 | Y7: 794 | Z7: 681 | AA7: 535 | AB7: 241 | AC7: 60.0 | AD7: 58.3 | AE7: 61.9 | AF7: 4,594 | AG7: 38 | AH7: 45 | AI7: 50 | AJ7: 77 | AK7: 113 | AL7: 131 | AM7: 154 | AN7: 269 | AO7: 425 | AP7: 591 | AQ7: 623 | AR7: 722 | AS7: 639 | AT7: 498 | AU7: 219 | AV7: 65.3 | AW7: 64.9 | AX7: 65.7 | AY7: 3,779 | AZ7: 1 | BA7: 6 | BB7: 29 | BC7: 53 | BD7: 74 | BE7: 85 | BF7: 118 | BG7: 206 | BH7: 362 | BI7: 521 | BJ7: 561 | BK7: 656 | BL7: 556 | BM7: 414 | BN7: 137 | BO7: 66.6 | BP7: 65.8 | BQ7: 67.6 | BR7: 2,477 | BS7: - | BT7: - | BU7: 2 | BV7: 6 | BW7: 12 | BX7: 21 | BY7: 64 | BZ7: 155 | CA7: 290 | CB7: 417 | CC7: 348 | CD7: 416 | CE7: 367 | CF7: 273 | CG7: 106 | CH7: 1,447 | CI7: - | CJ7: - | CK7: 1 | CL7: 3 | CM7: 16 | CN7: 59 | CO7: 143 | CP7: 230 | CQ7: 205 | CR7: 258 | CS7: 241 | CT7: 200 | CU7: 91 | DC7: 9,438 | DD7: 6,607 | DE7: 3,781 | DF7: 2,437 | DG7: 389 | DH7: 998 | DI7: 733 | DJ7: 1,100 | DK7: 1,947 | DL7: 881 | DM7: 1 | DN7: 74 | DO7: 3 | DP7: 410 | DQ7: 111 | DR7: 66 | DS7: 330 | DT7: 58 | DU7: 6 | DV7: - | DW7: - | DX7: 4 | DY7: - | DZ7: 3 | EA7: 2,470 | EB7: 267,261 | EC7: 140,641 | ED7: 118,047 | EE7: 8,573 | EF7: 4,723 | EG7: 3,892 | EH7: 2,043 | EI7: 1,570 | EJ7: 279 | EK7: 16 | EL7: 396 | EM7: 419 | EN7: 4,715 | EO7: 2,715 | EP7: 1,738 | EQ7: 867 | ER7: 110 | ES7: 982 | ET7: 337 | EU7: 681
A8: 埼玉県 | B8: 西区(さいたま市) | E8: 698 | F8: 400 | G8: 47 | H8: 32 | I8: 94 | J8: 34 | K8: 259 | L8: 298 | M8: 1,096 | N8: 17 | O8: 29 | P8: 47 | Q8: 31 | R8: 38 | S8: 47 | T8: 87 | U8: 99 | V8: 126 | W8: 99 | X8: 102 | Y8: 129 | Z8: 114 | AA8: 98 | AB8: 33 | AC8: 59.2 | AD8: 57.8 | AE8: 60.8 | AF8: 584 | AG8: 6 | AH8: - | AI8: 1 | AJ8: 2 | AK8: 8 | AL8: 16 | AM8: 19 | AN8: 21 | AO8: 39 | AP8: 45 | AQ8: 85 | AR8: 116 | AS8: 107 | AT8: 92 | AU8: 27 | AV8: 69.0 | AW8: 69.5 | AX8: 68.6 | AY8: 516 | AZ8: 1 | BA8: - | BB8: - | BC8: 1 | BD8: 5 | BE8: 14 | BF8: 17 | BG8: 16 | BH8: 30 | BI8: 40 | BJ8: 76 | BK8: 109 | BL8: 100 | BM8: 83 | BN8: 24 | BO8: 70.1 | BP8: 69.5 | BQ8: 70.7 | BR8: 400 | BS8: - | BT8: - | BU8: - | BV8: 2 | BW8: 2 | BX8: 4 | BY8: 10 | BZ8: 29 | CA8: 53 | CB8: 48 | CC8: 47 | CD8: 68 | CE8: 62 | CF8: 56 | CG8: 19 | CH8: 240 | CI8: - | CJ8: - | CK8: - | CL8: - | CM8: 3 | CN8: 11 | CO8: 27 | CP8: 23 | CQ8: 30 | CR8: 43 | CS8: 45 | CT8: 41 | CU8: 17 | DC8: 1,483 | DD8: 1,058 | DE8: 516 | DF8: 497 | DG8: 45 | DH8: 176 | DI8: 140 | DJ8: 109 | DK8: 269 | DL8: 199 | DM8: - | DN8: 5 | DO8: 2 | DP8: 35 | DQ8: 5 | DR8: 16 | DS8: 4 | DT8: - | DU8: 3 | DV8: - | DW8: - | DX8: - | DY8: - | DZ8: - | EA8: 400 | EB8: 44,786 | EC8: 31,300 | ED8: 12,191 | EE8: 1,295 | EF8: 736 | EG8: 621 | EH8: 270 | EI8: 316 | EJ8: 35 | EK8: 2 | EL8: 69 | EM8: 44 | EN8: 747 | EO8: 437 | EP8: 246 | EQ8: 181 | ER8: 10 | ES8: 174 | ET8: 71 | EU8: 65
A9: 埼玉県 | B9: 西区(さいたま市) | C9: 大宮市４－１ | E9: 66 | F9: 23 | G9: 2 | H9: 2 | I9: 6 | J9: 4 | K9: 15 | L9: 43 | M9: 66 | N9: 2 | O9: 3 | P9: 5 | Q9: 1 | R9: 1 | S9: 3 | T9: 5 | U9: 3 | V9: 11 | W9: 8 | X9: 5 | Y9: 8 | Z9: 3 | AA9: 6 | AB9: 2 | AC9: 56.8 | AD9: 55.8 | AE9: 57.8 | AF9: 33 | AG9: - | AH9: - | AI9: - | AJ9: - | AK9: - | AL9: 1 | AM9: 2 | AN9: 1 | AO9: 5 | AP9: 2 | AQ9: 3 | AR9: 8 | AS9: 3 | AT9: 6 | AU9: 2 | AV9: 68.9 | AW9: 71.1 | AX9: 67.3 | AY9: 27 | AZ9: - | BA9: - | BB9: - | BC9: - | BD9: - | BE9: 1 | BF9: 2 | BG9: 1 | BH9: 4 | BI9: 2 | BJ9: 2 | BK9: 6 | BL9: 3 | BM9: 4 | BN9: 2 | BO9: 68.4 | BP9: 70.4 | BQ9: 66.5 | BR9: 23 | BS9: - | BT9: - | BU9: - | BV9: - | BW9: - | BX9: - | BY9: - | BZ9: 1 | CA9: 4 | CB9: 4 | CC9: 4 | CD9: 4 | CE9: 1 | CF9: 4 | CG9: 1 | CH9: 15 | CI9: - | CJ9: - | CK9: - | CL9: - | CM9: - | CN9: 1 | CO9: 2 | CP9: 2 | CQ9: 3 | CR9: 2 | CS9: 1 | CT9: 3 | CU9: 1 | DC9: 93 | DD9: 59 | DE9: 27 | DF9: 29 | DG9: 3 | DH9: 17 | DI9: 10 | DJ9: 7 | DK9: 13 | DL9: 5 | DM9: - | DN9: 2 | DO9: 1 | DP9: 4 | DQ9: - | DR9: 1 | DS9: - | DT9: - | DU9: - | DV9: - | DW9: - | DX9: - | DY9: - | DZ9: - | EA9: 23 | EB9: 2,382 | EC9: 1,261 | ED9: 1,003 | EE9: 118 | EF9: 43 | EG9: 35 | EH9: 13 | EI9: 19 | EJ9: 3 | EK9: 1 | EL9: 6 | EM9: 1 | EN9: 50 | EO9: 24 | EP9: 14 | EQ9: 10 | ER9: - | ES9: 16 | ET9: 4 | EU9: 6
A10: 埼玉県 | B10: 西区(さいたま市) | C10: 大宮市４－１ | D10: 宮前第１ | E10: 17 | F10: 9 | G10: 1 | H10: 1 | I10: 1 | J10: 1 | K10: 7 | L10: 8 | M10: 24 | N10: - | O10: - | P10: - | Q10: 1 | R10: 1 | S10: 3 | T10: 2 | U10: - | V10: - | W10: 4 | X10: 5 | Y10: 4 | Z10: 1 | AA10: 3 | AB10: - | AC10: 61.4 | AD10: 62.2 | AE10: 60.6 | AF10: 15 | AG10: - | AH10: - | AI10: - | AJ10: - | AK10: - | AL10: 1 | AM10: 1 | AN10: - | AO10: - | AP10: 2 | AQ10: 3 | AR10: 4 | AS10: 1 | AT10: 3 | AU10: - | AV10: 68.1 | AW10: 69.3 | AX10: 67.1 | AY10: 11 | AZ10: - | BA10: - | BB10: - | BC10: - | BD10: - | BE10: 1 | BF10: 1 | BG10: - | BH10: - | BI10: 2 | BJ10: 2 | BK10: 3 | BL10: 1 | BM10: 1 | BN10: - | BO10: 65.8 | BP10: 67.5 | BQ10: 63.8 | BR10: 9 | BS10: - | BT10: - | BU10: - | BV10: - | BW10: - | BX10: - | BY10: - | BZ10: - | CA10: - | CB10: 1 | CC10: 4 | CD10: 2 | CE10: - | CF10: 2 | CG10: - | CH10: 6 | CI10: - | CJ10: - | CK10: - | CL10: - | CM10: - | CN10: - | CO10: - | CP10: 1 | CQ10: 3 | CR10: 1 | CS10: - | CT10: 1 | CU10: - | DC10: 35 | DD10: 21 | DE10: 11 | DF10: 9 | DG10: 1 | DH10: 8 | DI10: 4 | DJ10: 2 | DK10: 4 | DL10: 3 | DM10: - | DN10: 1 | DO10: - | DP10: - | DQ10: - | DR10: - | DS10: - | DT10: - | DU10: - | DV10: - | DW10: - | DX10: - | DY10: - | DZ10: - | EA10: 9 | EB10: 436 | EC10: 136 | ED10: 280 | EE10: 20 | EF10: 16 | EG10: 13 | EH10: 6 | EI10: 6 | EJ10: 1 | EK10: - | EL10: 2 | EM10: 1 | EN10: 19 | EO10: 8 | EP10: 5 | EQ10: 3 | ER10: - | ES10: 8 | ET10: 2 | EU10: 1
A11: 埼玉県 | B11: 西区(さいたま市) | C11: 大宮市４－１ | D11: 宮前第２ | E11: 13 | F11: 4 | G11: - | H11: - | I11: - | J11: - | K11: 4 | L11: 9 | M11: 18 | N11: 2 | O11: 3 | P11: 2 | Q11: - | R11: - | S11: - | T11: 1 | U11: 3 | V11: 4 | W11: 1 | X11: - | Y11: - | Z11: - | AA11: 2 | AB11: - | AC11: 45.1 | AD11: 41.3 | AE11: 49.9 | AF11: 5 | AG11: - | AH11: - | AI11: - | AJ11: - | AK11: - | AL11: - | AM11: 1 | AN11: 1 | AO11: 1 | AP11: - | AQ11: - | AR11: - | AS11: - | AT11: 2 | AU11: - | AV11: 64.2 | AW11: 84.0 | AX11: 59.3 | AY11: 5 | AZ11: - | BA11: - | BB11: - | BC11: - | BD11: - | BE11: - | BF11: 1 | BG11: 1 | BH11: 1 | BI11: - | BJ11: - | BK11: - | BL11: - | BM11: 2 | BN11: - | BO11: 64.2 | BP11: 84.0 | BQ11: 59.3 | BR11: 4 | BS11: - | BT11: - | BU11: - | BV11: - | BW11: - | BX11: - | BY11: - | BZ11: 1 | CA11: 1 | CB11: 1 | CC11: - | CD11: - | CE11: - | CF11: 1 | CG11: - | CH11: 3 | CI11: - | CJ11: - | CK11: - | CL11: - | CM11: - | CN11: 1 | CO11: 1 | CP11: - | CQ11: - | CR11: - | CS11: - | CT11: 1 | CU11: - | DC11: 23 | DD11: 16 | DE11: 5 | DF11: 11 | DG11: - | DH11: 2 | DI11: 3 | DJ11: 2 | DK11: - | DL11: - | DM11: - | DN11: - | DO11: - | DP11: - | DQ11: - | DR11: - | DS11: - | DT11: - | DU11: - | DV11: - | DW11: - | DX11: - | DY11: - | DZ11: - | EA11: 4 | EB11: 404 | EC11: 63 | ED11: 339 | EE11: 2 | EF11: 12 | EG11: 9 | EH11: 1 | EI11: 8 | EJ11: - | EK11: - | EL11: 3 | EM11: - | EN11: 11 | EO11: 7 | EP11: 4 | EQ11: 3 | ER11: - | ES11: 2 | ET11: - | EU11: 2
A12: 埼玉県 | B12: 西区(さいたま市) | C12: 大宮市４－１ | D12: 三橋６丁目 | E12: 20 | F12: 4 | G12: - | H12: - | I12: 3 | J12: 2 | K12: 1 | L12: 16 | M12: 10 | N12: - | O12: - | P12: 1 | Q12: - | R12: - | S12: - | T12: 1 | U12: - | V12: 2 | W12: 2 | X12: - | Y12: 4 | Z12: - | AA12: - | AB12: - | AC12: 60.2 | AD12: 56.8 | AE12: 65.3 | AF12: 5 | AG12: - | AH12: - | AI12: - | AJ12: - | AK12: - | AL12: - | AM12: - | AN12: - | AO12: 1 | AP12: - | AQ12: - | AR12: 4 | AS12: - | AT12: - | AU12: - | AV12: 69.6 | AW12: 72.5 | AX12: 67.7 | AY12: 4 | AZ12: - | BA12: - | BB12: - | BC12: - | BD12: - | BE12: - | BF12: - | BG12: - | BH12: 1 | BI12: - | BJ12: - | BK12: 3 | BL12: - | BM12: - | BN12: - | BO12: 68.8 | BP12: 72.5 | BQ12: 65.0 | BR12: 4 | BS12: - | BT12: - | BU12: - | BV12: - | BW12: - | BX12: - | BY12: - | BZ12: - | CA12: - | CB12: 2 | CC12: - | CD12: 2 | CE12: - | CF12: - | CG12: - | CH12: 2 | CI12: - | CJ12: - | CK12: - | CL12: - | CM12: - | CN12: - | CO12: - | CP12: 1 | CQ12: - | CR12: 1 | CS12: - | CT12: - | CU12: - | DC12: 11 | DD12: 8 | DE12: 4 | DF12: 2 | DG12: 2 | DH12: 3 | DI12: - | DJ12: - | DK12: 4 | DL12: - | DM12: - | DN12: 1 | DO12: 1 | DP12: 2 | DQ12: - | DR12: - | DS12: - | DT12: - | DU12: - | DV12: - | DW12: - | DX12: - | DY12: - | DZ12: - | EA12: 4 | EB12: 182 | EC12: - | ED12: 182 | EE12: - | EF12: 6 | EG12: 6 | EH12: 2 | EI12: 2 | EJ12: 2 | EK12: - | EL12: - | EM12: - | EN12: 5 | EO12: 2 | EP12: 2 | EQ12: - | ER12: - | ES12: 3 | ET12: - | EU12: -
A13: 埼玉県 | B13: 西区(さいたま市) | C13: 大宮市４－１ | D13: 三橋５丁目 | E13: 16 | F13: 6 | G13: 1 | H13: 1 | I13: 2 | J13: 1 | K13: 3 | L13: 10 | M13: 14 | N13: - | O13: - | P13: 2 | Q13: - | R13: - | S13: - | T13: 1 | U13: - | V13: 5 | W13: 1 | X13: - | Y13: - | Z13: 2 | AA13: 1 | AB13: 2 | AC13: 61.5 | AD13: 66.2 | AE13: 58.0 | AF13: 8 | AG13: - | AH13: - | AI13: - | AJ13: - | AK13: - | AL13: - | AM13: - | AN13: - | AO13: 3 | AP13: - | AQ13: - | AR13: - | AS13: 2 | AT13: 1 | AU13: 2 | AV13: 72.8 | AW13: 70.3 | AX13: 75.3 | AY13: 7 | AZ13: - | BA13: - | BB13: - | BC13: - | BD13: - | BE13: - | BF13: - | BG13: - | BH13: 2 | BI13: - | BJ13: - | BK13: - | BL13: 2 | BM13: 1 | BN13: 2 | BO13: 75.1 | BP13: 70.3 | BQ13: 81.7 | BR13: 6 | BS13: - | BT13: - | BU13: - | BV13: - | BW13: - | BX13: - | BY13: - | BZ13: - | CA13: 3 | CB13: - | CC13: - | CD13: - | CE13: 1 | CF13: 1 | CG13: 1 | CH13: 4 | CI13: - | CJ13: - | CK13: - | CL13: - | CM13: - | CN13: - | CO13: 1 | CP13: - | CQ13: - | CR13: - | CS13: 1 | CT13: 1 | CU13: 1 | DC13: 24 | DD13: 14 | DE13: 7 | DF13: 7 | DG13: - | DH13: 4 | DI13: 3 | DJ13: 3 | DK13: 5 | DL13: 2 | DM13: - | DN13: - | DO13: - | DP13: 2 | DQ13: - | DR13: 1 | DS13: - | DT13: - | DU13: - | DV13: - | DW13: - | DX13: - | DY13: - | DZ13: - | EA13: 6 | EB13: 1,360 | EC13: 1,062 | ED13: 202 | EE13: 96 | EF13: 9 | EG13: 7 | EH13: 4 | EI13: 3 | EJ13: - | EK13: 1 | EL13: 1 | EM13: - | EN13: 15 | EO13: 7 | EP13: 3 | EQ13: 4 | ER13: - | ES13: 3 | ET13: 2 | EU13: 3
A14: 埼玉県 | B14: 西区(さいたま市) | C14: 指扇村 | E14: 271 | F14: 136 | G14: 22 | H14: 15 | I14: 31 | J14: 9 | K14: 83 | L14: 135 | M14: 389 | N14: 1 | O14: 13 | P14: 20 | Q14: 8 | R14: 16 | S14: 15 | T14: 30 | U14: 32 | V14: 45 | W14: 39 | X14: 44 | Y14: 45 | Z14: 48 | AA14: 20 | AB14: 13 | AC14: 59.2 | AD14: 58.8 | AE14: 59.5 | AF14: 223 | AG14: - | AH14: - | AI14: 1 | AJ14: 1 | AK14: 4 | AL14: 8 | AM14: 6 | AN14: 8 | AO14: 15 | AP14: 22 | AQ14: 40 | AR14: 42 | AS14: 46 | AT14: 19 | AU14: 11 | AV14: 68.2 | AW14: 68.6 | AX14: 67.8 | AY14: 206 | AZ14: - | BA14: - | BB14: - | BC14: 1 | BD14: 4 | BE14: 7 | BF14: 5 | BG14: 7 | BH14: 11 | BI14: 20 | BJ14: 38 | BK14: 40 | BL14: 46 | BM14: 18 | BN14: 9 | BO14: 68.7 | BP14: 68.3 | BQ14: 69.2 | BR14: 136 | BS14: - | BT14: - | BU14: - | BV14: - | BW14: - | BX14: 1 | BY14: 2 | BZ14: 6 | CA14: 18 | CB14: 18 | CC14: 21 | CD14: 21 | CE14: 28 | CF14: 13 | CG14: 8 | CH14: 90 | CI14: - | CJ14: - | CK14: - | CL14: - | CM14: - | CN14: 5 | CO14: 10 | CP14: 10 | CQ14: 13 | CR14: 11 | CS14: 24 | CT14: 10 | CU14: 7 | DC14: 531 | DD14: 389 | DE14: 206 | DF14: 164 | DG14: 19 | DH14: 47 | DI14: 53 | DJ14: 42 | DK14: 86 | DL14: 30 | DM14: - | DN14: 3 | DO14: 1 | DP14: 29 | DQ14: 4 | DR14: 13 | DS14: 3 | DT14: - | DU14: 3 | DV14: - | DW14: - | DX14: - | DY14: - | DZ14: - | EA14: 136 | EB14: 13,861 | EC14: 4,380 | ED14: 8,417 | EE14: 1,064 | EF14: 258 | EG14: 221 | EH14: 110 | EI14: 99 | EJ14: 12 | EK14: - | EL14: 23 | EM14: 14 | EN14: 273 | EO14: 168 | EP14: 96 | EQ14: 65 | ER14: 7 | ES14: 47 | ET14: 30 | EU14: 28
A15: 埼玉県 | B15: 西区(さいたま市) | C15: 指扇村 | D15: 五味貝戸 | E15: 6 | F15: 1 | G15: x | H15: x | I15: x | J15: x | K15: x | L15: 5 | M15: x | N15: x | O15: x | P15: x | Q15: x | R15: x | S15: x | T15: x | U15: x | V15: x | W15: x | X15: x | Y15: x | Z15: x | AA15: x | AB15: x | AC15: 50.4 | AD15: 36.7 | AE15: 71.0 | AF15: x | AG15: x | AH15: x | AI15: x | AJ15: x | AK15: x | AL15: x | AM15: x | AN15: x | AO15: x | AP15: x | AQ15: x | AR15: x | AS15: x | AT15: x | AU15: x | AV15: 60.0 | AW15: 60.0 | AX15: … | AY15: x | AZ15: x | BA15: x | BB15: x | BC15: x | BD15: x | BE15: x | BF15: x | BG15: x | BH15: x | BI15: x | BJ15: x | BK15: x | BL15: x | BM15: x | BN15: x | BO15: 60.0 | BP15: 60.0 | BQ15: … | BR15: 1 | BS15: - | BT15: - | BU15: - | BV15: - | BW15: - | BX15: - | BY15: - | BZ15: - | CA15: - | CB15: 1 | CC15: - | CD15: - | CE15: - | CF15: - | CG15: - | CH15: - | CI15: - | CJ15: - | CK15: - | CL15: - | CM15: - | CN15: - | CO15: - | CP15: - | CQ15: - | CR15: - | CS15: - | CT15: - | CU15: - | DC15: 5 | DD15: 3 | DE15: 1 | DF15: 2 | DG15: - | DH15: 1 | DI15: - | DJ15: 1 | DK15: 1 | DL15: - | DM15: - | DN15: - | DO15: - | DP15: 1 | DQ15: - | DR15: - | DS15: - | DT15: - | DU15: - | DV15: - | DW15: - | DX15: - | DY15: - | DZ15: - | EA15: 1 | EB15: 54 | EC15: - | ED15: 52 | EE15: 2 | EF15: 3 | EG15: 3 | EH15: 1 | EI15: 2 | EJ15: - | EK15: - | EL15: - | EM15: - | EN15: 2 | EO15: - | EP15: - | EQ15: - | ER15: - | ES15: 1 | ET15: - | EU15: 1
A16: 埼玉県 | B16: 西区(さいたま市) | C16: 指扇村 | D16: 下郷 | E16: 7 | F16: 5 | G16: - | H16: - | I16: - | J16: - | K16: 5 | L16: 2 | M16: 12 | N16: - | O16: 1 | P16: - | Q16: - | R16: 1 | S16: - | T16: 1 | U16: 1 | V16: - | W16: 1 | X16: 2 | Y16: 4 | Z16: - | AA16: - | AB16: 1 | AC16: 60.8 | AD16: 63.1 | AE16: 57.4 | AF16: 7 | AG16: - | AH16: - | AI16: - | AJ16: - | AK16: - | AL16: - | AM16: - | AN16: - | AO16: - | AP16: - | AQ16: 2 | AR16: 4 | AS16: - | AT16: - | AU16: 1 | AV16: 72.3 | AW16: 76.0 | AX16: 67.3 | AY16: 7 | AZ16: - | BA16: - | BB16: - | BC16: - | BD16: - | BE16: - | BF16: - | BG16: - | BH16: - | BI16: - | BJ16: 2 | BK16: 4 | BL16: - | BM16: - | BN16: 1 | BO16: 72.3 | BP16: 76.0 | BQ16: 67.3 | BR16: 5 | BS16: - | BT16: - | BU16: - | BV16: - | BW16: - | BX16: - | BY16: - | BZ16: 1 | CA16: - | CB16: - | CC16: - | CD16: 3 | CE16: - | CF16: - | CG16: 1 | CH16: 2 | CI16: - | CJ16: - | CK16: - | CL16: - | CM16: - | CN16: 1 | CO16: - | CP16: - | CQ16: - | CR16: - | CS16: - | CT16: - | CU16: 1 | DC16: 19 | DD16: 11 | DE16: 7 | DF16: 4 | DG16: - | DH16: 3 | DI16: 4 | DJ16: 1 | DK16: 1 | DL16: - | DM16: - | DN16: 1 | DO16: - | DP16: - | DQ16: - | DR16: - | DS16: - | DT16: - | DU16: - | DV16: - | DW16: - | DX16: - | DY16: - | DZ16: - | EA16: 5 | EB16: 313 | EC16: 20 | ED16: 293 | EE16: - | EF16: 9 | EG16: 7 | EH16: 4 | EI16: 3 | EJ16: - | EK16: - | EL16: 2 | EM16: - | EN16: 10 | EO16: 4 | EP16: 3 | EQ16: 1 | ER16: - | ES16: 3 | ET16: 2 | EU16: 1
A17: 埼玉県 | B17: 西区(さいたま市) | C17: 指扇村 | D17: 新屋敷 | E17: 5 | F17: 4 | G17: - | H17: - | I17: 2 | J17: - | K17: 2 | L17: 1 | M17: 13 | N17: - | O17: 1 | P17: 4 | Q17: - | R17: - | S17: - | T17: - | U17: 1 | V17: 3 | W17: 2 | X17: - | Y17: - | Z17: 2 | AA17: - | AB17: - | AC17: 48.4 | AD17: 56.4 | AE17: 43.4 | AF17: 3 | AG17: - | AH17: - | AI17: - | AJ17: - | AK17: - | AL17: - | AM17: - | AN17: - | AO17: 1 | AP17: - | AQ17: - | AR17: - | AS17: 2 | AT17: - | AU17: - | AV17: 70.0 | AW17: 78.0 | AX17: 66.0 | AY17: 2 | AZ17: - | BA17: - | BB17: - | BC17: - | BD17: - | BE17: - | BF17: - | BG17: - | BH17: - | BI17: - | BJ17: - | BK17: - | BL17: 2 | BM17: - | BN17: - | BO17: 77.5 | BP17: 78.0 | BQ17: 77.0 | BR17: 4 | BS17: - | BT17: - | BU17: - | BV17: - | BW17: - | BX17: - | BY17: - | BZ17: - | CA17: 2 | CB17: 1 | CC17: - | CD17: - | CE17: 1 | CF17: - | CG17: - | CH17: 2 | CI17: - | CJ17: - | CK17: - | CL17: - | CM17: - | CN17: - | CO17: 1 | CP17: - | CQ17: - | CR17: - | CS17: 1 | CT17: - | CU17: - | DC17: 21 | DD17: 15 | DE17: 2 | DF17: 10 | DG17: 3 | DH17: 2 | DI17: 2 | DJ17: 2 | DK17: 2 | DL17: 2 | DM17: - | DN17: - | DO17: - | DP17: - | DQ17: - | DR17: - | DS17: - | DT17: - | DU17: - | DV17: - | DW17: - | DX17: - | DY17: - | DZ17: - | EA17: 4 | EB17: 240 | EC17: 188 | ED17: 52 | EE17: - | EF17: 10 | EG17: 8 | EH17: 1 | EI17: 6 | EJ17: 1 | EK17: - | EL17: 1 | EM17: 1 | EN17: 11 | EO17: 7 | EP17: 1 | EQ17: 4 | ER17: 2 | ES17: 2 | ET17: 1 | EU17: 1
A18: 埼玉県 | B18: 西区(さいたま市) | C18: 指扇村 | D18: 宿 | E18: 10 | F18: 7 | G18: - | H18: - | I18: 2 | J18: - | K18: 5 | L18: 3 | M18: 21 | N18: - | O18: - | P18: - | Q18: - | R18: 4 | S18: - | T18: 3 | U18: 2 | V18: - | W18: - | X18: 4 | Y18: 4 | Z18: 3 | AA18: 1 | AB18: - | AC18: 60.1 | AD18: 61.2 | AE18: 58.7 | AF18: 12 | AG18: - | AH18: - | AI18: - | AJ18: - | AK18: - | AL18: - | AM18: - | AN18: - | AO18: - | AP18: - | AQ18: 4 | AR18: 4 | AS18: 3 | AT18: 1 | AU18: - | AV18: 72.4 | AW18: 73.6 | AX18: 70.8 | AY18: 12 | AZ18: - | BA18: - | BB18: - | BC18: - | BD18: - | BE18: - | BF18: - | BG18: - | BH18: - | BI18: - | BJ18: 4 | BK18: 4 | BL18: 3 | BM18: 1 | BN18: - | BO18: 72.4 | BP18: 73.6 | BQ18: 70.8 | BR18: 7 | BS18: - | BT18: - | BU18: - | BV18: - | BW18: - | BX18: - | BY18: - | BZ18: 1 | CA18: - | CB18: - | CC18: 2 | CD18: 1 | CE18: 2 | CF18: 1 | CG18: - | CH18: 7 | CI18: - | CJ18: - | CK18: - | CL18: - | CM18: - | CN18: 1 | CO18: - | CP18: - | CQ18: 2 | CR18: 1 | CS18: 2 | CT18: 1 | CU18: - | DC18: 28 | DD18: 20 | DE18: 12 | DF18: 8 | DG18: - | DH18: 4 | DI18: 4 | DJ18: - | DK18: 4 | DL18: 1 | DM18: - | DN18: 1 | DO18: - | DP18: 2 | DQ18: - | DR18: - | DS18: - | DT18: - | DU18: - | DV18: - | DW18: - | DX18: - | DY18: - | DZ18: - | EA18: 7 | EB18: 690 | EC18: 135 | ED18: 475 | EE18: 80 | EF18: 12 | EG18: 12 | EH18: 7 | EI18: 5 | EJ18: - | EK18: - | EL18: - | EM18: - | EN18: 16 | EO18: 8 | EP18: 5 | EQ18: 3 | ER18: - | ES18: 4 | ET18: 4 | EU18: -
A19: 埼玉県 | B19: 西区(さいたま市) | C19: 指扇村 | D19: 中郷 | E19: 16 | F19: 4 | G19: - | H19: - | I19: 3 | J19: 1 | K19: 1 | L19: 12 | M19: 17 | N19: - | O19: - | P19: 2 | Q19: 1 | R19: 1 | S19: 2 | T19: 1 | U19: - | V19: 2 | W19: 2 | X19: - | Y19: 2 | Z19: 2 | AA19: - | AB19: 2 | AC19: 56.4 | AD19: 57.3 | AE19: 55.4 | AF19: 10 | AG19: - | AH19: - | AI19: - | AJ19: - | AK19: - | AL19: 2 | AM19: - | AN19: - | AO19: - | AP19: 2 | AQ19: - | AR19: 2 | AS19: 2 | AT19: - | AU19: 2 | AV19: 67.8 | AW19: 68.8 | AX19: 66.8 | AY19: 9 | AZ19: - | BA19: - | BB19: - | BC19: - | BD19: - | BE19: 2 | BF19: - | BG19: - | BH19: - | BI19: 2 | BJ19: - | BK19: 2 | BL19: 2 | BM19: - | BN19: 1 | BO19: 65.3 | BP19: 63.5 | BQ19: 66.8 | BR19: 4 | BS19: - | BT19: - | BU19: - | BV19: - | BW19: - | BX19: - | BY19: - | BZ19: - | CA19: 1 | CB19: 1 | CC19: - | CD19: 1 | CE19: 1 | CF19: - | CG19: - | CH19: 3 | CI19: - | CJ19: - | CK19: - | CL19: - | CM19: - | CN19: - | CO19: - | CP19: 1 | CQ19: - | CR19: 1 | CS19: 1 | CT19: - | CU19: - | DC19: 17 | DD19: 16 | DE19: 9 | DF19: 7 | DG19: - | DH19: - | DI19: - | DJ19: 1 | DK19: 3 | DL19: 1 | DM19: - | DN19: - | DO19: - | DP19: 2 | DQ19: - | DR19: - | DS19: - | DT19: - | DU19: - | DV19: - | DW19: - | DX19: - | DY19: - | DZ19: - | EA19: 4 | EB19: 467 | EC19: 165 | ED19: 302 | EE19: - | EF19: 9 | EG19: 8 | EH19: 4 | EI19: 4 | EJ19: - | EK19: - | EL19: - | EM19: 1 | EN19: 8 | EO19: 8 | EP19: 5 | EQ19: 3 | ER19: - | ES19: - | ET19: - | EU19: -
A20: 埼玉県 | B20: 西区(さいたま市) | C20: 指扇村 | D20: 上郷 | E20: 13 | F20: 2 | G20: x | H20: x | I20: x | J20: x | K20: x | L20: 11 | M20: x | N20: x | O20: x | P20: x | Q20: x | R20: x | S20: x | T20: x | U20: x | V20: x | W20: x | X20: x | Y20: x | Z20: x | AA20: x | AB20: x | AC20: 46.6 | AD20: 43.0 | AE20: 49.3 | AF20: x | AG20: x | AH20: x | AI20: x | AJ20: x | AK20: x | AL20: x | AM20: x | AN20: x | AO20: x | AP20: x | AQ20: x | AR20: x | AS20: x | AT20: x | AU20: x | AV20: 62.5 | AW20: … | AX20: 62.5 | AY20: x | AZ20: x | BA20: x | BB20: x | BC20: x | BD20: x | BE20: x | BF20: x | BG20: x | BH20: x | BI20: x | BJ20: x | BK20: x | BL20: x | BM20: x | BN20: x | BO20: 62.5 | BP20: … | BQ20: 62.5 | BR20: 2 | BS20: - | BT20: - | BU20: - | BV20: - | BW20: - | BX20: - | BY20: - | BZ20: - | CA20: 1 | CB20: - | CC20: 1 | CD20: - | CE20: - | CF20: - | CG20: - | CH20: 2 | CI20: - | CJ20: - | CK20: - | CL20: - | CM20: - | CN20: - | CO20: 1 | CP20: - | CQ20: 1 | CR20: - | CS20: - | CT20: - | CU20: - | DC20: 9 | DD20: 9 | DE20: 2 | DF20: 7 | DG20: - | DH20: - | DI20: - | DJ20: - | DK20: - | DL20: - | DM20: - | DN20: - | DO20: - | DP20: - | DQ20: - | DR20: - | DS20: - | DT20: - | DU20: - | DV20: - | DW20: - | DX20: - | DY20: - | DZ20: - | EA20: 2 | EB20: 92 | EC20: 31 | ED20: 57 | EE20: 4 | EF20: 5 | EG20: 5 | EH20: - | EI20: 5 | EJ20: - | EK20: - | EL20: - | EM20: - | EN20: 4 | EO20: 4 | EP20: 2 | EQ20: 2 | ER20: - | ES20: - | ET20: - | EU20: -
A21: 埼玉県 | B21: 西区(さいたま市) | C21: 指扇村 | D21: 赤羽根 | E21: 7 | F21: 3 | G21: - | H21: - | I21: - | J21: - | K21: 3 | L21: 4 | M21: 10 | N21: - | O21: 2 | P21: - | Q21: - | R21: - | S21: - | T21: 2 | U21: - | V21: - | W21: 1 | X21: 1 | Y21: 2 | Z21: 1 | AA21: - | AB21: 1 | AC21: 57.1 | AD21: 61.2 | AE21: 51.0 | AF21: 5 | AG21: - | AH21: - | AI21: - | AJ21: - | AK21: - | AL21: - | AM21: - | AN21: - | AO21: - | AP21: - | AQ21: 1 | AR21: 2 | AS21: 1 | AT21: - | AU21: 1 | AV21: 74.4 | AW21: 78.0 | AX21: 69.0 | AY21: 5 | AZ21: - | BA21: - | BB21: - | BC21: - | BD21: - | BE21: - | BF21: - | BG21: - | BH21: - | BI21: - | BJ21: 1 | BK21: 2 | BL21: 1 | BM21: - | BN21: 1 | BO21: 74.4 | BP21: 78.0 | BQ21: 69.0 | BR21: 3 | BS21: - | BT21: - | BU21: - | BV21: - | BW21: - | BX21: - | BY21: - | BZ21: - | CA21: - | CB21: - | CC21: - | CD21: 1 | CE21: 1 | CF21: - | CG21: 1 | CH21: 2 | CI21: - | CJ21: - | CK21: - | CL21: - | CM21: - | CN21: - | CO21: - | CP21: - | CQ21: - | CR21: 1 | CS21: 1 | CT21: - | CU21: - | DC21: 13 | DD21: 8 | DE21: 5 | DF21: 3 | DG21: - | DH21: 1 | DI21: 2 | DJ21: 2 | DK21: 1 | DL21: - | DM21: - | DN21: - | DO21: - | DP21: 1 | DQ21: - | DR21: - | DS21: - | DT21: - | DU21: - | DV21: - | DW21: - | DX21: - | DY21: - | DZ21: - | EA21: 3 | EB21: 207 | EC21: 15 | ED21: 192 | EE21: - | EF21: 6 | EG21: 6 | EH21: 3 | EI21: 3 | EJ21: - | EK21: - | EL21: - | EM21: - | EN21: 7 | EO21: 2 | EP21: 2 | EQ21: - | ER21: - | ES21: 1 | ET21: 2 | EU21: 2
A22: 埼玉県 | B22: 西区(さいたま市) | C22: 指扇村 | D22: 別所 | E22: 5 | F22: 1 | G22: x | H22: x | I22: x | J22: x | K22: x | L22: 4 | M22: x | N22: x | O22: x | P22: x | Q22: x | R22: x | S22: x | T22: x | U22: x | V22: x | W22: x | X22: x | Y22: x | Z22: x | AA22: x | AB22: x | AC22: 75.5 | AD22: 77.0 | AE22: 74.0 | AF22: x | AG22: x | AH22: x | AI22: x | AJ22: x | AK22: x | AL22: x | AM22: x | AN22: x | AO22: x | AP22: x | AQ22: x | AR22: x | AS22: x | AT22: x | AU22: x | AV22: 75.5 | AW22: 77.0 | AX22: 74.0 | AY22: x | AZ22: x | BA22: x | BB22: x | BC22: x | BD22: x | BE22: x | BF22: x | BG22: x | BH22: x | BI22: x | BJ22: x | BK22: x | BL22: x | BM22: x | BN22: x | BO22: 75.5 | BP22: 77.0 | BQ22: 74.0 | BR22: 1 | BS22: - | BT22: - | BU22: - | BV22: - | BW22: - | BX22: - | BY22: - | BZ22: - | CA22: - | CB22: - | CC22: - | CD22: - | CE22: 1 | CF22: - | CG22: - | CH22: - | CI22: - | CJ22: - | CK22: - | CL22: - | CM22: - | CN22: - | CO22: - | CP22: - | CQ22: - | CR22: - | CS22: - | CT22: - | CU22: - | DC22: 2 | DD22: 2 | DE22: 2 | DF22: - | DG22: - | DH22: - | DI22: - | DJ22: - | DK22: 1 | DL22: - | DM22: - | DN22: - | DO22: - | DP22: 1 | DQ22: - | DR22: - | DS22: - | DT22: - | DU22: - | DV22: - | DW22: - | DX22: - | DY22: - | DZ22: - | EA22: 1 | EB22: 147 | EC22: 81 | ED22: 62 | EE22: 4 | EF22: 1 | EG22: 1 | EH22: 1 | EI22: - | EJ22: - | EK22: - | EL22: - | EM22: - | EN22: 1 | EO22: 1 | EP22: 1 | EQ22: - | ER22: - | ES22: - | ET22: - | EU22: -
A23: 埼玉県 | B23: 西区(さいたま市) | C23: 指扇村 | D23: 下宝来 | E23: 5 | F23: 2 | G23: x | H23: x | I23: x | J23: x | K23: x | L23: 3 | M23: x | N23: x | O23: x | P23: x | Q23: x | R23: x | S23: x | T23: x | U23: x | V23: x | W23: x | X23: x | Y23: x | Z23: x | AA23: x | AB23: x | AC23: 68.2 | AD23: 59.5 | AE23: 74.0 | AF23: x | AG23: x | AH23: x | AI23: x | AJ23: x | AK23: x | AL23: x | AM23: x | AN23: x | AO23: x | AP23: x | AQ23: x | AR23: x | AS23: x | AT23: x | AU23: x | AV23: 63.0 | AW23: 59.5 | AX23: 66.5 | AY23: x | AZ23: x | BA23: x | BB23: x | BC23: x | BD23: x | BE23: x | BF23: x | BG23: x | BH23: x | BI23: x | BJ23: x | BK23: x | BL23: x | BM23: x | BN23: x | BO23: 65.7 | BP23: 64.0 | BQ23: 66.5 | BR23: 2 | BS23: - | BT23: - | BU23: - | BV23: - | BW23: - | BX23: - | BY23: - | BZ23: - | CA23: - | CB23: 1 | CC23: - | CD23: - | CE23: - | CF23: 1 | CG23: - | CH23: 2 | CI23: - | CJ23: - | CK23: - | CL23: - | CM23: - | CN23: - | CO23: - | CP23: 1 | CQ23: - | CR23: - | CS23: - | CT23: 1 | CU23: - | DC23: 7 | DD23: 5 | DE23: 3 | DF23: 2 | DG23: - | DH23: - | DI23: - | DJ23: 2 | DK23: 1 | DL23: - | DM23: - | DN23: - | DO23: - | DP23: - | DQ23: - | DR23: 1 | DS23: - | DT23: - | DU23: - | DV23: - | DW23: - | DX23: - | DY23: - | DZ23: - | EA23: 2 | EB23: 125 | EC23: 78 | ED23: 17 | EE23: 30 | EF23: 3 | EG23: 2 | EH23: 1 | EI23: 1 | EJ23: - | EK23: - | EL23: - | EM23: 1 | EN23: 4 | EO23: 3 | EP23: 2 | EQ23: 1 | ER23: - | ES23: - | ET23: - | EU23: 1
A24: 埼玉県 | B24: 西区(さいたま市) | C24: 指扇村 | D24: 中宝来 | E24: 23 | F24: 14 | G24: 6 | H24: 2 | I24: 1 | J24: - | K24: 7 | L24: 9 | M24: 43 | N24: - | O24: 1 | P24: 3 | Q24: - | R24: 2 | S24: - | T24: 5 | U24: 6 | V24: 6 | W24: 4 | X24: 1 | Y24: 4 | Z24: 8 | AA24: 2 | AB24: 1 | AC24: 59.2 | AD24: 56.9 | AE24: 61.8 | AF24: 23 | AG24: - | AH24: - | AI24: - | AJ24: - | AK24: 1 | AL24: - | AM24: 1 | AN24: 1 | AO24: 2 | AP24: 2 | AQ24: 1 | AR24: 4 | AS24: 8 | AT24: 2 | AU24: 1 | AV24: 69.4 | AW24: 68.5 | AX24: 70.3 | AY24: 23 | AZ24: - | BA24: - | BB24: - | BC24: - | BD24: 1 | BE24: - | BF24: 1 | BG24: 1 | BH24: 2 | BI24: 2 | BJ24: 1 | BK24: 4 | BL24: 8 | BM24: 2 | BN24: 1 | BO24: 69.4 | BP24: 68.5 | BQ24: 70.3 | BR24: 14 | BS24: - | BT24: - | BU24: - | BV24: - | BW24: - | BX24: - | BY24: 1 | BZ24: - | CA24: 3 | CB24: 2 | CC24: - | CD24: 3 | CE24: 4 | CF24: 1 | CG24: - | CH24: 9 | CI24: - | CJ24: - | CK24: - | CL24: - | CM24: - | CN24: - | CO24: 2 | CP24: 1 | CQ24: - | CR24: 1 | CS24: 4 | CT24: 1 | CU24: - | DC24: 63 | DD24: 45 | DE24: 23 | DF24: 20 | DG24: 2 | DH24: 3 | DI24: 7 | DJ24: 8 | DK24: 12 | DL24: 6 | DM24: - | DN24: - | DO24: - | DP24: 1 | DQ24: - | DR24: 2 | DS24: 1 | DT24: - | DU24: 2 | DV24: - | DW24: - | DX24: - | DY24: - | DZ24: - | EA24: 14 | EB24: 1,711 | EC24: 1,207 | ED24: 431 | EE24: 73 | EF24: 31 | EG24: 23 | EH24: 11 | EI24: 11 | EJ24: 1 | EK24: - | EL24: 5 | EM24: 3 | EN24: 32 | EO24: 22 | EP24: 12 | EQ24: 9 | ER24: 1 | ES24: 3 | ET24: 2 | EU24: 5
A25: 埼玉県 | B25: 西区(さいたま市) | C25: 指扇村 | D25: 穂積 | E25: 15 | F25: 6 | G25: 1 | H25: 1 | I25: 1 | J25: - | K25: 4 | L25: 9 | M25: 20 | N25: - | O25: - | P25: 1 | Q25: - | R25: - | S25: 1 | T25: 1 | U25: 2 | V25: 3 | W25: 1 | X25: 2 | Y25: 3 | Z25: 3 | AA25: 3 | AB25: - | AC25: 63.4 | AD25: 63.6 | AE25: 63.2 | AF25: 12 | AG25: - | AH25: - | AI25: - | AJ25: - | AK25: - | AL25: - | AM25: - | AN25: - | AO25: 2 | AP25: - | AQ25: 2 | AR25: 3 | AS25: 3 | AT25: 2 | AU25: - | AV25: 71.6 | AW25: 71.2 | AX25: 71.9 | AY25: 10 | AZ25: - | BA25: - | BB25: - | BC25: - | BD25: - | BE25: - | BF25: - | BG25: - | BH25: 2 | BI25: - | BJ25: 2 | BK25: 2 | BL25: 3 | BM25: 1 | BN25: - | BO25: 70.7 | BP25: 71.2 | BQ25: 70.2 | BR25: 6 | BS25: - | BT25: - | BU25: - | BV25: - | BW25: - | BX25: - | BY25: - | BZ25: - | CA25: - | CB25: 1 | CC25: 1 | CD25: 1 | CE25: 1 | CF25: 2 | CG25: - | CH25: 2 | CI25: - | CJ25: - | CK25: - | CL25: - | CM25: - | CN25: - | CO25: - | CP25: - | CQ25: - | CR25: - | CS25: - | CT25: 2 | CU25: - | DC25: 27 | DD25: 19 | DE25: 10 | DF25: 9 | DG25: - | DH25: 2 | DI25: 3 | DJ25: 3 | DK25: 4 | DL25: 4 | DM25: - | DN25: - | DO25: - | DP25: - | DQ25: - | DR25: - | DS25: - | DT25: - | DU25: - | DV25: - | DW25: - | DX25: - | DY25: - | DZ25: - | EA25: 6 | EB25: 729 | EC25: 611 | ED25: 98 | EE25: 20 | EF25: 13 | EG25: 10 | EH25: 5 | EI25: 5 | EJ25: - | EK25: - | EL25: 2 | EM25: 1 | EN25: 14 | EO25: 9 | EP25: 5 | EQ25: 4 | ER25: - | ES25: 2 | ET25: 1 | EU25: 2
A26: 埼玉県 | B26: 西区(さいたま市) | C26: 指扇村 | D26: 峰岸 | E26: 11 | F26: 4 | G26: - | H26: - | I26: 1 | J26: - | K26: 3 | L26: 7 | M26: 9 | N26: - | O26: 1 | P26: - | Q26: - | R26: - | S26: - | T26: 1 | U26: 1 | V26: 2 | W26: - | X26: - | Y26: 1 | Z26: 2 | AA26: 1 | AB26: - | AC26: 59.9 | AD26: 56.8 | AE26: 63.8 | AF26: 4 | AG26: - | AH26: - | AI26: - | AJ26: - | AK26: - | AL26: - | AM26: - | AN26: - | AO26: - | AP26: - | AQ26: - | AR26: 1 | AS26: 2 | AT26: 1 | AU26: - | AV26: 77.8 | AW26: 79.5 | AX26: 76.0 | AY26: 4 | AZ26: - | BA26: - | BB26: - | BC26: - | BD26: - | BE26: - | BF26: - | BG26: - | BH26: - | BI26: - | BJ26: - | BK26: 1 | BL26: 2 | BM26: 1 | BN26: - | BO26: 77.8 | BP26: 79.5 | BQ26: 76.0 | BR26: 4 | BS26: - | BT26: - | BU26: - | BV26: - | BW26: - | BX26: - | BY26: - | BZ26: 1 | CA26: 1 | CB26: - | CC26: - | CD26: - | CE26: 1 | CF26: 1 | CG26: - | CH26: 3 | CI26: - | CJ26: - | CK26: - | CL26: - | CM26: - | CN26: 1 | CO26: 1 | CP26: - | CQ26: - | CR26: - | CS26: 1 | CT26: - | CU26: - | DC26: 16 | DD26: 10 | DE26: 4 | DF26: 6 | DG26: - | DH26: 1 | DI26: 4 | DJ26: 1 | DK26: 1 | DL26: 1 | DM26: - | DN26: - | DO26: - | DP26: - | DQ26: - | DR26: - | DS26: - | DT26: - | DU26: - | DV26: - | DW26: - | DX26: - | DY26: - | DZ26: - | EA26: 4 | EB26: 267 | EC26: 183 | ED26: 84 | EE26: - | EF26: 6 | EG26: 5 | EH26: 2 | EI26: 3 | EJ26: - | EK26: - | EL26: 1 | EM26: - | EN26: 10 | EO26: 5 | EP26: 2 | EQ26: 3 | ER26: - | ES26: 1 | ET26: 3 | EU26: 1
A27: 埼玉県 | B27: 西区(さいたま市) | C27: 指扇村 | D27: 辻 | E27: 10 | F27: 6 | G27: 1 | H27: - | I27: 3 | J27: 1 | K27: 2 | L27: 4 | M27: 14 | N27: - | O27: - | P27: - | Q27: - | R27: 1 | S27: 1 | T27: 2 | U27: 1 | V27: 1 | W27: - | X27: 1 | Y27: 4 | Z27: 3 | AA27: - | AB27: - | AC27: 61.4 | AD27: 57.6 | AE27: 65.3 | AF27: 9 | AG27: - | AH27: - | AI27: - | AJ27: - | AK27: - | AL27: 1 | AM27: 1 | AN27: - | AO27: - | AP27: - | AQ27: 1 | AR27: 3 | AS27: 3 | AT27: - | AU27: - | AV27: 66.2 | AW27: 65.5 | AX27: 66.8 | AY27: 9 | AZ27: - | BA27: - | BB27: - | BC27: - | BD27: - | BE27: 1 | BF27: 1 | BG27: - | BH27: - | BI27: - | BJ27: 1 | BK27: 3 | BL27: 3 | BM27: - | BN27: - | BO27: 66.2 | BP27: 65.5 | BQ27: 66.8 | BR27: 6 | BS27: - | BT27: - | BU27: - | BV27: - | BW27: - | BX27: - | BY27: 1 | BZ27: - | CA27: 1 | CB27: - | CC27: 1 | CD27: 1 | CE27: 2 | CF27: - | CG27: - | CH27: 3 | CI27: - | CJ27: - | CK27: - | CL27: - | CM27: - | CN27: - | CO27: - | CP27: - | CQ27: 1 | CR27: 1 | CS27: 1 | CT27: - | CU27: - | DC27: 22 | DD27: 15 | DE27: 9 | DF27: 4 | DG27: 2 | DH27: 2 | DI27: 3 | DJ27: 2 | DK27: 5 | DL27: 2 | DM27: - | DN27: - | DO27: - | DP27: 1 | DQ27: - | DR27: 2 | DS27: - | DT27: - | DU27: - | DV27: - | DW27: - | DX27: - | DY27: - | DZ27: - | EA27: 6 | EB27: 588 | EC27: 264 | ED27: 184 | EE27: 140 | EF27: 8 | EG27: 7 | EH27: 4 | EI27: 2 | EJ27: 1 | EK27: - | EL27: 1 | EM27: - | EN27: 14 | EO27: 8 | EP27: 5 | EQ27: 2 | ER27: 1 | ES27: 2 | ET27: 2 | EU27: 2
A28: 埼玉県 | B28: 西区(さいたま市) | C28: 指扇村 | D28: 秋葉 | E28: 20 | F28: 12 | G28: 3 | H28: 2 | I28: 3 | J28: - | K28: 6 | L28: 8 | M28: 34 | N28: - | O28: - | P28: - | Q28: - | R28: 3 | S28: 2 | T28: 3 | U28: 2 | V28: 1 | W28: 5 | X28: 7 | Y28: 4 | Z28: 3 | AA28: 2 | AB28: 2 | AC28: 62.8 | AD28: 62.7 | AE28: 62.9 | AF28: 25 | AG28: - | AH28: - | AI28: - | AJ28: - | AK28: 2 | AL28: 1 | AM28: - | AN28: - | AO28: - | AP28: 5 | AQ28: 6 | AR28: 4 | AS28: 3 | AT28: 2 | AU28: 2 | AV28: 67.6 | AW28: 66.1 | AX28: 69.8 | AY28: 21 | AZ28: - | BA28: - | BB28: - | BC28: - | BD28: 2 | BE28: 1 | BF28: - | BG28: - | BH28: - | BI28: 4 | BJ28: 5 | BK28: 3 | BL28: 3 | BM28: 2 | BN28: 1 | BO28: 66.4 | BP28: 63.5 | BQ28: 71.1 | BR28: 12 | BS28: - | BT28: - | BU28: - | BV28: - | BW28: - | BX28: - | BY28: - | BZ28: - | CA28: 1 | CB28: - | CC28: 3 | CD28: 3 | CE28: 1 | CF28: 2 | CG28: 2 | CH28: 11 | CI28: - | CJ28: - | CK28: - | CL28: - | CM28: - | CN28: - | CO28: - | CP28: - | CQ28: 3 | CR28: 3 | CS28: 1 | CT28: 2 | CU28: 2 | DC28: 46 | DD28: 34 | DE28: 21 | DF28: 11 | DG28: 2 | DH28: 5 | DI28: - | DJ28: 7 | DK28: 7 | DL28: 3 | DM28: - | DN28: - | DO28: - | DP28: 3 | DQ28: - | DR28: - | DS28: - | DT28: - | DU28: 1 | DV28: - | DW28: - | DX28: - | DY28: - | DZ28: - | EA28: 12 | EB28: 2,916 | EC28: 324 | ED28: 2,549 | EE28: 43 | EF28: 26 | EG28: 22 | EH28: 13 | EI28: 8 | EJ28: 1 | EK28: - | EL28: - | EM28: 4 | EN28: 20 | EO28: 12 | EP28: 8 | EQ28: 3 | ER28: 1 | ES28: 5 | ET28: - | EU28: 3
A29: 埼玉県 | B29: 西区(さいたま市) | C29: 指扇村 | D29: 中釘 | E29: 30 | F29: 11 | G29: 1 | H29: 1 | I29: 2 | J29: 1 | K29: 8 | L29: 19 | M29: 25 | N29: - | O29: 2 | P29: - | Q29: - | R29: 2 | S29: - | T29: 2 | U29: 1 | V29: 4 | W29: 3 | X29: 3 | Y29: 2 | Z29: 5 | AA29: 1 | AB29: - | AC29: 59.8 | AD29: 61.2 | AE29: 57.9 | AF29: 17 | AG29: - | AH29: - | AI29: - | AJ29: - | AK29: 1 | AL29: - | AM29: - | AN29: - | AO29: 3 | AP29: 3 | AQ29: 3 | AR29: 1 | AS29: 5 | AT29: 1 | AU29: - | AV29: 67.0 | AW29: 67.4 | AX29: 66.5 | AY29: 16 | AZ29: - | BA29: - | BB29: - | BC29: - | BD29: 1 | BE29: - | BF29: - | BG29: - | BH29: 2 | BI29: 3 | BJ29: 3 | BK29: 1 | BL29: 5 | BM29: 1 | BN29: - | BO29: 67.6 | BP29: 67.4 | BQ29: 67.9 | BR29: 11 | BS29: - | BT29: - | BU29: - | BV29: - | BW29: - | BX29: - | BY29: - | BZ29: - | CA29: 1 | CB29: 3 | CC29: 2 | CD29: 1 | CE29: 3 | CF29: 1 | CG29: - | CH29: 7 | CI29: - | CJ29: - | CK29: - | CL29: - | CM29: - | CN29: - | CO29: - | CP29: 1 | CQ29: 1 | CR29: 1 | CS29: 3 | CT29: 1 | CU29: - | DC29: 35 | DD29: 27 | DE29: 16 | DF29: 11 | DG29: - | DH29: 4 | DI29: 3 | DJ29: 1 | DK29: 6 | DL29: 2 | DM29: - | DN29: - | DO29: - | DP29: 2 | DQ29: 1 | DR29: 1 | DS29: - | DT29: - | DU29: - | DV29: - | DW29: - | DX29: - | DY29: - | DZ29: - | EA29: 11 | EB29: 787 | EC29: 140 | ED29: 597 | EE29: 50 | EF29: 16 | EG29: 16 | EH29: 9 | EI29: 7 | EJ29: - | EK29: - | EL29: - | EM29: - | EN29: 19 | EO29: 11 | EP29: 7 | EQ29: 4 | ER29: - | ES29: 4 | ET29: 3 | EU29: 1
A30: 埼玉県 | B30: 西区(さいたま市) | C30: 指扇村 | D30: 末広 | E30: 3 | F30: 3 | G30: - | H30: - | I30: 1 | J30: 1 | K30: 2 | L30: - | M30: 10 | N30: - | O30: - | P30: - | Q30: - | R30: - | S30: - | T30: 3 | U30: 1 | V30: 1 | W30: - | X30: - | Y30: 1 | Z30: 2 | AA30: 2 | AB30: - | AC30: 63.5 | AD30: 61.8 | AE30: 65.2 | AF30: 5 | AG30: - | AH30: - | AI30: - | AJ30: - | AK30: - | AL30: - | AM30: - | AN30: - | AO30: - | AP30: - | AQ30: - | AR30: 1 | AS30: 2 | AT30: 2 | AU30: - | AV30: 77.2 | AW30: 78.5 | AX30: 76.3 | AY30: 5 | AZ30: - | BA30: - | BB30: - | BC30: - | BD30: - | BE30: - | BF30: - | BG30: - | BH30: - | BI30: - | BJ30: - | BK30: 1 | BL30: 2 | BM30: 2 | BN30: - | BO30: 77.2 | BP30: 78.5 | BQ30: 76.3 | BR30: 3 | BS30: - | BT30: - | BU30: - | BV30: - | BW30: - | BX30: - | BY30: - | BZ30: - | CA30: 1 | CB30: - | CC30: - | CD30: - | CE30: 1 | CF30: 1 | CG30: - | CH30: 1 | CI30: - | CJ30: - | CK30: - | CL30: - | CM30: - | CN30: - | CO30: - | CP30: - | CQ30: - | CR30: - | CS30: 1 | CT30: - | CU30: - | DC30: 14 | DD30: 10 | DE30: 5 | DF30: 4 | DG30: 1 | DH30: 1 | DI30: 3 | DJ30: - | DK30: 3 | DL30: 1 | DM30: - | DN30: - | DO30: - | DP30: 2 | DQ30: - | DR30: - | DS30: - | DT30: - | DU30: - | DV30: - | DW30: - | DX30: - | DY30: - | DZ30: - | EA30: 3 | EB30: 305 | EC30: 90 | ED30: 215 | EE30: - | EF30: 6 | EG30: 5 | EH30: 2 | EI30: 2 | EJ30: 1 | EK30: - | EL30: 1 | EM30: - | EN30: 8 | EO30: 5 | EP30: 3 | EQ30: 2 | ER30: - | ES30: 1 | ET30: 2 | EU30: -
A31: 埼玉県 | B31: 西区(さいたま市) | C31: 指扇村 | D31: 北貝戸 | E31: 3 | F31: 1 | G31: x | H31: x | I31: x | J31: x | K31: x | L31: 2 | M31: x | N31: x | O31: x | P31: x | Q31: x | R31: x | S31: x | T31: x | U31: x | V31: x | W31: x | X31: x | Y31: x | Z31: x | AA31: x | AB31: x | AC31: 47.2 | AD31: 38.5 | AE31: 53.0 | AF31: x | AG31: x | AH31: x | AI31: x | AJ31: x | AK31: x | AL31: x | AM31: x | AN31: x | AO31: x | AP31: x | AQ31: x | AR31: x | AS31: x | AT31: x | AU31: x | AV31: 53.0 | AW31: … | AX31: 53.0 | AY31: x | AZ31: x | BA31: x | BB31: x | BC31: x | BD31: x | BE31: x | BF31: x | BG31: x | BH31: x | BI31: x | BJ31: x | BK31: x | BL31: x | BM31: x | BN31: x | BO31: 81.0 | BP31: … | BQ31: 81.0 | BR31: 1 | BS31: - | BT31: - | BU31: - | BV31: - | BW31: - | BX31: - | BY31: - | BZ31: 1 | CA31: - | CB31: - | CC31: - | CD31: - | CE31: - | CF31: - | CG31: - | CH31: 1 | CI31: - | CJ31: - | CK31: - | CL31: - | CM31: - | CN31: 1 | CO31: - | CP31: - | CQ31: - | CR31: - | CS31: - | CT31: - | CU31: - | DC31: 5 | DD31: 2 | DE31: 1 | DF31: 1 | DG31: - | DH31: 2 | DI31: 1 | DJ31: - | DK31: - | DL31: - | DM31: - | DN31: - | DO31: - | DP31: - | DQ31: - | DR31: - | DS31: - | DT31: - | DU31: - | DV31: - | DW31: - | DX31: - | DY31: - | DZ31: - | EA31: 1 | EB31: 91 | EC31: - | ED31: 91 | EE31: - | EF31: 2 | EG31: 1 | EH31: - | EI31: 1 | EJ31: - | EK31: - | EL31: 1 | EM31: - | EN31: 3 | EO31: 1 | EP31: 1 | EQ31: - | ER31: - | ES31: 2 | ET31: - | EU31: -
A32: 埼玉県 | B32: 西区(さいたま市) | C32: 指扇村 | D32: 阿弥陀寺 | E32: 10 | F32: 1 | G32: x | H32: x | I32: x | J32: x | K32: x | L32: 9 | M32: x | N32: x | O32: x | P32: x | Q32: x | R32: x | S32: x | T32: x | U32: x | V32: x | W32: x | X32: x | Y32: x | Z32: x | AA32: x | AB32: x | AC32: 41.0 | AD32: 42.0 | AE32: 40.0 | AF32: x | AG32: x | AH32: x | AI32: x | AJ32: x | AK32: x | AL32: x | AM32: x | AN32: x | AO32: x | AP32: x | AQ32: x | AR32: x | AS32: x | AT32: x | AU32: x | AV32: 53.0 | AW32: … | AX32: 53.0 | AY32: x | AZ32: x | BA32: x | BB32: x | BC32: x | BD32: x | BE32: x | BF32: x | BG32: x | BH32: x | BI32: x | BJ32: x | BK32: x | BL32: x | BM32: x | BN32: x | BO32: 53.0 | BP32: … | BQ32: 53.0 | BR32: 1 | BS32: - | BT32: - | BU32: - | BV32: - | BW32: - | BX32: - | BY32: - | BZ32: - | CA32: 1 | CB32: - | CC32: - | CD32: - | CE32: - | CF32: - | CG32: - | CH32: 1 | CI32: - | CJ32: - | CK32: - | CL32: - | CM32: - | CN32: - | CO32: 1 | CP32: - | CQ32: - | CR32: - | CS32: - | CT32: - | CU32: - | DC32: 4 | DD32: 4 | DE32: 1 | DF32: 3 | DG32: - | DH32: - | DI32: - | DJ32: - | DK32: 1 | DL32: - | DM32: - | DN32: - | DO32: - | DP32: - | DQ32: - | DR32: 1 | DS32: - | DT32: - | DU32: - | DV32: - | DW32: - | DX32: - | DY32: - | DZ32: - | EA32: 1 | EB32: 45 | EC32: - | ED32: 30 | EE32: 15 | EF32: 2 | EG32: 2 | EH32: - | EI32: 2 | EJ32: - | EK32: - | EL32: - | EM32: - | EN32: 2 | EO32: 2 | EP32: 1 | EQ32: 1 | ER32: - | ES32: - | ET32: - | EU32: -
A33: 埼玉県 | B33: 西区(さいたま市) | C33: 指扇村 | D33: 木の下 | E33: 14 | F33: 9 | G33: 1 | H33: 1 | I33: 1 | J33: 1 | K33: 7 | L33: 5 | M33: 20 | N33: - | O33: - | P33: - | Q33: 2 | R33: - | S33: 1 | T33: 1 | U33: - | V33: 1 | W33: 3 | X33: 5 | Y33: 3 | Z33: 3 | AA33: 1 | AB33: - | AC33: 63.4 | AD33: 61.7 | AE33: 66.0 | AF33: 16 | AG33: - | AH33: - | AI33: - | AJ33: - | AK33: - | AL33: 1 | AM33: 1 | AN33: - | AO33: - | AP33: 2 | AQ33: 5 | AR33: 3 | AS33: 3 | AT33: 1 | AU33: - | AV33: 67.9 | AW33: 68.6 | AX33: 67.0 | AY33: 16 | AZ33: - | BA33: - | BB33: - | BC33: - | BD33: - | BE33: 1 | BF33: 1 | BG33: - | BH33: - | BI33: 2 | BJ33: 5 | BK33: 3 | BL33: 3 | BM33: 1 | BN33: - | BO33: 67.9 | BP33: 68.6 | BQ33: 67.0 | BR33: 9 | BS33: - | BT33: - | BU33: - | BV33: - | BW33: - | BX33: - | BY33: - | BZ33: - | CA33: - | CB33: 2 | CC33: 3 | CD33: 1 | CE33: 3 | CF33: - | CG33: - | CH33: 6 | CI33: - | CJ33: - | CK33: - | CL33: - | CM33: - | CN33: - | CO33: - | CP33: 1 | CQ33: 1 | CR33: 1 | CS33: 3 | CT33: - | CU33: - | DC33: 27 | DD33: 24 | DE33: 16 | DF33: 6 | DG33: 2 | DH33: - | DI33: 2 | DJ33: 1 | DK33: 6 | DL33: 1 | DM33: - | DN33: - | DO33: - | DP33: 3 | DQ33: 2 | DR33: - | DS33: - | DT33: - | DU33: - | DV33: - | DW33: - | DX33: - | DY33: - | DZ33: - | EA33: 9 | EB33: 877 | EC33: 157 | ED33: 660 | EE33: 60 | EF33: 15 | EG33: 14 | EH33: 9 | EI33: 4 | EJ33: 1 | EK33: - | EL33: 1 | EM33: - | EN33: 12 | EO33: 10 | EP33: 7 | EQ33: 2 | ER33: 1 | ES33: - | ET33: 1 | EU33: 1
A34: 埼玉県 | B34: 西区(さいたま市) | C34: 指扇村 | D34: 喜代川 | E34: 11 | F34: 5 | G34: 3 | H34: 3 | I34: 1 | J34: - | K34: 1 | L34: 6 | M34: 18 | N34: 1 | O34: 2 | P34: 1 | Q34: - | R34: 1 | S34: 4 | T34: 1 | U34: 1 | V34: 1 | W34: 2 | X34: 1 | Y34: 2 | Z34: 1 | AA34: - | AB34: - | AC34: 47.4 | AD34: 47.9 | AE34: 47.0 | AF34: 8 | AG34: - | AH34: - | AI34: - | AJ34: - | AK34: - | AL34: 2 | AM34: 1 | AN34: - | AO34: - | AP34: 2 | AQ34: 1 | AR34: 1 | AS34: 1 | AT34: - | AU34: - | AV34: 58.8 | AW34: 56.5 | AX34: 61.0 | AY34: 6 | AZ34: - | BA34: - | BB34: - | BC34: - | BD34: - | BE34: 1 | BF34: 1 | BG34: - | BH34: - | BI34: 1 | BJ34: 1 | BK34: 1 | BL34: 1 | BM34: - | BN34: - | BO34: 61.2 | BP34: 56.5 | BQ34: 70.5 | BR34: 5 | BS34: - | BT34: - | BU34: - | BV34: - | BW34: - | BX34: 1 | BY34: - | BZ34: - | CA34: 1 | CB34: 1 | CC34: - | CD34: 1 | CE34: 1 | CF34: - | CG34: - | CH34: 4 | CI34: - | CJ34: - | CK34: - | CL34: - | CM34: - | CN34: - | CO34: 1 | CP34: 1 | CQ34: - | CR34: 1 | CS34: 1 | CT34: - | CU34: - | DC34: 18 | DD34: 11 | DE34: 6 | DF34: 3 | DG34: 2 | DH34: 3 | DI34: 4 | DJ34: - | DK34: 5 | DL34: 2 | DM34: - | DN34: - | DO34: 1 | DP34: - | DQ34: - | DR34: 2 | DS34: - | DT34: - | DU34: - | DV34: - | DW34: - | DX34: - | DY34: - | DZ34: - | EA34: 5 | EB34: 577 | EC34: 256 | ED34: 201 | EE34: 120 | EF34: 9 | EG34: 7 | EH34: 4 | EI34: 1 | EJ34: 2 | EK34: - | EL34: 2 | EM34: - | EN34: 9 | EO34: 4 | EP34: 2 | EQ34: 2 | ER34: - | ES34: 3 | ET34: 2 | EU34: -
A35: 埼玉県 | B35: 西区(さいたま市) | C35: 指扇村 | D35: 清河寺 | E35: 18 | F35: 16 | G35: 2 | H35: 1 | I35: 5 | J35: 2 | K35: 9 | L35: 2 | M35: 50 | N35: - | O35: 1 | P35: 3 | Q35: 3 | R35: 1 | S35: 1 | T35: 2 | U35: 7 | V35: 5 | W35: 9 | X35: 6 | Y35: 3 | Z35: 4 | AA35: 3 | AB35: 2 | AC35: 58.6 | AD35: 56.9 | AE35: 60.7 | AF35: 24 | AG35: - | AH35: - | AI35: - | AJ35: 1 | AK35: - | AL35: - | AM35: - | AN35: 3 | AO35: 1 | AP35: 4 | AQ35: 5 | AR35: 3 | AS35: 2 | AT35: 3 | AU35: 2 | AV35: 67.5 | AW35: 67.6 | AX35: 67.3 | AY35: 24 | AZ35: - | BA35: - | BB35: - | BC35: 1 | BD35: - | BE35: - | BF35: - | BG35: 3 | BH35: 1 | BI35: 4 | BJ35: 5 | BK35: 3 | BL35: 2 | BM35: 3 | BN35: 2 | BO35: 67.5 | BP35: 67.6 | BQ35: 67.3 | BR35: 16 | BS35: - | BT35: - | BU35: - | BV35: - | BW35: - | BX35: - | BY35: - | BZ35: 1 | CA35: 2 | CB35: 3 | CC35: 2 | CD35: 1 | CE35: 2 | CF35: 2 | CG35: 3 | CH35: 13 | CI35: - | CJ35: - | CK35: - | CL35: - | CM35: - | CN35: 1 | CO35: 2 | CP35: 3 | CQ35: 1 | CR35: - | CS35: 2 | CT35: 1 | CU35: 3 | DC35: 67 | DD35: 52 | DE35: 24 | DF35: 26 | DG35: 2 | DH35: 5 | DI35: 5 | DJ35: 5 | DK35: 9 | DL35: 3 | DM35: - | DN35: - | DO35: - | DP35: 3 | DQ35: - | DR35: 2 | DS35: 1 | DT35: - | DU35: - | DV35: - | DW35: - | DX35: - | DY35: - | DZ35: - | EA35: 16 | EB35: 1,305 | EC35: 399 | ED35: 702 | EE35: 204 | EF35: 36 | EG35: 30 | EH35: 12 | EI35: 16 | EJ35: 2 | EK35: - | EL35: 5 | EM35: 1 | EN35: 31 | EO35: 22 | EP35: 12 | EQ35: 10 | ER35: - | ES35: 5 | ET35: - | EU35: 4
A36: 埼玉県 | B36: 西区(さいたま市) | C36: 指扇村 | D36: 内野本郷 | E36: 7 | F36: 4 | G36: 1 | H36: 1 | I36: 2 | J36: - | K36: 1 | L36: 3 | M36: 10 | N36: - | O36: - | P36: - | Q36: 1 | R36: - | S36: - | T36: - | U36: - | V36: 4 | W36: 1 | X36: 3 | Y36: - | Z36: - | AA36: 1 | AB36: - | AC36: 61.0 | AD36: 61.7 | AE36: 60.0 | AF36: 5 | AG36: - | AH36: - | AI36: - | AJ36: - | AK36: - | AL36: - | AM36: - | AN36: - | AO36: 2 | AP36: - | AQ36: 2 | AR36: - | AS36: - | AT36: 1 | AU36: - | AV36: 65.8 | AW36: 68.7 | AX36: 61.5 | AY36: 4 | AZ36: - | BA36: - | BB36: - | BC36: - | BD36: - | BE36: - | BF36: - | BG36: - | BH36: 1 | BI36: - | BJ36: 2 | BK36: - | BL36: - | BM36: 1 | BN36: - | BO36: 68.0 | BP36: 68.7 | BQ36: 66.0 | BR36: 4 | BS36: - | BT36: - | BU36: - | BV36: - | BW36: - | BX36: - | BY36: - | BZ36: - | CA36: - | CB36: 1 | CC36: 2 | CD36: - | CE36: - | CF36: 1 | CG36: - | CH36: 3 | CI36: - | CJ36: - | CK36: - | CL36: - | CM36: - | CN36: - | CO36: - | CP36: 1 | CQ36: 1 | CR36: - | CS36: - | CT36: 1 | CU36: - | DC36: 12 | DD36: 9 | DE36: 4 | DF36: 2 | DG36: 3 | DH36: 2 | DI36: - | DJ36: 1 | DK36: 3 | DL36: 1 | DM36: - | DN36: 1 | DO36: - | DP36: - | DQ36: - | DR36: 1 | DS36: - | DT36: - | DU36: - | DV36: - | DW36: - | DX36: - | DY36: - | DZ36: - | EA36: 4 | EB36: 214 | EC36: - | ED36: 147 | EE36: 67 | EF36: 7 | EG36: 6 | EH36: 3 | EI36: 1 | EJ36: 2 | EK36: - | EL36: - | EM36: 1 | EN36: 5 | EO36: 3 | EP36: 1 | EQ36: 1 | ER36: 1 | ES36: 2 | ET36: - | EU36: -
A37: 埼玉県 | B37: 西区(さいたま市) | C37: 指扇村 | D37: 西新井 | E37: 22 | F37: 15 | G37: 3 | H37: 3 | I37: 1 | J37: - | K37: 11 | L37: 7 | M37: 35 | N37: - | O37: - | P37: 1 | Q37: - | R37: - | S37: 1 | T37: 2 | U37: 2 | V37: 6 | W37: 3 | X37: 7 | Y37: 5 | Z37: 5 | AA37: 1 | AB37: 2 | AC37: 64.5 | AD37: 65.7 | AE37: 63.2 | AF37: 25 | AG37: - | AH37: - | AI37: - | AJ37: - | AK37: - | AL37: 1 | AM37: 2 | AN37: 1 | AO37: 2 | AP37: - | AQ37: 6 | AR37: 5 | AS37: 5 | AT37: 1 | AU37: 2 | AV37: 67.8 | AW37: 67.8 | AX37: 67.8 | AY37: 23 | AZ37: - | BA37: - | BB37: - | BC37: - | BD37: - | BE37: 1 | BF37: 1 | BG37: 1 | BH37: 2 | BI37: - | BJ37: 5 | BK37: 5 | BL37: 5 | BM37: 1 | BN37: 2 | BO37: 68.7 | BP37: 67.8 | BQ37: 70.1 | BR37: 15 | BS37: - | BT37: - | BU37: - | BV37: - | BW37: - | BX37: - | BY37: - | BZ37: 1 | CA37: 2 | CB37: 1 | CC37: 4 | CD37: 3 | CE37: 3 | CF37: - | CG37: 1 | CH37: 6 | CI37: - | CJ37: - | CK37: - | CL37: - | CM37: - | CN37: - | CO37: 1 | CP37: - | CQ37: 2 | CR37: - | CS37: 2 | CT37: - | CU37: 1 | DC37: 54 | DD37: 38 | DE37: 23 | DF37: 15 | DG37: - | DH37: 6 | DI37: 6 | DJ37: 4 | DK37: 10 | DL37: - | DM37: - | DN37: - | DO37: - | DP37: 7 | DQ37: 1 | DR37: 1 | DS37: 1 | DT37: - | DU37: - | DV37: - | DW37: - | DX37: - | DY37: - | DZ37: - | EA37: 15 | EB37: 1,114 | EC37: 36 | ED37: 926 | EE37: 152 | EF37: 23 | EG37: 21 | EH37: 14 | EI37: 7 | EJ37: - | EK37: - | EL37: 1 | EM37: 1 | EN37: 31 | EO37: 17 | EP37: 9 | EQ37: 8 | ER37: - | ES37: 6 | ET37: 5 | EU37: 3
A38: 埼玉県 | B38: 西区(さいたま市) | C38: 指扇村 | D38: 上野本郷 | E38: - | F38: - | G38: - | H38: - | I38: - | J38: - | K38: - | L38: - | M38: - | N38: - | O38: - | P38: - | Q38: - | R38: - | S38: - | T38: - | U38: - | V38: - | W38: - | X38: - | Y38: - | Z38: - | AA38: - | AB38: - | AC38: … | AD38: … | AE38: … | AF38: - | AG38: - | AH38: - | AI38: - | AJ38: - | AK38: - | AL38: - | AM38: - | AN38: - | AO38: - | AP38: - | AQ38: - | AR38: - | AS38: - | AT38: - | AU38: - | AV38: … | AW38: … | AX38: … | AY38: - | AZ38: - | BA38: - | BB38: - | BC38: - | BD38: - | BE38: - | BF38: - | BG38: - | BH38: - | BI38: - | BJ38: - | BK38: - | BL38: - | BM38: - | BN38: - | BO38: … | BP38: … | BQ38: … | BR38: - | BS38: - | BT38: - | BU38: - | BV38: - | BW38: - | BX38: - | BY38: - | BZ38: - | CA38: - | CB38: - | CC38: - | CD38: - | CE38: - | CF38: - | CG38: - | CH38: - | CI38: - | CJ38: - | CK38: - | CL38: - | CM38: - | CN38: - | CO38: - | CP38: - | CQ38: - | CR38: - | CS38: - | CT38: - | CU38: - | DC38: - | DD38: - | DE38: - | DF38: - | DG38: - | DH38: - | DI38: - | DJ38: - | DK38: - | DL38: - | DM38: - | DN38: - | DO38: - | DP38: - | DQ38: - | DR38: - | DS38: - | DT38: - | DU38: - | DV38: - | DW38: - | DX38: - | DY38: - | DZ38: - | EA38: - | EB38: - | EC38: - | ED38: - | EE38: - | EF38: - | EG38: - | EH38: - | EI38: - | EJ38: - | EK38: - | EL38: - | EM38: - | EN38: - | EO38: - | EP38: - | EQ38: - | ER38: - | ES38: - | ET38: - | EU38: -
A39: 埼玉県 | B39: 西区(さいたま市) | C39: 馬宮村 | E39: 220 | F39: 150 | G39: 16 | H39: 10 | I39: 38 | J39: 16 | K39: 96 | L39: 70 | M39: 406 | N39: 13 | O39: 12 | P39: 13 | Q39: 16 | R39: 11 | S39: 18 | T39: 35 | U39: 47 | V39: 43 | W39: 27 | X39: 35 | Y39: 46 | Z39: 41 | AA39: 41 | AB39: 8 | AC39: 58.1 | AD39: 55.7 | AE39: 60.9 | AF39: 207 | AG39: 5 | AH39: - | AI39: - | AJ39: 1 | AK39: 2 | AL39: 5 | AM39: 7 | AN39: 9 | AO39: 12 | AP39: 13 | AQ39: 29 | AR39: 41 | AS39: 37 | AT39: 39 | AU39: 7 | AV39: 68.8 | AW39: 69.5 | AX39: 68.2 | AY39: 177 | AZ39: - | BA39: - | BB39: - | BC39: - | BD39: 1 | BE39: 4 | BF39: 6 | BG39: 6 | BH39: 12 | BI39: 11 | BJ39: 25 | BK39: 39 | BL39: 32 | BM39: 35 | BN39: 6 | BO39: 70.7 | BP39: 69.7 | BQ39: 71.7 | BR39: 150 | BS39: - | BT39: - | BU39: - | BV39: 2 | BW39: 1 | BX39: 2 | BY39: 4 | BZ39: 17 | CA39: 20 | CB39: 13 | CC39: 15 | CD39: 26 | CE39: 23 | CF39: 22 | CG39: 5 | CH39: 90 | CI39: - | CJ39: - | CK39: - | CL39: - | CM39: 3 | CN39: 4 | CO39: 10 | CP39: 5 | CQ39: 11 | CR39: 21 | CS39: 15 | CT39: 16 | CU39: 5 | DC39: 552 | DD39: 391 | DE39: 177 | DF39: 204 | DG39: 10 | DH39: 64 | DI39: 57 | DJ39: 40 | DK39: 110 | DL39: 106 | DM39: - | DN39: - | DO39: - | DP39: 1 | DQ39: 1 | DR39: 2 | DS39: - | DT39: - | DU39: - | DV39: - | DW39: - | DX39: - | DY39: - | DZ39: - | EA39: 150 | EB39: 17,967 | EC39: 16,429 | ED39: 1,435 | EE39: 103 | EF39: 283 | EG39: 228 | EH39: 89 | EI39: 129 | EJ39: 10 | EK39: - | EL39: 31 | EM39: 24 | EN39: 269 | EO39: 163 | EP39: 88 | EQ39: 75 | ER39: - | ES39: 64 | ET39: 26 | EU39: 16
A40: 埼玉県 | B40: 西区(さいたま市) | C40: 馬宮村 | D40: 高木 | E40: 5 | F40: 3 | G40: - | H40: - | I40: 1 | J40: 1 | K40: 2 | L40: 2 | M40: 11 | N40: 1 | O40: 1 | P40: 1 | Q40: - | R40: - | S40: - | T40: 1 | U40: 2 | V40: - | W40: 1 | X40: 1 | Y40: 3 | Z40: - | AA40: - | AB40: - | AC40: 52.1 | AD40: 51.0 | AE40: 53.4 | AF40: 5 | AG40: - | AH40: - | AI40: - | AJ40: - | AK40: - | AL40: - | AM40: - | AN40: 1 | AO40: - | AP40: 1 | AQ40: 1 | AR40: 2 | AS40: - | AT40: - | AU40: - | AV40: 66.4 | AW40: 67.5 | AX40: 65.7 | AY40: 5 | AZ40: - | BA40: - | BB40: - | BC40: - | BD40: - | BE40: - | BF40: - | BG40: 1 | BH40: - | BI40: 1 | BJ40: 1 | BK40: 2 | BL40: - | BM40: - | BN40: - | BO40: 66.4 | BP40: 67.5 | BQ40: 65.7 | BR40: 3 | BS40: - | BT40: - | BU40: - | BV40: - | BW40: - | BX40: - | BY40: - | BZ40: - | CA40: - | CB40: 1 | CC40: - | CD40: 2 | CE40: - | CF40: - | CG40: - | CH40: 2 | CI40: - | CJ40: - | CK40: - | CL40: - | CM40: - | CN40: - | CO40: - | CP40: 1 | CQ40: - | CR40: 1 | CS40: - | CT40: - | CU40: - | DC40: 15 | DD40: 10 | DE40: 5 | DF40: 5 | DG40: - | DH40: 1 | DI40: 3 | DJ40: 1 | DK40: 3 | DL40: 3 | DM40: - | DN40: - | DO40: - | DP40: - | DQ40: - | DR40: - | DS40: - | DT40: - | DU40: - | DV40: - | DW40: - | DX40: - | DY40: - | DZ40: - | EA40: 3 | EB40: 583 | EC40: 560 | ED40: 23 | EE40: - | EF40: 7 | EG40: 6 | EH40: 2 | EI40: 4 | EJ40: - | EK40: - | EL40: 1 | EM40: - | EN40: 8 | EO40: 4 | EP40: 3 | EQ40: 1 | ER40: - | ES40: 1 | ET40: 2 | EU40: 1
A41: 埼玉県 | B41: 西区(さいたま市) | C41: 馬宮村 | D41: 仲野 | E41: - | F41: - | G41: - | H41: - | I41: - | J41: - | K41: - | L41: - | M41: - | N41: - | O41: - | P41: - | Q41: - | R41: - | S41: - | T41: - | U41: - | V41: - | W41: - | X41: - | Y41: - | Z41: - | AA41: - | AB41: - | AC41: … | AD41: … | AE41: … | AF41: - | AG41: - | AH41: - | AI41: - | AJ41: - | AK41: - | AL41: - | AM41: - | AN41: - | AO41: - | AP41: - | AQ41: - | AR41: - | AS41: - | AT41: - | AU41: - | AV41: … | AW41: … | AX41: … | AY41: - | AZ41: - | BA41: - | BB41: - | BC41: - | BD41: - | BE41: - | BF41: - | BG41: - | BH41: - | BI41: - | BJ41: - | BK41: - | BL41: - | BM41: - | BN41: - | BO41: … | BP41: … | BQ41: … | BR41: - | BS41: - | BT41: - | BU41: - | BV41: - | BW41: - | BX41: - | BY41: - | BZ41: - | CA41: - | CB41: - | CC41: - | CD41: - | CE41: - | CF41: - | CG41: - | CH41: - | CI41: - | CJ41: - | CK41: - | CL41: - | CM41: - | CN41: - | CO41: - | CP41: - | CQ41: - | CR41: - | CS41: - | CT41: - | CU41: - | DC41: - | DD41: - | DE41: - | DF41: - | DG41: - | DH41: - | DI41: - | DJ41: - | DK41: - | DL41: - | DM41: - | DN41: - | DO41: - | DP41: - | DQ41: - | DR41: - | DS41: - | DT41: - | DU41: - | DV41: - | DW41: - | DX41: - | DY41: - | DZ41: - | EA41: - | EB41: - | EC41: - | ED41: - | EE41: - | EF41: - | EG41: - | EH41: - | EI41: - | EJ41: - | EK41: - | EL41: - | EM41: - | EN41: - | EO41: - | EP41: - | EQ41: - | ER41: - | ES41: - | ET41: - | EU41: -
A42: 埼玉県 | B42: 西区(さいたま市) | C42: 馬宮村 | D42: 上サ | E42: 24 | F42: 12 | G42: - | H42: - | I42: 4 | J42: 2 | K42: 8 | L42: 12 | M42: 29 | N42: 1 | O42: - | P42: 3 | Q42: 1 | R42: 1 | S42: - | T42: 1 | U42: 4 | V42: 2 | W42: 2 | X42: 3 | Y42: 2 | Z42: 5 | AA42: 4 | AB42: - | AC42: 59.1 | AD42: 53.8 | AE42: 65.8 | AF42: 17 | AG42: 1 | AH42: - | AI42: - | AJ42: - | AK42: - | AL42: - | AM42: 1 | AN42: 1 | AO42: 1 | AP42: 1 | AQ42: 3 | AR42: 2 | AS42: 4 | AT42: 3 | AU42: - | AV42: 66.6 | AW42: 62.9 | AX42: 69.2 | AY42: 14 | AZ42: - | BA42: - | BB42: - | BC42: - | BD42: - | BE42: - | BF42: 1 | BG42: - | BH42: 1 | BI42: 1 | BJ42: 3 | BK42: 2 | BL42: 3 | BM42: 3 | BN42: - | BO42: 70.4 | BP42: 70.3 | BQ42: 70.4 | BR42: 12 | BS42: - | BT42: - | BU42: - | BV42: - | BW42: - | BX42: - | BY42: - | BZ42: 1 | CA42: 1 | CB42: - | CC42: 1 | CD42: 2 | CE42: 4 | CF42: 2 | CG42: 1 | CH42: 7 | CI42: - | CJ42: - | CK42: - | CL42: - | CM42: - | CN42: - | CO42: - | CP42: - | CQ42: - | CR42: 1 | CS42: 3 | CT42: 2 | CU42: 1 | DC42: 46 | DD42: 37 | DE42: 14 | DF42: 23 | DG42: - | DH42: 3 | DI42: 3 | DJ42: 3 | DK42: 10 | DL42: 9 | DM42: - | DN42: - | DO42: - | DP42: 1 | DQ42: - | DR42: - | DS42: - | DT42: - | DU42: - | DV42: - | DW42: - | DX42: - | DY42: - | DZ42: - | EA42: 12 | EB42: 1,487 | EC42: 1,357 | ED42: 130 | EE42: - | EF42: 24 | EG42: 20 | EH42: 6 | EI42: 14 | EJ42: - | EK42: - | EL42: 3 | EM42: 1 | EN42: 22 | EO42: 17 | EP42: 8 | EQ42: 9 | ER42: - | ES42: 3 | ET42: - | EU42: 2
A43: 埼玉県 | B43: 西区(さいたま市) | C43: 馬宮村 | D43: 東間 | E43: 11 | F43: 10 | G43: - | H43: - | I43: 4 | J43: - | K43: 6 | L43: 1 | M43: 27 | N43: - | O43: 2 | P43: - | Q43: 1 | R43: 3 | S43: - | T43: 2 | U43: 3 | V43: 4 | W43: 1 | X43: 3 | Y43: 4 | Z43: 2 | AA43: 1 | AB43: 1 | AC43: 57.7 | AD43: 51.7 | AE43: 65.3 | AF43: 12 | AG43: - | AH43: - | AI43: - | AJ43: - | AK43: 1 | AL43: - | AM43: - | AN43: - | AO43: - | AP43: 1 | AQ43: 3 | AR43: 4 | AS43: 2 | AT43: 1 | AU43: - | AV43: 69.6 | AW43: 71.0 | AX43: 68.6 | AY43: 11 | AZ43: - | BA43: - | BB43: - | BC43: - | BD43: 1 | BE43: - | BF43: - | BG43: - | BH43: - | BI43: 1 | BJ43: 3 | BK43: 3 | BL43: 2 | BM43: 1 | BN43: - | BO43: 69.5 | BP43: 71.0 | BQ43: 68.3 | BR43: 10 | BS43: - | BT43: - | BU43: - | BV43: - | BW43: - | BX43: - | BY43: - | BZ43: 2 | CA43: 2 | CB43: 1 | CC43: 2 | CD43: 2 | CE43: 1 | CF43: - | CG43: - | CH43: 5 | CI43: - | CJ43: - | CK43: - | CL43: - | CM43: - | CN43: - | CO43: 1 | CP43: - | CQ43: 2 | CR43: 1 | CS43: 1 | CT43: - | CU43: - | DC43: 39 | DD43: 26 | DE43: 11 | DF43: 15 | DG43: - | DH43: 6 | DI43: 4 | DJ43: 3 | DK43: 8 | DL43: 8 | DM43: - | DN43: - | DO43: - | DP43: - | DQ43: - | DR43: - | DS43: - | DT43: - | DU43: - | DV43: - | DW43: - | DX43: - | DY43: - | DZ43: - | EA43: 10 | EB43: 1,518 | EC43: 1,399 | ED43: 119 | EE43: - | EF43: 17 | EG43: 15 | EH43: 5 | EI43: 10 | EJ43: - | EK43: - | EL43: 1 | EM43: 1 | EN43: 22 | EO43: 11 | EP43: 6 | EQ43: 5 | ER43: - | ES43: 6 | ET43: 3 | EU43: 2
A44: 埼玉県 | B44: 西区(さいたま市) | C44: 馬宮村 | D44: 本村 | E44: 14 | F44: 9 | G44: 1 | H44: 1 | I44: - | J44: - | K44: 8 | L44: 5 | M44: 19 | N44: - | O44: - | P44: - | Q44: - | R44: - | S44: 1 | T44: 1 | U44: 3 | V44: 1 | W44: 2 | X44: 3 | Y44: 2 | Z44: 3 | AA44: 3 | AB44: - | AC44: 65.1 | AD44: 64.8 | AE44: 65.3 | AF44: 12 | AG44: - | AH44: - | AI44: - | AJ44: - | AK44: - | AL44: 1 | AM44: - | AN44: 2 | AO44: - | AP44: - | AQ44: 2 | AR44: 2 | AS44: 2 | AT44: 3 | AU44: - | AV44: 67.9 | AW44: 71.8 | AX44: 66.0 | AY44: 10 | AZ44: - | BA44: - | BB44: - | BC44: - | BD44: - | BE44: 1 | BF44: - | BG44: 1 | BH44: - | BI44: - | BJ44: 1 | BK44: 2 | BL44: 2 | BM44: 3 | BN44: - | BO44: 69.8 | BP44: 71.8 | BQ44: 68.5 | BR44: 9 | BS44: - | BT44: - | BU44: - | BV44: - | BW44: - | BX44: - | BY44: - | BZ44: 1 | CA44: 1 | CB44: 1 | CC44: 1 | CD44: 1 | CE44: 1 | CF44: 3 | CG44: - | CH44: 5 | CI44: - | CJ44: - | CK44: - | CL44: - | CM44: - | CN44: 1 | CO44: - | CP44: - | CQ44: 1 | CR44: 1 | CS44: - | CT44: 2 | CU44: - | DC44: 30 | DD44: 22 | DE44: 10 | DF44: 12 | DG44: - | DH44: 2 | DI44: 3 | DJ44: 3 | DK44: 4 | DL44: 4 | DM44: - | DN44: - | DO44: - | DP44: - | DQ44: - | DR44: - | DS44: - | DT44: - | DU44: - | DV44: - | DW44: - | DX44: - | DY44: - | DZ44: - | EA44: 9 | EB44: 776 | EC44: 688 | ED44: 86 | EE44: 2 | EF44: 15 | EG44: 12 | EH44: 4 | EI44: 8 | EJ44: - | EK44: - | EL44: 2 | EM44: 1 | EN44: 15 | EO44: 10 | EP44: 6 | EQ44: 4 | ER44: - | ES44: 2 | ET44: 1 | EU44: 2
A45: 埼玉県 | B45: 西区(さいたま市) | C45: 馬宮村 | D45: 宿 | E45: 37 | F45: 28 | G45: 6 | H45: 5 | I45: 6 | J45: 3 | K45: 16 | L45: 9 | M45: 78 | N45: 3 | O45: 1 | P45: 1 | Q45: 5 | R45: 2 | S45: 5 | T45: 9 | U45: 9 | V45: 6 | W45: 4 | X45: 4 | Y45: 7 | Z45: 13 | AA45: 8 | AB45: 1 | AC45: 58.3 | AD45: 56.8 | AE45: 60.1 | AF45: 49 | AG45: 2 | AH45: - | AI45: - | AJ45: 1 | AK45: - | AL45: 2 | AM45: 3 | AN45: 4 | AO45: 3 | AP45: 3 | AQ45: 3 | AR45: 7 | AS45: 12 | AT45: 8 | AU45: 1 | AV45: 65.7 | AW45: 68.4 | AX45: 63.2 | AY45: 40 | AZ45: - | BA45: - | BB45: - | BC45: - | BD45: - | BE45: 2 | BF45: 3 | BG45: 3 | BH45: 3 | BI45: 2 | BJ45: 3 | BK45: 7 | BL45: 10 | BM45: 6 | BN45: 1 | BO45: 68.1 | BP45: 67.9 | BQ45: 68.4 | BR45: 28 | BS45: - | BT45: - | BU45: - | BV45: 1 | BW45: 1 | BX45: 1 | BY45: 1 | BZ45: 4 | CA45: 2 | CB45: 2 | CC45: 1 | CD45: 4 | CE45: 7 | CF45: 4 | CG45: - | CH45: 14 | CI45: - | CJ45: - | CK45: - | CL45: - | CM45: - | CN45: - | CO45: 1 | CP45: 1 | CQ45: - | CR45: 3 | CS45: 6 | CT45: 3 | CU45: - | DC45: 98 | DD45: 70 | DE45: 40 | DF45: 28 | DG45: 2 | DH45: 14 | DI45: 7 | DJ45: 7 | DK45: 21 | DL45: 21 | DM45: - | DN45: - | DO45: - | DP45: - | DQ45: - | DR45: - | DS45: - | DT45: - | DU45: - | DV45: - | DW45: - | DX45: - | DY45: - | DZ45: - | EA45: 28 | EB45: 3,352 | EC45: 3,074 | ED45: 278 | EE45: - | EF45: 52 | EG45: 44 | EH45: 23 | EI45: 19 | EJ45: 2 | EK45: - | EL45: 3 | EM45: 5 | EN45: 46 | EO45: 26 | EP45: 17 | EQ45: 9 | ER45: - | ES45: 14 | ET45: 4 | EU45: 2
A46: 埼玉県 | B46: 西区(さいたま市) | C46: 馬宮村 | D46: 土屋上 | E46: 1 | F46: - | G46: - | H46: - | I46: - | J46: - | K46: - | L46: 1 | M46: - | N46: - | O46: - | P46: - | Q46: - | R46: - | S46: - | T46: - | U46: - | V46: - | W46: - | X46: - | Y46: - | Z46: - | AA46: - | AB46: - | AC46: … | AD46: … | AE46: … | AF46: - | AG46: - | AH46: - | AI46: - | AJ46: - | AK46: - | AL46: - | AM46: - | AN46: - | AO46: - | AP46: - | AQ46: - | AR46: - | AS46: - | AT46: - | AU46: - | AV46: … | AW46: … | AX46: … | AY46: - | AZ46: - | BA46: - | BB46: - | BC46: - | BD46: - | BE46: - | BF46: - | BG46: - | BH46: - | BI46: - | BJ46: - | BK46: - | BL46: - | BM46: - | BN46: - | BO46: … | BP46: … | BQ46: … | BR46: - | BS46: - | BT46: - | BU46: - | BV46: - | BW46: - | BX46: - | BY46: - | BZ46: - | CA46: - | CB46: - | CC46: - | CD46: - | CE46: - | CF46: - | CG46: - | CH46: - | CI46: - | CJ46: - | CK46: - | CL46: - | CM46: - | CN46: - | CO46: - | CP46: - | CQ46: - | CR46: - | CS46: - | CT46: - | CU46: - | DC46: - | DD46: - | DE46: - | DF46: - | DG46: - | DH46: - | DI46: - | DJ46: - | DK46: - | DL46: - | DM46: - | DN46: - | DO46: - | DP46: - | DQ46: - | DR46: - | DS46: - | DT46: - | DU46: - | DV46: - | DW46: - | DX46: - | DY46: - | DZ46: - | EA46: - | EB46: - | EC46: - | ED46: - | EE46: - | EF46: - | EG46: - | EH46: - | EI46: - | EJ46: - | EK46: - | EL46: - | EM46: - | EN46: - | EO46: - | EP46: - | EQ46: - | ER46: - | ES46: - | ET46: - | EU46: -
A47: 埼玉県 | B47: 西区(さいたま市) | C47: 馬宮村 | D47: 土屋中 | E47: 12 | F47: 11 | G47: 3 | H47: 2 | I47: 1 | J47: 1 | K47: 7 | L47: 1 | M47: 31 | N47: 1 | O47: 2 | P47: 1 | Q47: - | R47: 2 | S47: 3 | T47: 2 | U47: 7 | V47: 2 | W47: - | X47: 5 | Y47: 2 | Z47: 1 | AA47: 3 | AB47: - | AC47: 53.8 | AD47: 48.7 | AE47: 59.9 | AF47: 16 | AG47: - | AH47: - | AI47: - | AJ47: - | AK47: 1 | AL47: 2 | AM47: 1 | AN47: 1 | AO47: - | AP47: - | AQ47: 5 | AR47: 2 | AS47: 1 | AT47: 3 | AU47: - | AV47: 64.5 | AW47: 61.7 | AX47: 66.7 | AY47: 14 | AZ47: - | BA47: - | BB47: - | BC47: - | BD47: - | BE47: 1 | BF47: 1 | BG47: 1 | BH47: - | BI47: - | BJ47: 5 | BK47: 2 | BL47: 1 | BM47: 3 | BN47: - | BO47: 67.9 | BP47: 61.7 | BQ47: 74.1 | BR47: 11 | BS47: - | BT47: - | BU47: - | BV47: - | BW47: - | BX47: 1 | BY47: 1 | BZ47: 3 | CA47: 1 | CB47: - | CC47: 2 | CD47: 1 | CE47: - | CF47: 2 | CG47: - | CH47: 7 | CI47: - | CJ47: - | CK47: - | CL47: - | CM47: 1 | CN47: 1 | CO47: 1 | CP47: - | CQ47: 1 | CR47: 1 | CS47: - | CT47: 2 | CU47: - | DC47: 42 | DD47: 27 | DE47: 14 | DF47: 13 | DG47: - | DH47: 4 | DI47: 8 | DJ47: 3 | DK47: 10 | DL47: 10 | DM47: - | DN47: - | DO47: - | DP47: - | DQ47: - | DR47: - | DS47: - | DT47: - | DU47: - | DV47: - | DW47: - | DX47: - | DY47: - | DZ47: - | EA47: 11 | EB47: 2,130 | EC47: 1,859 | ED47: 246 | EE47: 25 | EF47: 22 | EG47: 14 | EH47: 7 | EI47: 7 | EJ47: - | EK47: - | EL47: 6 | EM47: 2 | EN47: 20 | EO47: 13 | EP47: 7 | EQ47: 6 | ER47: - | ES47: 4 | ET47: 2 | EU47: 1
A48: 埼玉県 | B48: 西区(さいたま市) | C48: 馬宮村 | D48: 土屋下 | E48: 4 | F48: 4 | G48: - | H48: - | I48: 2 | J48: 1 | K48: 2 | L48: - | M48: 10 | N48: - | O48: - | P48: - | Q48: - | R48: 1 | S48: - | T48: 2 | U48: 1 | V48: 1 | W48: - | X48: 1 | Y48: 3 | Z48: - | AA48: - | AB48: 1 | AC48: 61.6 | AD48: 57.6 | AE48: 65.6 | AF48: 6 | AG48: - | AH48: - | AI48: - | AJ48: - | AK48: - | AL48: - | AM48: 2 | AN48: - | AO48: - | AP48: - | AQ48: - | AR48: 3 | AS48: - | AT48: - | AU48: 1 | AV48: 65.8 | AW48: 63.3 | AX48: 68.3 | AY48: 5 | AZ48: - | BA48: - | BB48: - | BC48: - | BD48: - | BE48: - | BF48: 1 | BG48: - | BH48: - | BI48: - | BJ48: - | BK48: 3 | BL48: - | BM48: - | BN48: 1 | BO48: 69.6 | BP48: 63.3 | BQ48: 79.0 | BR48: 4 | BS48: - | BT48: - | BU48: - | BV48: - | BW48: - | BX48: - | BY48: - | BZ48: - | CA48: 2 | CB48: - | CC48: - | CD48: 2 | CE48: - | CF48: - | CG48: - | CH48: 2 | CI48: - | CJ48: - | CK48: - | CL48: - | CM48: - | CN48: - | CO48: - | CP48: - | CQ48: - | CR48: 2 | CS48: - | CT48: - | CU48: - | DC48: 19 | DD48: 13 | DE48: 5 | DF48: 8 | DG48: - | DH48: 3 | DI48: 3 | DJ48: - | DK48: 3 | DL48: 3 | DM48: - | DN48: - | DO48: - | DP48: - | DQ48: - | DR48: - | DS48: - | DT48: - | DU48: - | DV48: - | DW48: - | DX48: - | DY48: - | DZ48: - | EA48: 4 | EB48: 537 | EC48: 446 | ED48: 71 | EE48: 20 | EF48: 11 | EG48: 9 | EH48: 3 | EI48: 6 | EJ48: - | EK48: - | EL48: 2 | EM48: - | EN48: 8 | EO48: 4 | EP48: 2 | EQ48: 2 | ER48: - | ES48: 3 | ET48: 1 | EU48: -
A49: 埼玉県 | B49: 西区(さいたま市) | C49: 馬宮村 | D49: 二ツ宮上 | E49: 5 | F49: 3 | G49: - | H49: - | I49: 1 | J49: 1 | K49: 2 | L49: 2 | M49: 9 | N49: - | O49: - | P49: 1 | Q49: 1 | R49: - | S49: - | T49: - | U49: - | V49: 3 | W49: 1 | X49: - | Y49: 2 | Z49: - | AA49: 1 | AB49: - | AC49: 57.8 | AD49: 50.4 | AE49: 67.0 | AF49: 4 | AG49: - | AH49: - | AI49: - | AJ49: - | AK49: - | AL49: - | AM49: - | AN49: - | AO49: - | AP49: 1 | AQ49: - | AR49: 2 | AS49: - | AT49: 1 | AU49: - | AV49: 72.0 | AW49: 68.0 | AX49: 76.0 | AY49: 4 | AZ49: - | BA49: - | BB49: - | BC49: - | BD49: - | BE49: - | BF49: - | BG49: - | BH49: - | BI49: 1 | BJ49: - | BK49: 2 | BL49: - | BM49: 1 | BN49: - | BO49: 72.0 | BP49: 68.0 | BQ49: 76.0 | BR49: 3 | BS49: - | BT49: - | BU49: - | BV49: - | BW49: - | BX49: - | BY49: - | BZ49: - | CA49: - | CB49: 1 | CC49: - | CD49: 1 | CE49: - | CF49: 1 | CG49: - | CH49: 3 | CI49: - | CJ49: - | CK49: - | CL49: - | CM49: - | CN49: - | CO49: - | CP49: 1 | CQ49: - | CR49: 1 | CS49: - | CT49: 1 | CU49: - | DC49: 10 | DD49: 8 | DE49: 4 | DF49: 4 | DG49: - | DH49: 1 | DI49: 1 | DJ49: - | DK49: 2 | DL49: 2 | DM49: - | DN49: - | DO49: - | DP49: - | DQ49: - | DR49: - | DS49: - | DT49: - | DU49: - | DV49: - | DW49: - | DX49: - | DY49: - | DZ49: - | EA49: 3 | EB49: 155 | EC49: 139 | ED49: 16 | EE49: - | EF49: 6 | EG49: 5 | EH49: 2 | EI49: 3 | EJ49: - | EK49: - | EL49: 1 | EM49: - | EN49: 4 | EO49: 3 | EP49: 2 | EQ49: 1 | ER49: - | ES49: 1 | ET49: - | EU49: -
A50: 埼玉県 | B50: 西区(さいたま市) | C50: 馬宮村 | D50: 二ツ宮中 | E50: 6 | F50: 4 | G50: 1 | H50: - | I50: 1 | J50: - | K50: 2 | L50: 2 | M50: 9 | N50: - | O50: - | P50: - | Q50: - | R50: - | S50: - | T50: 2 | U50: 1 | V50: 1 | W50: - | X50: - | Y50: 1 | Z50: 2 | AA50: 2 | AB50: - | AC50: 65.8 | AD50: 65.0 | AE50: 67.3 | AF50: 6 | AG50: - | AH50: - | AI50: - | AJ50: - | AK50: - | AL50: - | AM50: - | AN50: - | AO50: 1 | AP50: - | AQ50: - | AR50: 1 | AS50: 2 | AT50: 2 | AU50: - | AV50: 74.7 | AW50: 73.5 | AX50: 77.0 | AY50: 5 | AZ50: - | BA50: - | BB50: - | BC50: - | BD50: - | BE50: - | BF50: - | BG50: - | BH50: 1 | BI50: - | BJ50: - | BK50: 1 | BL50: 2 | BM50: 1 | BN50: - | BO50: 73.0 | BP50: 73.5 | BQ50: 71.0 | BR50: 4 | BS50: - | BT50: - | BU50: - | BV50: - | BW50: - | BX50: - | BY50: - | BZ50: - | CA50: - | CB50: - | CC50: - | CD50: 1 | CE50: 2 | CF50: 1 | CG50: - | CH50: 2 | CI50: - | CJ50: - | CK50: - | CL50: - | CM50: - | CN50: - | CO50: - | CP50: - | CQ50: - | CR50: 1 | CS50: 1 | CT50: - | CU50: - | DC50: 16 | DD50: 8 | DE50: 5 | DF50: 3 | DG50: - | DH50: 3 | DI50: 4 | DJ50: 1 | DK50: 2 | DL50: 1 | DM50: - | DN50: - | DO50: - | DP50: - | DQ50: - | DR50: 1 | DS50: - | DT50: - | DU50: - | DV50: - | DW50: - | DX50: - | DY50: - | DZ50: - | EA50: 4 | EB50: 222 | EC50: 184 | ED50: 23 | EE50: 15 | EF50: 8 | EG50: 6 | EH50: 4 | EI50: 2 | EJ50: - | EK50: - | EL50: 1 | EM50: 1 | EN50: 8 | EO50: 2 | EP50: 1 | EQ50: 1 | ER50: - | ES50: 3 | ET50: 3 | EU50: -
A51: 埼玉県 | B51: 西区(さいたま市) | C51: 馬宮村 | D51: 二ツ宮東 | E51: 4 | F51: 1 | G51: x | H51: x | I51: x | J51: x | K51: x | L51: 3 | M51: x | N51: x | O51: x | P51: x | Q51: x | R51: x | S51: x | T51: x | U51: x | V51: x | W51: x | X51: x | Y51: x | Z51: x | AA51: x | AB51: x | AC51: 68.0 | AD51: 69.0 | AE51: 67.0 | AF51: x | AG51: x | AH51: x | AI51: x | AJ51: x | AK51: x | AL51: x | AM51: x | AN51: x | AO51: x | AP51: x | AQ51: x | AR51: x | AS51: x | AT51: x | AU51: x | AV51: 68.0 | AW51: 69.0 | AX51: 67.0 | AY51: x | AZ51: x | BA51: x | BB51: x | BC51: x | BD51: x | BE51: x | BF51: x | BG51: x | BH51: x | BI51: x | BJ51: x | BK51: x | BL51: x | BM51: x | BN51: x | BO51: 69.0 | BP51: 69.0 | BQ51: … | BR51: 1 | BS51: - | BT51: - | BU51: - | BV51: - | BW51: - | BX51: - | BY51: - | BZ51: - | CA51: - | CB51: - | CC51: 1 | CD51: - | CE51: - | CF51: - | CG51: - | CH51: 1 | CI51: - | CJ51: - | CK51: - | CL51: - | CM51: - | CN51: - | CO51: - | CP51: - | CQ51: 1 | CR51: - | CS51: - | CT51: - | CU51: - | DC51: 2 | DD51: 1 | DE51: 1 | DF51: - | DG51: - | DH51: 1 | DI51: - | DJ51: - | DK51: - | DL51: - | DM51: - | DN51: - | DO51: - | DP51: - | DQ51: - | DR51: - | DS51: - | DT51: - | DU51: - | DV51: - | DW51: - | DX51: - | DY51: - | DZ51: - | EA51: 1 | EB51: 33 | EC51: 23 | ED51: 10 | EE51: - | EF51: 1 | EG51: 1 | EH51: 1 | EI51: - | EJ51: - | EK51: - | EL51: - | EM51: - | EN51: 1 | EO51: - | EP51: - | EQ51: - | ER51: - | ES51: 1 | ET51: - | EU51: -
A52: 埼玉県 | B52: 西区(さいたま市) | C52: 馬宮村 | D52: 二ツ宮下 | E52: 14 | F52: 1 | G52: x | H52: x | I52: x | J52: x | K52: x | L52: 13 | M52: x | N52: x | O52: x | P52: x | Q52: x | R52: x | S52: x | T52: x | U52: x | V52: x | W52: x | X52: x | Y52: x | Z52: x | AA52: x | AB52: x | AC52: 50.3 | AD52: 46.0 | AE52: 59.0 | AF52: x | AG52: x | AH52: x | AI52: x | AJ52: x | AK52: x | AL52: x | AM52: x | AN52: x | AO52: x | AP52: x | AQ52: x | AR52: x | AS52: x | AT52: x | AU52: x | AV52: 60.0 | AW52: 61.0 | AX52: 59.0 | AY52: x | AZ52: x | BA52: x | BB52: x | BC52: x | BD52: x | BE52: x | BF52: x | BG52: x | BH52: x | BI52: x | BJ52: x | BK52: x | BL52: x | BM52: x | BN52: x | BO52: 60.0 | BP52: 61.0 | BQ52: 59.0 | BR52: 1 | BS52: - | BT52: - | BU52: - | BV52: - | BW52: - | BX52: - | BY52: - | BZ52: - | CA52: - | CB52: - | CC52: - | CD52: - | CE52: - | CF52: - | CG52: 1 | CH52: 1 | CI52: - | CJ52: - | CK52: - | CL52: - | CM52: - | CN52: - | CO52: - | CP52: - | CQ52: - | CR52: - | CS52: - | CT52: - | CU52: 1 | DC52: 6 | DD52: 3 | DE52: 2 | DF52: - | DG52: 1 | DH52: - | DI52: - | DJ52: 3 | DK52: 1 | DL52: 1 | DM52: - | DN52: - | DO52: - | DP52: - | DQ52: - | DR52: - | DS52: - | DT52: - | DU52: - | DV52: - | DW52: - | DX52: - | DY52: - | DZ52: - | EA52: 1 | EB52: 58 | EC52: 34 | ED52: 24 | EE52: - | EF52: 4 | EG52: 2 | EH52: 1 | EI52: - | EJ52: 1 | EK52: - | EL52: - | EM52: 2 | EN52: 2 | EO52: 1 | EP52: 1 | EQ52: - | ER52: - | ES52: - | ET52: - | EU52: 1
A53: 埼玉県 | B53: 西区(さいたま市) | C53: 馬宮村 | D53: 湯木 | E53: 18 | F53: 14 | G53: 2 | H53: 1 | I53: 2 | J53: 1 | K53: 10 | L53: 4 | M53: 36 | N53: 2 | O53: 1 | P53: 1 | Q53: 2 | R53: 1 | S53: 1 | T53: 2 | U53: - | V53: 5 | W53: 4 | X53: 3 | Y53: 8 | Z53: 2 | AA53: 3 | AB53: 1 | AC53: 58.6 | AD53: 54.1 | AE53: 63.7 | AF53: 15 | AG53: - | AH53: - | AI53: - | AJ53: - | AK53: - | AL53: - | AM53: - | AN53: - | AO53: 1 | AP53: 1 | AQ53: 2 | AR53: 6 | AS53: 2 | AT53: 2 | AU53: 1 | AV53: 72.5 | AW53: 70.1 | AX53: 75.1 | AY53: 13 | AZ53: - | BA53: - | BB53: - | BC53: - | BD53: - | BE53: - | BF53: - | BG53: - | BH53: 1 | BI53: 1 | BJ53: 1 | BK53: 5 | BL53: 2 | BM53: 2 | BN53: 1 | BO53: 73.1 | BP53: 70.1 | BQ53: 77.8 | BR53: 14 | BS53: - | BT53: - | BU53: - | BV53: 1 | BW53: - | BX53: - | BY53: 1 | BZ53: - | CA53: 1 | CB53: 3 | CC53: 1 | CD53: 4 | CE53: 1 | CF53: 1 | CG53: 1 | CH53: 8 | CI53: - | CJ53: - | CK53: - | CL53: - | CM53: 1 | CN53: - | CO53: - | CP53: 1 | CQ53: 1 | CR53: 4 | CS53: - | CT53: - | CU53: 1 | DC53: 46 | DD53: 32 | DE53: 13 | DF53: 19 | DG53: - | DH53: 7 | DI53: 2 | DJ53: 5 | DK53: 12 | DL53: 12 | DM53: - | DN53: - | DO53: - | DP53: - | DQ53: - | DR53: - | DS53: - | DT53: - | DU53: - | DV53: - | DW53: - | DX53: - | DY53: - | DZ53: - | EA53: 14 | EB53: 1,308 | EC53: 1,282 | ED53: 26 | EE53: - | EF53: 21 | EG53: 17 | EH53: 8 | EI53: 9 | EJ53: - | EK53: - | EL53: 2 | EM53: 2 | EN53: 25 | EO53: 15 | EP53: 5 | EQ53: 10 | ER53: - | ES53: 7 | ET53: - | EU53: 3
A54: 埼玉県 | B54: 西区(さいたま市) | C54: 馬宮村 | D54: 飯田新田西 | E54: 11 | F54: 7 | G54: 1 | H54: 1 | I54: 1 | J54: - | K54: 5 | L54: 4 | M54: 16 | N54: - | O54: - | P54: - | Q54: - | R54: - | S54: 5 | T54: - | U54: 1 | V54: 1 | W54: 3 | X54: 4 | Y54: 1 | Z54: - | AA54: - | AB54: 1 | AC54: 58.2 | AD54: 58.8 | AE54: 57.4 | AF54: 8 | AG54: - | AH54: - | AI54: - | AJ54: - | AK54: - | AL54: - | AM54: - | AN54: - | AO54: - | AP54: 2 | AQ54: 4 | AR54: 1 | AS54: - | AT54: - | AU54: 1 | AV54: 68.6 | AW54: 71.8 | AX54: 65.5 | AY54: 6 | AZ54: - | BA54: - | BB54: - | BC54: - | BD54: - | BE54: - | BF54: - | BG54: - | BH54: - | BI54: 2 | BJ54: 3 | BK54: 1 | BL54: - | BM54: - | BN54: - | BO54: 66.3 | BP54: 67.3 | BQ54: 65.3 | BR54: 7 | BS54: - | BT54: - | BU54: - | BV54: - | BW54: - | BX54: - | BY54: - | BZ54: - | CA54: 1 | CB54: - | CC54: 3 | CD54: 1 | CE54: 1 | CF54: - | CG54: 1 | CH54: 5 | CI54: - | CJ54: - | CK54: - | CL54: - | CM54: - | CN54: - | CO54: 1 | CP54: - | CQ54: 2 | CR54: 1 | CS54: - | CT54: - | CU54: 1 | DC54: 23 | DD54: 16 | DE54: 6 | DF54: 10 | DG54: - | DH54: 2 | DI54: 2 | DJ54: 3 | DK54: 4 | DL54: 3 | DM54: - | DN54: - | DO54: - | DP54: - | DQ54: 1 | DR54: - | DS54: - | DT54: - | DU54: - | DV54: - | DW54: - | DX54: - | DY54: - | DZ54: - | EA54: 7 | EB54: 718 | EC54: 473 | ED54: 245 | EE54: - | EF54: 15 | EG54: 10 | EH54: 3 | EI54: 7 | EJ54: - | EK54: - | EL54: 2 | EM54: 3 | EN54: 8 | EO54: 6 | EP54: 3 | EQ54: 3 | ER54: - | ES54: 2 | ET54: - | EU54: -
A55: 埼玉県 | B55: 西区(さいたま市) | C55: 馬宮村 | D55: 飯田新田東 | E55: 22 | F55: 13 | G55: 1 | H55: - | I55: 1 | J55: - | K55: 11 | L55: 9 | M55: 28 | N55: - | O55: - | P55: - | Q55: - | R55: 1 | S55: 3 | T55: 1 | U55: - | V55: 6 | W55: 1 | X55: 2 | Y55: 2 | Z55: 6 | AA55: 4 | AB55: 2 | AC55: 66.1 | AD55: 64.0 | AE55: 68.6 | AF55: 16 | AG55: - | AH55: - | AI55: - | AJ55: - | AK55: - | AL55: - | AM55: - | AN55: - | AO55: 1 | AP55: - | AQ55: 2 | AR55: 1 | AS55: 6 | AT55: 4 | AU55: 2 | AV55: 75.9 | AW55: 74.4 | AX55: 77.5 | AY55: 15 | AZ55: - | BA55: - | BB55: - | BC55: - | BD55: - | BE55: - | BF55: - | BG55: - | BH55: 1 | BI55: - | BJ55: 2 | BK55: 1 | BL55: 5 | BM55: 4 | BN55: 2 | BO55: 75.9 | BP55: 74.4 | BQ55: 77.7 | BR55: 13 | BS55: - | BT55: - | BU55: - | BV55: - | BW55: - | BX55: - | BY55: - | BZ55: - | CA55: 3 | CB55: - | CC55: 1 | CD55: 1 | CE55: 4 | CF55: 3 | CG55: 1 | CH55: 8 | CI55: - | CJ55: - | CK55: - | CL55: - | CM55: - | CN55: - | CO55: - | CP55: - | CQ55: 1 | CR55: 1 | CS55: 3 | CT55: 2 | CU55: 1 | DC55: 44 | DD55: 31 | DE55: 15 | DF55: 14 | DG55: 2 | DH55: 8 | DI55: 4 | DJ55: 1 | DK55: 8 | DL55: 8 | DM55: - | DN55: - | DO55: - | DP55: - | DQ55: - | DR55: - | DS55: - | DT55: - | DU55: - | DV55: - | DW55: - | DX55: - | DY55: - | DZ55: - | EA55: 13 | EB55: 979 | EC55: 918 | ED55: 58 | EE55: 3 | EF55: 22 | EG55: 20 | EH55: 8 | EI55: 10 | EJ55: 2 | EK55: - | EL55: 1 | EM55: 1 | EN55: 22 | EO55: 11 | EP55: 7 | EQ55: 4 | ER55: - | ES55: 8 | ET55: 3 | EU55: -
A56: 埼玉県 | B56: 西区(さいたま市) | C56: 馬宮村 | D56: 塚本 | E56: 32 | F56: 30 | G56: 1 | H56: - | I56: 13 | J56: 5 | K56: 16 | L56: 2 | M56: 98 | N56: 5 | O56: 5 | P56: 5 | Q56: 5 | R56: - | S56: - | T56: 12 | U56: 16 | V56: 10 | W56: 7 | X56: 4 | Y56: 9 | Z56: 7 | AA56: 12 | AB56: 1 | AC56: 55.0 | AD56: 54.5 | AE56: 55.5 | AF56: 37 | AG56: 2 | AH56: - | AI56: - | AJ56: - | AK56: - | AL56: - | AM56: - | AN56: - | AO56: 4 | AP56: 2 | AQ56: 2 | AR56: 8 | AS56: 6 | AT56: 12 | AU56: 1 | AV56: 71.2 | AW56: 75.2 | AX56: 69.0 | AY56: 32 | AZ56: - | BA56: - | BB56: - | BC56: - | BD56: - | BE56: - | BF56: - | BG56: - | BH56: 4 | BI56: 1 | BJ56: 2 | BK56: 8 | BL56: 5 | BM56: 11 | BN56: 1 | BO56: 74.4 | BP56: 74.9 | BQ56: 74.1 | BR56: 30 | BS56: - | BT56: - | BU56: - | BV56: - | BW56: - | BX56: - | BY56: 1 | BZ56: 6 | CA56: 6 | CB56: 4 | CC56: 2 | CD56: 4 | CE56: 2 | CF56: 5 | CG56: - | CH56: 20 | CI56: - | CJ56: - | CK56: - | CL56: - | CM56: 1 | CN56: 2 | CO56: 6 | CP56: 1 | CQ56: 2 | CR56: 3 | CS56: 1 | CT56: 4 | CU56: - | DC56: 116 | DD56: 87 | DE56: 32 | DF56: 50 | DG56: 5 | DH56: 9 | DI56: 13 | DJ56: 7 | DK56: 22 | DL56: 21 | DM56: - | DN56: - | DO56: - | DP56: - | DQ56: - | DR56: 1 | DS56: - | DT56: - | DU56: - | DV56: - | DW56: - | DX56: - | DY56: - | DZ56: - | EA56: 30 | EB56: 4,111 | EC56: 3,993 | ED56: 80 | EE56: 38 | EF56: 58 | EG56: 47 | EH56: 12 | EI56: 30 | EJ56: 5 | EK56: - | EL56: 6 | EM56: 5 | EN56: 58 | EO56: 40 | EP56: 20 | EQ56: 20 | ER56: - | ES56: 9 | ET56: 7 | EU56: 2
A57: 埼玉県 | B57: 西区(さいたま市) | C57: 植水村 | E57: 141 | F57: 91 | G57: 7 | H57: 5 | I57: 19 | J57: 5 | K57: 65 | L57: 50 | M57: 235 | N57: 1 | O57: 1 | P57: 9 | Q57: 6 | R57: 10 | S57: 11 | T57: 17 | U57: 17 | V57: 27 | W57: 25 | X57: 18 | Y57: 30 | Z57: 22 | AA57: 31 | AB57: 10 | AC57: 61.8 | AD57: 60.1 | AE57: 63.9 | AF57: 121 | AG57: 1 | AH57: - | AI57: - | AJ57: - | AK57: 2 | AL57: 2 | AM57: 4 | AN57: 3 | AO57: 7 | AP57: 8 | AQ57: 13 | AR57: 25 | AS57: 21 | AT57: 28 | AU57: 7 | AV57: 71.0 | AW57: 71.0 | AX57: 71.0 | AY57: 106 | AZ57: 1 | BA57: - | BB57: - | BC57: - | BD57: - | BE57: 2 | BF57: 4 | BG57: 2 | BH57: 3 | BI57: 7 | BJ57: 11 | BK57: 24 | BL57: 19 | BM57: 26 | BN57: 7 | BO57: 72.2 | BP57: 71.4 | BQ57: 73.2 | BR57: 91 | BS57: - | BT57: - | BU57: - | BV57: - | BW57: 1 | BX57: 1 | BY57: 4 | BZ57: 5 | CA57: 11 | CB57: 13 | CC57: 7 | CD57: 17 | CE57: 10 | CF57: 17 | CG57: 5 | CH57: 45 | CI57: - | CJ57: - | CK57: - | CL57: - | CM57: - | CN57: 1 | CO57: 5 | CP57: 6 | CQ57: 3 | CR57: 9 | CS57: 5 | CT57: 12 | CU57: 4 | DC57: 307 | DD57: 219 | DE57: 106 | DF57: 100 | DG57: 13 | DH57: 48 | DI57: 20 | DJ57: 20 | DK57: 60 | DL57: 58 | DM57: - | DN57: - | DO57: - | DP57: 1 | DQ57: - | DR57: - | DS57: 1 | DT57: - | DU57: - | DV57: - | DW57: - | DX57: - | DY57: - | DZ57: - | EA57: 91 | EB57: 10,576 | EC57: 9,230 | ED57: 1,336 | EE57: 10 | EF57: 152 | EG57: 137 | EH57: 58 | EI57: 69 | EJ57: 10 | EK57: 1 | EL57: 9 | EM57: 5 | EN57: 155 | EO57: 82 | EP57: 48 | EQ57: 31 | ER57: 3 | ES57: 47 | ET57: 11 | EU57: 15
A58: 埼玉県 | B58: 西区(さいたま市) | C58: 植水村 | D58: 佐知川上 | E58: 10 | F58: 7 | G58: - | H58: - | I58: 3 | J58: - | K58: 4 | L58: 3 | M58: 19 | N58: - | O58: - | P58: 2 | Q58: - | R58: 1 | S58: - | T58: - | U58: 1 | V58: 3 | W58: 2 | X58: 4 | Y58: - | Z58: 2 | AA58: 4 | AB58: - | AC58: 62.1 | AD58: 61.8 | AE58: 62.5 | AF58: 10 | AG58: - | AH58: - | AI58: - | AJ58: - | AK58: - | AL58: - | AM58: - | AN58: - | AO58: 1 | AP58: 1 | AQ58: 2 | AR58: - | AS58: 2 | AT58: 4 | AU58: - | AV58: 73.2 | AW58: 75.0 | AX58: 71.4 | AY58: 9 | AZ58: - | BA58: - | BB58: - | BC58: - | BD58: - | BE58: - | BF58: - | BG58: - | BH58: - | BI58: 1 | BJ58: 2 | BK58: - | BL58: 2 | BM58: 4 | BN58: - | BO58: 75.2 | BP58: 75.0 | BQ58: 75.5 | BR58: 7 | BS58: - | BT58: - | BU58: - | BV58: - | BW58: - | BX58: - | BY58: - | BZ58: - | CA58: 1 | CB58: - | CC58: 2 | CD58: - | CE58: 1 | CF58: 2 | CG58: 1 | CH58: 3 | CI58: - | CJ58: - | CK58: - | CL58: - | CM58: - | CN58: - | CO58: - | CP58: - | CQ58: - | CR58: - | CS58: 1 | CT58: 1 | CU58: 1 | DC58: 28 | DD58: 20 | DE58: 9 | DF58: 9 | DG58: 2 | DH58: 3 | DI58: 2 | DJ58: 3 | DK58: 5 | DL58: 5 | DM58: - | DN58: - | DO58: - | DP58: - | DQ58: - | DR58: - | DS58: - | DT58: - | DU58: - | DV58: - | DW58: - | DX58: - | DY58: - | DZ58: - | EA58: 7 | EB58: 427 | EC58: 352 | ED58: 75 | EE58: - | EF58: 15 | EG58: 13 | EH58: 5 | EI58: 7 | EJ58: 1 | EK58: - | EL58: 2 | EM58: - | EN58: 13 | EO58: 7 | EP58: 4 | EQ58: 2 | ER58: 1 | ES58: 3 | ET58: - | EU58: 3
A59: 埼玉県 | B59: 西区(さいたま市) | C59: 植水村 | D59: 佐知川下 | E59: 10 | F59: 3 | G59: x | H59: x | I59: x | J59: x | K59: x | L59: 7 | M59: x | N59: x | O59: x | P59: x | Q59: x | R59: x | S59: x | T59: x | U59: x | V59: x | W59: x | X59: x | Y59: x | Z59: x | AA59: x | AB59: x | AC59: 69.4 | AD59: 70.3 | AE59: 68.5 | AF59: x | AG59: x | AH59: x | AI59: x | AJ59: x | AK59: x | AL59: x | AM59: x | AN59: x | AO59: x | AP59: x | AQ59: x | AR59: x | AS59: x | AT59: x | AU59: x | AV59: 72.2 | AW59: 69.0 | AX59: 77.0 | AY59: x | AZ59: x | BA59: x | BB59: x | BC59: x | BD59: x | BE59: x | BF59: x | BG59: x | BH59: x | BI59: x | BJ59: x | BK59: x | BL59: x | BM59: x | BN59: x | BO59: 70.0 | BP59: 69.0 | BQ59: 73.0 | BR59: 3 | BS59: - | BT59: - | BU59: - | BV59: - | BW59: - | BX59: - | BY59: - | BZ59: - | CA59: - | CB59: - | CC59: - | CD59: 1 | CE59: 1 | CF59: 1 | CG59: - | CH59: 2 | CI59: - | CJ59: - | CK59: - | CL59: - | CM59: - | CN59: - | CO59: - | CP59: - | CQ59: - | CR59: 1 | CS59: 1 | CT59: - | CU59: - | DC59: 15 | DD59: 9 | DE59: 4 | DF59: 3 | DG59: 2 | DH59: 3 | DI59: 3 | DJ59: - | DK59: 1 | DL59: 1 | DM59: - | DN59: - | DO59: - | DP59: - | DQ59: - | DR59: - | DS59: - | DT59: - | DU59: - | DV59: - | DW59: - | DX59: - | DY59: - | DZ59: - | EA59: 3 | EB59: 206 | EC59: 187 | ED59: 19 | EE59: - | EF59: 6 | EG59: 5 | EH59: 3 | EI59: 1 | EJ59: 1 | EK59: - | EL59: 1 | EM59: - | EN59: 9 | EO59: 4 | EP59: 1 | EQ59: 2 | ER59: 1 | ES59: 3 | ET59: 2 | EU59: -
A60: 埼玉県 | B60: 西区(さいたま市) | C60: 植水村 | D60: 水判土 | E60: 8 | F60: 4 | G60: - | H60: - | I60: - | J60: - | K60: 4 | L60: 4 | M60: 13 | N60: - | O60: - | P60: - | Q60: 1 | R60: - | S60: - | T60: - | U60: 2 | V60: 2 | W60: - | X60: 2 | Y60: 2 | Z60: 1 | AA60: 3 | AB60: - | AC60: 64.8 | AD60: 64.1 | AE60: 65.7 | AF60: 6 | AG60: - | AH60: - | AI60: - | AJ60: - | AK60: - | AL60: - | AM60: - | AN60: 1 | AO60: - | AP60: - | AQ60: 1 | AR60: 1 | AS60: 1 | AT60: 2 | AU60: - | AV60: 71.2 | AW60: 75.0 | AX60: 69.3 | AY60: 6 | AZ60: - | BA60: - | BB60: - | BC60: - | BD60: - | BE60: - | BF60: - | BG60: 1 | BH60: - | BI60: - | BJ60: 1 | BK60: 1 | BL60: 1 | BM60: 2 | BN60: - | BO60: 71.2 | BP60: 75.0 | BQ60: 69.3 | BR60: 4 | BS60: - | BT60: - | BU60: - | BV60: - | BW60: - | BX60: - | BY60: - | BZ60: - | CA60: - | CB60: - | CC60: - | CD60: 2 | CE60: - | CF60: 2 | CG60: - | CH60: 3 | CI60: - | CJ60: - | CK60: - | CL60: - | CM60: - | CN60: - | CO60: - | CP60: - | CQ60: - | CR60: 1 | CS60: - | CT60: 2 | CU60: - | DC60: 19 | DD60: 13 | DE60: 6 | DF60: 5 | DG60: 2 | DH60: 1 | DI60: 3 | DJ60: 2 | DK60: - | DL60: - | DM60: - | DN60: - | DO60: - | DP60: - | DQ60: - | DR60: - | DS60: - | DT60: - | DU60: - | DV60: - | DW60: - | DX60: - | DY60: - | DZ60: - | EA60: 4 | EB60: 201 | EC60: 133 | ED60: 68 | EE60: - | EF60: 9 | EG60: 6 | EH60: 2 | EI60: 2 | EJ60: 2 | EK60: - | EL60: 2 | EM60: 1 | EN60: 10 | EO60: 7 | EP60: 4 | EQ60: 3 | ER60: - | ES60: 1 | ET60: 1 | EU60: 1
A61: 埼玉県 | B61: 西区(さいたま市) | C61: 植水村 | D61: 飯田 | E61: 7 | F61: 2 | G61: x | H61: x | I61: x | J61: x | K61: x | L61: 5 | M61: x | N61: x | O61: x | P61: x | Q61: x | R61: x | S61: x | T61: x | U61: x | V61: x | W61: x | X61: x | Y61: x | Z61: x | AA61: x | AB61: x | AC61: 64.0 | AD61: 64.5 | AE61: 63.0 | AF61: x | AG61: x | AH61: x | AI61: x | AJ61: x | AK61: x | AL61: x | AM61: x | AN61: x | AO61: x | AP61: x | AQ61: x | AR61: x | AS61: x | AT61: x | AU61: x | AV61: 80.0 | AW61: 80.0 | AX61: … | AY61: x | AZ61: x | BA61: x | BB61: x | BC61: x | BD61: x | BE61: x | BF61: x | BG61: x | BH61: x | BI61: x | BJ61: x | BK61: x | BL61: x | BM61: x | BN61: x | BO61: 80.0 | BP61: 80.0 | BQ61: … | BR61: 2 | BS61: - | BT61: - | BU61: - | BV61: - | BW61: - | BX61: - | BY61: - | BZ61: - | CA61: - | CB61: - | CC61: - | CD61: - | CE61: 1 | CF61: 1 | CG61: - | CH61: 1 | CI61: - | CJ61: - | CK61: - | CL61: - | CM61: - | CN61: - | CO61: - | CP61: - | CQ61: - | CR61: - | CS61: - | CT61: 1 | CU61: - | DC61: 8 | DD61: 5 | DE61: 2 | DF61: 3 | DG61: - | DH61: 3 | DI61: - | DJ61: - | DK61: - | DL61: - | DM61: - | DN61: - | DO61: - | DP61: - | DQ61: - | DR61: - | DS61: - | DT61: - | DU61: - | DV61: - | DW61: - | DX61: - | DY61: - | DZ61: - | EA61: 2 | EB61: 106 | EC61: 73 | ED61: 33 | EE61: - | EF61: 4 | EG61: 4 | EH61: 2 | EI61: 2 | EJ61: - | EK61: - | EL61: - | EM61: - | EN61: 4 | EO61: 1 | EP61: - | EQ61: 1 | ER61: - | ES61: 3 | ET61: - | EU61: -
A62: 埼玉県 | B62: 西区(さいたま市) | C62: 植水村 | D62: 中野林 | E62: 21 | F62: 12 | G62: - | H62: - | I62: 1 | J62: - | K62: 11 | L62: 9 | M62: 29 | N62: - | O62: - | P62: 2 | Q62: 1 | R62: - | S62: 2 | T62: 3 | U62: - | V62: 2 | W62: 2 | X62: 2 | Y62: 5 | Z62: 3 | AA62: 6 | AB62: 1 | AC62: 63.7 | AD62: 64.0 | AE62: 63.4 | AF62: 16 | AG62: - | AH62: - | AI62: - | AJ62: - | AK62: - | AL62: - | AM62: - | AN62: - | AO62: 1 | AP62: - | AQ62: 1 | AR62: 5 | AS62: 2 | AT62: 6 | AU62: 1 | AV62: 75.8 | AW62: 78.4 | AX62: 73.3 | AY62: 15 | AZ62: - | BA62: - | BB62: - | BC62: - | BD62: - | BE62: - | BF62: - | BG62: - | BH62: - | BI62: - | BJ62: 1 | BK62: 5 | BL62: 2 | BM62: 6 | BN62: 1 | BO62: 77.2 | BP62: 78.4 | BQ62: 75.9 | BR62: 12 | BS62: - | BT62: - | BU62: - | BV62: - | BW62: - | BX62: - | BY62: 1 | BZ62: - | CA62: 1 | CB62: 1 | CC62: 1 | CD62: 2 | CE62: 2 | CF62: 3 | CG62: 1 | CH62: 10 | CI62: - | CJ62: - | CK62: - | CL62: - | CM62: - | CN62: - | CO62: 1 | CP62: 1 | CQ62: 1 | CR62: 2 | CS62: 1 | CT62: 3 | CU62: 1 | DC62: 40 | DD62: 29 | DE62: 15 | DF62: 14 | DG62: - | DH62: 4 | DI62: 5 | DJ62: 2 | DK62: 9 | DL62: 8 | DM62: - | DN62: - | DO62: - | DP62: 1 | DQ62: - | DR62: - | DS62: - | DT62: - | DU62: - | DV62: - | DW62: - | DX62: - | DY62: - | DZ62: - | EA62: 12 | EB62: 1,022 | EC62: 853 | ED62: 169 | EE62: - | EF62: 19 | EG62: 17 | EH62: 8 | EI62: 9 | EJ62: - | EK62: - | EL62: 1 | EM62: 1 | EN62: 21 | EO62: 12 | EP62: 7 | EQ62: 5 | ER62: - | ES62: 4 | ET62: 4 | EU62: 1
A63: 埼玉県 | B63: 西区(さいたま市) | C63: 植水村 | D63: 植田谷本 | E63: 21 | F63: 17 | G63: - | H63: - | I63: 8 | J63: - | K63: 9 | L63: 4 | M63: 53 | N63: - | O63: - | P63: 2 | Q63: 3 | R63: 2 | S63: 2 | T63: 5 | U63: 7 | V63: 10 | W63: 7 | X63: 2 | Y63: 2 | Z63: 3 | AA63: 4 | AB63: 4 | AC63: 58.0 | AD63: 56.6 | AE63: 59.7 | AF63: 16 | AG63: - | AH63: - | AI63: - | AJ63: - | AK63: - | AL63: - | AM63: 1 | AN63: - | AO63: 1 | AP63: 1 | AQ63: 2 | AR63: 2 | AS63: 3 | AT63: 3 | AU63: 3 | AV63: 73.6 | AW63: 78.6 | AX63: 69.7 | AY63: 15 | AZ63: - | BA63: - | BB63: - | BC63: - | BD63: - | BE63: - | BF63: 1 | BG63: - | BH63: - | BI63: 1 | BJ63: 2 | BK63: 2 | BL63: 3 | BM63: 3 | BN63: 3 | BO63: 74.8 | BP63: 78.6 | BQ63: 71.5 | BR63: 17 | BS63: - | BT63: - | BU63: - | BV63: - | BW63: - | BX63: - | BY63: - | BZ63: 2 | CA63: 4 | CB63: 4 | CC63: 1 | CD63: 1 | CE63: 1 | CF63: 2 | CG63: 2 | CH63: 10 | CI63: - | CJ63: - | CK63: - | CL63: - | CM63: - | CN63: 1 | CO63: 1 | CP63: 3 | CQ63: - | CR63: 1 | CS63: 1 | CT63: 2 | CU63: 1 | DC63: 65 | DD63: 48 | DE63: 15 | DF63: 29 | DG63: 4 | DH63: 9 | DI63: 4 | DJ63: 4 | DK63: 13 | DL63: 13 | DM63: - | DN63: - | DO63: - | DP63: - | DQ63: - | DR63: - | DS63: - | DT63: - | DU63: - | DV63: - | DW63: - | DX63: - | DY63: - | DZ63: - | EA63: 17 | EB63: 1,590 | EC63: 1,309 | ED63: 281 | EE63: - | EF63: 33 | EG63: 32 | EH63: 7 | EI63: 22 | EJ63: 3 | EK63: - | EL63: 1 | EM63: - | EN63: 32 | EO63: 16 | EP63: 8 | EQ63: 7 | ER63: 1 | ES63: 9 | ET63: 3 | EU63: 4
A64: 埼玉県 | B64: 西区(さいたま市) | C64: 植水村 | D64: 三条町 | E64: 22 | F64: 16 | G64: 2 | H64: 1 | I64: 4 | J64: 2 | K64: 10 | L64: 6 | M64: 38 | N64: - | O64: - | P64: 1 | Q64: - | R64: 6 | S64: 4 | T64: 2 | U64: 4 | V64: 4 | W64: 4 | X64: 2 | Y64: 5 | Z64: 1 | AA64: 4 | AB64: 1 | AC64: 57.3 | AD64: 56.1 | AE64: 58.8 | AF64: 18 | AG64: - | AH64: - | AI64: - | AJ64: - | AK64: 2 | AL64: 1 | AM64: - | AN64: 1 | AO64: 2 | AP64: 1 | AQ64: 2 | AR64: 5 | AS64: 1 | AT64: 3 | AU64: - | AV64: 64.2 | AW64: 64.8 | AX64: 63.7 | AY64: 13 | AZ64: - | BA64: - | BB64: - | BC64: - | BD64: - | BE64: 1 | BF64: - | BG64: - | BH64: 1 | BI64: 1 | BJ64: 2 | BK64: 4 | BL64: 1 | BM64: 3 | BN64: - | BO64: 69.4 | BP64: 68.5 | BQ64: 70.8 | BR64: 16 | BS64: - | BT64: - | BU64: - | BV64: - | BW64: 1 | BX64: 1 | BY64: 1 | BZ64: 1 | CA64: 2 | CB64: 3 | CC64: 1 | CD64: 4 | CE64: - | CF64: 2 | CG64: - | CH64: 4 | CI64: - | CJ64: - | CK64: - | CL64: - | CM64: - | CN64: - | CO64: - | CP64: 1 | CQ64: - | CR64: 2 | CS64: - | CT64: 1 | CU64: - | DC64: 48 | DD64: 32 | DE64: 13 | DF64: 18 | DG64: 1 | DH64: 11 | DI64: - | DJ64: 5 | DK64: 9 | DL64: 9 | DM64: - | DN64: - | DO64: - | DP64: - | DQ64: - | DR64: - | DS64: - | DT64: - | DU64: - | DV64: - | DW64: - | DX64: - | DY64: - | DZ64: - | EA64: 16 | EB64: 1,772 | EC64: 1,610 | ED64: 152 | EE64: 10 | EF64: 25 | EG64: 22 | EH64: 8 | EI64: 13 | EJ64: 1 | EK64: 1 | EL64: - | EM64: 2 | EN64: 23 | EO64: 10 | EP64: 5 | EQ64: 5 | ER64: - | ES64: 10 | ET64: - | EU64: 3
A65: 埼玉県 | B65: 西区(さいたま市) | C65: 植水村 | D65: 島根 | E65: 42 | F65: 30 | G65: 5 | H65: 4 | I65: 3 | J65: 3 | K65: 22 | L65: 12 | M65: 69 | N65: 1 | O65: 1 | P65: 2 | Q65: 1 | R65: 1 | S65: 2 | T65: 5 | U65: 2 | V65: 5 | W65: 10 | X65: 6 | Y65: 12 | Z65: 10 | AA65: 7 | AB65: 4 | AC65: 64.5 | AD65: 60.6 | AE65: 69.4 | AF65: 48 | AG65: 1 | AH65: - | AI65: - | AJ65: - | AK65: - | AL65: 1 | AM65: 2 | AN65: 1 | AO65: 2 | AP65: 5 | AQ65: 5 | AR65: 11 | AS65: 10 | AT65: 7 | AU65: 3 | AV65: 70.0 | AW65: 66.9 | AX65: 73.2 | AY65: 42 | AZ65: 1 | BA65: - | BB65: - | BC65: - | BD65: - | BE65: 1 | BF65: 2 | BG65: 1 | BH65: 2 | BI65: 4 | BJ65: 3 | BK65: 11 | BL65: 8 | BM65: 6 | BN65: 3 | BO65: 69.7 | BP65: 66.3 | BQ65: 73.8 | BR65: 30 | BS65: - | BT65: - | BU65: - | BV65: - | BW65: - | BX65: - | BY65: 2 | BZ65: 2 | CA65: 3 | CB65: 5 | CC65: 2 | CD65: 7 | CE65: 4 | CF65: 4 | CG65: 1 | CH65: 12 | CI65: - | CJ65: - | CK65: - | CL65: - | CM65: - | CN65: - | CO65: 3 | CP65: 1 | CQ65: 2 | CR65: 2 | CS65: 1 | CT65: 2 | CU65: 1 | DC65: 84 | DD65: 63 | DE65: 42 | DF65: 19 | DG65: 2 | DH65: 14 | DI65: 3 | DJ65: 4 | DK65: 23 | DL65: 22 | DM65: - | DN65: - | DO65: - | DP65: - | DQ65: - | DR65: - | DS65: 1 | DT65: - | DU65: - | DV65: - | DW65: - | DX65: - | DY65: - | DZ65: - | EA65: 30 | EB65: 5,252 | EC65: 4,713 | ED65: 539 | EE65: - | EF65: 41 | EG65: 38 | EH65: 23 | EI65: 13 | EJ65: 2 | EK65: - | EL65: 2 | EM65: 1 | EN65: 43 | EO65: 25 | EP65: 19 | EQ65: 6 | ER65: - | ES65: 14 | ET65: 1 | EU65: 3
A66: 埼玉県 | B66: 北区(さいたま市) | C66: 大宮市４－２ | E66: 162 | F66: 52 | G66: 8 | H66: 7 | I66: 14 | J66: 8 | K66: 30 | L66: 110 | M66: 143 | N66: 1 | O66: 4 | P66: 3 | Q66: 2 | R66: 8 | S66: 12 | T66: 5 | U66: 10 | V66: 18 | W66: 15 | X66: 11 | Y66: 18 | Z66: 18 | AA66: 14 | AB66: 4 | AC66: 60.7 | AD66: 59.7 | AE66: 61.7 | AF66: 98 | AG66: - | AH66: - | AI66: - | AJ66: 1 | AK66: 3 | AL66: 3 | AM66: 2 | AN66: 4 | AO66: 10 | AP66: 13 | AQ66: 9 | AR66: 18 | AS66: 17 | AT66: 14 | AU66: 4 | AV66: 67.8 | AW66: 69.3 | AX66: 66.6 | AY66: 90 | AZ66: - | BA66: - | BB66: - | BC66: 1 | BD66: 2 | BE66: 2 | BF66: 2 | BG66: 3 | BH66: 10 | BI66: 12 | BJ66: 8 | BK66: 18 | BL66: 17 | BM66: 14 | BN66: 1 | BO66: 68.0 | BP66: 68.6 | BQ66: 67.5 | BR66: 52 | BS66: - | BT66: - | BU66: - | BV66: - | BW66: - | BX66: 1 | BY66: 1 | BZ66: 1 | CA66: 6 | CB66: 8 | CC66: 3 | CD66: 11 | CE66: 11 | CF66: 8 | CG66: 2 | CH66: 38 | CI66: - | CJ66: - | CK66: - | CL66: 1 | CM66: - | CN66: 1 | CO66: 5 | CP66: 5 | CQ66: 2 | CR66: 9 | CS66: 6 | CT66: 8 | CU66: 1 | DC66: 189 | DD66: 142 | DE66: 90 | DF66: 42 | DG66: 10 | DH66: 15 | DI66: 17 | DJ66: 15 | DK66: 44 | DL66: 9 | DM66: - | DN66: 8 | DO66: - | DP66: 11 | DQ66: 2 | DR66: 7 | DS66: 4 | DT66: 1 | DU66: - | DV66: - | DW66: - | DX66: 1 | DY66: - | DZ66: 1 | EA66: 51 | EB66: 3,830 | EC66: 833 | ED66: 2,341 | EE66: 656 | EF66: 95 | EG66: 75 | EH66: 41 | EI66: 28 | EJ66: 6 | EK66: - | EL66: 12 | EM66: 8 | EN66: 94 | EO66: 67 | EP66: 49 | EQ66: 14 | ER66: 4 | ES66: 15 | ET66: 5 | EU66: 7
A67: 埼玉県 | B67: 北区(さいたま市) | C67: 大宮市４－２ | D67: 高鼻２－１ | E67: - | F67: - | G67: - | H67: - | I67: - | J67: - | K67: - | L67: - | M67: - | N67: - | O67: - | P67: - | Q67: - | R67: - | S67: - | T67: - | U67: - | V67: - | W67: - | X67: - | Y67: - | Z67: - | AA67: - | AB67: - | AC67: … | AD67: … | AE67: … | AF67: - | AG67: - | AH67: - | AI67: - | AJ67: - | AK67: - | AL67: - | AM67: - | AN67: - | AO67: - | AP67: - | AQ67: - | AR67: - | AS67: - | AT67: - | AU67: - | AV67: … | AW67: … | AX67: … | AY67: - | AZ67: - | BA67: - | BB67: - | BC67: - | BD67: - | BE67: - | BF67: - | BG67: - | BH67: - | BI67: - | BJ67: - | BK67: - | BL67: - | BM67: - | BN67: - | BO67: … | BP67: … | BQ67: … | BR67: - | BS67: - | BT67: - | BU67: - | BV67: - | BW67: - | BX67: - | BY67: - | BZ67: - | CA67: - | CB67: - | CC67: - | CD67: - | CE67: - | CF67: - | CG67: - | CH67: - | CI67: - | CJ67: - | CK67: - | CL67: - | CM67: - | CN67: - | CO67: - | CP67: - | CQ67: - | CR67: - | CS67: - | CT67: - | CU67: - | DC67: - | DD67: - | DE67: - | DF67: - | DG67: - | DH67: - | DI67: - | DJ67: - | DK67: - | DL67: - | DM67: - | DN67: - | DO67: - | DP67: - | DQ67: - | DR67: - | DS67: - | DT67: - | DU67: - | DV67: - | DW67: - | DX67: - | DY67: - | DZ67: - | EA67: - | EB67: - | EC67: - | ED67: - | EE67: - | EF67: - | EG67: - | EH67: - | EI67: - | EJ67: - | EK67: - | EL67: - | EM67: - | EN67: - | EO67: - | EP67: - | EQ67: - | ER67: - | ES67: - | ET67: - | EU67: -
A68: 埼玉県 | B68: 北区(さいたま市) | C68: 大宮市４－２ | D68: 土手北２－１ | E68: - | F68: - | G68: - | H68: - | I68: - | J68: - | K68: - | L68: - | M68: - | N68: - | O68: - | P68: - | Q68: - | R68: - | S68: - | T68: - | U68: - | V68: - | W68: - | X68: - | Y68: - | Z68: - | AA68: - | AB68: - | AC68: … | AD68: … | AE68: … | AF68: - | AG68: - | AH68: - | AI68: - | AJ68: - | AK68: - | AL68: - | AM68: - | AN68: - | AO68: - | AP68: - | AQ68: - | AR68: - | AS68: - | AT68: - | AU68: - | AV68: … | AW68: … | AX68: … | AY68: - | AZ68: - | BA68: - | BB68: - | BC68: - | BD68: - | BE68: - | BF68: - | BG68: - | BH68: - | BI68: - | BJ68: - | BK68: - | BL68: - | BM68: - | BN68: - | BO68: … | BP68: … | BQ68: … | BR68: - | BS68: - | BT68: - | BU68: - | BV68: - | BW68: - | BX68: - | BY68: - | BZ68: - | CA68: - | CB68: - | CC68: - | CD68: - | CE68: - | CF68: - | CG68: - | CH68: - | CI68: - | CJ68: - | CK68: - | CL68: - | CM68: - | CN68: - | CO68: - | CP68: - | CQ68: - | CR68: - | CS68: - | CT68: - | CU68: - | DC68: - | DD68: - | DE68: - | DF68: - | DG68: - | DH68: - | DI68: - | DJ68: - | DK68: - | DL68: - | DM68: - | DN68: - | DO68: - | DP68: - | DQ68: - | DR68: - | DS68: - | DT68: - | DU68: - | DV68: - | DW68: - | DX68: - | DY68: - | DZ68: - | EA68: - | EB68: - | EC68: - | ED68: - | EE68: - | EF68: - | EG68: - | EH68: - | EI68: - | EJ68: - | EK68: - | EL68: - | EM68: - | EN68: - | EO68: - | EP68: - | EQ68: - | ER68: - | ES68: - | ET68: - | EU68: -
A69: 埼玉県 | B69: 北区(さいたま市) | C69: 大宮市４－２ | D69: 北原 | E69: - | F69: - | G69: - | H69: - | I69: - | J69: - | K69: - | L69: - | M69: - | N69: - | O69: - | P69: - | Q69: - | R69: - | S69: - | T69: - | U69: - | V69: - | W69: - | X69: - | Y69: - | Z69: - | AA69: - | AB69: - | AC69: … | AD69: … | AE69: … | AF69: - | AG69: - | AH69: - | AI69: - | AJ69: - | AK69: - | AL69: - | AM69: - | AN69: - | AO69: - | AP69: - | AQ69: - | AR69: - | AS69: - | AT69: - | AU69: - | AV69: … | AW69: … | AX69: … | AY69: - | AZ69: - | BA69: - | BB69: - | BC69: - | BD69: - | BE69: - | BF69: - | BG69: - | BH69: - | BI69: - | BJ69: - | BK69: - | BL69: - | BM69: - | BN69: - | BO69: … | BP69: … | BQ69: … | BR69: - | BS69: - | BT69: - | BU69: - | BV69: - | BW69: - | BX69: - | BY69: - | BZ69: - | CA69: - | CB69: - | CC69: - | CD69: - | CE69: - | CF69: - | CG69: - | CH69: - | CI69: - | CJ69: - | CK69: - | CL69: - | CM69: - | CN69: - | CO69: - | CP69: - | CQ69: - | CR69: - | CS69: - | CT69: - | CU69: - | DC69: - | DD69: - | DE69: - | DF69: - | DG69: - | DH69: - | DI69: - | DJ69: - | DK69: - | DL69: - | DM69: - | DN69: - | DO69: - | DP69: - | DQ69: - | DR69: - | DS69: - | DT69: - | DU69: - | DV69: - | DW69: - | DX69: - | DY69: - | DZ69: - | EA69: - | EB69: - | EC69: - | ED69: - | EE69: - | EF69: - | EG69: - | EH69: - | EI69: - | EJ69: - | EK69: - | EL69: - | EM69: - | EN69: - | EO69: - | EP69: - | EQ69: - | ER69: - | ES69: - | ET69: - | EU69: -
A70: 埼玉県 | B70: 北区(さいたま市) | C70: 大宮市４－２ | D70: 上大成第１ | E70: 5 | F70: 3 | G70: - | H70: - | I70: 1 | J70: 1 | K70: 2 | L70: 2 | M70: 9 | N70: - | O70: - | P70: - | Q70: - | R70: - | S70: 1 | T70: 1 | U70: 1 | V70: - | W70: - | X70: 1 | Y70: 1 | Z70: 2 | AA70: 2 | AB70: - | AC70: 66.0 | AD70: 62.2 | AE70: 73.7 | AF70: 7 | AG70: - | AH70: - | AI70: - | AJ70: - | AK70: - | AL70: - | AM70: - | AN70: 1 | AO70: - | AP70: - | AQ70: 1 | AR70: 1 | AS70: 2 | AT70: 2 | AU70: - | AV70: 72.0 | AW70: 70.8 | AX70: 73.7 | AY70: 7 | AZ70: - | BA70: - | BB70: - | BC70: - | BD70: - | BE70: - | BF70: - | BG70: 1 | BH70: - | BI70: - | BJ70: 1 | BK70: 1 | BL70: 2 | BM70: 2 | BN70: - | BO70: 72.0 | BP70: 70.8 | BQ70: 73.7 | BR70: 3 | BS70: - | BT70: - | BU70: - | BV70: - | BW70: - | BX70: - | BY70: - | BZ70: - | CA70: - | CB70: - | CC70: - | CD70: 1 | CE70: 1 | CF70: 1 | CG70: - | CH70: 3 | CI70: - | CJ70: - | CK70: - | CL70: - | CM70: - | CN70: - | CO70: - | CP70: - | CQ70: - | CR70: 1 | CS70: 1 | CT70: 1 | CU70: - | DC70: 12 | DD70: 9 | DE70: 7 | DF70: 2 | DG70: - | DH70: 1 | DI70: 1 | DJ70: 1 | DK70: 2 | DL70: 2 | DM70: - | DN70: - | DO70: - | DP70: - | DQ70: - | DR70: - | DS70: - | DT70: - | DU70: - | DV70: - | DW70: - | DX70: - | DY70: - | DZ70: - | EA70: 3 | EB70: 291 | EC70: 113 | ED70: 150 | EE70: 28 | EF70: 7 | EG70: 6 | EH70: 4 | EI70: 2 | EJ70: - | EK70: - | EL70: 1 | EM70: - | EN70: 5 | EO70: 3 | EP70: 3 | EQ70: - | ER70: - | ES70: 1 | ET70: - | EU70: 1
A71: 埼玉県 | B71: 北区(さいたま市) | C71: 大宮市４－２ | D71: 上大成第２ | E71: 4 | F71: 1 | G71: x | H71: x | I71: x | J71: x | K71: x | L71: 3 | M71: x | N71: x | O71: x | P71: x | Q71: x | R71: x | S71: x | T71: x | U71: x | V71: x | W71: x | X71: x | Y71: x | Z71: x | AA71: x | AB71: x | AC71: 50.5 | AD71: 50.0 | AE71: 51.0 | AF71: x | AG71: x | AH71: x | AI71: x | AJ71: x | AK71: x | AL71: x | AM71: x | AN71: x | AO71: x | AP71: x | AQ71: x | AR71: x | AS71: x | AT71: x | AU71: x | AV71: 55.3 | AW71: 64.0 | AX71: 51.0 | AY71: x | AZ71: x | BA71: x | BB71: x | BC71: x | BD71: x | BE71: x | BF71: x | BG71: x | BH71: x | BI71: x | BJ71: x | BK71: x | BL71: x | BM71: x | BN71: x | BO71: 55.3 | BP71: 64.0 | BQ71: 51.0 | BR71: 1 | BS71: - | BT71: - | BU71: - | BV71: - | BW71: - | BX71: - | BY71: - | BZ71: - | CA71: - | CB71: 1 | CC71: - | CD71: - | CE71: - | CF71: - | CG71: - | CH71: 1 | CI71: - | CJ71: - | CK71: - | CL71: - | CM71: - | CN71: - | CO71: - | CP71: 1 | CQ71: - | CR71: - | CS71: - | CT71: - | CU71: - | DC71: 5 | DD71: 5 | DE71: 3 | DF71: 1 | DG71: 1 | DH71: - | DI71: - | DJ71: - | DK71: 1 | DL71: - | DM71: - | DN71: - | DO71: - | DP71: 1 | DQ71: - | DR71: - | DS71: - | DT71: - | DU71: - | DV71: - | DW71: - | DX71: - | DY71: - | DZ71: - | EA71: 1 | EB71: 113 | EC71: 14 | ED71: 99 | EE71: - | EF71: 2 | EG71: 2 | EH71: 1 | EI71: 1 | EJ71: - | EK71: - | EL71: - | EM71: - | EN71: 3 | EO71: 3 | EP71: 2 | EQ71: - | ER71: 1 | ES71: - | ET71: - | EU71: -
A72: 埼玉県 | B72: 北区(さいたま市) | C72: 大宮市４－２ | D72: 櫛引北 | E72: - | F72: - | G72: - | H72: - | I72: - | J72: - | K72: - | L72: - | M72: - | N72: - | O72: - | P72: - | Q72: - | R72: - | S72: - | T72: - | U72: - | V72: - | W72: - | X72: - | Y72: - | Z72: - | AA72: - | AB72: - | AC72: … | AD72: … | AE72: … | AF72: - | AG72: - | AH72: - | AI72: - | AJ72: - | AK72: - | AL72: - | AM72: - | AN72: - | AO72: - | AP72: - | AQ72: - | AR72: - | AS72: - | AT72: - | AU72: - | AV72: … | AW72: … | AX72: … | AY72: - | AZ72: - | BA72: - | BB72: - | BC72: - | BD72: - | BE72: - | BF72: - | BG72: - | BH72: - | BI72: - | BJ72: - | BK72: - | BL72: - | BM72: - | BN72: - | BO72: … | BP72: … | BQ72: … | BR72: - | BS72: - | BT72: - | BU72: - | BV72: - | BW72: - | BX72: - | BY72: - | BZ72: - | CA72: - | CB72: - | CC72: - | CD72: - | CE72: - | CF72: - | CG72: - | CH72: - | CI72: - | CJ72: - | CK72: - | CL72: - | CM72: - | CN72: - | CO72: - | CP72: - | CQ72: - | CR72: - | CS72: - | CT72: - | CU72: - | DC72: - | DD72: - | DE72: - | DF72: - | DG72: - | DH72: - | DI72: - | DJ72: - | DK72: - | DL72: - | DM72: - | DN72: - | DO72: - | DP72: - | DQ72: - | DR72: - | DS72: - | DT72: - | DU72: - | DV72: - | DW72: - | DX72: - | DY72: - | DZ72: - | EA72: - | EB72: - | EC72: - | ED72: - | EE72: - | EF72: - | EG72: - | EH72: - | EI72: - | EJ72: - | EK72: - | EL72: - | EM72: - | EN72: - | EO72: - | EP72: - | EQ72: - | ER72: - | ES72: - | ET72: - | EU72: -
A73: 埼玉県 | B73: 北区(さいたま市) | C73: 大宮市４－２ | D73: 下加 | E73: - | F73: - | G73: - | H73: - | I73: - | J73: - | K73: - | L73: - | M73: - | N73: - | O73: - | P73: - | Q73: - | R73: - | S73: - | T73: - | U73: - | V73: - | W73: - | X73: - | Y73: - | Z73: - | AA73: - | AB73: - | AC73: … | AD73: … | AE73: … | AF73: - | AG73: - | AH73: - | AI73: - | AJ73: - | AK73: - | AL73: - | AM73: - | AN73: - | AO73: - | AP73: - | AQ73: - | AR73: - | AS73: - | AT73: - | AU73: - | AV73: … | AW73: … | AX73: … | AY73: - | AZ73: - | BA73: - | BB73: - | BC73: - | BD73: - | BE73: - | BF73: - | BG73: - | BH73: - | BI73: - | BJ73: - | BK73: - | BL73: - | BM73: - | BN73: - | BO73: … | BP73: … | BQ73: … | BR73: - | BS73: - | BT73: - | BU73: - | BV73: - | BW73: - | BX73: - | BY73: - | BZ73: - | CA73: - | CB73: - | CC73: - | CD73: - | CE73: - | CF73: - | CG73: - | CH73: - | CI73: - | CJ73: - | CK73: - | CL73: - | CM73: - | CN73: - | CO73: - | CP73: - | CQ73: - | CR73: - | CS73: - | CT73: - | CU73: - | DC73: - | DD73: - | DE73: - | DF73: - | DG73: - | DH73: - | DI73: - | DJ73: - | DK73: - | DL73: - | DM73: - | DN73: - | DO73: - | DP73: - | DQ73: - | DR73: - | DS73: - | DT73: - | DU73: - | DV73: - | DW73: - | DX73: - | DY73: - | DZ73: - | EA73: - | EB73: - | EC73: - | ED73: - | EE73: - | EF73: - | EG73: - | EH73: - | EI73: - | EJ73: - | EK73: - | EL73: - | EM73: - | EN73: - | EO73: - | EP73: - | EQ73: - | ER73: - | ES73: - | ET73: - | EU73: -
A74: 埼玉県 | B74: 北区(さいたま市) | C74: 大宮市４－２ | D74: 上加南 | E74: 2 | F74: - | G74: - | H74: - | I74: - | J74: - | K74: - | L74: 2 | M74: - | N74: - | O74: - | P74: - | Q74: - | R74: - | S74: - | T74: - | U74: - | V74: - | W74: - | X74: - | Y74: - | Z74: - | AA74: - | AB74: - | AC74: … | AD74: … | AE74: … | AF74: - | AG74: - | AH74: - | AI74: - | AJ74: - | AK74: - | AL74: - | AM74: - | AN74: - | AO74: - | AP74: - | AQ74: - | AR74: - | AS74: - | AT74: - | AU74: - | AV74: … | AW74: … | AX74: … | AY74: - | AZ74: - | BA74: - | BB74: - | BC74: - | BD74: - | BE74: - | BF74: - | BG74: - | BH74: - | BI74: - | BJ74: - | BK74: - | BL74: - | BM74: - | BN74: - | BO74: … | BP74: … | BQ74: … | BR74: - | BS74: - | BT74: - | BU74: - | BV74: - | BW74: - | BX74: - | BY74: - | BZ74: - | CA74: - | CB74: - | CC74: - | CD74: - | CE74: - | CF74: - | CG74: - | CH74: - | CI74: - | CJ74: - | CK74: - | CL74: - | CM74: - | CN74: - | CO74: - | CP74: - | CQ74: - | CR74: - | CS74: - | CT74: - | CU74: - | DC74: - | DD74: - | DE74: - | DF74: - | DG74: - | DH74: - | DI74: - | DJ74: - | DK74: - | DL74: - | DM74: - | DN74: - | DO74: - | DP74: - | DQ74: - | DR74: - | DS74: - | DT74: - | DU74: - | DV74: - | DW74: - | DX74: - | DY74: - | DZ74: - | EA74: - | EB74: - | EC74: - | ED74: - | EE74: - | EF74: - | EG74: - | EH74: - | EI74: - | EJ74: - | EK74: - | EL74: - | EM74: - | EN74: - | EO74: - | EP74: - | EQ74: - | ER74: - | ES74: - | ET74: - | EU74: -
A75: 埼玉県 | B75: 北区(さいたま市) | C75: 大宮市４－２ | D75: 上加北 | E75: 4 | F75: - | G75: - | H75: - | I75: - | J75: - | K75: - | L75: 4 | M75: - | N75: - | O75: - | P75: - | Q75: - | R75: - | S75: - | T75: - | U75: - | V75: - | W75: - | X75: - | Y75: - | Z75: - | AA75: - | AB75: - | AC75: … | AD75: … | AE75: … | AF75: - | AG75: - | AH75: - | AI75: - | AJ75: - | AK75: - | AL75: - | AM75: - | AN75: - | AO75: - | AP75: - | AQ75: - | AR75: - | AS75: - | AT75: - | AU75: - | AV75: … | AW75: … | AX75: … | AY75: - | AZ75: - | BA75: - | BB75: - | BC75: - | BD75: - | BE75: - | BF75: - | BG75: - | BH75: - | BI75: - | BJ75: - | BK75: - | BL75: - | BM75: - | BN75: - | BO75: … | BP75: … | BQ75: … | BR75: - | BS75: - | BT75: - | BU75: - | BV75: - | BW75: - | BX75: - | BY75: - | BZ75: - | CA75: - | CB75: - | CC75: - | CD75: - | CE75: - | CF75: - | CG75: - | CH75: - | CI75: - | CJ75: - | CK75: - | CL75: - | CM75: - | CN75: - | CO75: - | CP75: - | CQ75: - | CR75: - | CS75: - | CT75: - | CU75: - | DC75: - | DD75: - | DE75: - | DF75: - | DG75: - | DH75: - | DI75: - | DJ75: - | DK75: - | DL75: - | DM75: - | DN75: - | DO75: - | DP75: - | DQ75: - | DR75: - | DS75: - | DT75: - | DU75: - | DV75: - | DW75: - | DX75: - | DY75: - | DZ75: - | EA75: - | EB75: - | EC75: - | ED75: - | EE75: - | EF75: - | EG75: - | EH75: - | EI75: - | EJ75: - | EK75: - | EL75: - | EM75: - | EN75: - | EO75: - | EP75: - | EQ75: - | ER75: - | ES75: - | ET75: - | EU75: -
A76: 埼玉県 | B76: 北区(さいたま市) | C76: 大宮市４－２ | D76: 西谷 | E76: 9 | F76: 3 | G76: - | H76: - | I76: 1 | J76: 1 | K76: 2 | L76: 6 | M76: 10 | N76: - | O76: - | P76: 2 | Q76: - | R76: - | S76: - | T76: - | U76: 2 | V76: 2 | W76: - | X76: 1 | Y76: 1 | Z76: - | AA76: 1 | AB76: 1 | AC76: 57.8 | AD76: 58.4 | AE76: 57.2 | AF76: 6 | AG76: - | AH76: - | AI76: - | AJ76: - | AK76: - | AL76: - | AM76: - | AN76: 1 | AO76: 1 | AP76: - | AQ76: 1 | AR76: 1 | AS76: - | AT76: 1 | AU76: 1 | AV76: 69.8 | AW76: 72.0 | AX76: 67.7 | AY76: 5 | AZ76: - | BA76: - | BB76: - | BC76: - | BD76: - | BE76: - | BF76: - | BG76: 1 | BH76: 1 | BI76: - | BJ76: 1 | BK76: 1 | BL76: - | BM76: 1 | BN76: - | BO76: 66.8 | BP76: 65.5 | BQ76: 67.7 | BR76: 3 | BS76: - | BT76: - | BU76: - | BV76: - | BW76: - | BX76: - | BY76: - | BZ76: - | CA76: 1 | CB76: - | CC76: - | CD76: 1 | CE76: - | CF76: - | CG76: 1 | CH76: 2 | CI76: - | CJ76: - | CK76: - | CL76: - | CM76: - | CN76: - | CO76: 1 | CP76: - | CQ76: - | CR76: - | CS76: - | CT76: - | CU76: 1 | DC76: 11 | DD76: 10 | DE76: 5 | DF76: 4 | DG76: 1 | DH76: - | DI76: - | DJ76: 1 | DK76: 2 | DL76: 1 | DM76: - | DN76: 1 | DO76: - | DP76: - | DQ76: - | DR76: - | DS76: - | DT76: - | DU76: - | DV76: - | DW76: - | DX76: - | DY76: - | DZ76: - | EA76: 3 | EB76: 182 | EC76: 50 | ED76: 120 | EE76: 12 | EF76: 5 | EG76: 4 | EH76: 2 | EI76: 2 | EJ76: - | EK76: - | EL76: - | EM76: 1 | EN76: 6 | EO76: 6 | EP76: 3 | EQ76: 2 | ER76: 1 | ES76: - | ET76: - | EU76: -
A77: 埼玉県 | B77: 北区(さいたま市) | C77: 大宮市４－２ | D77: 下加茂宮 | E77: 6 | F77: 2 | G77: x | H77: x | I77: x | J77: x | K77: x | L77: 4 | M77: x | N77: x | O77: x | P77: x | Q77: x | R77: x | S77: x | T77: x | U77: x | V77: x | W77: x | X77: x | Y77: x | Z77: x | AA77: x | AB77: x | AC77: 65.8 | AD77: 62.5 | AE77: 69.0 | AF77: x | AG77: x | AH77: x | AI77: x | AJ77: x | AK77: x | AL77: x | AM77: x | AN77: x | AO77: x | AP77: x | AQ77: x | AR77: x | AS77: x | AT77: x | AU77: x | AV77: 72.0 | AW77: 76.0 | AX77: 69.0 | AY77: x | AZ77: x | BA77: x | BB77: x | BC77: x | BD77: x | BE77: x | BF77: x | BG77: x | BH77: x | BI77: x | BJ77: x | BK77: x | BL77: x | BM77: x | BN77: x | BO77: 65.2 | BP77: 68.5 | BQ77: 63.0 | BR77: 2 | BS77: - | BT77: - | BU77: - | BV77: - | BW77: - | BX77: - | BY77: - | BZ77: - | CA77: 1 | CB77: - | CC77: - | CD77: - | CE77: 1 | CF77: - | CG77: - | CH77: 1 | CI77: - | CJ77: - | CK77: - | CL77: - | CM77: - | CN77: - | CO77: 1 | CP77: - | CQ77: - | CR77: - | CS77: - | CT77: - | CU77: - | DC77: 12 | DD77: 7 | DE77: 5 | DF77: 2 | DG77: - | DH77: - | DI77: 3 | DJ77: 2 | DK77: 2 | DL77: - | DM77: - | DN77: - | DO77: - | DP77: - | DQ77: - | DR77: - | DS77: - | DT77: 1 | DU77: - | DV77: - | DW77: - | DX77: - | DY77: - | DZ77: 1 | EA77: 2 | EB77: 160 | EC77: - | ED77: 110 | EE77: 50 | EF77: 7 | EG77: 3 | EH77: 2 | EI77: 1 | EJ77: - | EK77: - | EL77: 3 | EM77: 1 | EN77: 5 | EO77: 4 | EP77: 3 | EQ77: 1 | ER77: - | ES77: - | ET77: - | EU77: 1
A78: 埼玉県 | B78: 北区(さいたま市) | C78: 大宮市４－２ | D78: 薬師原 | E78: 7 | F78: - | G78: - | H78: - | I78: - | J78: - | K78: - | L78: 7 | M78: - | N78: - | O78: - | P78: - | Q78: - | R78: - | S78: - | T78: - | U78: - | V78: - | W78: - | X78: - | Y78: - | Z78: - | AA78: - | AB78: - | AC78: … | AD78: … | AE78: … | AF78: - | AG78: - | AH78: - | AI78: - | AJ78: - | AK78: - | AL78: - | AM78: - | AN78: - | AO78: - | AP78: - | AQ78: - | AR78: - | AS78: - | AT78: - | AU78: - | AV78: … | AW78: … | AX78: … | AY78: - | AZ78: - | BA78: - | BB78: - | BC78: - | BD78: - | BE78: - | BF78: - | BG78: - | BH78: - | BI78: - | BJ78: - | BK78: - | BL78: - | BM78: - | BN78: - | BO78: … | BP78: … | BQ78: … | BR78: - | BS78: - | BT78: - | BU78: - | BV78: - | BW78: - | BX78: - | BY78: - | BZ78: - | CA78: - | CB78: - | CC78: - | CD78: - | CE78: - | CF78: - | CG78: - | CH78: - | CI78: - | CJ78: - | CK78: - | CL78: - | CM78: - | CN78: - | CO78: - | CP78: - | CQ78: - | CR78: - | CS78: - | CT78: - | CU78: - | DC78: - | DD78: - | DE78: - | DF78: - | DG78: - | DH78: - | DI78: - | DJ78: - | DK78: - | DL78: - | DM78: - | DN78: - | DO78: - | DP78: - | DQ78: - | DR78: - | DS78: - | DT78: - | DU78: - | DV78: - | DW78: - | DX78: - | DY78: - | DZ78: - | EA78: - | EB78: - | EC78: - | ED78: - | EE78: - | EF78: - | EG78: - | EH78: - | EI78: - | EJ78: - | EK78: - | EL78: - | EM78: - | EN78: - | EO78: - | EP78: - | EQ78: - | ER78: - | ES78: - | ET78: - | EU78: -
A79: 埼玉県 | B79: 北区(さいたま市) | C79: 大宮市４－２ | D79: 構 | E79: 1 | F79: 1 | G79: x | H79: x | I79: x | J79: x | K79: x | L79: - | M79: x | N79: x | O79: x | P79: x | Q79: x | R79: x | S79: x | T79: x | U79: x | V79: x | W79: x | X79: x | Y79: x | Z79: x | AA79: x | AB79: x | AC79: 69.0 | AD79: 69.0 | AE79: 69.0 | AF79: x | AG79: x | AH79: x | AI79: x | AJ79: x | AK79: x | AL79: x | AM79: x | AN79: x | AO79: x | AP79: x | AQ79: x | AR79: x | AS79: x | AT79: x | AU79: x | AV79: … | AW79: … | AX79: … | AY79: x | AZ79: x | BA79: x | BB79: x | BC79: x | BD79: x | BE79: x | BF79: x | BG79: x | BH79: x | BI79: x | BJ79: x | BK79: x | BL79: x | BM79: x | BN79: x | BO79: … | BP79: … | BQ79: … | BR79: 1 | BS79: - | BT79: - | BU79: - | BV79: - | BW79: - | BX79: - | BY79: - | BZ79: - | CA79: - | CB79: - | CC79: 1 | CD79: - | CE79: - | CF79: - | CG79: - | CH79: - | CI79: - | CJ79: - | CK79: - | CL79: - | CM79: - | CN79: - | CO79: - | CP79: - | CQ79: - | CR79: - | CS79: - | CT79: - | CU79: - | DC79: 2 | DD79: 2 | DE79: - | DF79: 2 | DG79: - | DH79: - | DI79: - | DJ79: - | DK79: 1 | DL79: 1 | DM79: - | DN79: - | DO79: - | DP79: - | DQ79: - | DR79: - | DS79: - | DT79: - | DU79: - | DV79: - | DW79: - | DX79: - | DY79: - | DZ79: - | EA79: 1 | EB79: 33 | EC79: 28 | ED79: 5 | EE79: - | EF79: 1 | EG79: 1 | EH79: - | EI79: 1 | EJ79: - | EK79: - | EL79: - | EM79: - | EN79: 1 | EO79: 1 | EP79: - | EQ79: 1 | ER79: - | ES79: - | ET79: - | EU79: -
A80: 埼玉県 | B80: 北区(さいたま市) | C80: 大宮市４－２ | D80: 天神橋 | E80: 3 | F80: 1 | G80: x | H80: x | I80: x | J80: x | K80: x | L80: 2 | M80: x | N80: x | O80: x | P80: x | Q80: x | R80: x | S80: x | T80: x | U80: x | V80: x | W80: x | X80: x | Y80: x | Z80: x | AA80: x | AB80: x | AC80: 61.5 | AD80: 44.0 | AE80: 79.0 | AF80: x | AG80: x | AH80: x | AI80: x | AJ80: x | AK80: x | AL80: x | AM80: x | AN80: x | AO80: x | AP80: x | AQ80: x | AR80: x | AS80: x | AT80: x | AU80: x | AV80: 79.0 | AW80: … | AX80: 79.0 | AY80: x | AZ80: x | BA80: x | BB80: x | BC80: x | BD80: x | BE80: x | BF80: x | BG80: x | BH80: x | BI80: x | BJ80: x | BK80: x | BL80: x | BM80: x | BN80: x | BO80: 79.0 | BP80: … | BQ80: 79.0 | BR80: 1 | BS80: - | BT80: - | BU80: - | BV80: - | BW80: - | BX80: - | BY80: - | BZ80: - | CA80: - | CB80: - | CC80: - | CD80: - | CE80: 1 | CF80: - | CG80: - | CH80: 1 | CI80: - | CJ80: - | CK80: - | CL80: - | CM80: - | CN80: - | CO80: - | CP80: - | CQ80: - | CR80: - | CS80: 1 | CT80: - | CU80: - | DC80: 2 | DD80: 2 | DE80: 1 | DF80: 1 | DG80: - | DH80: - | DI80: - | DJ80: - | DK80: - | DL80: - | DM80: - | DN80: - | DO80: - | DP80: - | DQ80: - | DR80: - | DS80: - | DT80: - | DU80: - | DV80: - | DW80: - | DX80: - | DY80: - | DZ80: - | EA80: 1 | EB80: 35 | EC80: 10 | ED80: 25 | EE80: - | EF80: 1 | EG80: 1 | EH80: - | EI80: 1 | EJ80: - | EK80: - | EL80: - | EM80: - | EN80: 1 | EO80: 1 | EP80: 1 | EQ80: - | ER80: - | ES80: - | ET80: - | EU80: -
A81: 埼玉県 | B81: 北区(さいたま市) | C81: 大宮市４－２ | D81: 鍛治 | E81: 9 | F81: 2 | G81: x | H81: x | I81: x | J81: x | K81: x | L81: 7 | M81: x | N81: x | O81: x | P81: x | Q81: x | R81: x | S81: x | T81: x | U81: x | V81: x | W81: x | X81: x | Y81: x | Z81: x | AA81: x | AB81: x | AC81: 62.2 | AD81: 58.5 | AE81: 64.7 | AF81: x | AG81: x | AH81: x | AI81: x | AJ81: x | AK81: x | AL81: x | AM81: x | AN81: x | AO81: x | AP81: x | AQ81: x | AR81: x | AS81: x | AT81: x | AU81: x | AV81: 68.0 | AW81: 63.0 | AX81: 70.5 | AY81: x | AZ81: x | BA81: x | BB81: x | BC81: x | BD81: x | BE81: x | BF81: x | BG81: x | BH81: x | BI81: x | BJ81: x | BK81: x | BL81: x | BM81: x | BN81: x | BO81: 68.0 | BP81: 63.0 | BQ81: 70.5 | BR81: 2 | BS81: - | BT81: - | BU81: - | BV81: - | BW81: - | BX81: - | BY81: - | BZ81: 1 | CA81: - | CB81: 1 | CC81: - | CD81: - | CE81: - | CF81: - | CG81: - | CH81: 1 | CI81: - | CJ81: - | CK81: - | CL81: - | CM81: - | CN81: 1 | CO81: - | CP81: - | CQ81: - | CR81: - | CS81: - | CT81: - | CU81: - | DC81: 6 | DD81: 5 | DE81: 3 | DF81: - | DG81: 2 | DH81: - | DI81: 1 | DJ81: - | DK81: 2 | DL81: - | DM81: - | DN81: - | DO81: - | DP81: 1 | DQ81: - | DR81: - | DS81: 1 | DT81: - | DU81: - | DV81: - | DW81: - | DX81: - | DY81: - | DZ81: - | EA81: 2 | EB81: 68 | EC81: - | ED81: 68 | EE81: - | EF81: 3 | EG81: 2 | EH81: 1 | EI81: - | EJ81: 1 | EK81: - | EL81: 1 | EM81: - | EN81: 3 | EO81: 3 | EP81: 2 | EQ81: - | ER81: 1 | ES81: - | ET81: - | EU81: -
A82: 埼玉県 | B82: 北区(さいたま市) | C82: 大宮市４－２ | D82: 吉野原第１ | E82: 9 | F82: 2 | G82: x | H82: x | I82: x | J82: x | K82: x | L82: 7 | M82: x | N82: x | O82: x | P82: x | Q82: x | R82: x | S82: x | T82: x | U82: x | V82: x | W82: x | X82: x | Y82: x | Z82: x | AA82: x | AB82: x | AC82: 54.4 | AD82: 57.7 | AE82: 52.0 | AF82: x | AG82: x | AH82: x | AI82: x | AJ82: x | AK82: x | AL82: x | AM82: x | AN82: x | AO82: x | AP82: x | AQ82: x | AR82: x | AS82: x | AT82: x | AU82: x | AV82: 62.3 | AW82: 76.0 | AX82: 55.5 | AY82: x | AZ82: x | BA82: x | BB82: x | BC82: x | BD82: x | BE82: x | BF82: x | BG82: x | BH82: x | BI82: x | BJ82: x | BK82: x | BL82: x | BM82: x | BN82: x | BO82: 62.3 | BP82: 76.0 | BQ82: 55.5 | BR82: 2 | BS82: - | BT82: - | BU82: - | BV82: - | BW82: - | BX82: - | BY82: - | BZ82: - | CA82: - | CB82: 1 | CC82: - | CD82: - | CE82: 1 | CF82: - | CG82: - | CH82: 2 | CI82: - | CJ82: - | CK82: - | CL82: - | CM82: - | CN82: - | CO82: - | CP82: 1 | CQ82: - | CR82: - | CS82: 1 | CT82: - | CU82: - | DC82: 8 | DD82: 5 | DE82: 3 | DF82: 1 | DG82: 1 | DH82: 2 | DI82: - | DJ82: 1 | DK82: 1 | DL82: - | DM82: - | DN82: - | DO82: - | DP82: 1 | DQ82: - | DR82: - | DS82: - | DT82: - | DU82: - | DV82: - | DW82: - | DX82: - | DY82: - | DZ82: - | EA82: 2 | EB82: 145 | EC82: - | ED82: 145 | EE82: - | EF82: 3 | EG82: 3 | EH82: 1 | EI82: 1 | EJ82: 1 | EK82: - | EL82: - | EM82: - | EN82: 5 | EO82: 2 | EP82: 2 | EQ82: - | ER82: - | ES82: 2 | ET82: - | EU82: 1
A83: 埼玉県 | B83: 北区(さいたま市) | C83: 大宮市４－２ | D83: 吉野原第２ | E83: 6 | F83: 2 | G83: x | H83: x | I83: x | J83: x | K83: x | L83: 4 | M83: x | N83: x | O83: x | P83: x | Q83: x | R83: x | S83: x | T83: x | U83: x | V83: x | W83: x | X83: x | Y83: x | Z83: x | AA83: x | AB83: x | AC83: 68.4 | AD83: 58.5 | AE83: 75.0 | AF83: x | AG83: x | AH83: x | AI83: x | AJ83: x | AK83: x | AL83: x | AM83: x | AN83: x | AO83: x | AP83: x | AQ83: x | AR83: x | AS83: x | AT83: x | AU83: x | AV83: 71.0 | AW83: 59.0 | AX83: 75.0 | AY83: x | AZ83: x | BA83: x | BB83: x | BC83: x | BD83: x | BE83: x | BF83: x | BG83: x | BH83: x | BI83: x | BJ83: x | BK83: x | BL83: x | BM83: x | BN83: x | BO83: 71.0 | BP83: 59.0 | BQ83: 75.0 | BR83: 2 | BS83: - | BT83: - | BU83: - | BV83: - | BW83: - | BX83: - | BY83: - | BZ83: - | CA83: 1 | CB83: - | CC83: - | CD83: - | CE83: - | CF83: 1 | CG83: - | CH83: 1 | CI83: - | CJ83: - | CK83: - | CL83: - | CM83: - | CN83: - | CO83: - | CP83: - | CQ83: - | CR83: - | CS83: - | CT83: 1 | CU83: - | DC83: 7 | DD83: 5 | DE83: 4 | DF83: 1 | DG83: - | DH83: - | DI83: - | DJ83: 2 | DK83: 2 | DL83: - | DM83: - | DN83: - | DO83: - | DP83: 1 | DQ83: - | DR83: 1 | DS83: - | DT83: - | DU83: - | DV83: - | DW83: - | DX83: - | DY83: - | DZ83: - | EA83: 2 | EB83: 145 | EC83: 26 | ED83: 92 | EE83: 27 | EF83: 4 | EG83: 2 | EH83: 1 | EI83: 1 | EJ83: - | EK83: - | EL83: - | EM83: 2 | EN83: 3 | EO83: 3 | EP83: 3 | EQ83: - | ER83: - | ES83: - | ET83: - | EU83: -
A84: 埼玉県 | B84: 北区(さいたま市) | C84: 大宮市４－２ | D84: 神山 | E84: 12 | F84: 4 | G84: 1 | H84: 1 | I84: 1 | J84: - | K84: 2 | L84: 8 | M84: 10 | N84: - | O84: - | P84: - | Q84: 1 | R84: 1 | S84: 1 | T84: - | U84: - | V84: - | W84: 2 | X84: 2 | Y84: 1 | Z84: 2 | AA84: - | AB84: - | AC84: 59.2 | AD84: 55.4 | AE84: 68.0 | AF84: 8 | AG84: - | AH84: - | AI84: - | AJ84: 1 | AK84: - | AL84: - | AM84: - | AN84: - | AO84: - | AP84: 2 | AQ84: 2 | AR84: 1 | AS84: 2 | AT84: - | AU84: - | AV84: 64.0 | AW84: 61.6 | AX84: 68.0 | AY84: 7 | AZ84: - | BA84: - | BB84: - | BC84: 1 | BD84: - | BE84: - | BF84: - | BG84: - | BH84: - | BI84: 2 | BJ84: 1 | BK84: 1 | BL84: 2 | BM84: - | BN84: - | BO84: 63.3 | BP84: 61.6 | BQ84: 67.5 | BR84: 4 | BS84: - | BT84: - | BU84: - | BV84: - | BW84: - | BX84: - | BY84: - | BZ84: - | CA84: - | CB84: 1 | CC84: 1 | CD84: 1 | CE84: 1 | CF84: - | CG84: - | CH84: 4 | CI84: - | CJ84: - | CK84: - | CL84: - | CM84: - | CN84: - | CO84: - | CP84: 1 | CQ84: 1 | CR84: 1 | CS84: 1 | CT84: - | CU84: - | DC84: 14 | DD84: 10 | DE84: 7 | DF84: 3 | DG84: - | DH84: 2 | DI84: 1 | DJ84: 1 | DK84: 4 | DL84: 2 | DM84: - | DN84: - | DO84: - | DP84: 1 | DQ84: - | DR84: - | DS84: 1 | DT84: - | DU84: - | DV84: - | DW84: - | DX84: - | DY84: - | DZ84: - | EA84: 4 | EB84: 208 | EC84: 35 | ED84: 150 | EE84: 23 | EF84: 7 | EG84: 7 | EH84: 5 | EI84: 2 | EJ84: - | EK84: - | EL84: - | EM84: - | EN84: 7 | EO84: 3 | EP84: 2 | EQ84: 1 | ER84: - | ES84: 2 | ET84: 1 | EU84: 1
A85: 埼玉県 | B85: 北区(さいたま市) | C85: 大宮市４－２ | D85: 鈴木 | E85: 8 | F85: 4 | G85: - | H85: - | I85: - | J85: - | K85: 4 | L85: 4 | M85: 9 | N85: - | O85: - | P85: - | Q85: - | R85: - | S85: 1 | T85: 1 | U85: - | V85: 1 | W85: - | X85: - | Y85: 2 | Z85: 1 | AA85: 3 | AB85: - | AC85: 67.4 | AD85: 71.4 | AE85: 62.5 | AF85: 6 | AG85: - | AH85: - | AI85: - | AJ85: - | AK85: - | AL85: - | AM85: - | AN85: - | AO85: - | AP85: - | AQ85: - | AR85: 2 | AS85: 1 | AT85: 3 | AU85: - | AV85: 77.3 | AW85: 77.8 | AX85: 76.5 | AY85: 6 | AZ85: - | BA85: - | BB85: - | BC85: - | BD85: - | BE85: - | BF85: - | BG85: - | BH85: - | BI85: - | BJ85: - | BK85: 2 | BL85: 1 | BM85: 3 | BN85: - | BO85: 77.3 | BP85: 77.8 | BQ85: 76.5 | BR85: 4 | BS85: - | BT85: - | BU85: - | BV85: - | BW85: - | BX85: - | BY85: - | BZ85: - | CA85: - | CB85: - | CC85: - | CD85: 1 | CE85: 1 | CF85: 2 | CG85: - | CH85: 3 | CI85: - | CJ85: - | CK85: - | CL85: - | CM85: - | CN85: - | CO85: - | CP85: - | CQ85: - | CR85: 1 | CS85: - | CT85: 2 | CU85: - | DC85: 12 | DD85: 10 | DE85: 6 | DF85: 4 | DG85: - | DH85: 1 | DI85: 1 | DJ85: - | DK85: 4 | DL85: - | DM85: - | DN85: 2 | DO85: - | DP85: 1 | DQ85: - | DR85: - | DS85: - | DT85: - | DU85: - | DV85: - | DW85: - | DX85: 1 | DY85: - | DZ85: - | EA85: 3 | EB85: 130 | EC85: - | ED85: 110 | EE85: 20 | EF85: 7 | EG85: 6 | EH85: 4 | EI85: 2 | EJ85: - | EK85: - | EL85: 1 | EM85: - | EN85: 5 | EO85: 4 | EP85: 2 | EQ85: 2 | ER85: - | ES85: 1 | ET85: - | EU85: -
A86: 埼玉県 | B86: 北区(さいたま市) | C86: 大宮市４－２ | D86: 大谷別所 | E86: 18 | F86: 6 | G86: 2 | H86: 2 | I86: 3 | J86: 1 | K86: 1 | L86: 12 | M86: 18 | N86: - | O86: - | P86: - | Q86: - | R86: 3 | S86: - | T86: 3 | U86: 2 | V86: 2 | W86: - | X86: 3 | Y86: 1 | Z86: 3 | AA86: 1 | AB86: - | AC86: 59.2 | AD86: 58.9 | AE86: 59.5 | AF86: 15 | AG86: - | AH86: - | AI86: - | AJ86: - | AK86: 3 | AL86: - | AM86: 2 | AN86: 1 | AO86: 2 | AP86: - | AQ86: 3 | AR86: 1 | AS86: 2 | AT86: 1 | AU86: - | AV86: 59.2 | AW86: 58.6 | AX86: 59.5 | AY86: 13 | AZ86: - | BA86: - | BB86: - | BC86: - | BD86: 2 | BE86: - | BF86: 2 | BG86: - | BH86: 2 | BI86: - | BJ86: 3 | BK86: 1 | BL86: 2 | BM86: 1 | BN86: - | BO86: 61.4 | BP86: 58.6 | BQ86: 63.1 | BR86: 6 | BS86: - | BT86: - | BU86: - | BV86: - | BW86: - | BX86: - | BY86: 1 | BZ86: - | CA86: 1 | CB86: - | CC86: 1 | CD86: - | CE86: 2 | CF86: 1 | CG86: - | CH86: 4 | CI86: - | CJ86: - | CK86: - | CL86: - | CM86: - | CN86: - | CO86: 1 | CP86: - | CQ86: 1 | CR86: - | CS86: 1 | CT86: 1 | CU86: - | DC86: 25 | DD86: 17 | DE86: 13 | DF86: 2 | DG86: 2 | DH86: 2 | DI86: 3 | DJ86: 3 | DK86: 6 | DL86: - | DM86: - | DN86: - | DO86: - | DP86: - | DQ86: - | DR86: 5 | DS86: 1 | DT86: - | DU86: - | DV86: - | DW86: - | DX86: - | DY86: - | DZ86: - | EA86: 6 | EB86: 560 | EC86: - | ED86: 274 | EE86: 286 | EF86: 9 | EG86: 8 | EH86: 5 | EI86: 1 | EJ86: 2 | EK86: - | EL86: - | EM86: 1 | EN86: 16 | EO86: 9 | EP86: 8 | EQ86: 1 | ER86: - | ES86: 2 | ET86: 3 | EU86: 2
A87: 埼玉県 | B87: 北区(さいたま市) | C87: 大宮市４－２ | D87: 奈良瀬戸 | E87: 9 | F87: 2 | G87: x | H87: x | I87: x | J87: x | K87: x | L87: 7 | M87: x | N87: x | O87: x | P87: x | Q87: x | R87: x | S87: x | T87: x | U87: x | V87: x | W87: x | X87: x | Y87: x | Z87: x | AA87: x | AB87: x | AC87: 55.2 | AD87: 65.5 | AE87: 48.3 | AF87: x | AG87: x | AH87: x | AI87: x | AJ87: x | AK87: x | AL87: x | AM87: x | AN87: x | AO87: x | AP87: x | AQ87: x | AR87: x | AS87: x | AT87: x | AU87: x | AV87: 64.3 | AW87: 72.0 | AX87: 60.5 | AY87: x | AZ87: x | BA87: x | BB87: x | BC87: x | BD87: x | BE87: x | BF87: x | BG87: x | BH87: x | BI87: x | BJ87: x | BK87: x | BL87: x | BM87: x | BN87: x | BO87: 64.3 | BP87: 72.0 | BQ87: 60.5 | BR87: 2 | BS87: - | BT87: - | BU87: - | BV87: - | BW87: - | BX87: - | BY87: - | BZ87: - | CA87: 1 | CB87: - | CC87: - | CD87: 1 | CE87: - | CF87: - | CG87: - | CH87: 2 | CI87: - | CJ87: - | CK87: - | CL87: - | CM87: - | CN87: - | CO87: 1 | CP87: - | CQ87: - | CR87: 1 | CS87: - | CT87: - | CU87: - | DC87: 7 | DD87: 7 | DE87: 3 | DF87: 4 | DG87: - | DH87: - | DI87: - | DJ87: - | DK87: 2 | DL87: - | DM87: - | DN87: - | DO87: - | DP87: - | DQ87: - | DR87: 1 | DS87: 1 | DT87: - | DU87: - | DV87: - | DW87: - | DX87: - | DY87: - | DZ87: - | EA87: 2 | EB87: 86 | EC87: - | ED87: 36 | EE87: 50 | EF87: 3 | EG87: 3 | EH87: 1 | EI87: 2 | EJ87: - | EK87: - | EL87: - | EM87: - | EN87: 4 | EO87: 4 | EP87: 2 | EQ87: 2 | ER87: - | ES87: - | ET87: - | EU87: -
A88: 埼玉県 | B88: 北区(さいたま市) | C88: 大宮市４－２ | D88: 土呂第１ | E88: 10 | F88: 3 | G88: - | H88: - | I88: 1 | J88: 1 | K88: 2 | L88: 7 | M88: 6 | N88: - | O88: - | P88: - | Q88: - | R88: - | S88: - | T88: - | U88: - | V88: 1 | W88: 1 | X88: - | Y88: 4 | Z88: - | AA88: - | AB88: - | AC88: 67.0 | AD88: 68.3 | AE88: 65.7 | AF88: 6 | AG88: - | AH88: - | AI88: - | AJ88: - | AK88: - | AL88: - | AM88: - | AN88: - | AO88: 1 | AP88: 1 | AQ88: - | AR88: 4 | AS88: - | AT88: - | AU88: - | AV88: 67.0 | AW88: 68.3 | AX88: 65.7 | AY88: 6 | AZ88: - | BA88: - | BB88: - | BC88: - | BD88: - | BE88: - | BF88: - | BG88: - | BH88: 1 | BI88: 1 | BJ88: - | BK88: 4 | BL88: - | BM88: - | BN88: - | BO88: 67.0 | BP88: 68.3 | BQ88: 65.7 | BR88: 3 | BS88: - | BT88: - | BU88: - | BV88: - | BW88: - | BX88: - | BY88: - | BZ88: - | CA88: - | CB88: 1 | CC88: - | CD88: 2 | CE88: - | CF88: - | CG88: - | CH88: 2 | CI88: - | CJ88: - | CK88: - | CL88: - | CM88: - | CN88: - | CO88: - | CP88: 1 | CQ88: - | CR88: 1 | CS88: - | CT88: - | CU88: - | DC88: 10 | DD88: 8 | DE88: 6 | DF88: 2 | DG88: - | DH88: 1 | DI88: - | DJ88: 1 | DK88: 2 | DL88: 1 | DM88: - | DN88: - | DO88: - | DP88: 1 | DQ88: - | DR88: - | DS88: - | DT88: - | DU88: - | DV88: - | DW88: - | DX88: - | DY88: - | DZ88: - | EA88: 3 | EB88: 284 | EC88: 100 | ED88: 184 | EE88: - | EF88: 5 | EG88: 5 | EH88: 3 | EI88: 2 | EJ88: - | EK88: - | EL88: - | EM88: - | EN88: 5 | EO88: 3 | EP88: 3 | EQ88: - | ER88: - | ES88: 1 | ET88: - | EU88: 1
A89: 埼玉県 | B89: 北区(さいたま市) | C89: 大宮市４－２ | D89: 土呂第２ | E89: 7 | F89: 1 | G89: x | H89: x | I89: x | J89: x | K89: x | L89: 6 | M89: x | N89: x | O89: x | P89: x | Q89: x | R89: x | S89: x | T89: x | U89: x | V89: x | W89: x | X89: x | Y89: x | Z89: x | AA89: x | AB89: x | AC89: 74.3 | AD89: 71.5 | AE89: 80.0 | AF89: x | AG89: x | AH89: x | AI89: x | AJ89: x | AK89: x | AL89: x | AM89: x | AN89: x | AO89: x | AP89: x | AQ89: x | AR89: x | AS89: x | AT89: x | AU89: x | AV89: 82.0 | AW89: 84.0 | AX89: 80.0 | AY89: x | AZ89: x | BA89: x | BB89: x | BC89: x | BD89: x | BE89: x | BF89: x | BG89: x | BH89: x | BI89: x | BJ89: x | BK89: x | BL89: x | BM89: x | BN89: x | BO89: 82.0 | BP89: 84.0 | BQ89: 80.0 | BR89: 1 | BS89: - | BT89: - | BU89: - | BV89: - | BW89: - | BX89: - | BY89: - | BZ89: - | CA89: - | CB89: - | CC89: - | CD89: - | CE89: - | CF89: 1 | CG89: - | CH89: 1 | CI89: - | CJ89: - | CK89: - | CL89: - | CM89: - | CN89: - | CO89: - | CP89: - | CQ89: - | CR89: - | CS89: - | CT89: 1 | CU89: - | DC89: 6 | DD89: 4 | DE89: 2 | DF89: - | DG89: 2 | DH89: - | DI89: 2 | DJ89: - | DK89: 1 | DL89: - | DM89: - | DN89: 1 | DO89: - | DP89: - | DQ89: - | DR89: - | DS89: - | DT89: - | DU89: - | DV89: - | DW89: - | DX89: - | DY89: - | DZ89: - | EA89: 1 | EB89: 60 | EC89: - | ED89: 60 | EE89: - | EF89: 4 | EG89: 2 | EH89: 1 | EI89: - | EJ89: 1 | EK89: - | EL89: 2 | EM89: - | EN89: 2 | EO89: 2 | EP89: 1 | EQ89: - | ER89: 1 | ES89: - | ET89: - | EU89: -
A90: 埼玉県 | B90: 北区(さいたま市) | C90: 大宮市４－２ | D90: 土呂第３ | E90: 11 | F90: - | G90: - | H90: - | I90: - | J90: - | K90: - | L90: 11 | M90: - | N90: - | O90: - | P90: - | Q90: - | R90: - | S90: - | T90: - | U90: - | V90: - | W90: - | X90: - | Y90: - | Z90: - | AA90: - | AB90: - | AC90: … | AD90: … | AE90: … | AF90: - | AG90: - | AH90: - | AI90: - | AJ90: - | AK90: - | AL90: - | AM90: - | AN90: - | AO90: - | AP90: - | AQ90: - | AR90: - | AS90: - | AT90: - | AU90: - | AV90: … | AW90: … | AX90: … | AY90: - | AZ90: - | BA90: - | BB90: - | BC90: - | BD90: - | BE90: - | BF90: - | BG90: - | BH90: - | BI90: - | BJ90: - | BK90: - | BL90: - | BM90: - | BN90: - | BO90: … | BP90: … | BQ90: … | BR90: - | BS90: - | BT90: - | BU90: - | BV90: - | BW90: - | BX90: - | BY90: - | BZ90: - | CA90: - | CB90: - | CC90: - | CD90: - | CE90: - | CF90: - | CG90: - | CH90: - | CI90: - | CJ90: - | CK90: - | CL90: - | CM90: - | CN90: - | CO90: - | CP90: - | CQ90: - | CR90: - | CS90: - | CT90: - | CU90: - | DC90: - | DD90: - | DE90: - | DF90: - | DG90: - | DH90: - | DI90: - | DJ90: - | DK90: - | DL90: - | DM90: - | DN90: - | DO90: - | DP90: - | DQ90: - | DR90: - | DS90: - | DT90: - | DU90: - | DV90: - | DW90: - | DX90: - | DY90: - | DZ90: - | EA90: - | EB90: - | EC90: - | ED90: - | EE90: - | EF90: - | EG90: - | EH90: - | EI90: - | EJ90: - | EK90: - | EL90: - | EM90: - | EN90: - | EO90: - | EP90: - | EQ90: - | ER90: - | ES90: - | ET90: - | EU90: -
A91: 埼玉県 | B91: 北区(さいたま市) | C91: 大宮市４－２ | D91: 盆栽町 | E91: - | F91: - | G91: - | H91: - | I91: - | J91: - | K91: - | L91: - | M91: - | N91: - | O91: - | P91: - | Q91: - | R91: - | S91: - | T91: - | U91: - | V91: - | W91: - | X91: - | Y91: - | Z91: - | AA91: - | AB91: - | AC91: … | AD91: … | AE91: … | AF91: - | AG91: - | AH91: - | AI91: - | AJ91: - | AK91: - | AL91: - | AM91: - | AN91: - | AO91: - | AP91: - | AQ91: - | AR91: - | AS91: - | AT91: - | AU91: - | AV91: … | AW91: … | AX91: … | AY91: - | AZ91: - | BA91: - | BB91: - | BC91: - | BD91: - | BE91: - | BF91: - | BG91: - | BH91: - | BI91: - | BJ91: - | BK91: - | BL91: - | BM91: - | BN91: - | BO91: … | BP91: … | BQ91: … | BR91: - | BS91: - | BT91: - | BU91: - | BV91: - | BW91: - | BX91: - | BY91: - | BZ91: - | CA91: - | CB91: - | CC91: - | CD91: - | CE91: - | CF91: - | CG91: - | CH91: - | CI91: - | CJ91: - | CK91: - | CL91: - | CM91: - | CN91: - | CO91: - | CP91: - | CQ91: - | CR91: - | CS91: - | CT91: - | CU91: - | DC91: - | DD91: - | DE91: - | DF91: - | DG91: - | DH91: - | DI91: - | DJ91: - | DK91: - | DL91: - | DM91: - | DN91: - | DO91: - | DP91: - | DQ91: - | DR91: - | DS91: - | DT91: - | DU91: - | DV91: - | DW91: - | DX91: - | DY91: - | DZ91: - | EA91: - | EB91: - | EC91: - | ED91: - | EE91: - | EF91: - | EG91: - | EH91: - | EI91: - | EJ91: - | EK91: - | EL91: - | EM91: - | EN91: - | EO91: - | EP91: - | EQ91: - | ER91: - | ES91: - | ET91: - | EU91: -
A92: 埼玉県 | B92: 北区(さいたま市) | C92: 大宮市４－２ | D92: 豊本 | E92: - | F92: - | G92: - | H92: - | I92: - | J92: - | K92: - | L92: - | M92: - | N92: - | O92: - | P92: - | Q92: - | R92: - | S92: - | T92: - | U92: - | V92: - | W92: - | X92: - | Y92: - | Z92: - | AA92: - | AB92: - | AC92: … | AD92: … | AE92: … | AF92: - | AG92: - | AH92: - | AI92: - | AJ92: - | AK92: - | AL92: - | AM92: - | AN92: - | AO92: - | AP92: - | AQ92: - | AR92: - | AS92: - | AT92: - | AU92: - | AV92: … | AW92: … | AX92: … | AY92: - | AZ92: - | BA92: - | BB92: - | BC92: - | BD92: - | BE92: - | BF92: - | BG92: - | BH92: - | BI92: - | BJ92: - | BK92: - | BL92: - | BM92: - | BN92: - | BO92: … | BP92: … | BQ92: … | BR92: - | BS92: - | BT92: - | BU92: - | BV92: - | BW92: - | BX92: - | BY92: - | BZ92: - | CA92: - | CB92: - | CC92: - | CD92: - | CE92: - | CF92: - | CG92: - | CH92: - | CI92: - | CJ92: - | CK92: - | CL92: - | CM92: - | CN92: - | CO92: - | CP92: - | CQ92: - | CR92: - | CS92: - | CT92: - | CU92: - | DC92: - | DD92: - | DE92: - | DF92: - | DG92: - | DH92: - | DI92: - | DJ92: - | DK92: - | DL92: - | DM92: - | DN92: - | DO92: - | DP92: - | DQ92: - | DR92: - | DS92: - | DT92: - | DU92: - | DV92: - | DW92: - | DX92: - | DY92: - | DZ92: - | EA92: - | EB92: - | EC92: - | ED92: - | EE92: - | EF92: - | EG92: - | EH92: - | EI92: - | EJ92: - | EK92: - | EL92: - | EM92: - | EN92: - | EO92: - | EP92: - | EQ92: - | ER92: - | ES92: - | ET92: - | EU92: -
A93: 埼玉県 | B93: 北区(さいたま市) | C93: 大宮市４－２ | D93: 本郷第１ | E93: 3 | F93: 2 | G93: x | H93: x | I93: x | J93: x | K93: x | L93: 1 | M93: x | N93: x | O93: x | P93: x | Q93: x | R93: x | S93: x | T93: x | U93: x | V93: x | W93: x | X93: x | Y93: x | Z93: x | AA93: x | AB93: x | AC93: 71.3 | AD93: 73.0 | AE93: 69.5 | AF93: x | AG93: x | AH93: x | AI93: x | AJ93: x | AK93: x | AL93: x | AM93: x | AN93: x | AO93: x | AP93: x | AQ93: x | AR93: x | AS93: x | AT93: x | AU93: x | AV93: 75.3 | AW93: 73.0 | AX93: 80.0 | AY93: x | AZ93: x | BA93: x | BB93: x | BC93: x | BD93: x | BE93: x | BF93: x | BG93: x | BH93: x | BI93: x | BJ93: x | BK93: x | BL93: x | BM93: x | BN93: x | BO93: 75.3 | BP93: 73.0 | BQ93: 80.0 | BR93: 2 | BS93: - | BT93: - | BU93: - | BV93: - | BW93: - | BX93: - | BY93: - | BZ93: - | CA93: - | CB93: 1 | CC93: - | CD93: - | CE93: - | CF93: 1 | CG93: - | CH93: 2 | CI93: - | CJ93: - | CK93: - | CL93: - | CM93: - | CN93: - | CO93: - | CP93: 1 | CQ93: - | CR93: - | CS93: - | CT93: 1 | CU93: - | DC93: 5 | DD93: 3 | DE93: 3 | DF93: - | DG93: - | DH93: 1 | DI93: 1 | DJ93: - | DK93: 2 | DL93: 1 | DM93: - | DN93: - | DO93: - | DP93: 1 | DQ93: - | DR93: - | DS93: - | DT93: - | DU93: - | DV93: - | DW93: - | DX93: - | DY93: - | DZ93: - | EA93: 2 | EB93: 111 | EC93: 96 | ED93: 15 | EE93: - | EF93: 3 | EG93: 2 | EH93: 2 | EI93: - | EJ93: - | EK93: - | EL93: 1 | EM93: - | EN93: 2 | EO93: 1 | EP93: 1 | EQ93: - | ER93: - | ES93: 1 | ET93: - | EU93: -
A94: 埼玉県 | B94: 北区(さいたま市) | C94: 大宮市４－２ | D94: 本郷第２ | E94: 7 | F94: 4 | G94: - | H94: - | I94: - | J94: - | K94: 4 | L94: 3 | M94: 9 | N94: - | O94: - | P94: - | Q94: - | R94: - | S94: - | T94: - | U94: 2 | V94: - | W94: 2 | X94: 1 | Y94: 1 | Z94: 3 | AA94: - | AB94: - | AC94: 66.7 | AD94: 66.8 | AE94: 66.6 | AF94: 7 | AG94: - | AH94: - | AI94: - | AJ94: - | AK94: - | AL94: - | AM94: - | AN94: - | AO94: - | AP94: 2 | AQ94: 1 | AR94: 1 | AS94: 3 | AT94: - | AU94: - | AV94: 70.9 | AW94: 71.7 | AX94: 70.3 | AY94: 7 | AZ94: - | BA94: - | BB94: - | BC94: - | BD94: - | BE94: - | BF94: - | BG94: - | BH94: - | BI94: 2 | BJ94: 1 | BK94: 1 | BL94: 3 | BM94: - | BN94: - | BO94: 70.9 | BP94: 71.7 | BQ94: 70.3 | BR94: 4 | BS94: - | BT94: - | BU94: - | BV94: - | BW94: - | BX94: - | BY94: - | BZ94: - | CA94: - | CB94: 1 | CC94: - | CD94: 1 | CE94: 1 | CF94: - | CG94: 1 | CH94: 1 | CI94: - | CJ94: - | CK94: - | CL94: - | CM94: - | CN94: - | CO94: - | CP94: - | CQ94: - | CR94: 1 | CS94: - | CT94: - | CU94: - | DC94: 14 | DD94: 12 | DE94: 7 | DF94: 4 | DG94: 1 | DH94: - | DI94: - | DJ94: 2 | DK94: 3 | DL94: - | DM94: - | DN94: - | DO94: - | DP94: 2 | DQ94: 1 | DR94: - | DS94: - | DT94: - | DU94: - | DV94: - | DW94: - | DX94: - | DY94: - | DZ94: - | EA94: 4 | EB94: 202 | EC94: - | ED94: 202 | EE94: - | EF94: 8 | EG94: 6 | EH94: 3 | EI94: 2 | EJ94: 1 | EK94: - | EL94: - | EM94: 2 | EN94: 6 | EO94: 6 | EP94: 4 | EQ94: 2 | ER94: - | ES94: - | ET94: - | EU94: -
A95: 埼玉県 | B95: 北区(さいたま市) | C95: 大宮市４－２ | D95: 今羽 | E95: 12 | F95: 9 | G95: 1 | H95: 1 | I95: 1 | J95: 1 | K95: 7 | L95: 3 | M95: 27 | N95: 1 | O95: 2 | P95: 1 | Q95: 1 | R95: 1 | S95: 6 | T95: - | U95: - | V95: 3 | W95: 3 | X95: - | Y95: 5 | Z95: 2 | AA95: 2 | AB95: - | AC95: 53.2 | AD95: 51.3 | AE95: 55.2 | AF95: 14 | AG95: - | AH95: - | AI95: - | AJ95: - | AK95: - | AL95: 1 | AM95: - | AN95: - | AO95: 1 | AP95: 3 | AQ95: - | AR95: 5 | AS95: 2 | AT95: 2 | AU95: - | AV95: 68.3 | AW95: 71.2 | AX95: 66.1 | AY95: 12 | AZ95: - | BA95: - | BB95: - | BC95: - | BD95: - | BE95: - | BF95: - | BG95: - | BH95: 1 | BI95: 2 | BJ95: - | BK95: 5 | BL95: 2 | BM95: 2 | BN95: - | BO95: 71.0 | BP95: 73.4 | BQ95: 69.3 | BR95: 9 | BS95: - | BT95: - | BU95: - | BV95: - | BW95: - | BX95: 1 | BY95: - | BZ95: - | CA95: 1 | CB95: 1 | CC95: - | CD95: 3 | CE95: 2 | CF95: 1 | CG95: - | CH95: 7 | CI95: - | CJ95: - | CK95: - | CL95: 1 | CM95: - | CN95: - | CO95: 1 | CP95: - | CQ95: - | CR95: 3 | CS95: 1 | CT95: 1 | CU95: - | DC95: 31 | DD95: 21 | DE95: 12 | DF95: 9 | DG95: - | DH95: 5 | DI95: 4 | DJ95: 1 | DK95: 7 | DL95: 1 | DM95: - | DN95: 4 | DO95: - | DP95: 1 | DQ95: 1 | DR95: - | DS95: - | DT95: - | DU95: - | DV95: - | DW95: - | DX95: - | DY95: - | DZ95: - | EA95: 9 | EB95: 1,017 | EC95: 361 | ED95: 496 | EE95: 160 | EF95: 16 | EG95: 12 | EH95: 5 | EI95: 7 | EJ95: - | EK95: - | EL95: 3 | EM95: 1 | EN95: 15 | EO95: 9 | EP95: 7 | EQ95: 2 | ER95: - | ES95: 5 | ET95: 1 | EU95: -
A96: 埼玉県 | B96: 北区(さいたま市) | C96: 大宮市４－２ | D96: 砂第１２－１ | E96: - | F96: - | G96: - | H96: - | I96: - | J96: - | K96: - | L96: - | M96: - | N96: - | O96: - | P96: - | Q96: - | R96: - | S96: - | T96: - | U96: - | V96: - | W96: - | X96: - | Y96: - | Z96: - | AA96: - | AB96: - | AC96: … | AD96: … | AE96: … | AF96: - | AG96: - | AH96: - | AI96: - | AJ96: - | AK96: - | AL96: - | AM96: - | AN96: - | AO96: - | AP96: - | AQ96: - | AR96: - | AS96: - | AT96: - | AU96: - | AV96: … | AW96: … | AX96: … | AY96: - | AZ96: - | BA96: - | BB96: - | BC96: - | BD96: - | BE96: - | BF96: - | BG96: - | BH96: - | BI96: - | BJ96: - | BK96: - | BL96: - | BM96: - | BN96: - | BO96: … | BP96: … | BQ96: … | BR96: - | BS96: - | BT96: - | BU96: - | BV96: - | BW96: - | BX96: - | BY96: - | BZ96: - | CA96: - | CB96: - | CC96: - | CD96: - | CE96: - | CF96: - | CG96: - | CH96: - | CI96: - | CJ96: - | CK96: - | CL96: - | CM96: - | CN96: - | CO96: - | CP96: - | CQ96: - | CR96: - | CS96: - | CT96: - | CU96: - | DC96: - | DD96: - | DE96: - | DF96: - | DG96: - | DH96: - | DI96: - | DJ96: - | DK96: - | DL96: - | DM96: - | DN96: - | DO96: - | DP96: - | DQ96: - | DR96: - | DS96: - | DT96: - | DU96: - | DV96: - | DW96: - | DX96: - | DY96: - | DZ96: - | EA96: - | EB96: - | EC96: - | ED96: - | EE96: - | EF96: - | EG96: - | EH96: - | EI96: - | EJ96: - | EK96: - | EL96: - | EM96: - | EN96: - | EO96: - | EP96: - | EQ96: - | ER96: - | ES96: - | ET96: - | EU96: -
A97: 埼玉県 | B97: 北区(さいたま市) | C97: 大宮市４－２ | D97: 大和田第２２－１ | E97: - | F97: - | G97: - | H97: - | I97: - | J97: - | K97: - | L97: - | M97: - | N97: - | O97: - | P97: - | Q97: - | R97: - | S97: - | T97: - | U97: - | V97: - | W97: - | X97: - | Y97: - | Z97: - | AA97: - | AB97: - | AC97: … | AD97: … | AE97: … | AF97: - | AG97: - | AH97: - | AI97: - | AJ97: - | AK97: - | AL97: - | AM97: - | AN97: - | AO97: - | AP97: - | AQ97: - | AR97: - | AS97: - | AT97: - | AU97: - | AV97: … | AW97: … | AX97: … | AY97: - | AZ97: - | BA97: - | BB97: - | BC97: - | BD97: - | BE97: - | BF97: - | BG97: - | BH97: - | BI97: - | BJ97: - | BK97: - | BL97: - | BM97: - | BN97: - | BO97: … | BP97: … | BQ97: … | BR97: - | BS97: - | BT97: - | BU97: - | BV97: - | BW97: - | BX97: - | BY97: - | BZ97: - | CA97: - | CB97: - | CC97: - | CD97: - | CE97: - | CF97: - | CG97: - | CH97: - | CI97: - | CJ97: - | CK97: - | CL97: - | CM97: - | CN97: - | CO97: - | CP97: - | CQ97: - | CR97: - | CS97: - | CT97: - | CU97: - | DC97: - | DD97: - | DE97: - | DF97: - | DG97: - | DH97: - | DI97: - | DJ97: - | DK97: - | DL97: - | DM97: - | DN97: - | DO97: - | DP97: - | DQ97: - | DR97: - | DS97: - | DT97: - | DU97: - | DV97: - | DW97: - | DX97: - | DY97: - | DZ97: - | EA97: - | EB97: - | EC97: - | ED97: - | EE97: - | EF97: - | EG97: - | EH97: - | EI97: - | EJ97: - | EK97: - | EL97: - | EM97: - | EN97: - | EO97: - | EP97: - | EQ97: - | ER97: - | ES97: - | ET97: - | EU97: -
A98: 埼玉県 | B98: 大宮区(さいたま市) | E98: 67 | F98: 21 | G98: 1 | H98: 1 | I98: 6 | J98: 1 | K98: 14 | L98: 46 | M98: 59 | N98: - | O98: 2 | P98: 2 | Q98: 4 | R98: 1 | S98: 1 | T98: 2 | U98: 6 | V98: 5 | W98: 10 | X98: 7 | Y98: 8 | Z98: 3 | AA98: 4 | AB98: 4 | AC98: 60.6 | AD98: 58.4 | AE98: 63.5 | AF98: 35 | AG98: - | AH98: 1 | AI98: 1 | AJ98: 1 | AK98: - | AL98: - | AM98: 1 | AN98: 1 | AO98: 2 | AP98: 6 | AQ98: 5 | AR98: 7 | AS98: 3 | AT98: 4 | AU98: 3 | AV98: 66.8 | AW98: 68.4 | AX98: 65.4 | AY98: 25 | AZ98: - | BA98: - | BB98: - | BC98: 1 | BD98: - | BE98: - | BF98: - | BG98: 1 | BH98: 1 | BI98: 4 | BJ98: 4 | BK98: 6 | BL98: 3 | BM98: 4 | BN98: 1 | BO98: 69.6 | BP98: 68.4 | BQ98: 71.7 | BR98: 21 | BS98: - | BT98: - | BU98: - | BV98: - | BW98: - | BX98: - | BY98: - | BZ98: 1 | CA98: 3 | CB98: 4 | CC98: 2 | CD98: 5 | CE98: 1 | CF98: 3 | CG98: 2 | CH98: 13 | CI98: - | CJ98: - | CK98: - | CL98: - | CM98: - | CN98: - | CO98: 1 | CP98: 4 | CQ98: 1 | CR98: 4 | CS98: - | CT98: 1 | CU98: 2 | DC98: 82 | DD98: 53 | DE98: 25 | DF98: 26 | DG98: 2 | DH98: 17 | DI98: 3 | DJ98: 9 | DK98: 11 | DL98: 8 | DM98: - | DN98: 1 | DO98: - | DP98: 1 | DQ98: 1 | DR98: - | DS98: - | DT98: - | DU98: - | DV98: - | DW98: - | DX98: - | DY98: - | DZ98: - | EA98: 21 | EB98: 1,598 | EC98: 1,045 | ED98: 543 | EE98: 10 | EF98: 40 | EG98: 36 | EH98: 16 | EI98: 19 | EJ98: 1 | EK98: - | EL98: 1 | EM98: 3 | EN98: 42 | EO98: 17 | EP98: 9 | EQ98: 7 | ER98: 1 | ES98: 17 | ET98: 2 | EU98: 6
A99: 埼玉県 | B99: 大宮区(さいたま市) | C99: 浦和市４－１ | E99: - | F99: - | G99: - | H99: - | I99: - | J99: - | K99: - | L99: - | M99: - | N99: - | O99: - | P99: - | Q99: - | R99: - | S99: - | T99: - | U99: - | V99: - | W99: - | X99: - | Y99: - | Z99: - | AA99: - | AB99: - | AC99: - | AD99: - | AE99: - | AF99: - | AG99: - | AH99: - | AI99: - | AJ99: - | AK99: - | AL99: - | AM99: - | AN99: - | AO99: - | AP99: - | AQ99: - | AR99: - | AS99: - | AT99: - | AU99: - | AV99: - | AW99: - | AX99: - | AY99: - | AZ99: - | BA99: - | BB99: - | BC99: - | BD99: - | BE99: - | BF99: - | BG99: - | BH99: - | BI99: - | BJ99: - | BK99: - | BL99: - | BM99: - | BN99: - | BO99: - | BP99: - | BQ99: - | BR99: - | BS99: - | BT99: - | BU99: - | BV99: - | BW99: - | BX99: - | BY99: - | BZ99: - | CA99: - | CB99: - | CC99: - | CD99: - | CE99: - | CF99: - | CG99: - | CH99: - | CI99: - | CJ99: - | CK99: - | CL99: - | CM99: - | CN99: - | CO99: - | CP99: - | CQ99: - | CR99: - | CS99: - | CT99: - | CU99: - | DC99: - | DD99: - | DE99: - | DF99: - | DG99: - | DH99: - | DI99: - | DJ99: - | DK99: - | DL99: - | DM99: - | DN99: - | DO99: - | DP99: - | DQ99: - | DR99: - | DS99: - | DT99: - | DU99: - | DV99: - | DW99: - | DX99: - | DY99: - | DZ99: - | EA99: - | EB99: - | EC99: - | ED99: - | EE99: - | EF99: - | EG99: - | EH99: - | EI99: - | EJ99: - | EK99: - | EL99: - | EM99: - | EN99: - | EO99: - | EP99: - | EQ99: - | ER99: - | ES99: - | ET99: - | EU99: -
A100: 埼玉県 | B100: 大宮区(さいたま市) | C100: 浦和市４－１ | D100: 下木崎３－１ | E100: - | F100: - | G100: - | H100: - | I100: - | J100: - | K100: - | L100: - | M100: - | N100: - | O100: - | P100: - | Q100: - | R100: - | S100: - | T100: - | U100: - | V100: - | W100: - | X100: - | Y100: - | Z100: - | AA100: - | AB100: - | AC100: … | AD100: … | AE100: … | AF100: - | AG100: - | AH100: - | AI100: - | AJ100: - | AK100: - | AL100: - | AM100: - | AN100: - | AO100: - | AP100: - | AQ100: - | AR100: - | AS100: - | AT100: - | AU100: - | AV100: … | AW100: … | AX100: … | AY100: - | AZ100: - | BA100: - | BB100: - | BC100: - | BD100: - | BE100: - | BF100: - | BG100: - | BH100: - | BI100: - | BJ100: - | BK100: - | BL100: - | BM100: - | BN100: - | BO100: … | BP100: … | BQ100: … | BR100: - | BS100: - | BT100: - | BU100: - | BV100: - | BW100: - | BX100: - | BY100: - | BZ100: - | CA100: - | CB100: - | CC100: - | CD100: - | CE100: - | CF100: - | CG100: - | CH100: - | CI100: - | CJ100: - | CK100: - | CL100: - | CM100: - | CN100: - | CO100: - | CP100: - | CQ100: - | CR100: - | CS100: - | CT100: - | CU100: - | DC100: - | DD100: - | DE100: - | DF100: - | DG100: - | DH100: - | DI100: - | DJ100: - | DK100: - | DL100: - | DM100: - | DN100: - | DO100: - | DP100: - | DQ100: - | DR100: - | DS100: - | DT100: - | DU100: - | DV100: - | DW100: - | DX100: - | DY100: - | DZ100: - | EA100: - | EB100: - | EC100: - | ED100: - | EE100: - | EF100: - | EG100: - | EH100: - | EI100: - | EJ100: - | EK100: - | EL100: - | EM100: - | EN100: - | EO100: - | EP100: - | EQ100: - | ER100: - | ES100: - | ET100: - | EU100: -
A101: 埼玉県 | B101: 大宮区(さいたま市) | C101: 浦和市４－１ | D101: 下木崎３－２ | E101: @ | F101: @ | G101: @ | H101: @ | I101: @ | J101: @ | K101: @ | L101: @ | M101: @ | N101: @ | O101: @ | P101: @ | Q101: @ | R101: @ | S101: @ | T101: @ | U101: @ | V101: @ | W101: @ | X101: @ | Y101: @ | Z101: @ | AA101: @ | AB101: @ | AC101: … | AD101: … | AE101: … | AF101: @ | AG101: @ | AH101: @ | AI101: @ | AJ101: @ | AK101: @ | AL101: @ | AM101: @ | AN101: @ | AO101: @ | AP101: @ | AQ101: @ | AR101: @ | AS101: @ | AT101: @ | AU101: @ | AV101: … | AW101: … | AX101: … | AY101: @ | AZ101: @ | BA101: @ | BB101: @ | BC101: @ | BD101: @ | BE101: @ | BF101: @ | BG101: @ | BH101: @ | BI101: @ | BJ101: @ | BK101: @ | BL101: @ | BM101: @ | BN101: @ | BO101: … | BP101: … | BQ101: … | BR101: - | BS101: - | BT101: - | BU101: - | BV101: - | BW101: - | BX101: - | BY101: - | BZ101: - | CA101: - | CB101: - | CC101: - | CD101: - | CE101: - | CF101: - | CG101: - | CH101: - | CI101: - | CJ101: - | CK101: - | CL101: - | CM101: - | CN101: - | CO101: - | CP101: - | CQ101: - | CR101: - | CS101: - | CT101: - | CU101: - | DC101: - | DD101: - | DE101: - | DF101: - | DG101: - | DH101: - | DI101: - | DJ101: - | DK101: - | DL101: - | DM101: - | DN101: - | DO101: - | DP101: - | DQ101: - | DR101: - | DS101: - | DT101: - | DU101: - | DV101: - | DW101: - | DX101: - | DY101: - | DZ101: - | EA101: - | EB101: - | EC101: - | ED101: - | EE101: - | EF101: - | EG101: - | EH101: - | EI101: - | EJ101: - | EK101: - | EL101: - | EM101: - | EN101: - | EO101: - | EP101: - | EQ101: - | ER101: - | ES101: - | ET101: - | EU101: -
A102: 埼玉県 | B102: 大宮区(さいたま市) | C102: 大宮市４－３ | E102: 67 | F102: 21 | G102: 1 | H102: 1 | I102: 6 | J102: 1 | K102: 14 | L102: 46 | M102: 59 | N102: - | O102: 2 | P102: 2 | Q102: 4 | R102: 1 | S102: 1 | T102: 2 | U102: 6 | V102: 5 | W102: 10 | X102: 7 | Y102: 8 | Z102: 3 | AA102: 4 | AB102: 4 | AC102: 60.6 | AD102: 58.4 | AE102: 63.5 | AF102: 35 | AG102: - | AH102: 1 | AI102: 1 | AJ102: 1 | AK102: - | AL102: - | AM102: 1 | AN102: 1 | AO102: 2 | AP102: 6 | AQ102: 5 | AR102: 7 | AS102: 3 | AT102: 4 | AU102: 3 | AV102: 66.8 | AW102: 68.4 | AX102: 65.4 | AY102: 25 | AZ102: - | BA102: - | BB102: - | BC102: 1 | BD102: - | BE102: - | BF102: - | BG102: 1 | BH102: 1 | BI102: 4 | BJ102: 4 | BK102: 6 | BL102: 3 | BM102: 4 | BN102: 1 | BO102: 69.6 | BP102: 68.4 | BQ102: 71.7 | BR102: 21 | BS102: - | BT102: - | BU102: - | BV102: - | BW102: - | BX102: - | BY102: - | BZ102: 1 | CA102: 3 | CB102: 4 | CC102: 2 | CD102: 5 | CE102: 1 | CF102: 3 | CG102: 2 | CH102: 13 | CI102: - | CJ102: - | CK102: - | CL102: - | CM102: - | CN102: - | CO102: 1 | CP102: 4 | CQ102: 1 | CR102: 4 | CS102: - | CT102: 1 | CU102: 2 | DC102: 82 | DD102: 53 | DE102: 25 | DF102: 26 | DG102: 2 | DH102: 17 | DI102: 3 | DJ102: 9 | DK102: 11 | DL102: 8 | DM102: - | DN102: 1 | DO102: - | DP102: 1 | DQ102: 1 | DR102: - | DS102: - | DT102: - | DU102: - | DV102: - | DW102: - | DX102: - | DY102: - | DZ102: - | EA102: 21 | EB102: 1,598 | EC102: 1,045 | ED102: 543 | EE102: 10 | EF102: 40 | EG102: 36 | EH102: 16 | EI102: 19 | EJ102: 1 | EK102: - | EL102: 1 | EM102: 3 | EN102: 42 | EO102: 17 | EP102: 9 | EQ102: 7 | ER102: 1 | ES102: 17 | ET102: 2 | EU102: 6
A103: 埼玉県 | B103: 大宮区(さいたま市) | C103: 大宮市４－３ | D103: 北袋 | E103: 7 | F103: 1 | G103: x | H103: x | I103: x | J103: x | K103: x | L103: 6 | M103: x | N103: x | O103: x | P103: x | Q103: x | R103: x | S103: x | T103: x | U103: x | V103: x | W103: x | X103: x | Y103: x | Z103: x | AA103: x | AB103: x | AC103: 72.3 | AD103: 75.0 | AE103: 71.3 | AF103: x | AG103: x | AH103: x | AI103: x | AJ103: x | AK103: x | AL103: x | AM103: x | AN103: x | AO103: x | AP103: x | AQ103: x | AR103: x | AS103: x | AT103: x | AU103: x | AV103: 72.3 | AW103: 75.0 | AX103: 71.3 | AY103: x | AZ103: x | BA103: x | BB103: x | BC103: x | BD103: x | BE103: x | BF103: x | BG103: x | BH103: x | BI103: x | BJ103: x | BK103: x | BL103: x | BM103: x | BN103: x | BO103: 73.0 | BP103: 75.0 | BQ103: 71.0 | BR103: 1 | BS103: - | BT103: - | BU103: - | BV103: - | BW103: - | BX103: - | BY103: - | BZ103: - | CA103: - | CB103: - | CC103: - | CD103: - | CE103: 1 | CF103: - | CG103: - | CH103: - | CI103: - | CJ103: - | CK103: - | CL103: - | CM103: - | CN103: - | CO103: - | CP103: - | CQ103: - | CR103: - | CS103: - | CT103: - | CU103: - | DC103: 5 | DD103: 2 | DE103: 2 | DF103: - | DG103: - | DH103: - | DI103: - | DJ103: 3 | DK103: 1 | DL103: - | DM103: - | DN103: - | DO103: - | DP103: 1 | DQ103: - | DR103: - | DS103: - | DT103: - | DU103: - | DV103: - | DW103: - | DX103: - | DY103: - | DZ103: - | EA103: 1 | EB103: 69 | EC103: 19 | ED103: 50 | EE103: - | EF103: 2 | EG103: 1 | EH103: 1 | EI103: - | EJ103: - | EK103: - | EL103: - | EM103: 1 | EN103: 3 | EO103: 1 | EP103: 1 | EQ103: - | ER103: - | ES103: - | ET103: - | EU103: 2
A104: 埼玉県 | B104: 大宮区(さいたま市) | C104: 大宮市４－３ | D104: 天沼南 | E104: @ | F104: @ | G104: @ | H104: @ | I104: @ | J104: @ | K104: @ | L104: @ | M104: @ | N104: @ | O104: @ | P104: @ | Q104: @ | R104: @ | S104: @ | T104: @ | U104: @ | V104: @ | W104: @ | X104: @ | Y104: @ | Z104: @ | AA104: @ | AB104: @ | AC104: … | AD104: … | AE104: … | AF104: @ | AG104: @ | AH104: @ | AI104: @ | AJ104: @ | AK104: @ | AL104: @ | AM104: @ | AN104: @ | AO104: @ | AP104: @ | AQ104: @ | AR104: @ | AS104: @ | AT104: @ | AU104: @ | AV104: … | AW104: … | AX104: … | AY104: @ | AZ104: @ | BA104: @ | BB104: @ | BC104: @ | BD104: @ | BE104: @ | BF104: @ | BG104: @ | BH104: @ | BI104: @ | BJ104: @ | BK104: @ | BL104: @ | BM104: @ | BN104: @ | BO104: … | BP104: … | BQ104: … | BR104: - | BS104: - | BT104: - | BU104: - | BV104: - | BW104: - | BX104: - | BY104: - | BZ104: - | CA104: - | CB104: - | CC104: - | CD104: - | CE104: - | CF104: - | CG104: - | CH104: - | CI104: - | CJ104: - | CK104: - | CL104: - | CM104: - | CN104: - | CO104: - | CP104: - | CQ104: - | CR104: - | CS104: - | CT104: - | CU104: - | DC104: - | DD104: - | DE104: - | DF104: - | DG104: - | DH104: - | DI104: - | DJ104: - | DK104: - | DL104: - | DM104: - | DN104: - | DO104: - | DP104: - | DQ104: - | DR104: - | DS104: - | DT104: - | DU104: - | DV104: - | DW104: - | DX104: - | DY104: - | DZ104: - | EA104: - | EB104: - | EC104: - | ED104: - | EE104: - | EF104: - | EG104: - | EH104: - | EI104: - | EJ104: - | EK104: - | EL104: - | EM104: - | EN104: - | EO104: - | EP104: - | EQ104: - | ER104: - | ES104: - | ET104: - | EU104: -
A105: 埼玉県 | B105: 大宮区(さいたま市) | C105: 大宮市４－３ | D105: 天沼北２－１ | E105: 6 | F105: 3 | G105: - | H105: - | I105: - | J105: - | K105: 3 | L105: 3 | M105: 8 | N105: - | O105: - | P105: - | Q105: 1 | R105: 1 | S105: 1 | T105: - | U105: - | V105: - | W105: 3 | X105: 2 | Y105: - | Z105: - | AA105: - | AB105: - | AC105: 53.9 | AD105: 50.5 | AE105: 64.0 | AF105: 2 | AG105: - | AH105: - | AI105: - | AJ105: - | AK105: - | AL105: - | AM105: - | AN105: - | AO105: - | AP105: 2 | AQ105: - | AR105: - | AS105: - | AT105: - | AU105: - | AV105: 61.5 | AW105: 61.0 | AX105: 62.0 | AY105: 2 | AZ105: - | BA105: - | BB105: - | BC105: - | BD105: - | BE105: - | BF105: - | BG105: - | BH105: - | BI105: 2 | BJ105: - | BK105: - | BL105: - | BM105: - | BN105: - | BO105: 61.5 | BP105: 61.0 | BQ105: 62.0 | BR105: 3 | BS105: - | BT105: - | BU105: - | BV105: - | BW105: - | BX105: - | BY105: - | BZ105: - | CA105: - | CB105: 2 | CC105: 1 | CD105: - | CE105: - | CF105: - | CG105: - | CH105: 2 | CI105: - | CJ105: - | CK105: - | CL105: - | CM105: - | CN105: - | CO105: - | CP105: 2 | CQ105: - | CR105: - | CS105: - | CT105: - | CU105: - | DC105: 13 | DD105: 10 | DE105: 2 | DF105: 7 | DG105: 1 | DH105: 2 | DI105: - | DJ105: 1 | DK105: - | DL105: - | DM105: - | DN105: - | DO105: - | DP105: - | DQ105: - | DR105: - | DS105: - | DT105: - | DU105: - | DV105: - | DW105: - | DX105: - | DY105: - | DZ105: - | EA105: 3 | EB105: 247 | EC105: 138 | ED105: 109 | EE105: - | EF105: 7 | EG105: 7 | EH105: 1 | EI105: 6 | EJ105: - | EK105: - | EL105: - | EM105: - | EN105: 6 | EO105: 3 | EP105: 1 | EQ105: 1 | ER105: 1 | ES105: 2 | ET105: - | EU105: 1
A106: 埼玉県 | B106: 大宮区(さいたま市) | C106: 大宮市４－３ | D106: 吉敷 | E106: - | F106: - | G106: - | H106: - | I106: - | J106: - | K106: - | L106: - | M106: - | N106: - | O106: - | P106: - | Q106: - | R106: - | S106: - | T106: - | U106: - | V106: - | W106: - | X106: - | Y106: - | Z106: - | AA106: - | AB106: - | AC106: … | AD106: … | AE106: … | AF106: - | AG106: - | AH106: - | AI106: - | AJ106: - | AK106: - | AL106: - | AM106: - | AN106: - | AO106: - | AP106: - | AQ106: - | AR106: - | AS106: - | AT106: - | AU106: - | AV106: … | AW106: … | AX106: … | AY106: - | AZ106: - | BA106: - | BB106: - | BC106: - | BD106: - | BE106: - | BF106: - | BG106: - | BH106: - | BI106: - | BJ106: - | BK106: - | BL106: - | BM106: - | BN106: - | BO106: … | BP106: … | BQ106: … | BR106: - | BS106: - | BT106: - | BU106: - | BV106: - | BW106: - | BX106: - | BY106: - | BZ106: - | CA106: - | CB106: - | CC106: - | CD106: - | CE106: - | CF106: - | CG106: - | CH106: - | CI106: - | CJ106: - | CK106: - | CL106: - | CM106: - | CN106: - | CO106: - | CP106: - | CQ106: - | CR106: - | CS106: - | CT106: - | CU106: - | DC106: - | DD106: - | DE106: - | DF106: - | DG106: - | DH106: - | DI106: - | DJ106: - | DK106: - | DL106: - | DM106: - | DN106: - | DO106: - | DP106: - | DQ106: - | DR106: - | DS106: - | DT106: - | DU106: - | DV106: - | DW106: - | DX106: - | DY106: - | DZ106: - | EA106: - | EB106: - | EC106: - | ED106: - | EE106: - | EF106: - | EG106: - | EH106: - | EI106: - | EJ106: - | EK106: - | EL106: - | EM106: - | EN106: - | EO106: - | EP106: - | EQ106: - | ER106: - | ES106: - | ET106: - | EU106: -
A107: 埼玉県 | B107: 大宮区(さいたま市) | C107: 大宮市４－３ | D107: 堀の内南 | E107: 1 | F107: 1 | G107: x | H107: x | I107: x | J107: x | K107: x | L107: - | M107: x | N107: x | O107: x | P107: x | Q107: x | R107: x | S107: x | T107: x | U107: x | V107: x | W107: x | X107: x | Y107: x | Z107: x | AA107: x | AB107: x | AC107: 67.7 | AD107: 59.0 | AE107: 72.0 | AF107: x | AG107: x | AH107: x | AI107: x | AJ107: x | AK107: x | AL107: x | AM107: x | AN107: x | AO107: x | AP107: x | AQ107: x | AR107: x | AS107: x | AT107: x | AU107: x | AV107: 56.0 | AW107: … | AX107: 56.0 | AY107: x | AZ107: x | BA107: x | BB107: x | BC107: x | BD107: x | BE107: x | BF107: x | BG107: x | BH107: x | BI107: x | BJ107: x | BK107: x | BL107: x | BM107: x | BN107: x | BO107: … | BP107: … | BQ107: … | BR107: 1 | BS107: - | BT107: - | BU107: - | BV107: - | BW107: - | BX107: - | BY107: - | BZ107: - | CA107: 1 | CB107: - | CC107: - | CD107: - | CE107: - | CF107: - | CG107: - | CH107: 1 | CI107: - | CJ107: - | CK107: - | CL107: - | CM107: - | CN107: - | CO107: 1 | CP107: - | CQ107: - | CR107: - | CS107: - | CT107: - | CU107: - | DC107: 5 | DD107: 3 | DE107: - | DF107: 3 | DG107: - | DH107: 1 | DI107: - | DJ107: 1 | DK107: 1 | DL107: - | DM107: - | DN107: 1 | DO107: - | DP107: - | DQ107: - | DR107: - | DS107: - | DT107: - | DU107: - | DV107: - | DW107: - | DX107: - | DY107: - | DZ107: - | EA107: 1 | EB107: 100 | EC107: - | ED107: 100 | EE107: - | EF107: 2 | EG107: 2 | EH107: - | EI107: 2 | EJ107: - | EK107: - | EL107: - | EM107: - | EN107: 3 | EO107: 1 | EP107: - | EQ107: 1 | ER107: - | ES107: 1 | ET107: - | EU107: 1
A108: 埼玉県 | B108: 大宮区(さいたま市) | C108: 大宮市４－３ | D108: 堀の内北 | E108: - | F108: - | G108: - | H108: - | I108: - | J108: - | K108: - | L108: - | M108: - | N108: - | O108: - | P108: - | Q108: - | R108: - | S108: - | T108: - | U108: - | V108: - | W108: - | X108: - | Y108: - | Z108: - | AA108: - | AB108: - | AC108: … | AD108: … | AE108: … | AF108: - | AG108: - | AH108: - | AI108: - | AJ108: - | AK108: - | AL108: - | AM108: - | AN108: - | AO108: - | AP108: - | AQ108: - | AR108: - | AS108: - | AT108: - | AU108: - | AV108: … | AW108: … | AX108: … | AY108: - | AZ108: - | BA108: - | BB108: - | BC108: - | BD108: - | BE108: - | BF108: - | BG108: - | BH108: - | BI108: - | BJ108: - | BK108: - | BL108: - | BM108: - | BN108: - | BO108: … | BP108: … | BQ108: … | BR108: - | BS108: - | BT108: - | BU108: - | BV108: - | BW108: - | BX108: - | BY108: - | BZ108: - | CA108: - | CB108: - | CC108: - | CD108: - | CE108: - | CF108: - | CG108: - | CH108: - | CI108: - | CJ108: - | CK108: - | CL108: - | CM108: - | CN108: - | CO108: - | CP108: - | CQ108: - | CR108: - | CS108: - | CT108: - | CU108: - | DC108: - | DD108: - | DE108: - | DF108: - | DG108: - | DH108: - | DI108: - | DJ108: - | DK108: - | DL108: - | DM108: - | DN108: - | DO108: - | DP108: - | DQ108: - | DR108: - | DS108: - | DT108: - | DU108: - | DV108: - | DW108: - | DX108: - | DY108: - | DZ108: - | EA108: - | EB108: - | EC108: - | ED108: - | EE108: - | EF108: - | EG108: - | EH108: - | EI108: - | EJ108: - | EK108: - | EL108: - | EM108: - | EN108: - | EO108: - | EP108: - | EQ108: - | ER108: - | ES108: - | ET108: - | EU108: -
A109: 埼玉県 | B109: 大宮区(さいたま市) | C109: 大宮市４－３ | D109: 高鼻２－２ | E109: 1 | F109: - | G109: - | H109: - | I109: - | J109: - | K109: - | L109: 1 | M109: - | N109: - | O109: - | P109: - | Q109: - | R109: - | S109: - | T109: - | U109: - | V109: - | W109: - | X109: - | Y109: - | Z109: - | AA109: - | AB109: - | AC109: … | AD109: … | AE109: … | AF109: - | AG109: - | AH109: - | AI109: - | AJ109: - | AK109: - | AL109: - | AM109: - | AN109: - | AO109: - | AP109: - | AQ109: - | AR109: - | AS109: - | AT109: - | AU109: - | AV109: … | AW109: … | AX109: … | AY109: - | AZ109: - | BA109: - | BB109: - | BC109: - | BD109: - | BE109: - | BF109: - | BG109: - | BH109: - | BI109: - | BJ109: - | BK109: - | BL109: - | BM109: - | BN109: - | BO109: … | BP109: … | BQ109: … | BR109: - | BS109: - | BT109: - | BU109: - | BV109: - | BW109: - | BX109: - | BY109: - | BZ109: - | CA109: - | CB109: - | CC109: - | CD109: - | CE109: - | CF109: - | CG109: - | CH109: - | CI109: - | CJ109: - | CK109: - | CL109: - | CM109: - | CN109: - | CO109: - | CP109: - | CQ109: - | CR109: - | CS109: - | CT109: - | CU109: - | DC109: - | DD109: - | DE109: - | DF109: - | DG109: - | DH109: - | DI109: - | DJ109: - | DK109: - | DL109: - | DM109: - | DN109: - | DO109: - | DP109: - | DQ109: - | DR109: - | DS109: - | DT109: - | DU109: - | DV109: - | DW109: - | DX109: - | DY109: - | DZ109: - | EA109: - | EB109: - | EC109: - | ED109: - | EE109: - | EF109: - | EG109: - | EH109: - | EI109: - | EJ109: - | EK109: - | EL109: - | EM109: - | EN109: - | EO109: - | EP109: - | EQ109: - | ER109: - | ES109: - | ET109: - | EU109: -
A110: 埼玉県 | B110: 大宮区(さいたま市) | C110: 大宮市４－３ | D110: 土手南 | E110: - | F110: - | G110: - | H110: - | I110: - | J110: - | K110: - | L110: - | M110: - | N110: - | O110: - | P110: - | Q110: - | R110: - | S110: - | T110: - | U110: - | V110: - | W110: - | X110: - | Y110: - | Z110: - | AA110: - | AB110: - | AC110: … | AD110: … | AE110: … | AF110: - | AG110: - | AH110: - | AI110: - | AJ110: - | AK110: - | AL110: - | AM110: - | AN110: - | AO110: - | AP110: - | AQ110: - | AR110: - | AS110: - | AT110: - | AU110: - | AV110: … | AW110: … | AX110: … | AY110: - | AZ110: - | BA110: - | BB110: - | BC110: - | BD110: - | BE110: - | BF110: - | BG110: - | BH110: - | BI110: - | BJ110: - | BK110: - | BL110: - | BM110: - | BN110: - | BO110: … | BP110: … | BQ110: … | BR110: - | BS110: - | BT110: - | BU110: - | BV110: - | BW110: - | BX110: - | BY110: - | BZ110: - | CA110: - | CB110: - | CC110: - | CD110: - | CE110: - | CF110: - | CG110: - | CH110: - | CI110: - | CJ110: - | CK110: - | CL110: - | CM110: - | CN110: - | CO110: - | CP110: - | CQ110: - | CR110: - | CS110: - | CT110: - | CU110: - | DC110: - | DD110: - | DE110: - | DF110: - | DG110: - | DH110: - | DI110: - | DJ110: - | DK110: - | DL110: - | DM110: - | DN110: - | DO110: - | DP110: - | DQ110: - | DR110: - | DS110: - | DT110: - | DU110: - | DV110: - | DW110: - | DX110: - | DY110: - | DZ110: - | EA110: - | EB110: - | EC110: - | ED110: - | EE110: - | EF110: - | EG110: - | EH110: - | EI110: - | EJ110: - | EK110: - | EL110: - | EM110: - | EN110: - | EO110: - | EP110: - | EQ110: - | ER110: - | ES110: - | ET110: - | EU110: -
A111: 埼玉県 | B111: 大宮区(さいたま市) | C111: 大宮市４－３ | D111: 土手北２－２ | E111: - | F111: - | G111: - | H111: - | I111: - | J111: - | K111: - | L111: - | M111: - | N111: - | O111: - | P111: - | Q111: - | R111: - | S111: - | T111: - | U111: - | V111: - | W111: - | X111: - | Y111: - | Z111: - | AA111: - | AB111: - | AC111: … | AD111: … | AE111: … | AF111: - | AG111: - | AH111: - | AI111: - | AJ111: - | AK111: - | AL111: - | AM111: - | AN111: - | AO111: - | AP111: - | AQ111: - | AR111: - | AS111: - | AT111: - | AU111: - | AV111: … | AW111: … | AX111: … | AY111: - | AZ111: - | BA111: - | BB111: - | BC111: - | BD111: - | BE111: - | BF111: - | BG111: - | BH111: - | BI111: - | BJ111: - | BK111: - | BL111: - | BM111: - | BN111: - | BO111: … | BP111: … | BQ111: … | BR111: - | BS111: - | BT111: - | BU111: - | BV111: - | BW111: - | BX111: - | BY111: - | BZ111: - | CA111: - | CB111: - | CC111: - | CD111: - | CE111: - | CF111: - | CG111: - | CH111: - | CI111: - | CJ111: - | CK111: - | CL111: - | CM111: - | CN111: - | CO111: - | CP111: - | CQ111: - | CR111: - | CS111: - | CT111: - | CU111: - | DC111: - | DD111: - | DE111: - | DF111: - | DG111: - | DH111: - | DI111: - | DJ111: - | DK111: - | DL111: - | DM111: - | DN111: - | DO111: - | DP111: - | DQ111: - | DR111: - | DS111: - | DT111: - | DU111: - | DV111: - | DW111: - | DX111: - | DY111: - | DZ111: - | EA111: - | EB111: - | EC111: - | ED111: - | EE111: - | EF111: - | EG111: - | EH111: - | EI111: - | EJ111: - | EK111: - | EL111: - | EM111: - | EN111: - | EO111: - | EP111: - | EQ111: - | ER111: - | ES111: - | ET111: - | EU111: -
A112: 埼玉県 | B112: 大宮区(さいたま市) | C112: 大宮市４－３ | D112: 桜木４丁目 | E112: 5 | F112: 1 | G112: x | H112: x | I112: x | J112: x | K112: x | L112: 4 | M112: x | N112: x | O112: x | P112: x | Q112: x | R112: x | S112: x | T112: x | U112: x | V112: x | W112: x | X112: x | Y112: x | Z112: x | AA112: x | AB112: x | AC112: 62.7 | AD112: 59.5 | AE112: 69.0 | AF112: x | AG112: x | AH112: x | AI112: x | AJ112: x | AK112: x | AL112: x | AM112: x | AN112: x | AO112: x | AP112: x | AQ112: x | AR112: x | AS112: x | AT112: x | AU112: x | AV112: 71.5 | AW112: 74.0 | AX112: 69.0 | AY112: x | AZ112: x | BA112: x | BB112: x | BC112: x | BD112: x | BE112: x | BF112: x | BG112: x | BH112: x | BI112: x | BJ112: x | BK112: x | BL112: x | BM112: x | BN112: x | BO112: 74.0 | BP112: 74.0 | BQ112: … | BR112: 1 | BS112: - | BT112: - | BU112: - | BV112: - | BW112: - | BX112: - | BY112: - | BZ112: - | CA112: - | CB112: - | CC112: - | CD112: 1 | CE112: - | CF112: - | CG112: - | CH112: 1 | CI112: - | CJ112: - | CK112: - | CL112: - | CM112: - | CN112: - | CO112: - | CP112: - | CQ112: - | CR112: 1 | CS112: - | CT112: - | CU112: - | DC112: 3 | DD112: 2 | DE112: 1 | DF112: 1 | DG112: - | DH112: 1 | DI112: - | DJ112: - | DK112: - | DL112: - | DM112: - | DN112: - | DO112: - | DP112: - | DQ112: - | DR112: - | DS112: - | DT112: - | DU112: - | DV112: - | DW112: - | DX112: - | DY112: - | DZ112: - | EA112: 1 | EB112: 35 | EC112: 30 | ED112: 5 | EE112: - | EF112: 2 | EG112: 2 | EH112: 1 | EI112: 1 | EJ112: - | EK112: - | EL112: - | EM112: - | EN112: 1 | EO112: - | EP112: - | EQ112: - | ER112: - | ES112: 1 | ET112: - | EU112: -
A113: 埼玉県 | B113: 大宮区(さいたま市) | C113: 大宮市４－３ | D113: 下大成 | E113: - | F113: - | G113: - | H113: - | I113: - | J113: - | K113: - | L113: - | M113: - | N113: - | O113: - | P113: - | Q113: - | R113: - | S113: - | T113: - | U113: - | V113: - | W113: - | X113: - | Y113: - | Z113: - | AA113: - | AB113: - | AC113: … | AD113: … | AE113: … | AF113: - | AG113: - | AH113: - | AI113: - | AJ113: - | AK113: - | AL113: - | AM113: - | AN113: - | AO113: - | AP113: - | AQ113: - | AR113: - | AS113: - | AT113: - | AU113: - | AV113: … | AW113: … | AX113: … | AY113: - | AZ113: - | BA113: - | BB113: - | BC113: - | BD113: - | BE113: - | BF113: - | BG113: - | BH113: - | BI113: - | BJ113: - | BK113: - | BL113: - | BM113: - | BN113: - | BO113: … | BP113: … | BQ113: … | BR113: - | BS113: - | BT113: - | BU113: - | BV113: - | BW113: - | BX113: - | BY113: - | BZ113: - | CA113: - | CB113: - | CC113: - | CD113: - | CE113: - | CF113: - | CG113: - | CH113: - | CI113: - | CJ113: - | CK113: - | CL113: - | CM113: - | CN113: - | CO113: - | CP113: - | CQ113: - | CR113: - | CS113: - | CT113: - | CU113: - | DC113: - | DD113: - | DE113: - | DF113: - | DG113: - | DH113: - | DI113: - | DJ113: - | DK113: - | DL113: - | DM113: - | DN113: - | DO113: - | DP113: - | DQ113: - | DR113: - | DS113: - | DT113: - | DU113: - | DV113: - | DW113: - | DX113: - | DY113: - | DZ113: - | EA113: - | EB113: - | EC113: - | ED113: - | EE113: - | EF113: - | EG113: - | EH113: - | EI113: - | EJ113: - | EK113: - | EL113: - | EM113: - | EN113: - | EO113: - | EP113: - | EQ113: - | ER113: - | ES113: - | ET113: - | EU113: -
A114: 埼玉県 | B114: 大宮区(さいたま市) | C114: 大宮市４－３ | D114: 中大成 | E114: 1 | F114: - | G114: - | H114: - | I114: - | J114: - | K114: - | L114: 1 | M114: - | N114: - | O114: - | P114: - | Q114: - | R114: - | S114: - | T114: - | U114: - | V114: - | W114: - | X114: - | Y114: - | Z114: - | AA114: - | AB114: - | AC114: … | AD114: … | AE114: … | AF114: - | AG114: - | AH114: - | AI114: - | AJ114: - | AK114: - | AL114: - | AM114: - | AN114: - | AO114: - | AP114: - | AQ114: - | AR114: - | AS114: - | AT114: - | AU114: - | AV114: … | AW114: … | AX114: … | AY114: - | AZ114: - | BA114: - | BB114: - | BC114: - | BD114: - | BE114: - | BF114: - | BG114: - | BH114: - | BI114: - | BJ114: - | BK114: - | BL114: - | BM114: - | BN114: - | BO114: … | BP114: … | BQ114: … | BR114: - | BS114: - | BT114: - | BU114: - | BV114: - | BW114: - | BX114: - | BY114: - | BZ114: - | CA114: - | CB114: - | CC114: - | CD114: - | CE114: - | CF114: - | CG114: - | CH114: - | CI114: - | CJ114: - | CK114: - | CL114: - | CM114: - | CN114: - | CO114: - | CP114: - | CQ114: - | CR114: - | CS114: - | CT114: - | CU114: - | DC114: - | DD114: - | DE114: - | DF114: - | DG114: - | DH114: - | DI114: - | DJ114: - | DK114: - | DL114: - | DM114: - | DN114: - | DO114: - | DP114: - | DQ114: - | DR114: - | DS114: - | DT114: - | DU114: - | DV114: - | DW114: - | DX114: - | DY114: - | DZ114: - | EA114: - | EB114: - | EC114: - | ED114: - | EE114: - | EF114: - | EG114: - | EH114: - | EI114: - | EJ114: - | EK114: - | EL114: - | EM114: - | EN114: - | EO114: - | EP114: - | EQ114: - | ER114: - | ES114: - | ET114: - | EU114: -
A115: 埼玉県 | B115: 大宮区(さいたま市) | C115: 大宮市４－３ | D115: 櫛引南 | E115: 1 | F115: - | G115: - | H115: - | I115: - | J115: - | K115: - | L115: 1 | M115: - | N115: - | O115: - | P115: - | Q115: - | R115: - | S115: - | T115: - | U115: - | V115: - | W115: - | X115: - | Y115: - | Z115: - | AA115: - | AB115: - | AC115: … | AD115: … | AE115: … | AF115: - | AG115: - | AH115: - | AI115: - | AJ115: - | AK115: - | AL115: - | AM115: - | AN115: - | AO115: - | AP115: - | AQ115: - | AR115: - | AS115: - | AT115: - | AU115: - | AV115: … | AW115: … | AX115: … | AY115: - | AZ115: - | BA115: - | BB115: - | BC115: - | BD115: - | BE115: - | BF115: - | BG115: - | BH115: - | BI115: - | BJ115: - | BK115: - | BL115: - | BM115: - | BN115: - | BO115: … | BP115: … | BQ115: … | BR115: - | BS115: - | BT115: - | BU115: - | BV115: - | BW115: - | BX115: - | BY115: - | BZ115: - | CA115: - | CB115: - | CC115: - | CD115: - | CE115: - | CF115: - | CG115: - | CH115: - | CI115: - | CJ115: - | CK115: - | CL115: - | CM115: - | CN115: - | CO115: - | CP115: - | CQ115: - | CR115: - | CS115: - | CT115: - | CU115: - | DC115: - | DD115: - | DE115: - | DF115: - | DG115: - | DH115: - | DI115: - | DJ115: - | DK115: - | DL115: - | DM115: - | DN115: - | DO115: - | DP115: - | DQ115: - | DR115: - | DS115: - | DT115: - | DU115: - | DV115: - | DW115: - | DX115: - | DY115: - | DZ115: - | EA115: - | EB115: - | EC115: - | ED115: - | EE115: - | EF115: - | EG115: - | EH115: - | EI115: - | EJ115: - | EK115: - | EL115: - | EM115: - | EN115: - | EO115: - | EP115: - | EQ115: - | ER115: - | ES115: - | ET115: - | EU115: -
A116: 埼玉県 | B116: 大宮区(さいたま市) | C116: 大宮市４－３ | D116: 三橋１丁目 | E116: 13 | F116: 2 | G116: x | H116: x | I116: x | J116: x | K116: x | L116: 11 | M116: x | N116: x | O116: x | P116: x | Q116: x | R116: x | S116: x | T116: x | U116: x | V116: x | W116: x | X116: x | Y116: x | Z116: x | AA116: x | AB116: x | AC116: 70.8 | AD116: 71.5 | AE116: 70.0 | AF116: x | AG116: x | AH116: x | AI116: x | AJ116: x | AK116: x | AL116: x | AM116: x | AN116: x | AO116: x | AP116: x | AQ116: x | AR116: x | AS116: x | AT116: x | AU116: x | AV116: 71.0 | AW116: 73.0 | AX116: 70.0 | AY116: x | AZ116: x | BA116: x | BB116: x | BC116: x | BD116: x | BE116: x | BF116: x | BG116: x | BH116: x | BI116: x | BJ116: x | BK116: x | BL116: x | BM116: x | BN116: x | BO116: 71.0 | BP116: 73.0 | BQ116: 70.0 | BR116: 2 | BS116: - | BT116: - | BU116: - | BV116: - | BW116: - | BX116: - | BY116: - | BZ116: - | CA116: - | CB116: - | CC116: - | CD116: 2 | CE116: - | CF116: - | CG116: - | CH116: 1 | CI116: - | CJ116: - | CK116: - | CL116: - | CM116: - | CN116: - | CO116: - | CP116: - | CQ116: - | CR116: 1 | CS116: - | CT116: - | CU116: - | DC116: 7 | DD116: 6 | DE116: 3 | DF116: 2 | DG116: 1 | DH116: 1 | DI116: - | DJ116: - | DK116: - | DL116: - | DM116: - | DN116: - | DO116: - | DP116: - | DQ116: - | DR116: - | DS116: - | DT116: - | DU116: - | DV116: - | DW116: - | DX116: - | DY116: - | DZ116: - | EA116: 2 | EB116: 102 | EC116: 39 | ED116: 63 | EE116: - | EF116: 3 | EG116: 3 | EH116: 1 | EI116: 1 | EJ116: 1 | EK116: - | EL116: - | EM116: - | EN116: 4 | EO116: 3 | EP116: 2 | EQ116: 1 | ER116: - | ES116: 1 | ET116: - | EU116: -
A117: 埼玉県 | B117: 大宮区(さいたま市) | C117: 大宮市４－３ | D117: 三橋２丁目 | E117: 3 | F117: - | G117: - | H117: - | I117: - | J117: - | K117: - | L117: 3 | M117: - | N117: - | O117: - | P117: - | Q117: - | R117: - | S117: - | T117: - | U117: - | V117: - | W117: - | X117: - | Y117: - | Z117: - | AA117: - | AB117: - | AC117: … | AD117: … | AE117: … | AF117: - | AG117: - | AH117: - | AI117: - | AJ117: - | AK117: - | AL117: - | AM117: - | AN117: - | AO117: - | AP117: - | AQ117: - | AR117: - | AS117: - | AT117: - | AU117: - | AV117: … | AW117: … | AX117: … | AY117: - | AZ117: - | BA117: - | BB117: - | BC117: - | BD117: - | BE117: - | BF117: - | BG117: - | BH117: - | BI117: - | BJ117: - | BK117: - | BL117: - | BM117: - | BN117: - | BO117: … | BP117: … | BQ117: … | BR117: - | BS117: - | BT117: - | BU117: - | BV117: - | BW117: - | BX117: - | BY117: - | BZ117: - | CA117: - | CB117: - | CC117: - | CD117: - | CE117: - | CF117: - | CG117: - | CH117: - | CI117: - | CJ117: - | CK117: - | CL117: - | CM117: - | CN117: - | CO117: - | CP117: - | CQ117: - | CR117: - | CS117: - | CT117: - | CU117: - | DC117: - | DD117: - | DE117: - | DF117: - | DG117: - | DH117: - | DI117: - | DJ117: - | DK117: - | DL117: - | DM117: - | DN117: - | DO117: - | DP117: - | DQ117: - | DR117: - | DS117: - | DT117: - | DU117: - | DV117: - | DW117: - | DX117: - | DY117: - | DZ117: - | EA117: - | EB117: - | EC117: - | ED117: - | EE117: - | EF117: - | EG117: - | EH117: - | EI117: - | EJ117: - | EK117: - | EL117: - | EM117: - | EN117: - | EO117: - | EP117: - | EQ117: - | ER117: - | ES117: - | ET117: - | EU117: -
A118: 埼玉県 | B118: 大宮区(さいたま市) | C118: 大宮市４－３ | D118: 三橋３丁目 | E118: 3 | F118: 2 | G118: x | H118: x | I118: x | J118: x | K118: x | L118: 1 | M118: x | N118: x | O118: x | P118: x | Q118: x | R118: x | S118: x | T118: x | U118: x | V118: x | W118: x | X118: x | Y118: x | Z118: x | AA118: x | AB118: x | AC118: 75.0 | AD118: 75.7 | AE118: 74.3 | AF118: x | AG118: x | AH118: x | AI118: x | AJ118: x | AK118: x | AL118: x | AM118: x | AN118: x | AO118: x | AP118: x | AQ118: x | AR118: x | AS118: x | AT118: x | AU118: x | AV118: 75.0 | AW118: 75.7 | AX118: 74.3 | AY118: x | AZ118: x | BA118: x | BB118: x | BC118: x | BD118: x | BE118: x | BF118: x | BG118: x | BH118: x | BI118: x | BJ118: x | BK118: x | BL118: x | BM118: x | BN118: x | BO118: 72.8 | BP118: 75.7 | BQ118: 64.0 | BR118: 2 | BS118: - | BT118: - | BU118: - | BV118: - | BW118: - | BX118: - | BY118: - | BZ118: - | CA118: - | CB118: - | CC118: - | CD118: 1 | CE118: - | CF118: - | CG118: 1 | CH118: 2 | CI118: - | CJ118: - | CK118: - | CL118: - | CM118: - | CN118: - | CO118: - | CP118: - | CQ118: - | CR118: 1 | CS118: - | CT118: - | CU118: 1 | DC118: 7 | DD118: 4 | DE118: 4 | DF118: - | DG118: - | DH118: 3 | DI118: - | DJ118: - | DK118: - | DL118: - | DM118: - | DN118: - | DO118: - | DP118: - | DQ118: - | DR118: - | DS118: - | DT118: - | DU118: - | DV118: - | DW118: - | DX118: - | DY118: - | DZ118: - | EA118: 2 | EB118: 97 | EC118: 76 | ED118: 21 | EE118: - | EF118: 3 | EG118: 3 | EH118: 3 | EI118: - | EJ118: - | EK118: - | EL118: - | EM118: - | EN118: 4 | EO118: 1 | EP118: 1 | EQ118: - | ER118: - | ES118: 3 | ET118: - | EU118: -
A119: 埼玉県 | B119: 大宮区(さいたま市) | C119: 大宮市４－３ | D119: 三橋４丁目 | E119: 20 | F119: 10 | G119: 1 | H119: 1 | I119: 5 | J119: 1 | K119: 4 | L119: 10 | M119: 29 | N119: - | O119: 2 | P119: 2 | Q119: 3 | R119: - | S119: - | T119: - | U119: 6 | V119: 3 | W119: 4 | X119: 2 | Y119: 1 | Z119: 2 | AA119: 4 | AB119: - | AC119: 55.6 | AD119: 55.3 | AE119: 56.0 | AF119: 17 | AG119: - | AH119: 1 | AI119: 1 | AJ119: 1 | AK119: - | AL119: - | AM119: - | AN119: 1 | AO119: 1 | AP119: 3 | AQ119: 2 | AR119: 1 | AS119: 2 | AT119: 4 | AU119: - | AV119: 62.5 | AW119: 64.9 | AX119: 59.9 | AY119: 13 | AZ119: - | BA119: - | BB119: - | BC119: 1 | BD119: - | BE119: - | BF119: - | BG119: 1 | BH119: 1 | BI119: 1 | BJ119: 2 | BK119: 1 | BL119: 2 | BM119: 4 | BN119: - | BO119: 68.6 | BP119: 64.9 | BQ119: 77.0 | BR119: 10 | BS119: - | BT119: - | BU119: - | BV119: - | BW119: - | BX119: - | BY119: - | BZ119: 1 | CA119: 2 | CB119: 1 | CC119: 1 | CD119: 1 | CE119: - | CF119: 3 | CG119: 1 | CH119: 5 | CI119: - | CJ119: - | CK119: - | CL119: - | CM119: - | CN119: - | CO119: - | CP119: 1 | CQ119: 1 | CR119: 1 | CS119: - | CT119: 1 | CU119: 1 | DC119: 39 | DD119: 25 | DE119: 13 | DF119: 12 | DG119: - | DH119: 8 | DI119: 3 | DJ119: 3 | DK119: 9 | DL119: 8 | DM119: - | DN119: - | DO119: - | DP119: - | DQ119: 1 | DR119: - | DS119: - | DT119: - | DU119: - | DV119: - | DW119: - | DX119: - | DY119: - | DZ119: - | EA119: 10 | EB119: 908 | EC119: 713 | ED119: 185 | EE119: 10 | EF119: 20 | EG119: 17 | EH119: 9 | EI119: 8 | EJ119: - | EK119: - | EL119: 1 | EM119: 2 | EN119: 19 | EO119: 8 | EP119: 4 | EQ119: 4 | ER119: - | ES119: 8 | ET119: 2 | EU119: 1
A120: 埼玉県 | B120: 大宮区(さいたま市) | C120: 大宮市４－３ | D120: 上小町 | E120: 5 | F120: 1 | G120: x | H120: x | I120: x | J120: x | K120: x | L120: 4 | M120: x | N120: x | O120: x | P120: x | Q120: x | R120: x | S120: x | T120: x | U120: x | V120: x | W120: x | X120: x | Y120: x | Z120: x | AA120: x | AB120: x | AC120: 61.0 | AD120: 61.0 | AE120: 61.0 | AF120: x | AG120: x | AH120: x | AI120: x | AJ120: x | AK120: x | AL120: x | AM120: x | AN120: x | AO120: x | AP120: x | AQ120: x | AR120: x | AS120: x | AT120: x | AU120: x | AV120: … | AW120: … | AX120: … | AY120: x | AZ120: x | BA120: x | BB120: x | BC120: x | BD120: x | BE120: x | BF120: x | BG120: x | BH120: x | BI120: x | BJ120: x | BK120: x | BL120: x | BM120: x | BN120: x | BO120: … | BP120: … | BQ120: … | BR120: 1 | BS120: - | BT120: - | BU120: - | BV120: - | BW120: - | BX120: - | BY120: - | BZ120: - | CA120: - | CB120: 1 | CC120: - | CD120: - | CE120: - | CF120: - | CG120: - | CH120: 1 | CI120: - | CJ120: - | CK120: - | CL120: - | CM120: - | CN120: - | CO120: - | CP120: 1 | CQ120: - | CR120: - | CS120: - | CT120: - | CU120: - | DC120: 3 | DD120: 1 | DE120: - | DF120: 1 | DG120: - | DH120: 1 | DI120: - | DJ120: 1 | DK120: - | DL120: - | DM120: - | DN120: - | DO120: - | DP120: - | DQ120: - | DR120: - | DS120: - | DT120: - | DU120: - | DV120: - | DW120: - | DX120: - | DY120: - | DZ120: - | EA120: 1 | EB120: 40 | EC120: 30 | ED120: 10 | EE120: - | EF120: 1 | EG120: 1 | EH120: - | EI120: 1 | EJ120: - | EK120: - | EL120: - | EM120: - | EN120: 2 | EO120: - | EP120: - | EQ120: - | ER120: - | ES120: 1 | ET120: - | EU120: 1
A121: 埼玉県 | B121: 見沼区(さいたま市) | E121: 767 | F121: 460 | G121: 104 | H121: 94 | I121: 92 | J121: 50 | K121: 264 | L121: 307 | M121: 1,240 | N121: 11 | O121: 19 | P121: 30 | Q121: 33 | R121: 56 | S121: 52 | T121: 79 | U121: 89 | V121: 140 | W121: 157 | X121: 134 | Y121: 151 | Z121: 128 | AA121: 98 | AB121: 63 | AC121: 61.3 | AD121: 59.5 | AE121: 63.2 | AF121: 865 | AG121: 3 | AH121: 6 | AI121: 11 | AJ121: 8 | AK121: 22 | AL121: 28 | AM121: 34 | AN121: 52 | AO121: 80 | AP121: 108 | AQ121: 116 | AR121: 133 | AS121: 119 | AT121: 90 | AU121: 55 | AV121: 65.9 | AW121: 65.1 | AX121: 66.6 | AY121: 757 | AZ121: - | BA121: 2 | BB121: 10 | BC121: 7 | BD121: 17 | BE121: 17 | BF121: 29 | BG121: 43 | BH121: 69 | BI121: 103 | BJ121: 105 | BK121: 123 | BL121: 108 | BM121: 81 | BN121: 43 | BO121: 66.6 | BP121: 65.5 | BQ121: 68.0 | BR121: 460 | BS121: - | BT121: - | BU121: 1 | BV121: - | BW121: 3 | BX121: 2 | BY121: 17 | BZ121: 29 | CA121: 34 | CB121: 70 | CC121: 63 | CD121: 83 | CE121: 70 | CF121: 56 | CG121: 32 | CH121: 250 | CI121: - | CJ121: - | CK121: 1 | CL121: - | CM121: 4 | CN121: 10 | CO121: 17 | CP121: 34 | CQ121: 33 | CR121: 46 | CS121: 39 | CT121: 41 | CU121: 25 | DC121: 1,672 | DD121: 1,198 | DE121: 757 | DF121: 360 | DG121: 81 | DH121: 184 | DI121: 110 | DJ121: 180 | DK121: 320 | DL121: 100 | DM121: - | DN121: 30 | DO121: - | DP121: 74 | DQ121: 19 | DR121: 19 | DS121: 64 | DT121: 11 | DU121: 2 | DV121: - | DW121: - | DX121: 1 | DY121: - | DZ121: - | EA121: 455 | EB121: 45,476 | EC121: 17,029 | ED121: 26,589 | EE121: 1,858 | EF121: 827 | EG121: 704 | EH121: 411 | EI121: 240 | EJ121: 53 | EK121: 2 | EL121: 52 | EM121: 69 | EN121: 845 | EO121: 494 | EP121: 346 | EQ121: 120 | ER121: 28 | ES121: 182 | ET121: 58 | EU121: 111
A122: 埼玉県 | B122: 見沼区(さいたま市) | C122: 大宮市４－４ | E122: 107 | F122: 60 | G122: 14 | H122: 13 | I122: 15 | J122: 8 | K122: 31 | L122: 47 | M122: 175 | N122: 4 | O122: 3 | P122: 3 | Q122: 4 | R122: 9 | S122: 8 | T122: 11 | U122: 15 | V122: 18 | W122: 17 | X122: 16 | Y122: 18 | Z122: 20 | AA122: 19 | AB122: 10 | AC122: 61.1 | AD122: 58.0 | AE122: 64.2 | AF122: 118 | AG122: 2 | AH122: 1 | AI122: - | AJ122: 2 | AK122: 4 | AL122: 3 | AM122: 6 | AN122: 8 | AO122: 6 | AP122: 14 | AQ122: 13 | AR122: 18 | AS122: 17 | AT122: 15 | AU122: 9 | AV122: 65.9 | AW122: 64.1 | AX122: 67.8 | AY122: 101 | AZ122: - | BA122: - | BB122: - | BC122: 1 | BD122: 3 | BE122: 1 | BF122: 5 | BG122: 4 | BH122: 5 | BI122: 14 | BJ122: 13 | BK122: 18 | BL122: 17 | BM122: 12 | BN122: 8 | BO122: 68.6 | BP122: 65.9 | BQ122: 71.8 | BR122: 60 | BS122: - | BT122: - | BU122: - | BV122: - | BW122: 1 | BX122: 1 | BY122: 4 | BZ122: 3 | CA122: 3 | CB122: 6 | CC122: 9 | CD122: 7 | CE122: 10 | CF122: 11 | CG122: 5 | CH122: 30 | CI122: - | CJ122: - | CK122: - | CL122: - | CM122: - | CN122: 1 | CO122: 1 | CP122: 2 | CQ122: 8 | CR122: 2 | CS122: 5 | CT122: 7 | CU122: 4 | DC122: 232 | DD122: 150 | DE122: 101 | DF122: 40 | DG122: 9 | DH122: 33 | DI122: 22 | DJ122: 27 | DK122: 44 | DL122: 1 | DM122: - | DN122: 6 | DO122: - | DP122: 23 | DQ122: 4 | DR122: 4 | DS122: 5 | DT122: 1 | DU122: - | DV122: - | DW122: - | DX122: - | DY122: - | DZ122: - | EA122: 60 | EB122: 5,016 | EC122: 738 | ED122: 3,891 | EE122: 387 | EF122: 109 | EG122: 89 | EH122: 54 | EI122: 29 | EJ122: 6 | EK122: 1 | EL122: 9 | EM122: 10 | EN122: 123 | EO122: 61 | EP122: 47 | EQ122: 11 | ER122: 3 | ES122: 32 | ET122: 13 | EU122: 17
A123: 埼玉県 | B123: 見沼区(さいたま市) | C123: 大宮市４－４ | D123: 天沼北２－２ | E123: - | F123: - | G123: - | H123: - | I123: - | J123: - | K123: - | L123: - | M123: - | N123: - | O123: - | P123: - | Q123: - | R123: - | S123: - | T123: - | U123: - | V123: - | W123: - | X123: - | Y123: - | Z123: - | AA123: - | AB123: - | AC123: … | AD123: … | AE123: … | AF123: - | AG123: - | AH123: - | AI123: - | AJ123: - | AK123: - | AL123: - | AM123: - | AN123: - | AO123: - | AP123: - | AQ123: - | AR123: - | AS123: - | AT123: - | AU123: - | AV123: … | AW123: … | AX123: … | AY123: - | AZ123: - | BA123: - | BB123: - | BC123: - | BD123: - | BE123: - | BF123: - | BG123: - | BH123: - | BI123: - | BJ123: - | BK123: - | BL123: - | BM123: - | BN123: - | BO123: … | BP123: … | BQ123: … | BR123: - | BS123: - | BT123: - | BU123: - | BV123: - | BW123: - | BX123: - | BY123: - | BZ123: - | CA123: - | CB123: - | CC123: - | CD123: - | CE123: - | CF123: - | CG123: - | CH123: - | CI123: - | CJ123: - | CK123: - | CL123: - | CM123: - | CN123: - | CO123: - | CP123: - | CQ123: - | CR123: - | CS123: - | CT123: - | CU123: - | DC123: - | DD123: - | DE123: - | DF123: - | DG123: - | DH123: - | DI123: - | DJ123: - | DK123: - | DL123: - | DM123: - | DN123: - | DO123: - | DP123: - | DQ123: - | DR123: - | DS123: - | DT123: - | DU123: - | DV123: - | DW123: - | DX123: - | DY123: - | DZ123: - | EA123: - | EB123: - | EC123: - | ED123: - | EE123: - | EF123: - | EG123: - | EH123: - | EI123: - | EJ123: - | EK123: - | EL123: - | EM123: - | EN123: - | EO123: - | EP123: - | EQ123: - | ER123: - | ES123: - | ET123: - | EU123: -
A124: 埼玉県 | B124: 見沼区(さいたま市) | C124: 大宮市４－４ | D124: 砂第１２－２ | E124: 9 | F124: - | G124: - | H124: - | I124: - | J124: - | K124: - | L124: 9 | M124: - | N124: - | O124: - | P124: - | Q124: - | R124: - | S124: - | T124: - | U124: - | V124: - | W124: - | X124: - | Y124: - | Z124: - | AA124: - | AB124: - | AC124: … | AD124: … | AE124: … | AF124: - | AG124: - | AH124: - | AI124: - | AJ124: - | AK124: - | AL124: - | AM124: - | AN124: - | AO124: - | AP124: - | AQ124: - | AR124: - | AS124: - | AT124: - | AU124: - | AV124: … | AW124: … | AX124: … | AY124: - | AZ124: - | BA124: - | BB124: - | BC124: - | BD124: - | BE124: - | BF124: - | BG124: - | BH124: - | BI124: - | BJ124: - | BK124: - | BL124: - | BM124: - | BN124: - | BO124: … | BP124: … | BQ124: … | BR124: - | BS124: - | BT124: - | BU124: - | BV124: - | BW124: - | BX124: - | BY124: - | BZ124: - | CA124: - | CB124: - | CC124: - | CD124: - | CE124: - | CF124: - | CG124: - | CH124: - | CI124: - | CJ124: - | CK124: - | CL124: - | CM124: - | CN124: - | CO124: - | CP124: - | CQ124: - | CR124: - | CS124: - | CT124: - | CU124: - | DC124: - | DD124: - | DE124: - | DF124: - | DG124: - | DH124: - | DI124: - | DJ124: - | DK124: - | DL124: - | DM124: - | DN124: - | DO124: - | DP124: - | DQ124: - | DR124: - | DS124: - | DT124: - | DU124: - | DV124: - | DW124: - | DX124: - | DY124: - | DZ124: - | EA124: - | EB124: - | EC124: - | ED124: - | EE124: - | EF124: - | EG124: - | EH124: - | EI124: - | EJ124: - | EK124: - | EL124: - | EM124: - | EN124: - | EO124: - | EP124: - | EQ124: - | ER124: - | ES124: - | ET124: - | EU124: -
A125: 埼玉県 | B125: 見沼区(さいたま市) | C125: 大宮市４－４ | D125: 砂第２ | E125: 6 | F125: 5 | G125: - | H125: - | I125: 1 | J125: - | K125: 4 | L125: 1 | M125: 11 | N125: - | O125: - | P125: - | Q125: - | R125: - | S125: - | T125: 1 | U125: - | V125: 2 | W125: - | X125: - | Y125: 3 | Z125: 2 | AA125: 2 | AB125: 1 | AC125: 71.5 | AD125: 67.2 | AE125: 75.2 | AF125: 5 | AG125: - | AH125: - | AI125: - | AJ125: - | AK125: - | AL125: - | AM125: - | AN125: - | AO125: - | AP125: - | AQ125: - | AR125: 3 | AS125: 2 | AT125: - | AU125: - | AV125: 75.0 | AW125: 75.5 | AX125: 74.7 | AY125: 5 | AZ125: - | BA125: - | BB125: - | BC125: - | BD125: - | BE125: - | BF125: - | BG125: - | BH125: - | BI125: - | BJ125: - | BK125: 3 | BL125: 2 | BM125: - | BN125: - | BO125: 75.0 | BP125: 75.5 | BQ125: 74.7 | BR125: 5 | BS125: - | BT125: - | BU125: - | BV125: - | BW125: - | BX125: - | BY125: - | BZ125: - | CA125: 1 | CB125: - | CC125: - | CD125: 2 | CE125: 1 | CF125: 1 | CG125: - | CH125: 3 | CI125: - | CJ125: - | CK125: - | CL125: - | CM125: - | CN125: - | CO125: - | CP125: - | CQ125: - | CR125: 2 | CS125: - | CT125: 1 | CU125: - | DC125: 11 | DD125: 9 | DE125: 5 | DF125: 1 | DG125: 3 | DH125: 1 | DI125: - | DJ125: 1 | DK125: 4 | DL125: - | DM125: - | DN125: 1 | DO125: - | DP125: - | DQ125: - | DR125: 2 | DS125: 1 | DT125: - | DU125: - | DV125: - | DW125: - | DX125: - | DY125: - | DZ125: - | EA125: 5 | EB125: 301 | EC125: 63 | ED125: 136 | EE125: 102 | EF125: 5 | EG125: 5 | EH125: 2 | EI125: 1 | EJ125: 2 | EK125: - | EL125: - | EM125: - | EN125: 6 | EO125: 4 | EP125: 3 | EQ125: - | ER125: 1 | ES125: 1 | ET125: - | EU125: 1
A126: 埼玉県 | B126: 見沼区(さいたま市) | C126: 大宮市４－４ | D126: 砂第３ | E126: 8 | F126: 3 | G126: 1 | H126: 1 | I126: 1 | J126: 1 | K126: 1 | L126: 5 | M126: 12 | N126: 2 | O126: 1 | P126: - | Q126: - | R126: 1 | S126: 1 | T126: - | U126: 2 | V126: - | W126: 1 | X126: 1 | Y126: - | Z126: 3 | AA126: - | AB126: - | AC126: 49.3 | AD126: 40.9 | AE126: 66.3 | AF126: 12 | AG126: 2 | AH126: 1 | AI126: - | AJ126: - | AK126: 1 | AL126: 1 | AM126: - | AN126: 2 | AO126: - | AP126: 1 | AQ126: 1 | AR126: - | AS126: 3 | AT126: - | AU126: - | AV126: 49.3 | AW126: 40.9 | AX126: 66.3 | AY126: 8 | AZ126: - | BA126: - | BB126: - | BC126: - | BD126: 1 | BE126: 1 | BF126: - | BG126: 1 | BH126: - | BI126: 1 | BJ126: 1 | BK126: - | BL126: 3 | BM126: - | BN126: - | BO126: 61.0 | BP126: 54.6 | BQ126: 71.7 | BR126: 3 | BS126: - | BT126: - | BU126: - | BV126: - | BW126: - | BX126: - | BY126: - | BZ126: 1 | CA126: - | CB126: - | CC126: 1 | CD126: - | CE126: 1 | CF126: - | CG126: - | CH126: 1 | CI126: - | CJ126: - | CK126: - | CL126: - | CM126: - | CN126: 1 | CO126: - | CP126: - | CQ126: - | CR126: - | CS126: - | CT126: - | CU126: - | DC126: 14 | DD126: 9 | DE126: 8 | DF126: 1 | DG126: - | DH126: 2 | DI126: 3 | DJ126: - | DK126: 2 | DL126: - | DM126: - | DN126: - | DO126: - | DP126: 1 | DQ126: - | DR126: 1 | DS126: - | DT126: - | DU126: - | DV126: - | DW126: - | DX126: - | DY126: - | DZ126: - | EA126: 3 | EB126: 206 | EC126: 1 | ED126: 145 | EE126: 60 | EF126: 9 | EG126: 5 | EH126: 5 | EI126: - | EJ126: - | EK126: 1 | EL126: 3 | EM126: - | EN126: 5 | EO126: 4 | EP126: 3 | EQ126: 1 | ER126: - | ES126: 1 | ET126: - | EU126: -
A127: 埼玉県 | B127: 見沼区(さいたま市) | C127: 大宮市４－４ | D127: 見沼 | E127: - | F127: - | G127: - | H127: - | I127: - | J127: - | K127: - | L127: - | M127: - | N127: - | O127: - | P127: - | Q127: - | R127: - | S127: - | T127: - | U127: - | V127: - | W127: - | X127: - | Y127: - | Z127: - | AA127: - | AB127: - | AC127: … | AD127: … | AE127: … | AF127: - | AG127: - | AH127: - | AI127: - | AJ127: - | AK127: - | AL127: - | AM127: - | AN127: - | AO127: - | AP127: - | AQ127: - | AR127: - | AS127: - | AT127: - | AU127: - | AV127: … | AW127: … | AX127: … | AY127: - | AZ127: - | BA127: - | BB127: - | BC127: - | BD127: - | BE127: - | BF127: - | BG127: - | BH127: - | BI127: - | BJ127: - | BK127: - | BL127: - | BM127: - | BN127: - | BO127: … | BP127: … | BQ127: … | BR127: - | BS127: - | BT127: - | BU127: - | BV127: - | BW127: - | BX127: - | BY127: - | BZ127: - | CA127: - | CB127: - | CC127: - | CD127: - | CE127: - | CF127: - | CG127: - | CH127: - | CI127: - | CJ127: - | CK127: - | CL127: - | CM127: - | CN127: - | CO127: - | CP127: - | CQ127: - | CR127: - | CS127: - | CT127: - | CU127: - | DC127: - | DD127: - | DE127: - | DF127: - | DG127: - | DH127: - | DI127: - | DJ127: - | DK127: - | DL127: - | DM127: - | DN127: - | DO127: - | DP127: - | DQ127: - | DR127: - | DS127: - | DT127: - | DU127: - | DV127: - | DW127: - | DX127: - | DY127: - | DZ127: - | EA127: - | EB127: - | EC127: - | ED127: - | EE127: - | EF127: - | EG127: - | EH127: - | EI127: - | EJ127: - | EK127: - | EL127: - | EM127: - | EN127: - | EO127: - | EP127: - | EQ127: - | ER127: - | ES127: - | ET127: - | EU127: -
A128: 埼玉県 | B128: 見沼区(さいたま市) | C128: 大宮市４－４ | D128: 島第１ | E128: 11 | F128: 5 | G128: - | H128: - | I128: 1 | J128: - | K128: 4 | L128: 6 | M128: 12 | N128: - | O128: - | P128: - | Q128: - | R128: - | S128: - | T128: - | U128: 2 | V128: 2 | W128: 1 | X128: - | Y128: - | Z128: 2 | AA128: 3 | AB128: 2 | AC128: 71.8 | AD128: 71.0 | AE128: 72.5 | AF128: 7 | AG128: - | AH128: - | AI128: - | AJ128: - | AK128: - | AL128: - | AM128: - | AN128: - | AO128: - | AP128: - | AQ128: - | AR128: - | AS128: 2 | AT128: 3 | AU128: 2 | AV128: 83.0 | AW128: 84.0 | AX128: 82.3 | AY128: 6 | AZ128: - | BA128: - | BB128: - | BC128: - | BD128: - | BE128: - | BF128: - | BG128: - | BH128: - | BI128: - | BJ128: - | BK128: - | BL128: 2 | BM128: 2 | BN128: 2 | BO128: 83.2 | BP128: 84.0 | BQ128: 82.3 | BR128: 5 | BS128: - | BT128: - | BU128: - | BV128: - | BW128: - | BX128: - | BY128: - | BZ128: - | CA128: - | CB128: - | CC128: - | CD128: - | CE128: 1 | CF128: 3 | CG128: 1 | CH128: 2 | CI128: - | CJ128: - | CK128: - | CL128: - | CM128: - | CN128: - | CO128: - | CP128: - | CQ128: - | CR128: - | CS128: - | CT128: 2 | CU128: - | DC128: 18 | DD128: 12 | DE128: 6 | DF128: 3 | DG128: 3 | DH128: 3 | DI128: 2 | DJ128: 1 | DK128: 2 | DL128: - | DM128: - | DN128: - | DO128: - | DP128: 1 | DQ128: - | DR128: 1 | DS128: - | DT128: - | DU128: - | DV128: - | DW128: - | DX128: - | DY128: - | DZ128: - | EA128: 5 | EB128: 209 | EC128: 10 | ED128: 171 | EE128: 28 | EF128: 9 | EG128: 8 | EH128: 3 | EI128: 3 | EJ128: 2 | EK128: - | EL128: - | EM128: 1 | EN128: 9 | EO128: 4 | EP128: 3 | EQ128: - | ER128: 1 | ES128: 3 | ET128: 2 | EU128: -
A129: 埼玉県 | B129: 見沼区(さいたま市) | C129: 大宮市４－４ | D129: 島第２ | E129: 10 | F129: 5 | G129: 2 | H129: 2 | I129: 1 | J129: - | K129: 2 | L129: 5 | M129: 13 | N129: - | O129: - | P129: - | Q129: - | R129: 1 | S129: 1 | T129: 1 | U129: 1 | V129: 1 | W129: 1 | X129: 4 | Y129: - | Z129: 1 | AA129: 2 | AB129: - | AC129: 62.5 | AD129: 59.4 | AE129: 66.2 | AF129: 10 | AG129: - | AH129: - | AI129: - | AJ129: - | AK129: 1 | AL129: 1 | AM129: 1 | AN129: - | AO129: - | AP129: 1 | AQ129: 3 | AR129: - | AS129: 1 | AT129: 2 | AU129: - | AV129: 63.5 | AW129: 60.5 | AX129: 68.0 | AY129: 7 | AZ129: - | BA129: - | BB129: - | BC129: - | BD129: 1 | BE129: - | BF129: 1 | BG129: - | BH129: - | BI129: 1 | BJ129: 3 | BK129: - | BL129: 1 | BM129: - | BN129: - | BO129: 60.7 | BP129: 55.8 | BQ129: 73.0 | BR129: 5 | BS129: - | BT129: - | BU129: - | BV129: - | BW129: - | BX129: - | BY129: - | BZ129: 1 | CA129: - | CB129: 1 | CC129: 2 | CD129: - | CE129: - | CF129: 1 | CG129: - | CH129: 3 | CI129: - | CJ129: - | CK129: - | CL129: - | CM129: - | CN129: - | CO129: - | CP129: 1 | CQ129: 2 | CR129: - | CS129: - | CT129: - | CU129: - | DC129: 19 | DD129: 9 | DE129: 7 | DF129: 2 | DG129: - | DH129: 3 | DI129: 2 | DJ129: 5 | DK129: 4 | DL129: - | DM129: - | DN129: 1 | DO129: - | DP129: 2 | DQ129: - | DR129: - | DS129: 1 | DT129: - | DU129: - | DV129: - | DW129: - | DX129: - | DY129: - | DZ129: - | EA129: 5 | EB129: 536 | EC129: 19 | ED129: 483 | EE129: 34 | EF129: 10 | EG129: 6 | EH129: 5 | EI129: 1 | EJ129: - | EK129: - | EL129: 2 | EM129: 2 | EN129: 9 | EO129: 3 | EP129: 2 | EQ129: 1 | ER129: - | ES129: 3 | ET129: - | EU129: 3
A130: 埼玉県 | B130: 見沼区(さいたま市) | C130: 大宮市４－４ | D130: 堀崎 | E130: 16 | F130: 7 | G130: 2 | H130: 2 | I130: 1 | J130: - | K130: 4 | L130: 9 | M130: 20 | N130: - | O130: - | P130: 1 | Q130: - | R130: - | S130: - | T130: 2 | U130: 2 | V130: 3 | W130: 1 | X130: 1 | Y130: 2 | Z130: 4 | AA130: 2 | AB130: 2 | AC130: 65.6 | AD130: 65.0 | AE130: 66.3 | AF130: 11 | AG130: - | AH130: - | AI130: - | AJ130: - | AK130: - | AL130: - | AM130: 2 | AN130: 1 | AO130: - | AP130: 1 | AQ130: - | AR130: 2 | AS130: 3 | AT130: - | AU130: 2 | AV130: 68.9 | AW130: 72.9 | AX130: 62.0 | AY130: 8 | AZ130: - | BA130: - | BB130: - | BC130: - | BD130: - | BE130: - | BF130: 1 | BG130: - | BH130: - | BI130: 1 | BJ130: - | BK130: 2 | BL130: 3 | BM130: - | BN130: 1 | BO130: 71.6 | BP130: 70.8 | BQ130: 74.0 | BR130: 7 | BS130: - | BT130: - | BU130: - | BV130: - | BW130: - | BX130: - | BY130: 1 | BZ130: - | CA130: - | CB130: 1 | CC130: - | CD130: 1 | CE130: 2 | CF130: - | CG130: 2 | CH130: 4 | CI130: - | CJ130: - | CK130: - | CL130: - | CM130: - | CN130: - | CO130: - | CP130: - | CQ130: - | CR130: - | CS130: 2 | CT130: - | CU130: 2 | DC130: 31 | DD130: 15 | DE130: 8 | DF130: 6 | DG130: 1 | DH130: 5 | DI130: 7 | DJ130: 4 | DK130: 7 | DL130: - | DM130: - | DN130: 3 | DO130: - | DP130: 2 | DQ130: - | DR130: - | DS130: 2 | DT130: - | DU130: - | DV130: - | DW130: - | DX130: - | DY130: - | DZ130: - | EA130: 7 | EB130: 614 | EC130: 62 | ED130: 552 | EE130: - | EF130: 12 | EG130: 10 | EH130: 6 | EI130: 4 | EJ130: - | EK130: - | EL130: 1 | EM130: 1 | EN130: 19 | EO130: 5 | EP130: 2 | EQ130: 2 | ER130: 1 | ES130: 5 | ET130: 6 | EU130: 3
A131: 埼玉県 | B131: 見沼区(さいたま市) | C131: 大宮市４－４ | D131: 大和田第１ | E131: 16 | F131: 13 | G131: 4 | H131: 4 | I131: 6 | J131: 4 | K131: 3 | L131: 3 | M131: 43 | N131: - | O131: - | P131: 2 | Q131: 3 | R131: 2 | S131: 2 | T131: 3 | U131: 3 | V131: 5 | W131: 7 | X131: 3 | Y131: 4 | Z131: 1 | AA131: 5 | AB131: 3 | AC131: 59.1 | AD131: 55.6 | AE131: 62.4 | AF131: 35 | AG131: - | AH131: - | AI131: - | AJ131: 2 | AK131: 1 | AL131: 1 | AM131: 2 | AN131: 3 | AO131: 4 | AP131: 6 | AQ131: 3 | AR131: 4 | AS131: 1 | AT131: 5 | AU131: 3 | AV131: 63.2 | AW131: 62.7 | AX131: 63.7 | AY131: 31 | AZ131: - | BA131: - | BB131: - | BC131: 1 | BD131: 1 | BE131: - | BF131: 2 | BG131: 2 | BH131: 3 | BI131: 6 | BJ131: 3 | BK131: 4 | BL131: 1 | BM131: 5 | BN131: 3 | BO131: 65.6 | BP131: 62.7 | BQ131: 68.8 | BR131: 13 | BS131: - | BT131: - | BU131: - | BV131: - | BW131: 1 | BX131: - | BY131: - | BZ131: 1 | CA131: 1 | CB131: 2 | CC131: 3 | CD131: 1 | CE131: 1 | CF131: 2 | CG131: 1 | CH131: 7 | CI131: - | CJ131: - | CK131: - | CL131: - | CM131: - | CN131: - | CO131: 1 | CP131: - | CQ131: 3 | CR131: - | CS131: - | CT131: 2 | CU131: 1 | DC131: 50 | DD131: 40 | DE131: 31 | DF131: 9 | DG131: - | DH131: 6 | DI131: 2 | DJ131: 2 | DK131: 12 | DL131: - | DM131: - | DN131: - | DO131: - | DP131: 8 | DQ131: 3 | DR131: - | DS131: 1 | DT131: - | DU131: - | DV131: - | DW131: - | DX131: - | DY131: - | DZ131: - | EA131: 13 | EB131: 1,087 | EC131: 189 | ED131: 888 | EE131: 10 | EF131: 21 | EG131: 21 | EH131: 16 | EI131: 5 | EJ131: - | EK131: - | EL131: - | EM131: - | EN131: 29 | EO131: 19 | EP131: 15 | EQ131: 4 | ER131: - | ES131: 6 | ET131: 2 | EU131: 2
A132: 埼玉県 | B132: 見沼区(さいたま市) | C132: 大宮市４－４ | D132: 大和田第２２－２ | E132: 9 | F132: 8 | G132: 3 | H132: 2 | I132: 1 | J132: 1 | K132: 4 | L132: 1 | M132: 24 | N132: - | O132: 2 | P132: - | Q132: - | R132: 1 | S132: 2 | T132: 2 | U132: - | V132: 1 | W132: 1 | X132: 3 | Y132: 7 | Z132: 3 | AA132: 2 | AB132: - | AC132: 61.2 | AD132: 57.6 | AE132: 63.8 | AF132: 17 | AG132: - | AH132: - | AI132: - | AJ132: - | AK132: 1 | AL132: - | AM132: 1 | AN132: - | AO132: 1 | AP132: 1 | AQ132: 2 | AR132: 7 | AS132: 2 | AT132: 2 | AU132: - | AV132: 68.1 | AW132: 66.7 | AX132: 68.8 | AY132: 16 | AZ132: - | BA132: - | BB132: - | BC132: - | BD132: - | BE132: - | BF132: 1 | BG132: - | BH132: 1 | BI132: 1 | BJ132: 2 | BK132: 7 | BL132: 2 | BM132: 2 | BN132: - | BO132: 69.9 | BP132: 66.7 | BQ132: 71.8 | BR132: 8 | BS132: - | BT132: - | BU132: - | BV132: - | BW132: - | BX132: - | BY132: 2 | BZ132: - | CA132: - | CB132: - | CC132: 1 | CD132: 2 | CE132: 2 | CF132: 1 | CG132: - | CH132: 3 | CI132: - | CJ132: - | CK132: - | CL132: - | CM132: - | CN132: - | CO132: - | CP132: - | CQ132: 1 | CR132: - | CS132: 1 | CT132: 1 | CU132: - | DC132: 25 | DD132: 20 | DE132: 16 | DF132: 4 | DG132: - | DH132: 2 | DI132: 2 | DJ132: 1 | DK132: 6 | DL132: - | DM132: - | DN132: - | DO132: - | DP132: 5 | DQ132: - | DR132: - | DS132: - | DT132: 1 | DU132: - | DV132: - | DW132: - | DX132: - | DY132: - | DZ132: - | EA132: 8 | EB132: 934 | EC132: 174 | ED132: 682 | EE132: 78 | EF132: 10 | EG132: 10 | EH132: 6 | EI132: 4 | EJ132: - | EK132: - | EL132: - | EM132: - | EN132: 15 | EO132: 10 | EP132: 10 | EQ132: - | ER132: - | ES132: 2 | ET132: 2 | EU132: 1
A133: 埼玉県 | B133: 見沼区(さいたま市) | C133: 大宮市４－４ | D133: 大和田第３ | E133: 6 | F133: 5 | G133: 1 | H133: 1 | I133: 1 | J133: 1 | K133: 3 | L133: 1 | M133: 15 | N133: 2 | O133: - | P133: - | Q133: - | R133: 2 | S133: - | T133: 2 | U133: 2 | V133: - | W133: 2 | X133: 1 | Y133: 2 | Z133: 1 | AA133: 1 | AB133: - | AC133: 53.1 | AD133: 52.7 | AE133: 53.5 | AF133: 8 | AG133: - | AH133: - | AI133: - | AJ133: - | AK133: - | AL133: - | AM133: - | AN133: 2 | AO133: - | AP133: 1 | AQ133: 1 | AR133: 2 | AS133: 1 | AT133: 1 | AU133: - | AV133: 67.1 | AW133: 67.3 | AX133: 67.0 | AY133: 7 | AZ133: - | BA133: - | BB133: - | BC133: - | BD133: - | BE133: - | BF133: - | BG133: 1 | BH133: - | BI133: 1 | BJ133: 1 | BK133: 2 | BL133: 1 | BM133: 1 | BN133: - | BO133: 69.6 | BP133: 67.3 | BQ133: 72.7 | BR133: 5 | BS133: - | BT133: - | BU133: - | BV133: - | BW133: - | BX133: 1 | BY133: 1 | BZ133: - | CA133: - | CB133: 1 | CC133: - | CD133: 1 | CE133: - | CF133: 1 | CG133: - | CH133: 1 | CI133: - | CJ133: - | CK133: - | CL133: - | CM133: - | CN133: - | CO133: - | CP133: 1 | CQ133: - | CR133: - | CS133: - | CT133: - | CU133: - | DC133: 22 | DD133: 11 | DE133: 7 | DF133: 3 | DG133: 1 | DH133: 4 | DI133: 2 | DJ133: 5 | DK133: 3 | DL133: 1 | DM133: - | DN133: - | DO133: - | DP133: 2 | DQ133: - | DR133: - | DS133: - | DT133: - | DU133: - | DV133: - | DW133: - | DX133: - | DY133: - | DZ133: - | EA133: 5 | EB133: 404 | EC133: 92 | ED133: 277 | EE133: 35 | EF133: 10 | EG133: 7 | EH133: 4 | EI133: 2 | EJ133: 1 | EK133: - | EL133: 1 | EM133: 2 | EN133: 12 | EO133: 4 | EP133: 3 | EQ133: 1 | ER133: - | ES133: 4 | ET133: 1 | EU133: 3
A134: 埼玉県 | B134: 見沼区(さいたま市) | C134: 大宮市４－４ | D134: 大和田第４ | E134: 16 | F134: 9 | G134: 1 | H134: 1 | I134: 2 | J134: 1 | K134: 6 | L134: 7 | M134: 25 | N134: - | O134: - | P134: - | Q134: 1 | R134: 2 | S134: 2 | T134: - | U134: 3 | V134: 4 | W134: 3 | X134: 3 | Y134: - | Z134: 3 | AA134: 2 | AB134: 2 | AC134: 60.8 | AD134: 59.5 | AE134: 62.4 | AF134: 13 | AG134: - | AH134: - | AI134: - | AJ134: - | AK134: - | AL134: - | AM134: - | AN134: - | AO134: 1 | AP134: 3 | AQ134: 3 | AR134: - | AS134: 2 | AT134: 2 | AU134: 2 | AV134: 71.7 | AW134: 72.4 | AX134: 70.8 | AY134: 13 | AZ134: - | BA134: - | BB134: - | BC134: - | BD134: - | BE134: - | BF134: - | BG134: - | BH134: 1 | BI134: 3 | BJ134: 3 | BK134: - | BL134: 2 | BM134: 2 | BN134: 2 | BO134: 71.7 | BP134: 72.4 | BQ134: 70.8 | BR134: 9 | BS134: - | BT134: - | BU134: - | BV134: - | BW134: - | BX134: - | BY134: - | BZ134: - | CA134: 1 | CB134: 1 | CC134: 2 | CD134: - | CE134: 2 | CF134: 2 | CG134: 1 | CH134: 6 | CI134: - | CJ134: - | CK134: - | CL134: - | CM134: - | CN134: - | CO134: - | CP134: - | CQ134: 2 | CR134: - | CS134: 2 | CT134: 1 | CU134: 1 | DC134: 42 | DD134: 25 | DE134: 13 | DF134: 11 | DG134: 1 | DH134: 7 | DI134: 2 | DJ134: 8 | DK134: 4 | DL134: - | DM134: - | DN134: 1 | DO134: - | DP134: 2 | DQ134: 1 | DR134: - | DS134: - | DT134: - | DU134: - | DV134: - | DW134: - | DX134: - | DY134: - | DZ134: - | EA134: 9 | EB134: 725 | EC134: 128 | ED134: 557 | EE134: 40 | EF134: 23 | EG134: 17 | EH134: 7 | EI134: 9 | EJ134: 1 | EK134: - | EL134: 2 | EM134: 4 | EN134: 19 | EO134: 8 | EP134: 6 | EQ134: 2 | ER134: - | ES134: 7 | ET134: - | EU134: 4
A135: 埼玉県 | B135: 見沼区(さいたま市) | C135: 片柳村 | E135: 276 | F135: 157 | G135: 36 | H135: 36 | I135: 28 | J135: 11 | K135: 93 | L135: 119 | M135: 406 | N135: 2 | O135: 5 | P135: 11 | Q135: 9 | R135: 14 | S135: 15 | T135: 28 | U135: 28 | V135: 58 | W135: 54 | X135: 46 | Y135: 51 | Z135: 36 | AA135: 30 | AB135: 19 | AC135: 61.4 | AD135: 59.9 | AE135: 63.0 | AF135: 299 | AG135: - | AH135: 1 | AI135: 6 | AJ135: 2 | AK135: 7 | AL135: 8 | AM135: 14 | AN135: 20 | AO135: 36 | AP135: 38 | AQ135: 43 | AR135: 45 | AS135: 34 | AT135: 28 | AU135: 17 | AV135: 65.1 | AW135: 64.0 | AX135: 66.1 | AY135: 261 | AZ135: - | BA135: 1 | BB135: 5 | BC135: 2 | BD135: 6 | BE135: 4 | BF135: 12 | BG135: 16 | BH135: 33 | BI135: 36 | BJ135: 38 | BK135: 41 | BL135: 28 | BM135: 27 | BN135: 12 | BO135: 65.3 | BP135: 64.3 | BQ135: 66.5 | BR135: 157 | BS135: - | BT135: - | BU135: - | BV135: - | BW135: - | BX135: - | BY135: 6 | BZ135: 10 | CA135: 13 | CB135: 25 | CC135: 21 | CD135: 30 | CE135: 19 | CF135: 20 | CG135: 13 | CH135: 91 | CI135: - | CJ135: - | CK135: - | CL135: - | CM135: 1 | CN135: 4 | CO135: 9 | CP135: 14 | CQ135: 9 | CR135: 18 | CS135: 11 | CT135: 16 | CU135: 9 | DC135: 559 | DD135: 402 | DE135: 261 | DF135: 116 | DG135: 25 | DH135: 57 | DI135: 34 | DJ135: 66 | DK135: 100 | DL135: 19 | DM135: - | DN135: 14 | DO135: - | DP135: 25 | DQ135: 2 | DR135: 7 | DS135: 25 | DT135: 5 | DU135: 2 | DV135: - | DW135: - | DX135: 1 | DY135: - | DZ135: - | EA135: 155 | EB135: 15,701 | EC135: 3,381 | ED135: 11,579 | EE135: 741 | EF135: 288 | EG135: 241 | EH135: 141 | EI135: 83 | EJ135: 17 | EK135: 1 | EL135: 17 | EM135: 29 | EN135: 271 | EO135: 161 | EP135: 120 | EQ135: 33 | ER135: 8 | ES135: 56 | ET135: 17 | EU135: 37
A136: 埼玉県 | B136: 見沼区(さいたま市) | C136: 片柳村 | D136: 東沖郷 | E136: 16 | F136: 13 | G136: 1 | H136: 1 | I136: 3 | J136: 2 | K136: 9 | L136: 3 | M136: 32 | N136: - | O136: - | P136: - | Q136: - | R136: 1 | S136: 2 | T136: 4 | U136: 4 | V136: 1 | W136: 6 | X136: 3 | Y136: 6 | Z136: 2 | AA136: 1 | AB136: 2 | AC136: 62.3 | AD136: 59.1 | AE136: 65.6 | AF136: 20 | AG136: - | AH136: - | AI136: - | AJ136: - | AK136: 1 | AL136: 1 | AM136: 1 | AN136: 3 | AO136: 1 | AP136: 4 | AQ136: 3 | AR136: 3 | AS136: 1 | AT136: 1 | AU136: 1 | AV136: 62.7 | AW136: 61.1 | AX136: 63.5 | AY136: 18 | AZ136: - | BA136: - | BB136: - | BC136: - | BD136: 1 | BE136: - | BF136: - | BG136: 3 | BH136: 1 | BI136: 4 | BJ136: 3 | BK136: 3 | BL136: 1 | BM136: 1 | BN136: 1 | BO136: 64.7 | BP136: 61.1 | BQ136: 67.0 | BR136: 13 | BS136: - | BT136: - | BU136: - | BV136: - | BW136: - | BX136: - | BY136: 1 | BZ136: 2 | CA136: - | CB136: 4 | CC136: - | CD136: 4 | CE136: 1 | CF136: 1 | CG136: - | CH136: 7 | CI136: - | CJ136: - | CK136: - | CL136: - | CM136: - | CN136: - | CO136: - | CP136: 2 | CQ136: - | CR136: 3 | CS136: 1 | CT136: 1 | CU136: - | DC136: 43 | DD136: 30 | DE136: 18 | DF136: 9 | DG136: 3 | DH136: 4 | DI136: 1 | DJ136: 8 | DK136: 5 | DL136: 2 | DM136: - | DN136: - | DO136: - | DP136: 1 | DQ136: - | DR136: - | DS136: 2 | DT136: - | DU136: - | DV136: - | DW136: - | DX136: - | DY136: - | DZ136: - | EA136: 13 | EB136: 1,929 | EC136: 504 | ED136: 1,396 | EE136: 29 | EF136: 23 | EG136: 17 | EH136: 7 | EI136: 7 | EJ136: 3 | EK136: - | EL136: 1 | EM136: 5 | EN136: 20 | EO136: 13 | EP136: 11 | EQ136: 2 | ER136: - | ES136: 4 | ET136: - | EU136: 3
A137: 埼玉県 | B137: 見沼区(さいたま市) | C137: 片柳村 | D137: 西沖郷 | E137: 15 | F137: 11 | G137: 3 | H137: 3 | I137: - | J137: - | K137: 8 | L137: 4 | M137: 28 | N137: - | O137: - | P137: - | Q137: - | R137: - | S137: - | T137: 1 | U137: - | V137: 6 | W137: 5 | X137: 7 | Y137: 3 | Z137: - | AA137: 2 | AB137: 4 | AC137: 67.7 | AD137: 66.1 | AE137: 69.3 | AF137: 20 | AG137: - | AH137: - | AI137: - | AJ137: - | AK137: - | AL137: - | AM137: - | AN137: - | AO137: 1 | AP137: 3 | AQ137: 7 | AR137: 3 | AS137: - | AT137: 2 | AU137: 4 | AV137: 72.0 | AW137: 71.8 | AX137: 72.2 | AY137: 18 | AZ137: - | BA137: - | BB137: - | BC137: - | BD137: - | BE137: - | BF137: - | BG137: - | BH137: 1 | BI137: 3 | BJ137: 6 | BK137: 3 | BL137: - | BM137: 2 | BN137: 3 | BO137: 71.4 | BP137: 71.8 | BQ137: 71.0 | BR137: 11 | BS137: - | BT137: - | BU137: - | BV137: - | BW137: - | BX137: - | BY137: - | BZ137: - | CA137: 2 | CB137: 2 | CC137: 4 | CD137: 2 | CE137: - | CF137: - | CG137: 1 | CH137: 3 | CI137: - | CJ137: - | CK137: - | CL137: - | CM137: - | CN137: - | CO137: 1 | CP137: 1 | CQ137: - | CR137: 1 | CS137: - | CT137: - | CU137: - | DC137: 34 | DD137: 27 | DE137: 18 | DF137: 7 | DG137: 2 | DH137: 3 | DI137: - | DJ137: 4 | DK137: 7 | DL137: 2 | DM137: - | DN137: - | DO137: - | DP137: 2 | DQ137: - | DR137: - | DS137: 2 | DT137: 1 | DU137: - | DV137: - | DW137: - | DX137: - | DY137: - | DZ137: - | EA137: 11 | EB137: 1,363 | EC137: 300 | ED137: 932 | EE137: 131 | EF137: 17 | EG137: 15 | EH137: 9 | EI137: 5 | EJ137: 1 | EK137: - | EL137: - | EM137: 2 | EN137: 17 | EO137: 12 | EP137: 9 | EQ137: 2 | ER137: 1 | ES137: 3 | ET137: - | EU137: 2
A138: 埼玉県 | B138: 見沼区(さいたま市) | C138: 片柳村 | D138: 東根木輪 | E138: 12 | F138: 7 | G138: 1 | H138: 1 | I138: - | J138: - | K138: 6 | L138: 5 | M138: 12 | N138: - | O138: - | P138: - | Q138: - | R138: - | S138: - | T138: - | U138: - | V138: - | W138: 4 | X138: 1 | Y138: 2 | Z138: 5 | AA138: - | AB138: - | AC138: 70.4 | AD138: 69.6 | AE138: 71.0 | AF138: 11 | AG138: - | AH138: - | AI138: - | AJ138: - | AK138: - | AL138: - | AM138: - | AN138: - | AO138: - | AP138: 3 | AQ138: 1 | AR138: 2 | AS138: 5 | AT138: - | AU138: - | AV138: 71.4 | AW138: 72.0 | AX138: 71.0 | AY138: 10 | AZ138: - | BA138: - | BB138: - | BC138: - | BD138: - | BE138: - | BF138: - | BG138: - | BH138: - | BI138: 3 | BJ138: - | BK138: 2 | BL138: 5 | BM138: - | BN138: - | BO138: 71.6 | BP138: 72.0 | BQ138: 71.3 | BR138: 7 | BS138: - | BT138: - | BU138: - | BV138: - | BW138: - | BX138: - | BY138: - | BZ138: - | CA138: - | CB138: 2 | CC138: - | CD138: 1 | CE138: 3 | CF138: 1 | CG138: - | CH138: 3 | CI138: - | CJ138: - | CK138: - | CL138: - | CM138: - | CN138: - | CO138: - | CP138: 1 | CQ138: - | CR138: - | CS138: 1 | CT138: 1 | CU138: - | DC138: 16 | DD138: 11 | DE138: 10 | DF138: 1 | DG138: - | DH138: - | DI138: - | DJ138: 5 | DK138: 3 | DL138: - | DM138: - | DN138: 2 | DO138: - | DP138: - | DQ138: - | DR138: - | DS138: - | DT138: 1 | DU138: - | DV138: - | DW138: - | DX138: - | DY138: - | DZ138: - | EA138: 7 | EB138: 409 | EC138: 117 | ED138: 292 | EE138: - | EF138: 7 | EG138: 5 | EH138: 4 | EI138: 1 | EJ138: - | EK138: - | EL138: - | EM138: 2 | EN138: 9 | EO138: 6 | EP138: 6 | EQ138: - | ER138: - | ES138: - | ET138: - | EU138: 3
A139: 埼玉県 | B139: 見沼区(さいたま市) | C139: 片柳村 | D139: 西根木輪 | E139: 13 | F139: 3 | G139: - | H139: - | I139: - | J139: - | K139: 3 | L139: 10 | M139: 6 | N139: - | O139: - | P139: - | Q139: - | R139: 1 | S139: 1 | T139: - | U139: - | V139: - | W139: - | X139: 2 | Y139: 2 | Z139: - | AA139: - | AB139: - | AC139: 59.0 | AD139: 54.0 | AE139: 61.5 | AF139: 4 | AG139: - | AH139: - | AI139: - | AJ139: - | AK139: - | AL139: - | AM139: - | AN139: - | AO139: - | AP139: - | AQ139: 2 | AR139: 2 | AS139: - | AT139: - | AU139: - | AV139: 69.5 | AW139: 68.0 | AX139: 70.0 | AY139: 4 | AZ139: - | BA139: - | BB139: - | BC139: - | BD139: - | BE139: - | BF139: - | BG139: - | BH139: - | BI139: - | BJ139: 2 | BK139: 2 | BL139: - | BM139: - | BN139: - | BO139: 69.5 | BP139: 68.0 | BQ139: 70.0 | BR139: 3 | BS139: - | BT139: - | BU139: - | BV139: - | BW139: - | BX139: - | BY139: - | BZ139: - | CA139: - | CB139: - | CC139: 1 | CD139: 2 | CE139: - | CF139: - | CG139: - | CH139: 2 | CI139: - | CJ139: - | CK139: - | CL139: - | CM139: - | CN139: - | CO139: - | CP139: - | CQ139: 1 | CR139: 1 | CS139: - | CT139: - | CU139: - | DC139: 13 | DD139: 10 | DE139: 4 | DF139: 4 | DG139: 2 | DH139: - | DI139: 1 | DJ139: 2 | DK139: 1 | DL139: - | DM139: - | DN139: - | DO139: - | DP139: 1 | DQ139: - | DR139: - | DS139: - | DT139: - | DU139: - | DV139: - | DW139: - | DX139: - | DY139: - | DZ139: - | EA139: 3 | EB139: 197 | EC139: 12 | ED139: 185 | EE139: - | EF139: 6 | EG139: 6 | EH139: 1 | EI139: 3 | EJ139: 2 | EK139: - | EL139: - | EM139: - | EN139: 7 | EO139: 4 | EP139: 3 | EQ139: 1 | ER139: - | ES139: - | ET139: 1 | EU139: 2
A140: 埼玉県 | B140: 見沼区(さいたま市) | C140: 片柳村 | D140: 西糀 | E140: 14 | F140: 6 | G140: 3 | H140: 3 | I140: 1 | J140: - | K140: 2 | L140: 8 | M140: 17 | N140: - | O140: 2 | P140: - | Q140: - | R140: - | S140: 1 | T140: 2 | U140: 1 | V140: 3 | W140: 1 | X140: 1 | Y140: 4 | Z140: 2 | AA140: - | AB140: - | AC140: 57.4 | AD140: 54.1 | AE140: 61.0 | AF140: 14 | AG140: - | AH140: 1 | AI140: - | AJ140: - | AK140: - | AL140: - | AM140: 1 | AN140: 1 | AO140: 3 | AP140: 1 | AQ140: 1 | AR140: 4 | AS140: 2 | AT140: - | AU140: - | AV140: 61.6 | AW140: 56.6 | AX140: 66.7 | AY140: 13 | AZ140: - | BA140: 1 | BB140: - | BC140: - | BD140: - | BE140: - | BF140: 1 | BG140: 1 | BH140: 3 | BI140: 1 | BJ140: 1 | BK140: 3 | BL140: 2 | BM140: - | BN140: - | BO140: 60.7 | BP140: 56.6 | BQ140: 65.5 | BR140: 6 | BS140: - | BT140: - | BU140: - | BV140: - | BW140: - | BX140: - | BY140: - | BZ140: 1 | CA140: 2 | CB140: 1 | CC140: - | CD140: 2 | CE140: - | CF140: - | CG140: - | CH140: 4 | CI140: - | CJ140: - | CK140: - | CL140: - | CM140: - | CN140: 1 | CO140: 1 | CP140: - | CQ140: - | CR140: 2 | CS140: - | CT140: - | CU140: - | DC140: 23 | DD140: 18 | DE140: 13 | DF140: 5 | DG140: - | DH140: 2 | DI140: 2 | DJ140: 1 | DK140: 5 | DL140: - | DM140: - | DN140: 1 | DO140: - | DP140: 1 | DQ140: - | DR140: - | DS140: 2 | DT140: - | DU140: - | DV140: - | DW140: - | DX140: 1 | DY140: - | DZ140: - | EA140: 6 | EB140: 786 | EC140: - | ED140: 736 | EE140: 50 | EF140: 11 | EG140: 10 | EH140: 7 | EI140: 3 | EJ140: - | EK140: - | EL140: 1 | EM140: - | EN140: 12 | EO140: 8 | EP140: 6 | EQ140: 2 | ER140: - | ES140: 2 | ET140: 1 | EU140: 1
A141: 埼玉県 | B141: 見沼区(さいたま市) | C141: 片柳村 | D141: 山 | E141: 16 | F141: 9 | G141: 2 | H141: 2 | I141: - | J141: - | K141: 7 | L141: 7 | M141: 22 | N141: - | O141: - | P141: - | Q141: - | R141: 2 | S141: - | T141: - | U141: 1 | V141: 3 | W141: 4 | X141: 3 | Y141: 3 | Z141: 4 | AA141: 1 | AB141: 1 | AC141: 64.9 | AD141: 63.3 | AE141: 66.2 | AF141: 18 | AG141: - | AH141: - | AI141: - | AJ141: - | AK141: 2 | AL141: - | AM141: - | AN141: 1 | AO141: 1 | AP141: 3 | AQ141: 2 | AR141: 3 | AS141: 4 | AT141: 1 | AU141: 1 | AV141: 65.9 | AW141: 63.6 | AX141: 67.8 | AY141: 13 | AZ141: - | BA141: - | BB141: - | BC141: - | BD141: 2 | BE141: - | BF141: - | BG141: 1 | BH141: 1 | BI141: 2 | BJ141: 1 | BK141: 2 | BL141: 3 | BM141: 1 | BN141: - | BO141: 63.8 | BP141: 63.6 | BQ141: 64.2 | BR141: 9 | BS141: - | BT141: - | BU141: - | BV141: - | BW141: - | BX141: - | BY141: - | BZ141: 1 | CA141: - | CB141: 2 | CC141: 2 | CD141: 1 | CE141: 2 | CF141: 1 | CG141: - | CH141: 3 | CI141: - | CJ141: - | CK141: - | CL141: - | CM141: - | CN141: - | CO141: - | CP141: 1 | CQ141: - | CR141: - | CS141: 1 | CT141: 1 | CU141: - | DC141: 30 | DD141: 22 | DE141: 13 | DF141: 8 | DG141: 1 | DH141: 5 | DI141: - | DJ141: 3 | DK141: 6 | DL141: - | DM141: - | DN141: - | DO141: - | DP141: - | DQ141: - | DR141: 3 | DS141: 2 | DT141: 1 | DU141: - | DV141: - | DW141: - | DX141: - | DY141: - | DZ141: - | EA141: 8 | EB141: 765 | EC141: 35 | ED141: 524 | EE141: 206 | EF141: 13 | EG141: 11 | EH141: 8 | EI141: 3 | EJ141: - | EK141: - | EL141: - | EM141: 2 | EN141: 17 | EO141: 11 | EP141: 5 | EQ141: 5 | ER141: 1 | ES141: 5 | ET141: - | EU141: 1
A142: 埼玉県 | B142: 見沼区(さいたま市) | C142: 片柳村 | D142: 東染谷 | E142: 26 | F142: 12 | G142: 6 | H142: 6 | I142: - | J142: - | K142: 6 | L142: 14 | M142: 33 | N142: 1 | O142: - | P142: 1 | Q142: - | R142: 3 | S142: 2 | T142: 6 | U142: 4 | V142: 5 | W142: 3 | X142: 3 | Y142: 2 | Z142: - | AA142: 2 | AB142: 1 | AC142: 54.4 | AD142: 55.2 | AE142: 53.3 | AF142: 28 | AG142: - | AH142: - | AI142: 1 | AJ142: - | AK142: 2 | AL142: 2 | AM142: 5 | AN142: 3 | AO142: 5 | AP142: 3 | AQ142: 3 | AR142: 2 | AS142: - | AT142: 1 | AU142: 1 | AV142: 55.6 | AW142: 56.9 | AX142: 53.6 | AY142: 22 | AZ142: - | BA142: - | BB142: - | BC142: - | BD142: 1 | BE142: 1 | BF142: 5 | BG142: 1 | BH142: 5 | BI142: 3 | BJ142: 3 | BK142: 1 | BL142: - | BM142: 1 | BN142: 1 | BO142: 57.9 | BP142: 58.0 | BQ142: 57.7 | BR142: 12 | BS142: - | BT142: - | BU142: - | BV142: - | BW142: - | BX142: - | BY142: 4 | BZ142: - | CA142: 2 | CB142: 2 | CC142: 1 | CD142: 1 | CE142: - | CF142: 1 | CG142: 1 | CH142: 9 | CI142: - | CJ142: - | CK142: - | CL142: - | CM142: 1 | CN142: - | CO142: 2 | CP142: 2 | CQ142: 1 | CR142: 1 | CS142: - | CT142: 1 | CU142: 1 | DC142: 48 | DD142: 28 | DE142: 22 | DF142: 6 | DG142: - | DH142: 5 | DI142: 7 | DJ142: 8 | DK142: 9 | DL142: - | DM142: - | DN142: - | DO142: - | DP142: 3 | DQ142: - | DR142: 1 | DS142: 4 | DT142: 1 | DU142: - | DV142: - | DW142: - | DX142: - | DY142: - | DZ142: - | EA142: 12 | EB142: 1,694 | EC142: 447 | ED142: 1,239 | EE142: 8 | EF142: 26 | EG142: 21 | EH142: 15 | EI142: 6 | EJ142: - | EK142: - | EL142: 1 | EM142: 4 | EN142: 22 | EO142: 7 | EP142: 7 | EQ142: - | ER142: - | ES142: 5 | ET142: 6 | EU142: 4
A143: 埼玉県 | B143: 見沼区(さいたま市) | C143: 片柳村 | D143: 西染谷 | E143: 10 | F143: 9 | G143: 5 | H143: 5 | I143: 2 | J143: 1 | K143: 2 | L143: 1 | M143: 33 | N143: - | O143: - | P143: 4 | Q143: 1 | R143: 1 | S143: 4 | T143: 1 | U143: 3 | V143: 4 | W143: 2 | X143: 3 | Y143: 4 | Z143: 2 | AA143: 3 | AB143: 1 | AC143: 56.5 | AD143: 54.3 | AE143: 59.1 | AF143: 29 | AG143: - | AH143: - | AI143: 4 | AJ143: 1 | AK143: - | AL143: 2 | AM143: 1 | AN143: 3 | AO143: 4 | AP143: 2 | AQ143: 3 | AR143: 3 | AS143: 2 | AT143: 3 | AU143: 1 | AV143: 57.7 | AW143: 55.2 | AX143: 60.4 | AY143: 28 | AZ143: - | BA143: - | BB143: 4 | BC143: 1 | BD143: - | BE143: 2 | BF143: - | BG143: 3 | BH143: 4 | BI143: 2 | BJ143: 3 | BK143: 3 | BL143: 2 | BM143: 3 | BN143: 1 | BO143: 58.1 | BP143: 55.2 | BQ143: 61.5 | BR143: 9 | BS143: - | BT143: - | BU143: - | BV143: - | BW143: - | BX143: - | BY143: - | BZ143: 1 | CA143: 1 | CB143: 1 | CC143: 1 | CD143: 2 | CE143: 2 | CF143: 1 | CG143: - | CH143: 6 | CI143: - | CJ143: - | CK143: - | CL143: - | CM143: - | CN143: 1 | CO143: 1 | CP143: - | CQ143: - | CR143: 2 | CS143: 2 | CT143: - | CU143: - | DC143: 40 | DD143: 33 | DE143: 28 | DF143: 5 | DG143: - | DH143: 1 | DI143: 3 | DJ143: 3 | DK143: 7 | DL143: - | DM143: - | DN143: - | DO143: - | DP143: 4 | DQ143: 1 | DR143: - | DS143: 2 | DT143: - | DU143: - | DV143: - | DW143: - | DX143: - | DY143: - | DZ143: - | EA143: 8 | EB143: 830 | EC143: 153 | ED143: 677 | EE143: - | EF143: 22 | EG143: 19 | EH143: 15 | EI143: 4 | EJ143: - | EK143: - | EL143: 2 | EM143: 1 | EN143: 18 | EO143: 14 | EP143: 13 | EQ143: 1 | ER143: - | ES143: 1 | ET143: 1 | EU143: 2
A144: 埼玉県 | B144: 見沼区(さいたま市) | C144: 片柳村 | D144: 東新井 | E144: 23 | F144: 9 | G144: 3 | H144: 3 | I144: 1 | J144: - | K144: 5 | L144: 14 | M144: 26 | N144: - | O144: - | P144: - | Q144: 2 | R144: - | S144: 2 | T144: - | U144: 2 | V144: 3 | W144: 10 | X144: 2 | Y144: - | Z144: 3 | AA144: 1 | AB144: 1 | AC144: 60.6 | AD144: 60.6 | AE144: 60.6 | AF144: 16 | AG144: - | AH144: - | AI144: - | AJ144: - | AK144: - | AL144: 2 | AM144: - | AN144: 2 | AO144: - | AP144: 6 | AQ144: 2 | AR144: - | AS144: 3 | AT144: 1 | AU144: - | AV144: 62.7 | AW144: 63.9 | AX144: 61.5 | AY144: 12 | AZ144: - | BA144: - | BB144: - | BC144: - | BD144: - | BE144: 1 | BF144: - | BG144: 1 | BH144: - | BI144: 5 | BJ144: 2 | BK144: - | BL144: 2 | BM144: 1 | BN144: - | BO144: 64.8 | BP144: 63.9 | BQ144: 66.5 | BR144: 9 | BS144: - | BT144: - | BU144: - | BV144: - | BW144: - | BX144: - | BY144: - | BZ144: - | CA144: - | CB144: 4 | CC144: 1 | CD144: - | CE144: 1 | CF144: 1 | CG144: 2 | CH144: 8 | CI144: - | CJ144: - | CK144: - | CL144: - | CM144: - | CN144: - | CO144: - | CP144: 3 | CQ144: 1 | CR144: - | CS144: 1 | CT144: 1 | CU144: 2 | DC144: 39 | DD144: 27 | DE144: 12 | DF144: 11 | DG144: 4 | DH144: 7 | DI144: 3 | DJ144: 2 | DK144: 4 | DL144: - | DM144: - | DN144: 1 | DO144: - | DP144: 1 | DQ144: - | DR144: - | DS144: 1 | DT144: 1 | DU144: - | DV144: - | DW144: - | DX144: - | DY144: - | DZ144: - | EA144: 9 | EB144: 902 | EC144: 30 | ED144: 699 | EE144: 173 | EF144: 23 | EG144: 17 | EH144: 8 | EI144: 7 | EJ144: 2 | EK144: 1 | EL144: 3 | EM144: 2 | EN144: 16 | EO144: 10 | EP144: 4 | EQ144: 4 | ER144: 2 | ES144: 6 | ET144: - | EU144: -
A145: 埼玉県 | B145: 見沼区(さいたま市) | C145: 片柳村 | D145: 東御蔵 | E145: 8 | F145: 5 | G145: 1 | H145: 1 | I145: 1 | J145: 1 | K145: 3 | L145: 3 | M145: 12 | N145: - | O145: 1 | P145: 1 | Q145: 1 | R145: - | S145: - | T145: 1 | U145: 1 | V145: 5 | W145: - | X145: - | Y145: - | Z145: - | AA145: 1 | AB145: 1 | AC145: 52.8 | AD145: 45.8 | AE145: 59.7 | AF145: 6 | AG145: - | AH145: - | AI145: - | AJ145: - | AK145: - | AL145: - | AM145: 1 | AN145: 1 | AO145: 2 | AP145: - | AQ145: - | AR145: - | AS145: - | AT145: 1 | AU145: 1 | AV145: 63.3 | AW145: 54.0 | AX145: 68.0 | AY145: 4 | AZ145: - | BA145: - | BB145: - | BC145: - | BD145: - | BE145: - | BF145: 1 | BG145: 1 | BH145: 1 | BI145: - | BJ145: - | BK145: - | BL145: - | BM145: 1 | BN145: - | BO145: 59.8 | BP145: 54.0 | BQ145: 65.5 | BR145: 5 | BS145: - | BT145: - | BU145: - | BV145: - | BW145: - | BX145: - | BY145: - | BZ145: 1 | CA145: 1 | CB145: - | CC145: - | CD145: - | CE145: - | CF145: 1 | CG145: 2 | CH145: 2 | CI145: - | CJ145: - | CK145: - | CL145: - | CM145: - | CN145: - | CO145: - | CP145: - | CQ145: - | CR145: - | CS145: - | CT145: 1 | CU145: 1 | DC145: 17 | DD145: 10 | DE145: 4 | DF145: 5 | DG145: 1 | DH145: 2 | DI145: 1 | DJ145: 4 | DK145: 3 | DL145: - | DM145: - | DN145: 2 | DO145: - | DP145: - | DQ145: - | DR145: 1 | DS145: - | DT145: - | DU145: - | DV145: - | DW145: - | DX145: - | DY145: - | DZ145: - | EA145: 5 | EB145: 347 | EC145: - | ED145: 320 | EE145: 27 | EF145: 8 | EG145: 6 | EH145: 2 | EI145: 3 | EJ145: 1 | EK145: - | EL145: - | EM145: 2 | EN145: 9 | EO145: 4 | EP145: 2 | EQ145: 2 | ER145: - | ES145: 2 | ET145: 1 | EU145: 2
A146: 埼玉県 | B146: 見沼区(さいたま市) | C146: 片柳村 | D146: 西御蔵 | E146: 17 | F146: 8 | G146: 1 | H146: 1 | I146: - | J146: - | K146: 7 | L146: 9 | M146: 16 | N146: - | O146: - | P146: - | Q146: 1 | R146: 1 | S146: - | T146: - | U146: - | V146: 3 | W146: 2 | X146: 3 | Y146: 3 | Z146: 1 | AA146: 2 | AB146: - | AC146: 63.4 | AD146: 61.2 | AE146: 67.2 | AF146: 14 | AG146: - | AH146: - | AI146: - | AJ146: - | AK146: 1 | AL146: - | AM146: - | AN146: - | AO146: 3 | AP146: 1 | AQ146: 3 | AR146: 3 | AS146: 1 | AT146: 2 | AU146: - | AV146: 66.0 | AW146: 65.1 | AX146: 67.2 | AY146: 13 | AZ146: - | BA146: - | BB146: - | BC146: - | BD146: 1 | BE146: - | BF146: - | BG146: - | BH146: 3 | BI146: 1 | BJ146: 2 | BK146: 3 | BL146: 1 | BM146: 2 | BN146: - | BO146: 66.0 | BP146: 65.1 | BQ146: 67.4 | BR146: 8 | BS146: - | BT146: - | BU146: - | BV146: - | BW146: - | BX146: - | BY146: - | BZ146: - | CA146: 1 | CB146: 2 | CC146: 1 | CD146: 2 | CE146: 1 | CF146: 1 | CG146: - | CH146: 4 | CI146: - | CJ146: - | CK146: - | CL146: - | CM146: - | CN146: - | CO146: 1 | CP146: 1 | CQ146: 1 | CR146: - | CS146: - | CT146: 1 | CU146: - | DC146: 23 | DD146: 18 | DE146: 13 | DF146: 3 | DG146: 2 | DH146: 2 | DI146: 3 | DJ146: - | DK146: 3 | DL146: - | DM146: - | DN146: - | DO146: - | DP146: 2 | DQ146: - | DR146: 1 | DS146: - | DT146: - | DU146: - | DV146: - | DW146: - | DX146: - | DY146: - | DZ146: - | EA146: 8 | EB146: 600 | EC146: 60 | ED146: 540 | EE146: - | EF146: 14 | EG146: 12 | EH146: 8 | EI146: 2 | EJ146: 2 | EK146: - | EL146: 2 | EM146: - | EN146: 9 | EO146: 6 | EP146: 5 | EQ146: 1 | ER146: - | ES146: 2 | ET146: 1 | EU146: -
A147: 埼玉県 | B147: 見沼区(さいたま市) | C147: 片柳村 | D147: 白岡 | E147: 5 | F147: 4 | G147: 2 | H147: 2 | I147: 1 | J147: - | K147: 1 | L147: 1 | M147: 13 | N147: - | O147: - | P147: - | Q147: 1 | R147: - | S147: - | T147: 3 | U147: - | V147: 2 | W147: - | X147: 1 | Y147: 1 | Z147: 3 | AA147: 2 | AB147: - | AC147: 63.2 | AD147: 61.9 | AE147: 65.4 | AF147: 12 | AG147: - | AH147: - | AI147: - | AJ147: 1 | AK147: - | AL147: - | AM147: 2 | AN147: - | AO147: 2 | AP147: - | AQ147: 1 | AR147: 1 | AS147: 3 | AT147: 2 | AU147: - | AV147: 64.8 | AW147: 64.3 | AX147: 65.4 | AY147: 10 | AZ147: - | BA147: - | BB147: - | BC147: 1 | BD147: - | BE147: - | BF147: 2 | BG147: - | BH147: 2 | BI147: - | BJ147: - | BK147: 1 | BL147: 2 | BM147: 2 | BN147: - | BO147: 63.0 | BP147: 64.3 | BQ147: 60.0 | BR147: 4 | BS147: - | BT147: - | BU147: - | BV147: - | BW147: - | BX147: - | BY147: - | BZ147: - | CA147: - | CB147: - | CC147: - | CD147: 1 | CE147: 1 | CF147: 2 | CG147: - | CH147: 4 | CI147: - | CJ147: - | CK147: - | CL147: - | CM147: - | CN147: - | CO147: - | CP147: - | CQ147: - | CR147: 1 | CS147: 1 | CT147: 2 | CU147: - | DC147: 14 | DD147: 11 | DE147: 10 | DF147: 1 | DG147: - | DH147: 2 | DI147: 1 | DJ147: - | DK147: 3 | DL147: - | DM147: - | DN147: - | DO147: - | DP147: - | DQ147: - | DR147: - | DS147: 1 | DT147: - | DU147: 2 | DV147: - | DW147: - | DX147: - | DY147: - | DZ147: - | EA147: 4 | EB147: 448 | EC147: 28 | ED147: 420 | EE147: - | EF147: 9 | EG147: 8 | EH147: 7 | EI147: 1 | EJ147: - | EK147: - | EL147: 1 | EM147: - | EN147: 5 | EO147: 3 | EP147: 3 | EQ147: - | ER147: - | ES147: 2 | ET147: - | EU147: -
A148: 埼玉県 | B148: 見沼区(さいたま市) | C148: 片柳村 | D148: 中御蔵 | E148: 12 | F148: 4 | G148: 1 | H148: 1 | I148: - | J148: - | K148: 3 | L148: 8 | M148: 11 | N148: - | O148: - | P148: 1 | Q148: 2 | R148: - | S148: - | T148: - | U148: 1 | V148: 2 | W148: - | X148: 1 | Y148: 2 | Z148: 2 | AA148: - | AB148: - | AC148: 56.5 | AD148: 58.6 | AE148: 54.7 | AF148: 7 | AG148: - | AH148: - | AI148: - | AJ148: - | AK148: - | AL148: - | AM148: - | AN148: - | AO148: 2 | AP148: - | AQ148: 1 | AR148: 2 | AS148: 2 | AT148: - | AU148: - | AV148: 68.4 | AW148: 70.3 | AX148: 67.0 | AY148: 7 | AZ148: - | BA148: - | BB148: - | BC148: - | BD148: - | BE148: - | BF148: - | BG148: - | BH148: 2 | BI148: - | BJ148: 1 | BK148: 2 | BL148: 2 | BM148: - | BN148: - | BO148: 68.4 | BP148: 70.3 | BQ148: 67.0 | BR148: 4 | BS148: - | BT148: - | BU148: - | BV148: - | BW148: - | BX148: - | BY148: - | BZ148: - | CA148: 1 | CB148: - | CC148: 1 | CD148: 1 | CE148: 1 | CF148: - | CG148: - | CH148: 3 | CI148: - | CJ148: - | CK148: - | CL148: - | CM148: - | CN148: - | CO148: 1 | CP148: - | CQ148: 1 | CR148: - | CS148: 1 | CT148: - | CU148: - | DC148: 11 | DD148: 11 | DE148: 7 | DF148: 4 | DG148: - | DH148: - | DI148: - | DJ148: - | DK148: 3 | DL148: - | DM148: - | DN148: - | DO148: - | DP148: 2 | DQ148: - | DR148: - | DS148: 1 | DT148: - | DU148: - | DV148: - | DW148: - | DX148: - | DY148: - | DZ148: - | EA148: 4 | EB148: 234 | EC148: - | ED148: 234 | EE148: - | EF148: 5 | EG148: 5 | EH148: 3 | EI148: 2 | EJ148: - | EK148: - | EL148: - | EM148: - | EN148: 6 | EO148: 6 | EP148: 4 | EQ148: 2 | ER148: - | ES148: - | ET148: - | EU148: -
A149: 埼玉県 | B149: 見沼区(さいたま市) | C149: 片柳村 | D149: 南中野東 | E149: 12 | F149: 9 | G149: - | H149: - | I149: 4 | J149: 1 | K149: 5 | L149: 3 | M149: 25 | N149: - | O149: - | P149: - | Q149: - | R149: 2 | S149: - | T149: 1 | U149: 4 | V149: 2 | W149: 3 | X149: 3 | Y149: 2 | Z149: 2 | AA149: 5 | AB149: 1 | AC149: 65.0 | AD149: 61.4 | AE149: 68.8 | AF149: 15 | AG149: - | AH149: - | AI149: - | AJ149: - | AK149: - | AL149: - | AM149: - | AN149: 2 | AO149: - | AP149: 2 | AQ149: 2 | AR149: 1 | AS149: 2 | AT149: 5 | AU149: 1 | AV149: 72.6 | AW149: 75.4 | AX149: 71.2 | AY149: 10 | AZ149: - | BA149: - | BB149: - | BC149: - | BD149: - | BE149: - | BF149: - | BG149: 1 | BH149: - | BI149: 2 | BJ149: 2 | BK149: - | BL149: 1 | BM149: 4 | BN149: - | BO149: 71.5 | BP149: 75.4 | BQ149: 67.6 | BR149: 9 | BS149: - | BT149: - | BU149: - | BV149: - | BW149: - | BX149: - | BY149: - | BZ149: 1 | CA149: - | CB149: 1 | CC149: 2 | CD149: 1 | CE149: 1 | CF149: 3 | CG149: - | CH149: 5 | CI149: - | CJ149: - | CK149: - | CL149: - | CM149: - | CN149: - | CO149: - | CP149: 1 | CQ149: 2 | CR149: - | CS149: 1 | CT149: 1 | CU149: - | DC149: 29 | DD149: 22 | DE149: 10 | DF149: 10 | DG149: 2 | DH149: 6 | DI149: - | DJ149: 1 | DK149: 7 | DL149: - | DM149: - | DN149: 3 | DO149: - | DP149: 1 | DQ149: - | DR149: - | DS149: 3 | DT149: - | DU149: - | DV149: - | DW149: - | DX149: - | DY149: - | DZ149: - | EA149: 9 | EB149: 701 | EC149: 96 | ED149: 605 | EE149: - | EF149: 15 | EG149: 14 | EH149: 5 | EI149: 7 | EJ149: 2 | EK149: - | EL149: - | EM149: 1 | EN149: 14 | EO149: 8 | EP149: 5 | EQ149: 3 | ER149: - | ES149: 6 | ET149: - | EU149: -
A150: 埼玉県 | B150: 見沼区(さいたま市) | C150: 片柳村 | D150: 南中野西 | E150: 6 | F150: 5 | G150: - | H150: - | I150: - | J150: - | K150: 5 | L150: 1 | M150: 12 | N150: - | O150: - | P150: - | Q150: - | R150: 1 | S150: - | T150: 2 | U150: - | V150: - | W150: 1 | X150: 2 | Y150: 3 | Z150: 3 | AA150: - | AB150: - | AC150: 64.2 | AD150: 63.0 | AE150: 65.3 | AF150: 8 | AG150: - | AH150: - | AI150: - | AJ150: - | AK150: - | AL150: - | AM150: - | AN150: - | AO150: - | AP150: - | AQ150: 2 | AR150: 3 | AS150: 3 | AT150: - | AU150: - | AV150: 72.8 | AW150: 73.8 | AX150: 71.8 | AY150: 8 | AZ150: - | BA150: - | BB150: - | BC150: - | BD150: - | BE150: - | BF150: - | BG150: - | BH150: - | BI150: - | BJ150: 2 | BK150: 3 | BL150: 3 | BM150: - | BN150: - | BO150: 72.8 | BP150: 73.8 | BQ150: 71.8 | BR150: 5 | BS150: - | BT150: - | BU150: - | BV150: - | BW150: - | BX150: - | BY150: - | BZ150: - | CA150: - | CB150: 1 | CC150: 1 | CD150: 1 | CE150: 2 | CF150: - | CG150: - | CH150: 2 | CI150: - | CJ150: - | CK150: - | CL150: - | CM150: - | CN150: - | CO150: - | CP150: - | CQ150: - | CR150: 1 | CS150: 1 | CT150: - | CU150: - | DC150: 14 | DD150: 12 | DE150: 8 | DF150: 3 | DG150: 1 | DH150: 1 | DI150: - | DJ150: 1 | DK150: 1 | DL150: - | DM150: - | DN150: - | DO150: - | DP150: 1 | DQ150: - | DR150: - | DS150: - | DT150: - | DU150: - | DV150: - | DW150: - | DX150: - | DY150: - | DZ150: - | EA150: 5 | EB150: 453 | EC150: - | ED150: 453 | EE150: - | EF150: 6 | EG150: 6 | EH150: 4 | EI150: 2 | EJ150: - | EK150: - | EL150: - | EM150: - | EN150: 8 | EO150: 6 | EP150: 4 | EQ150: 1 | ER150: 1 | ES150: 1 | ET150: - | EU150: 1
A151: 埼玉県 | B151: 見沼区(さいたま市) | C151: 片柳村 | D151: 南中丸第１ | E151: 6 | F151: 4 | G151: 2 | H151: 2 | I151: - | J151: - | K151: 2 | L151: 2 | M151: 12 | N151: - | O151: 1 | P151: 2 | Q151: - | R151: 1 | S151: - | T151: 2 | U151: 1 | V151: 1 | W151: 1 | X151: 1 | Y151: 2 | Z151: - | AA151: - | AB151: - | AC151: 49.2 | AD151: 50.3 | AE151: 48.0 | AF151: 8 | AG151: - | AH151: - | AI151: 1 | AJ151: - | AK151: 1 | AL151: - | AM151: - | AN151: 1 | AO151: 1 | AP151: 1 | AQ151: 1 | AR151: 2 | AS151: - | AT151: - | AU151: - | AV151: 55.3 | AW151: 50.6 | AX151: 63.0 | AY151: 8 | AZ151: - | BA151: - | BB151: 1 | BC151: - | BD151: 1 | BE151: - | BF151: - | BG151: 1 | BH151: 1 | BI151: 1 | BJ151: 1 | BK151: 2 | BL151: - | BM151: - | BN151: - | BO151: 55.3 | BP151: 50.6 | BQ151: 63.0 | BR151: 4 | BS151: - | BT151: - | BU151: - | BV151: - | BW151: - | BX151: - | BY151: - | BZ151: - | CA151: 1 | CB151: - | CC151: 1 | CD151: 1 | CE151: 1 | CF151: - | CG151: - | CH151: 2 | CI151: - | CJ151: - | CK151: - | CL151: - | CM151: - | CN151: - | CO151: 1 | CP151: - | CQ151: - | CR151: 1 | CS151: - | CT151: - | CU151: - | DC151: 19 | DD151: 13 | DE151: 8 | DF151: 3 | DG151: 2 | DH151: 2 | DI151: 2 | DJ151: 2 | DK151: 3 | DL151: - | DM151: - | DN151: 1 | DO151: - | DP151: - | DQ151: - | DR151: - | DS151: 2 | DT151: - | DU151: - | DV151: - | DW151: - | DX151: - | DY151: - | DZ151: - | EA151: 4 | EB151: 551 | EC151: 20 | ED151: 531 | EE151: - | EF151: 9 | EG151: 7 | EH151: 5 | EI151: 1 | EJ151: 1 | EK151: - | EL151: 1 | EM151: 1 | EN151: 10 | EO151: 6 | EP151: 3 | EQ151: 2 | ER151: 1 | ES151: 2 | ET151: 1 | EU151: 1
A152: 埼玉県 | B152: 見沼区(さいたま市) | C152: 片柳村 | D152: 南中丸第２ | E152: 10 | F152: 3 | G152: - | H152: - | I152: 2 | J152: - | K152: 1 | L152: 7 | M152: 9 | N152: 1 | O152: - | P152: - | Q152: - | R152: - | S152: 2 | T152: 2 | U152: - | V152: - | W152: - | X152: - | Y152: 3 | Z152: 1 | AA152: - | AB152: - | AC152: 54.8 | AD152: 56.7 | AE152: 53.8 | AF152: 4 | AG152: - | AH152: - | AI152: - | AJ152: - | AK152: - | AL152: - | AM152: 1 | AN152: - | AO152: - | AP152: - | AQ152: - | AR152: 3 | AS152: - | AT152: - | AU152: - | AV152: 65.8 | AW152: 61.5 | AX152: 70.0 | AY152: 4 | AZ152: - | BA152: - | BB152: - | BC152: - | BD152: - | BE152: - | BF152: 1 | BG152: - | BH152: - | BI152: - | BJ152: - | BK152: 3 | BL152: - | BM152: - | BN152: - | BO152: 65.8 | BP152: 61.5 | BQ152: 70.0 | BR152: 3 | BS152: - | BT152: - | BU152: - | BV152: - | BW152: - | BX152: - | BY152: 1 | BZ152: - | CA152: - | CB152: - | CC152: - | CD152: 2 | CE152: - | CF152: - | CG152: - | CH152: 2 | CI152: - | CJ152: - | CK152: - | CL152: - | CM152: - | CN152: - | CO152: - | CP152: - | CQ152: - | CR152: 2 | CS152: - | CT152: - | CU152: - | DC152: 11 | DD152: 6 | DE152: 4 | DF152: 2 | DG152: - | DH152: 1 | DI152: 3 | DJ152: 1 | DK152: 2 | DL152: 1 | DM152: - | DN152: - | DO152: - | DP152: - | DQ152: - | DR152: - | DS152: 1 | DT152: - | DU152: - | DV152: - | DW152: - | DX152: - | DY152: - | DZ152: - | EA152: 3 | EB152: 336 | EC152: 105 | ED152: 231 | EE152: - | EF152: 5 | EG152: 3 | EH152: 2 | EI152: 1 | EJ152: - | EK152: - | EL152: 2 | EM152: - | EN152: 6 | EO152: 3 | EP152: 2 | EQ152: 1 | ER152: - | ES152: 1 | ET152: 1 | EU152: 1
A153: 埼玉県 | B153: 見沼区(さいたま市) | C153: 片柳村 | D153: 南中丸第３ | E153: 13 | F153: 6 | G153: 1 | H153: 1 | I153: 1 | J153: - | K153: 4 | L153: 7 | M153: 14 | N153: - | O153: - | P153: - | Q153: 1 | R153: - | S153: 1 | T153: 2 | U153: 2 | V153: - | W153: 1 | X153: 1 | Y153: 4 | Z153: 1 | AA153: 1 | AB153: - | AC153: 61.4 | AD153: 54.0 | AE153: 67.0 | AF153: 11 | AG153: - | AH153: - | AI153: - | AJ153: - | AK153: - | AL153: 1 | AM153: 2 | AN153: 1 | AO153: - | AP153: - | AQ153: 1 | AR153: 4 | AS153: 1 | AT153: 1 | AU153: - | AV153: 64.9 | AW153: 60.5 | AX153: 67.4 | AY153: 10 | AZ153: - | BA153: - | BB153: - | BC153: - | BD153: - | BE153: - | BF153: 2 | BG153: 1 | BH153: - | BI153: - | BJ153: 1 | BK153: 4 | BL153: 1 | BM153: 1 | BN153: - | BO153: 67.0 | BP153: 60.5 | BQ153: 71.3 | BR153: 6 | BS153: - | BT153: - | BU153: - | BV153: - | BW153: - | BX153: - | BY153: - | BZ153: 1 | CA153: - | CB153: - | CC153: 1 | CD153: 3 | CE153: - | CF153: 1 | CG153: - | CH153: 6 | CI153: - | CJ153: - | CK153: - | CL153: - | CM153: - | CN153: 1 | CO153: - | CP153: - | CQ153: 1 | CR153: 3 | CS153: - | CT153: 1 | CU153: - | DC153: 21 | DD153: 13 | DE153: 10 | DF153: 1 | DG153: 2 | DH153: 3 | DI153: 2 | DJ153: 3 | DK153: 3 | DL153: - | DM153: - | DN153: - | DO153: - | DP153: 2 | DQ153: - | DR153: - | DS153: 1 | DT153: - | DU153: - | DV153: - | DW153: - | DX153: - | DY153: - | DZ153: - | EA153: 6 | EB153: 301 | EC153: 14 | ED153: 237 | EE153: 50 | EF153: 8 | EG153: 6 | EH153: 4 | EI153: 1 | EJ153: 1 | EK153: - | EL153: 1 | EM153: 1 | EN153: 13 | EO153: 7 | EP153: 6 | EQ153: - | ER153: 1 | ES153: 3 | ET153: 1 | EU153: 2
A154: 埼玉県 | B154: 見沼区(さいたま市) | C154: 片柳村 | D154: 中川第１ | E154: 19 | F154: 12 | G154: 2 | H154: 2 | I154: 4 | J154: 1 | K154: 6 | L154: 7 | M154: 29 | N154: - | O154: - | P154: - | Q154: - | R154: 1 | S154: - | T154: 1 | U154: 2 | V154: 5 | W154: 3 | X154: 6 | Y154: 1 | Z154: 4 | AA154: 4 | AB154: 2 | AC154: 67.0 | AD154: 66.4 | AE154: 67.8 | AF154: 21 | AG154: - | AH154: - | AI154: - | AJ154: - | AK154: - | AL154: - | AM154: - | AN154: 1 | AO154: 2 | AP154: 3 | AQ154: 5 | AR154: 1 | AS154: 4 | AT154: 3 | AU154: 2 | AV154: 70.9 | AW154: 73.2 | AX154: 68.7 | AY154: 20 | AZ154: - | BA154: - | BB154: - | BC154: - | BD154: - | BE154: - | BF154: - | BG154: 1 | BH154: 2 | BI154: 3 | BJ154: 5 | BK154: 1 | BL154: 3 | BM154: 3 | BN154: 2 | BO154: 70.5 | BP154: 73.2 | BQ154: 67.7 | BR154: 12 | BS154: - | BT154: - | BU154: - | BV154: - | BW154: - | BX154: - | BY154: - | BZ154: - | CA154: - | CB154: 1 | CC154: 3 | CD154: - | CE154: 3 | CF154: 3 | CG154: 2 | CH154: 4 | CI154: - | CJ154: - | CK154: - | CL154: - | CM154: - | CN154: - | CO154: - | CP154: - | CQ154: - | CR154: - | CS154: 1 | CT154: 2 | CU154: 1 | DC154: 43 | DD154: 32 | DE154: 20 | DF154: 11 | DG154: 1 | DH154: 4 | DI154: 2 | DJ154: 5 | DK154: 11 | DL154: 6 | DM154: - | DN154: 2 | DO154: - | DP154: 2 | DQ154: 1 | DR154: - | DS154: - | DT154: - | DU154: - | DV154: - | DW154: - | DX154: - | DY154: - | DZ154: - | EA154: 12 | EB154: 1,323 | EC154: 811 | ED154: 485 | EE154: 27 | EF154: 22 | EG154: 20 | EH154: 10 | EI154: 9 | EJ154: 1 | EK154: - | EL154: - | EM154: 2 | EN154: 21 | EO154: 12 | EP154: 10 | EQ154: 2 | ER154: - | ES154: 4 | ET154: 2 | EU154: 3
A155: 埼玉県 | B155: 見沼区(さいたま市) | C155: 片柳村 | D155: 中川第２ | E155: 12 | F155: 10 | G155: 2 | H155: 2 | I155: 3 | J155: 2 | K155: 5 | L155: 2 | M155: 23 | N155: - | O155: - | P155: 1 | Q155: - | R155: - | S155: - | T155: - | U155: 2 | V155: 2 | W155: 7 | X155: 1 | Y155: 4 | Z155: 1 | AA155: 3 | AB155: 2 | AC155: 66.4 | AD155: 66.4 | AE155: 66.5 | AF155: 17 | AG155: - | AH155: - | AI155: - | AJ155: - | AK155: - | AL155: - | AM155: - | AN155: 1 | AO155: 1 | AP155: 5 | AQ155: 1 | AR155: 3 | AS155: 1 | AT155: 3 | AU155: 2 | AV155: 70.2 | AW155: 69.4 | AX155: 70.7 | AY155: 14 | AZ155: - | BA155: - | BB155: - | BC155: - | BD155: - | BE155: - | BF155: - | BG155: 1 | BH155: - | BI155: 5 | BJ155: 1 | BK155: 3 | BL155: - | BM155: 3 | BN155: 1 | BO155: 69.6 | BP155: 69.4 | BQ155: 69.7 | BR155: 10 | BS155: - | BT155: - | BU155: - | BV155: - | BW155: - | BX155: - | BY155: - | BZ155: 2 | CA155: - | CB155: 2 | CC155: - | CD155: 3 | CE155: - | CF155: 2 | CG155: 1 | CH155: 6 | CI155: - | CJ155: - | CK155: - | CL155: - | CM155: - | CN155: 1 | CO155: - | CP155: 2 | CQ155: - | CR155: - | CS155: - | CT155: 2 | CU155: 1 | DC155: 34 | DD155: 23 | DE155: 14 | DF155: 7 | DG155: 2 | DH155: 4 | DI155: 2 | DJ155: 5 | DK155: 8 | DL155: 5 | DM155: - | DN155: - | DO155: - | DP155: 2 | DQ155: - | DR155: 1 | DS155: - | DT155: - | DU155: - | DV155: - | DW155: - | DX155: - | DY155: - | DZ155: - | EA155: 10 | EB155: 936 | EC155: 504 | ED155: 392 | EE155: 40 | EF155: 17 | EG155: 14 | EH155: 7 | EI155: 6 | EJ155: 1 | EK155: - | EL155: 1 | EM155: 2 | EN155: 17 | EO155: 9 | EP155: 7 | EQ155: 1 | ER155: 1 | ES155: 4 | ET155: 1 | EU155: 3
A156: 埼玉県 | B156: 見沼区(さいたま市) | C156: 片柳村 | D156: 中川第３ | E156: 11 | F156: 8 | G156: - | H156: - | I156: 5 | J156: 3 | K156: 3 | L156: 3 | M156: 21 | N156: - | O156: 1 | P156: 1 | Q156: - | R156: - | S156: - | T156: - | U156: - | V156: 11 | W156: 1 | X156: 2 | Y156: - | Z156: - | AA156: 2 | AB156: 3 | AC156: 62.5 | AD156: 63.6 | AE156: 60.8 | AF156: 16 | AG156: - | AH156: - | AI156: - | AJ156: - | AK156: - | AL156: - | AM156: - | AN156: - | AO156: 8 | AP156: 1 | AQ156: 2 | AR156: - | AS156: - | AT156: 2 | AU156: 3 | AV156: 68.2 | AW156: 71.9 | AX156: 62.0 | AY156: 15 | AZ156: - | BA156: - | BB156: - | BC156: - | BD156: - | BE156: - | BF156: - | BG156: - | BH156: 7 | BI156: 1 | BJ156: 2 | BK156: - | BL156: - | BM156: 2 | BN156: 3 | BO156: 69.0 | BP156: 71.9 | BQ156: 63.2 | BR156: 8 | BS156: - | BT156: - | BU156: - | BV156: - | BW156: - | BX156: - | BY156: - | BZ156: - | CA156: 2 | CB156: - | CC156: 1 | CD156: - | CE156: - | CF156: 1 | CG156: 4 | CH156: 6 | CI156: - | CJ156: - | CK156: - | CL156: - | CM156: - | CN156: - | CO156: 1 | CP156: - | CQ156: 1 | CR156: - | CS156: - | CT156: 1 | CU156: 3 | DC156: 37 | DD156: 25 | DE156: 15 | DF156: 10 | DG156: - | DH156: 3 | DI156: 1 | DJ156: 8 | DK156: 6 | DL156: 3 | DM156: - | DN156: 2 | DO156: - | DP156: - | DQ156: - | DR156: - | DS156: 1 | DT156: - | DU156: - | DV156: - | DW156: - | DX156: - | DY156: - | DZ156: - | EA156: 8 | EB156: 596 | EC156: 145 | ED156: 451 | EE156: - | EF156: 22 | EG156: 19 | EH156: 10 | EI156: 9 | EJ156: - | EK156: - | EL156: 1 | EM156: 2 | EN156: 15 | EO156: 6 | EP156: 5 | EQ156: 1 | ER156: - | ES156: 3 | ET156: - | EU156: 6
A157: 埼玉県 | B157: 見沼区(さいたま市) | C157: 七里村 | E157: 211 | F157: 140 | G157: 37 | H157: 32 | I157: 27 | J157: 19 | K157: 76 | L157: 71 | M157: 394 | N157: 1 | O157: 5 | P157: 12 | Q157: 12 | R157: 20 | S157: 21 | T157: 23 | U157: 26 | V157: 40 | W157: 58 | X157: 48 | Y157: 49 | Z157: 32 | AA157: 28 | AB157: 19 | AC157: 60.7 | AD157: 58.6 | AE157: 62.9 | AF157: 272 | AG157: - | AH157: 1 | AI157: 4 | AJ157: 4 | AK157: 8 | AL157: 14 | AM157: 8 | AN157: 14 | AO157: 27 | AP157: 42 | AQ157: 39 | AR157: 41 | AS157: 28 | AT157: 27 | AU157: 15 | AV157: 64.9 | AW157: 63.1 | AX157: 66.5 | AY157: 240 | AZ157: - | BA157: - | BB157: 4 | BC157: 4 | BD157: 7 | BE157: 11 | BF157: 6 | BG157: 13 | BH157: 23 | BI157: 39 | BJ157: 36 | BK157: 38 | BL157: 25 | BM157: 23 | BN157: 11 | BO157: 64.9 | BP157: 63.4 | BQ157: 66.6 | BR157: 140 | BS157: - | BT157: - | BU157: - | BV157: - | BW157: 1 | BX157: 1 | BY157: 5 | BZ157: 10 | CA157: 11 | CB157: 26 | CC157: 23 | CD157: 29 | CE157: 18 | CF157: 10 | CG157: 6 | CH157: 79 | CI157: - | CJ157: - | CK157: - | CL157: - | CM157: 3 | CN157: 4 | CO157: 4 | CP157: 13 | CQ157: 13 | CR157: 17 | CS157: 12 | CT157: 7 | CU157: 6 | DC157: 513 | DD157: 379 | DE157: 240 | DF157: 106 | DG157: 33 | DH157: 58 | DI157: 24 | DJ157: 52 | DK157: 101 | DL157: 35 | DM157: - | DN157: 6 | DO157: - | DP157: 18 | DQ157: 5 | DR157: 5 | DS157: 28 | DT157: 4 | DU157: - | DV157: - | DW157: - | DX157: - | DY157: - | DZ157: - | EA157: 140 | EB157: 15,226 | EC157: 7,078 | ED157: 7,560 | EE157: 588 | EF157: 244 | EG157: 214 | EH157: 126 | EI157: 68 | EJ157: 20 | EK157: - | EL157: 13 | EM157: 17 | EN157: 269 | EO157: 165 | EP157: 114 | EQ157: 38 | ER157: 13 | ES157: 58 | ET157: 11 | EU157: 35
A158: 埼玉県 | B158: 見沼区(さいたま市) | C158: 七里村 | D158: 蓮沼第１ | E158: 12 | F158: 8 | G158: 2 | H158: 1 | I158: 1 | J158: 1 | K158: 5 | L158: 4 | M158: 20 | N158: - | O158: - | P158: - | Q158: - | R158: 1 | S158: 2 | T158: 1 | U158: - | V158: - | W158: 5 | X158: 4 | Y158: 3 | Z158: 3 | AA158: - | AB158: 1 | AC158: 64.1 | AD158: 61.0 | AE158: 67.1 | AF158: 17 | AG158: - | AH158: - | AI158: - | AJ158: - | AK158: 1 | AL158: 2 | AM158: 1 | AN158: - | AO158: - | AP158: 2 | AQ158: 4 | AR158: 3 | AS158: 3 | AT158: - | AU158: 1 | AV158: 64.4 | AW158: 60.9 | AX158: 68.3 | AY158: 16 | AZ158: - | BA158: - | BB158: - | BC158: - | BD158: 1 | BE158: 2 | BF158: 1 | BG158: - | BH158: - | BI158: 2 | BJ158: 3 | BK158: 3 | BL158: 3 | BM158: - | BN158: 1 | BO158: 64.1 | BP158: 60.9 | BQ158: 68.3 | BR158: 8 | BS158: - | BT158: - | BU158: - | BV158: - | BW158: - | BX158: - | BY158: 1 | BZ158: - | CA158: - | CB158: 2 | CC158: 1 | CD158: 3 | CE158: 1 | CF158: - | CG158: - | CH158: 8 | CI158: - | CJ158: - | CK158: - | CL158: - | CM158: 1 | CN158: - | CO158: - | CP158: 2 | CQ158: 1 | CR158: 3 | CS158: 1 | CT158: - | CU158: - | DC158: 30 | DD158: 27 | DE158: 16 | DF158: 7 | DG158: 4 | DH158: 2 | DI158: - | DJ158: 1 | DK158: 5 | DL158: - | DM158: - | DN158: 2 | DO158: - | DP158: 3 | DQ158: - | DR158: - | DS158: - | DT158: - | DU158: - | DV158: - | DW158: - | DX158: - | DY158: - | DZ158: - | EA158: 8 | EB158: 830 | EC158: 55 | ED158: 705 | EE158: 70 | EF158: 15 | EG158: 15 | EH158: 9 | EI158: 4 | EJ158: 2 | EK158: - | EL158: - | EM158: - | EN158: 15 | EO158: 12 | EP158: 7 | EQ158: 3 | ER158: 2 | ES158: 2 | ET158: - | EU158: 1
A159: 埼玉県 | B159: 見沼区(さいたま市) | C159: 七里村 | D159: 蓮沼第２ | E159: 8 | F159: 5 | G159: 1 | H159: 1 | I159: 2 | J159: - | K159: 2 | L159: 3 | M159: 16 | N159: - | O159: - | P159: - | Q159: 1 | R159: - | S159: 1 | T159: 3 | U159: - | V159: 1 | W159: 4 | X159: 3 | Y159: 1 | Z159: - | AA159: 1 | AB159: 1 | AC159: 60.0 | AD159: 59.0 | AE159: 61.0 | AF159: 10 | AG159: - | AH159: - | AI159: - | AJ159: 1 | AK159: - | AL159: 1 | AM159: - | AN159: - | AO159: 1 | AP159: 4 | AQ159: - | AR159: 1 | AS159: - | AT159: 1 | AU159: 1 | AV159: 61.3 | AW159: 60.0 | AX159: 62.2 | AY159: 8 | AZ159: - | BA159: - | BB159: - | BC159: 1 | BD159: - | BE159: - | BF159: - | BG159: - | BH159: 1 | BI159: 3 | BJ159: - | BK159: 1 | BL159: - | BM159: 1 | BN159: 1 | BO159: 64.1 | BP159: 60.0 | BQ159: 68.3 | BR159: 5 | BS159: - | BT159: - | BU159: - | BV159: - | BW159: - | BX159: - | BY159: - | BZ159: - | CA159: - | CB159: 1 | CC159: 2 | CD159: 1 | CE159: - | CF159: - | CG159: 1 | CH159: 3 | CI159: - | CJ159: - | CK159: - | CL159: - | CM159: - | CN159: - | CO159: - | CP159: - | CQ159: 1 | CR159: 1 | CS159: - | CT159: - | CU159: 1 | DC159: 19 | DD159: 13 | DE159: 8 | DF159: 4 | DG159: 1 | DH159: 3 | DI159: - | DJ159: 3 | DK159: 3 | DL159: - | DM159: - | DN159: - | DO159: - | DP159: 1 | DQ159: - | DR159: 1 | DS159: 1 | DT159: - | DU159: - | DV159: - | DW159: - | DX159: - | DY159: - | DZ159: - | EA159: 5 | EB159: 306 | EC159: 114 | ED159: 172 | EE159: 20 | EF159: 10 | EG159: 8 | EH159: 4 | EI159: 3 | EJ159: 1 | EK159: - | EL159: - | EM159: 2 | EN159: 9 | EO159: 5 | EP159: 4 | EQ159: 1 | ER159: - | ES159: 3 | ET159: - | EU159: 1
A160: 埼玉県 | B160: 見沼区(さいたま市) | C160: 七里村 | D160: 蓮沼第３ | E160: 17 | F160: 14 | G160: 3 | H160: 3 | I160: 3 | J160: 2 | K160: 8 | L160: 3 | M160: 47 | N160: - | O160: - | P160: 4 | Q160: 4 | R160: 5 | S160: 2 | T160: 2 | U160: 2 | V160: 5 | W160: 6 | X160: 6 | Y160: 5 | Z160: 1 | AA160: 3 | AB160: 2 | AC160: 55.8 | AD160: 51.7 | AE160: 59.7 | AF160: 22 | AG160: - | AH160: - | AI160: - | AJ160: - | AK160: - | AL160: 1 | AM160: 1 | AN160: 1 | AO160: 4 | AP160: 3 | AQ160: 4 | AR160: 3 | AS160: 1 | AT160: 3 | AU160: 1 | AV160: 66.3 | AW160: 63.4 | AX160: 68.3 | AY160: 18 | AZ160: - | BA160: - | BB160: - | BC160: - | BD160: - | BE160: 1 | BF160: 1 | BG160: - | BH160: 3 | BI160: 3 | BJ160: 2 | BK160: 3 | BL160: 1 | BM160: 3 | BN160: 1 | BO160: 67.7 | BP160: 62.8 | BQ160: 71.6 | BR160: 14 | BS160: - | BT160: - | BU160: - | BV160: - | BW160: 1 | BX160: - | BY160: 1 | BZ160: 1 | CA160: 2 | CB160: 3 | CC160: 2 | CD160: 2 | CE160: 1 | CF160: - | CG160: 1 | CH160: 9 | CI160: - | CJ160: - | CK160: - | CL160: - | CM160: - | CN160: - | CO160: - | CP160: 3 | CQ160: 2 | CR160: 2 | CS160: 1 | CT160: - | CU160: 1 | DC160: 55 | DD160: 42 | DE160: 18 | DF160: 18 | DG160: 6 | DH160: 9 | DI160: 1 | DJ160: 3 | DK160: 9 | DL160: 3 | DM160: - | DN160: 1 | DO160: - | DP160: 2 | DQ160: - | DR160: 2 | DS160: 1 | DT160: - | DU160: - | DV160: - | DW160: - | DX160: - | DY160: - | DZ160: - | EA160: 14 | EB160: 1,615 | EC160: 232 | ED160: 1,201 | EE160: 182 | EF160: 25 | EG160: 22 | EH160: 8 | EI160: 11 | EJ160: 3 | EK160: - | EL160: 1 | EM160: 2 | EN160: 30 | EO160: 20 | EP160: 10 | EQ160: 7 | ER160: 3 | ES160: 9 | ET160: - | EU160: 1
A161: 埼玉県 | B161: 見沼区(さいたま市) | C161: 七里村 | D161: 東門前第１ | E161: 5 | F161: 2 | G161: x | H161: x | I161: x | J161: x | K161: x | L161: 3 | M161: x | N161: x | O161: x | P161: x | Q161: x | R161: x | S161: x | T161: x | U161: x | V161: x | W161: x | X161: x | Y161: x | Z161: x | AA161: x | AB161: x | AC161: 70.7 | AD161: 71.5 | AE161: 70.3 | AF161: x | AG161: x | AH161: x | AI161: x | AJ161: x | AK161: x | AL161: x | AM161: x | AN161: x | AO161: x | AP161: x | AQ161: x | AR161: x | AS161: x | AT161: x | AU161: x | AV161: 70.0 | AW161: 73.0 | AX161: 67.0 | AY161: x | AZ161: x | BA161: x | BB161: x | BC161: x | BD161: x | BE161: x | BF161: x | BG161: x | BH161: x | BI161: x | BJ161: x | BK161: x | BL161: x | BM161: x | BN161: x | BO161: 70.0 | BP161: 73.0 | BQ161: 67.0 | BR161: 2 | BS161: - | BT161: - | BU161: - | BV161: - | BW161: - | BX161: - | BY161: - | BZ161: - | CA161: - | CB161: - | CC161: - | CD161: 2 | CE161: - | CF161: - | CG161: - | CH161: 1 | CI161: - | CJ161: - | CK161: - | CL161: - | CM161: - | CN161: - | CO161: - | CP161: - | CQ161: - | CR161: 1 | CS161: - | CT161: - | CU161: - | DC161: 6 | DD161: 2 | DE161: 2 | DF161: - | DG161: - | DH161: 2 | DI161: - | DJ161: 2 | DK161: 1 | DL161: - | DM161: - | DN161: - | DO161: - | DP161: - | DQ161: - | DR161: - | DS161: 1 | DT161: - | DU161: - | DV161: - | DW161: - | DX161: - | DY161: - | DZ161: - | EA161: 2 | EB161: 99 | EC161: 29 | ED161: 70 | EE161: - | EF161: 2 | EG161: 1 | EH161: 1 | EI161: - | EJ161: - | EK161: - | EL161: - | EM161: 1 | EN161: 4 | EO161: 1 | EP161: 1 | EQ161: - | ER161: - | ES161: 2 | ET161: - | EU161: 1
A162: 埼玉県 | B162: 見沼区(さいたま市) | C162: 七里村 | D162: 東門前第２ | E162: 5 | F162: 2 | G162: x | H162: x | I162: x | J162: x | K162: x | L162: 3 | M162: x | N162: x | O162: x | P162: x | Q162: x | R162: x | S162: x | T162: x | U162: x | V162: x | W162: x | X162: x | Y162: x | Z162: x | AA162: x | AB162: x | AC162: 63.2 | AD162: 70.5 | AE162: 58.3 | AF162: x | AG162: x | AH162: x | AI162: x | AJ162: x | AK162: x | AL162: x | AM162: x | AN162: x | AO162: x | AP162: x | AQ162: x | AR162: x | AS162: x | AT162: x | AU162: x | AV162: 63.7 | AW162: 77.0 | AX162: 57.0 | AY162: x | AZ162: x | BA162: x | BB162: x | BC162: x | BD162: x | BE162: x | BF162: x | BG162: x | BH162: x | BI162: x | BJ162: x | BK162: x | BL162: x | BM162: x | BN162: x | BO162: 74.0 | BP162: 77.0 | BQ162: 71.0 | BR162: 2 | BS162: - | BT162: - | BU162: - | BV162: - | BW162: - | BX162: - | BY162: - | BZ162: - | CA162: - | CB162: 1 | CC162: - | CD162: - | CE162: 1 | CF162: - | CG162: - | CH162: 1 | CI162: - | CJ162: - | CK162: - | CL162: - | CM162: - | CN162: - | CO162: - | CP162: - | CQ162: - | CR162: - | CS162: 1 | CT162: - | CU162: - | DC162: 7 | DD162: 5 | DE162: 2 | DF162: 1 | DG162: 2 | DH162: 1 | DI162: 1 | DJ162: - | DK162: 1 | DL162: - | DM162: - | DN162: - | DO162: - | DP162: - | DQ162: - | DR162: - | DS162: 1 | DT162: - | DU162: - | DV162: - | DW162: - | DX162: - | DY162: - | DZ162: - | EA162: 2 | EB162: 78 | EC162: - | ED162: 78 | EE162: - | EF162: 4 | EG162: 3 | EH162: 1 | EI162: 1 | EJ162: 1 | EK162: - | EL162: 1 | EM162: - | EN162: 3 | EO162: 2 | EP162: 1 | EQ162: - | ER162: 1 | ES162: 1 | ET162: - | EU162: -
A163: 埼玉県 | B163: 見沼区(さいたま市) | C163: 七里村 | D163: 風渡野第１ | E163: 6 | F163: 5 | G163: - | H163: - | I163: 1 | J163: 1 | K163: 4 | L163: 1 | M163: 15 | N163: - | O163: 1 | P163: - | Q163: 2 | R163: - | S163: - | T163: 1 | U163: 3 | V163: 1 | W163: 1 | X163: 3 | Y163: 1 | Z163: 1 | AA163: - | AB163: 1 | AC163: 55.9 | AD163: 50.1 | AE163: 60.9 | AF163: 7 | AG163: - | AH163: - | AI163: - | AJ163: - | AK163: - | AL163: - | AM163: - | AN163: 1 | AO163: - | AP163: - | AQ163: 3 | AR163: 1 | AS163: 1 | AT163: - | AU163: 1 | AV163: 70.4 | AW163: 63.7 | AX163: 75.5 | AY163: 6 | AZ163: - | BA163: - | BB163: - | BC163: - | BD163: - | BE163: - | BF163: - | BG163: 1 | BH163: - | BI163: - | BJ163: 3 | BK163: 1 | BL163: 1 | BM163: - | BN163: - | BO163: 67.2 | BP163: 63.7 | BQ163: 70.7 | BR163: 5 | BS163: - | BT163: - | BU163: - | BV163: - | BW163: - | BX163: - | BY163: - | BZ163: 2 | CA163: - | CB163: 1 | CC163: 1 | CD163: 1 | CE163: - | CF163: - | CG163: - | CH163: 1 | CI163: - | CJ163: - | CK163: - | CL163: - | CM163: - | CN163: - | CO163: - | CP163: - | CQ163: 1 | CR163: - | CS163: - | CT163: - | CU163: - | DC163: 16 | DD163: 12 | DE163: 6 | DF163: 2 | DG163: 4 | DH163: 1 | DI163: 2 | DJ163: 1 | DK163: 3 | DL163: - | DM163: - | DN163: 1 | DO163: - | DP163: 1 | DQ163: - | DR163: - | DS163: - | DT163: 1 | DU163: - | DV163: - | DW163: - | DX163: - | DY163: - | DZ163: - | EA163: 5 | EB163: 403 | EC163: 118 | ED163: 230 | EE163: 55 | EF163: 7 | EG163: 6 | EH163: 3 | EI163: 1 | EJ163: 2 | EK163: - | EL163: 1 | EM163: - | EN163: 9 | EO163: 6 | EP163: 3 | EQ163: 1 | ER163: 2 | ES163: 1 | ET163: 1 | EU163: 1
A164: 埼玉県 | B164: 見沼区(さいたま市) | C164: 七里村 | D164: 風渡野第２ | E164: 2 | F164: 2 | G164: x | H164: x | I164: x | J164: x | K164: x | L164: - | M164: x | N164: x | O164: x | P164: x | Q164: x | R164: x | S164: x | T164: x | U164: x | V164: x | W164: x | X164: x | Y164: x | Z164: x | AA164: x | AB164: x | AC164: 65.5 | AD164: 55.5 | AE164: 75.5 | AF164: x | AG164: x | AH164: x | AI164: x | AJ164: x | AK164: x | AL164: x | AM164: x | AN164: x | AO164: x | AP164: x | AQ164: x | AR164: x | AS164: x | AT164: x | AU164: x | AV164: 71.0 | AW164: 71.0 | AX164: … | AY164: x | AZ164: x | BA164: x | BB164: x | BC164: x | BD164: x | BE164: x | BF164: x | BG164: x | BH164: x | BI164: x | BJ164: x | BK164: x | BL164: x | BM164: x | BN164: x | BO164: 71.0 | BP164: 71.0 | BQ164: … | BR164: 2 | BS164: - | BT164: - | BU164: - | BV164: - | BW164: - | BX164: - | BY164: - | BZ164: - | CA164: - | CB164: - | CC164: - | CD164: 1 | CE164: - | CF164: 1 | CG164: - | CH164: - | CI164: - | CJ164: - | CK164: - | CL164: - | CM164: - | CN164: - | CO164: - | CP164: - | CQ164: - | CR164: - | CS164: - | CT164: - | CU164: - | DC164: 5 | DD164: 3 | DE164: 1 | DF164: 1 | DG164: 1 | DH164: 2 | DI164: - | DJ164: - | DK164: 1 | DL164: - | DM164: - | DN164: - | DO164: - | DP164: 1 | DQ164: - | DR164: - | DS164: - | DT164: - | DU164: - | DV164: - | DW164: - | DX164: - | DY164: - | DZ164: - | EA164: 2 | EB164: 100 | EC164: 13 | ED164: 87 | EE164: - | EF164: 2 | EG164: 2 | EH164: 1 | EI164: 1 | EJ164: - | EK164: - | EL164: - | EM164: - | EN164: 3 | EO164: 1 | EP164: - | EQ164: - | ER164: 1 | ES164: 2 | ET164: - | EU164: -
A165: 埼玉県 | B165: 見沼区(さいたま市) | C165: 七里村 | D165: 新堤 | E165: 4 | F165: 1 | G165: x | H165: x | I165: x | J165: x | K165: x | L165: 3 | M165: x | N165: x | O165: x | P165: x | Q165: x | R165: x | S165: x | T165: x | U165: x | V165: x | W165: x | X165: x | Y165: x | Z165: x | AA165: x | AB165: x | AC165: 65.0 | AD165: 61.5 | AE165: 72.0 | AF165: x | AG165: x | AH165: x | AI165: x | AJ165: x | AK165: x | AL165: x | AM165: x | AN165: x | AO165: x | AP165: x | AQ165: x | AR165: x | AS165: x | AT165: x | AU165: x | AV165: 73.0 | AW165: 74.0 | AX165: 72.0 | AY165: x | AZ165: x | BA165: x | BB165: x | BC165: x | BD165: x | BE165: x | BF165: x | BG165: x | BH165: x | BI165: x | BJ165: x | BK165: x | BL165: x | BM165: x | BN165: x | BO165: 73.0 | BP165: 74.0 | BQ165: 72.0 | BR165: 1 | BS165: - | BT165: - | BU165: - | BV165: - | BW165: - | BX165: - | BY165: - | BZ165: - | CA165: - | CB165: - | CC165: - | CD165: 1 | CE165: - | CF165: - | CG165: - | CH165: 1 | CI165: - | CJ165: - | CK165: - | CL165: - | CM165: - | CN165: - | CO165: - | CP165: - | CQ165: - | CR165: 1 | CS165: - | CT165: - | CU165: - | DC165: 5 | DD165: 3 | DE165: 2 | DF165: 1 | DG165: - | DH165: 1 | DI165: - | DJ165: 1 | DK165: 1 | DL165: - | DM165: - | DN165: - | DO165: - | DP165: - | DQ165: - | DR165: - | DS165: 1 | DT165: - | DU165: - | DV165: - | DW165: - | DX165: - | DY165: - | DZ165: - | EA165: 1 | EB165: 107 | EC165: - | ED165: 107 | EE165: - | EF165: 2 | EG165: 2 | EH165: 1 | EI165: 1 | EJ165: - | EK165: - | EL165: - | EM165: - | EN165: 3 | EO165: 1 | EP165: 1 | EQ165: - | ER165: - | ES165: 1 | ET165: - | EU165: 1
A166: 埼玉県 | B166: 見沼区(さいたま市) | C166: 七里村 | D166: 東宮下第１ | E166: 16 | F166: 14 | G166: 2 | H166: 2 | I166: - | J166: - | K166: 12 | L166: 2 | M166: 34 | N166: - | O166: - | P166: - | Q166: 1 | R166: 1 | S166: - | T166: 3 | U166: 1 | V166: 5 | W166: 2 | X166: 7 | Y166: 4 | Z166: 5 | AA166: 1 | AB166: 4 | AC166: 65.8 | AD166: 65.7 | AE166: 65.9 | AF166: 27 | AG166: - | AH166: - | AI166: - | AJ166: 1 | AK166: 1 | AL166: - | AM166: 2 | AN166: - | AO166: 4 | AP166: 1 | AQ166: 5 | AR166: 4 | AS166: 4 | AT166: 1 | AU166: 4 | AV166: 67.0 | AW166: 68.2 | AX166: 65.9 | AY166: 20 | AZ166: - | BA166: - | BB166: - | BC166: 1 | BD166: 1 | BE166: - | BF166: 1 | BG166: - | BH166: 3 | BI166: 1 | BJ166: 5 | BK166: 3 | BL166: 3 | BM166: 1 | BN166: 1 | BO166: 64.9 | BP166: 66.7 | BQ166: 62.1 | BR166: 14 | BS166: - | BT166: - | BU166: - | BV166: - | BW166: - | BX166: - | BY166: - | BZ166: - | CA166: - | CB166: - | CC166: 5 | CD166: 2 | CE166: 4 | CF166: 1 | CG166: 2 | CH166: 10 | CI166: - | CJ166: - | CK166: - | CL166: - | CM166: - | CN166: - | CO166: - | CP166: - | CQ166: 3 | CR166: 1 | CS166: 3 | CT166: 1 | CU166: 2 | DC166: 51 | DD166: 31 | DE166: 20 | DF166: 10 | DG166: 1 | DH166: 9 | DI166: 1 | DJ166: 10 | DK166: 7 | DL166: 6 | DM166: - | DN166: - | DO166: - | DP166: - | DQ166: - | DR166: - | DS166: 1 | DT166: - | DU166: - | DV166: - | DW166: - | DX166: - | DY166: - | DZ166: - | EA166: 14 | EB166: 972 | EC166: 546 | ED166: 386 | EE166: 40 | EF166: 27 | EG166: 21 | EH166: 12 | EI166: 8 | EJ166: 1 | EK166: - | EL166: 1 | EM166: 5 | EN166: 24 | EO166: 10 | EP166: 8 | EQ166: 2 | ER166: - | ES166: 9 | ET166: - | EU166: 5
A167: 埼玉県 | B167: 見沼区(さいたま市) | C167: 七里村 | D167: 東宮下第２ | E167: 12 | F167: 4 | G167: - | H167: - | I167: 1 | J167: 1 | K167: 3 | L167: 8 | M167: 8 | N167: - | O167: - | P167: - | Q167: - | R167: - | S167: - | T167: - | U167: 1 | V167: 1 | W167: 1 | X167: 1 | Y167: 2 | Z167: - | AA167: 2 | AB167: - | AC167: 68.3 | AD167: 69.8 | AE167: 66.8 | AF167: 6 | AG167: - | AH167: - | AI167: - | AJ167: - | AK167: - | AL167: - | AM167: - | AN167: - | AO167: - | AP167: 1 | AQ167: 1 | AR167: 2 | AS167: - | AT167: 2 | AU167: - | AV167: 72.5 | AW167: 73.7 | AX167: 71.3 | AY167: 5 | AZ167: - | BA167: - | BB167: - | BC167: - | BD167: - | BE167: - | BF167: - | BG167: - | BH167: - | BI167: 1 | BJ167: 1 | BK167: 1 | BL167: - | BM167: 2 | BN167: - | BO167: 72.6 | BP167: 73.7 | BQ167: 71.0 | BR167: 4 | BS167: - | BT167: - | BU167: - | BV167: - | BW167: - | BX167: - | BY167: - | BZ167: - | CA167: 1 | CB167: - | CC167: 1 | CD167: 1 | CE167: - | CF167: 1 | CG167: - | CH167: 3 | CI167: - | CJ167: - | CK167: - | CL167: - | CM167: - | CN167: - | CO167: - | CP167: - | CQ167: 1 | CR167: 1 | CS167: - | CT167: 1 | CU167: - | DC167: 13 | DD167: 11 | DE167: 5 | DF167: 5 | DG167: 1 | DH167: 2 | DI167: - | DJ167: - | DK167: 2 | DL167: 2 | DM167: - | DN167: - | DO167: - | DP167: - | DQ167: - | DR167: - | DS167: - | DT167: - | DU167: - | DV167: - | DW167: - | DX167: - | DY167: - | DZ167: - | EA167: 4 | EB167: 324 | EC167: 190 | ED167: 134 | EE167: - | EF167: 7 | EG167: 7 | EH167: 3 | EI167: 3 | EJ167: 1 | EK167: - | EL167: - | EM167: - | EN167: 6 | EO167: 4 | EP167: 2 | EQ167: 2 | ER167: - | ES167: 2 | ET167: - | EU167: -
A168: 埼玉県 | B168: 見沼区(さいたま市) | C168: 七里村 | D168: 東宮下第３ | E168: 9 | F168: 6 | G168: 1 | H168: 1 | I168: 1 | J168: 1 | K168: 4 | L168: 3 | M168: 19 | N168: - | O168: - | P168: - | Q168: 1 | R168: 2 | S168: 1 | T168: 1 | U168: 2 | V168: - | W168: 4 | X168: - | Y168: 5 | Z168: 2 | AA168: 1 | AB168: - | AC168: 60.3 | AD168: 62.0 | AE168: 58.8 | AF168: 12 | AG168: - | AH168: - | AI168: - | AJ168: - | AK168: - | AL168: - | AM168: - | AN168: - | AO168: - | AP168: 4 | AQ168: - | AR168: 5 | AS168: 2 | AT168: 1 | AU168: - | AV168: 70.6 | AW168: 70.7 | AX168: 70.5 | AY168: 11 | AZ168: - | BA168: - | BB168: - | BC168: - | BD168: - | BE168: - | BF168: - | BG168: - | BH168: - | BI168: 4 | BJ168: - | BK168: 4 | BL168: 2 | BM168: 1 | BN168: - | BO168: 70.3 | BP168: 70.7 | BQ168: 69.8 | BR168: 6 | BS168: - | BT168: - | BU168: - | BV168: - | BW168: - | BX168: - | BY168: - | BZ168: - | CA168: - | CB168: 2 | CC168: - | CD168: 2 | CE168: 2 | CF168: - | CG168: - | CH168: 2 | CI168: - | CJ168: - | CK168: - | CL168: - | CM168: - | CN168: - | CO168: - | CP168: - | CQ168: - | CR168: 1 | CS168: 1 | CT168: - | CU168: - | DC168: 24 | DD168: 17 | DE168: 11 | DF168: 4 | DG168: 2 | DH168: 3 | DI168: 3 | DJ168: 1 | DK168: 6 | DL168: 4 | DM168: - | DN168: - | DO168: - | DP168: 2 | DQ168: - | DR168: - | DS168: - | DT168: - | DU168: - | DV168: - | DW168: - | DX168: - | DY168: - | DZ168: - | EA168: 6 | EB168: 680 | EC168: 399 | ED168: 264 | EE168: 17 | EF168: 11 | EG168: 10 | EH168: 6 | EI168: 3 | EJ168: 1 | EK168: - | EL168: 1 | EM168: - | EN168: 13 | EO168: 7 | EP168: 5 | EQ168: 1 | ER168: 1 | ES168: 3 | ET168: 2 | EU168: 1
A169: 埼玉県 | B169: 見沼区(さいたま市) | C169: 七里村 | D169: 膝子第１ | E169: 20 | F169: 13 | G169: 2 | H169: 2 | I169: 3 | J169: 3 | K169: 8 | L169: 7 | M169: 35 | N169: - | O169: - | P169: 2 | Q169: 1 | R169: 1 | S169: 4 | T169: 3 | U169: 1 | V169: 4 | W169: 3 | X169: 6 | Y169: 4 | Z169: 4 | AA169: 2 | AB169: - | AC169: 59.3 | AD169: 56.5 | AE169: 62.0 | AF169: 25 | AG169: - | AH169: - | AI169: - | AJ169: 1 | AK169: 1 | AL169: 3 | AM169: 1 | AN169: 1 | AO169: 2 | AP169: 3 | AQ169: 5 | AR169: 4 | AS169: 2 | AT169: 2 | AU169: - | AV169: 62.1 | AW169: 56.9 | AX169: 66.9 | AY169: 23 | AZ169: - | BA169: - | BB169: - | BC169: 1 | BD169: 1 | BE169: 3 | BF169: 1 | BG169: 1 | BH169: 2 | BI169: 2 | BJ169: 5 | BK169: 4 | BL169: 2 | BM169: 1 | BN169: - | BO169: 61.1 | BP169: 56.9 | BQ169: 65.7 | BR169: 13 | BS169: - | BT169: - | BU169: - | BV169: - | BW169: - | BX169: - | BY169: 1 | BZ169: 1 | CA169: 1 | CB169: 2 | CC169: 2 | CD169: 3 | CE169: 2 | CF169: 1 | CG169: - | CH169: 11 | CI169: - | CJ169: - | CK169: - | CL169: - | CM169: - | CN169: 1 | CO169: 1 | CP169: 2 | CQ169: 1 | CR169: 3 | CS169: 2 | CT169: 1 | CU169: - | DC169: 49 | DD169: 39 | DE169: 23 | DF169: 12 | DG169: 4 | DH169: 4 | DI169: 2 | DJ169: 4 | DK169: 8 | DL169: 3 | DM169: - | DN169: - | DO169: - | DP169: - | DQ169: 3 | DR169: - | DS169: 2 | DT169: - | DU169: - | DV169: - | DW169: - | DX169: - | DY169: - | DZ169: - | EA169: 13 | EB169: 1,664 | EC169: 1,152 | ED169: 512 | EE169: - | EF169: 20 | EG169: 18 | EH169: 12 | EI169: 4 | EJ169: 2 | EK169: - | EL169: 2 | EM169: - | EN169: 29 | EO169: 21 | EP169: 11 | EQ169: 8 | ER169: 2 | ES169: 4 | ET169: - | EU169: 4
A170: 埼玉県 | B170: 見沼区(さいたま市) | C170: 七里村 | D170: 膝子第２ | E170: 18 | F170: 14 | G170: 9 | H170: 9 | I170: 1 | J170: 1 | K170: 4 | L170: 4 | M170: 40 | N170: - | O170: - | P170: - | Q170: 1 | R170: 3 | S170: 2 | T170: - | U170: 2 | V170: 8 | W170: 8 | X170: 7 | Y170: 2 | Z170: 1 | AA170: 2 | AB170: 4 | AC170: 62.1 | AD170: 62.1 | AE170: 62.1 | AF170: 35 | AG170: - | AH170: - | AI170: - | AJ170: - | AK170: 2 | AL170: 2 | AM170: - | AN170: 2 | AO170: 7 | AP170: 7 | AQ170: 6 | AR170: 2 | AS170: 1 | AT170: 2 | AU170: 4 | AV170: 63.6 | AW170: 63.4 | AX170: 63.8 | AY170: 33 | AZ170: - | BA170: - | BB170: - | BC170: - | BD170: 1 | BE170: 2 | BF170: - | BG170: 2 | BH170: 6 | BI170: 7 | BJ170: 6 | BK170: 2 | BL170: 1 | BM170: 2 | BN170: 4 | BO170: 64.7 | BP170: 63.4 | BQ170: 65.9 | BR170: 14 | BS170: - | BT170: - | BU170: - | BV170: - | BW170: - | BX170: 1 | BY170: - | BZ170: 1 | CA170: 3 | CB170: 3 | CC170: 3 | CD170: 1 | CE170: - | CF170: 1 | CG170: 1 | CH170: 7 | CI170: - | CJ170: - | CK170: - | CL170: - | CM170: - | CN170: - | CO170: 3 | CP170: 1 | CQ170: 1 | CR170: - | CS170: - | CT170: 1 | CU170: 1 | DC170: 52 | DD170: 43 | DE170: 33 | DF170: 9 | DG170: 1 | DH170: 3 | DI170: 1 | DJ170: 5 | DK170: 13 | DL170: 5 | DM170: - | DN170: - | DO170: - | DP170: 1 | DQ170: - | DR170: - | DS170: 6 | DT170: 1 | DU170: - | DV170: - | DW170: - | DX170: - | DY170: - | DZ170: - | EA170: 14 | EB170: 2,271 | EC170: 1,675 | ED170: 596 | EE170: - | EF170: 23 | EG170: 21 | EH170: 16 | EI170: 4 | EJ170: 1 | EK170: - | EL170: 1 | EM170: 1 | EN170: 29 | EO170: 22 | EP170: 17 | EQ170: 5 | ER170: - | ES170: 3 | ET170: - | EU170: 4
A171: 埼玉県 | B171: 見沼区(さいたま市) | C171: 七里村 | D171: 膝子第３ | E171: 25 | F171: 21 | G171: 10 | H171: 6 | I171: 6 | J171: 4 | K171: 5 | L171: 4 | M171: 64 | N171: - | O171: - | P171: 3 | Q171: - | R171: 5 | S171: 5 | T171: 2 | U171: 7 | V171: 5 | W171: 13 | X171: 5 | Y171: 5 | Z171: 6 | AA171: 6 | AB171: 2 | AC171: 60.2 | AD171: 56.1 | AE171: 64.9 | AF171: 46 | AG171: - | AH171: - | AI171: 3 | AJ171: - | AK171: 2 | AL171: 3 | AM171: - | AN171: 4 | AO171: 3 | AP171: 9 | AQ171: 5 | AR171: 5 | AS171: 6 | AT171: 6 | AU171: - | AV171: 62.4 | AW171: 58.8 | AX171: 66.0 | AY171: 41 | AZ171: - | BA171: - | BB171: 3 | BC171: - | BD171: 2 | BE171: 2 | BF171: - | BG171: 4 | BH171: 3 | BI171: 8 | BJ171: 5 | BK171: 5 | BL171: 6 | BM171: 3 | BN171: - | BO171: 61.6 | BP171: 59.6 | BQ171: 63.8 | BR171: 21 | BS171: - | BT171: - | BU171: - | BV171: - | BW171: - | BX171: - | BY171: - | BZ171: 3 | CA171: 2 | CB171: 6 | CC171: 4 | CD171: 3 | CE171: 2 | CF171: 1 | CG171: - | CH171: 11 | CI171: - | CJ171: - | CK171: - | CL171: - | CM171: - | CN171: 2 | CO171: - | CP171: 3 | CQ171: 2 | CR171: 2 | CS171: 1 | CT171: 1 | CU171: - | DC171: 84 | DD171: 60 | DE171: 41 | DF171: 15 | DG171: 4 | DH171: 6 | DI171: 4 | DJ171: 14 | DK171: 19 | DL171: 10 | DM171: - | DN171: - | DO171: - | DP171: 1 | DQ171: - | DR171: - | DS171: 8 | DT171: - | DU171: - | DV171: - | DW171: - | DX171: - | DY171: - | DZ171: - | EA171: 21 | EB171: 3,009 | EC171: 2,196 | ED171: 813 | EE171: - | EF171: 40 | EG171: 36 | EH171: 22 | EI171: 11 | EJ171: 3 | EK171: - | EL171: - | EM171: 4 | EN171: 44 | EO171: 24 | EP171: 19 | EQ171: 4 | ER171: 1 | ES171: 6 | ET171: 4 | EU171: 10
A172: 埼玉県 | B172: 見沼区(さいたま市) | C172: 七里村 | D172: 大谷第１ | E172: 15 | F172: 9 | G172: 2 | H172: 2 | I172: 2 | J172: 2 | K172: 5 | L172: 6 | M172: 24 | N172: 1 | O172: 2 | P172: - | Q172: - | R172: 2 | S172: 1 | T172: 2 | U172: 2 | V172: - | W172: 4 | X172: 2 | Y172: 4 | Z172: 1 | AA172: 3 | AB172: - | AC172: 57.3 | AD172: 53.3 | AE172: 61.2 | AF172: 16 | AG172: - | AH172: - | AI172: - | AJ172: - | AK172: 1 | AL172: 1 | AM172: - | AN172: 2 | AO172: - | AP172: 4 | AQ172: 2 | AR172: 2 | AS172: 1 | AT172: 3 | AU172: - | AV172: 64.9 | AW172: 63.3 | AX172: 66.2 | AY172: 15 | AZ172: - | BA172: - | BB172: - | BC172: - | BD172: 1 | BE172: 1 | BF172: - | BG172: 2 | BH172: - | BI172: 4 | BJ172: 2 | BK172: 2 | BL172: - | BM172: 3 | BN172: - | BO172: 64.1 | BP172: 63.3 | BQ172: 64.8 | BR172: 9 | BS172: - | BT172: - | BU172: - | BV172: - | BW172: - | BX172: - | BY172: 1 | BZ172: 1 | CA172: - | CB172: 1 | CC172: 1 | CD172: 2 | CE172: 1 | CF172: 1 | CG172: 1 | CH172: 5 | CI172: - | CJ172: - | CK172: - | CL172: - | CM172: 1 | CN172: - | CO172: - | CP172: 1 | CQ172: - | CR172: 1 | CS172: - | CT172: 1 | CU172: 1 | DC172: 27 | DD172: 21 | DE172: 15 | DF172: 5 | DG172: 1 | DH172: 3 | DI172: - | DJ172: 3 | DK172: 7 | DL172: 1 | DM172: - | DN172: - | DO172: - | DP172: 3 | DQ172: 1 | DR172: - | DS172: 1 | DT172: 1 | DU172: - | DV172: - | DW172: - | DX172: - | DY172: - | DZ172: - | EA172: 9 | EB172: 766 | EC172: 78 | ED172: 682 | EE172: 6 | EF172: 13 | EG172: 12 | EH172: 7 | EI172: 4 | EJ172: 1 | EK172: - | EL172: - | EM172: 1 | EN172: 14 | EO172: 9 | EP172: 8 | EQ172: 1 | ER172: - | ES172: 3 | ET172: - | EU172: 2
A173: 埼玉県 | B173: 見沼区(さいたま市) | C173: 七里村 | D173: 大谷第２ | E173: 16 | F173: 10 | G173: 2 | H173: 2 | I173: 4 | J173: 3 | K173: 4 | L173: 6 | M173: 27 | N173: - | O173: 1 | P173: 2 | Q173: - | R173: - | S173: - | T173: 1 | U173: 4 | V173: 5 | W173: 3 | X173: - | Y173: 2 | Z173: 4 | AA173: 2 | AB173: 3 | AC173: 61.9 | AD173: 62.4 | AE173: 61.5 | AF173: 20 | AG173: - | AH173: - | AI173: - | AJ173: - | AK173: - | AL173: - | AM173: 1 | AN173: 3 | AO173: 3 | AP173: 3 | AQ173: - | AR173: 2 | AS173: 3 | AT173: 2 | AU173: 3 | AV173: 68.2 | AW173: 70.3 | AX173: 66.0 | AY173: 18 | AZ173: - | BA173: - | BB173: - | BC173: - | BD173: - | BE173: - | BF173: - | BG173: 3 | BH173: 3 | BI173: 3 | BJ173: - | BK173: 2 | BL173: 2 | BM173: 2 | BN173: 3 | BO173: 68.8 | BP173: 70.3 | BQ173: 66.9 | BR173: 10 | BS173: - | BT173: - | BU173: - | BV173: - | BW173: - | BX173: - | BY173: - | BZ173: 1 | CA173: 1 | CB173: 3 | CC173: - | CD173: 2 | CE173: 2 | CF173: 1 | CG173: - | CH173: 2 | CI173: - | CJ173: - | CK173: - | CL173: - | CM173: - | CN173: 1 | CO173: - | CP173: - | CQ173: - | CR173: - | CS173: 1 | CT173: - | CU173: - | DC173: 36 | DD173: 23 | DE173: 18 | DF173: 4 | DG173: 1 | DH173: 4 | DI173: 7 | DJ173: 2 | DK173: 8 | DL173: - | DM173: - | DN173: - | DO173: - | DP173: 1 | DQ173: 1 | DR173: 1 | DS173: 5 | DT173: - | DU173: - | DV173: - | DW173: - | DX173: - | DY173: - | DZ173: - | EA173: 10 | EB173: 750 | EC173: 100 | ED173: 552 | EE173: 98 | EF173: 17 | EG173: 14 | EH173: 10 | EI173: 3 | EJ173: 1 | EK173: - | EL173: 3 | EM173: - | EN173: 19 | EO173: 9 | EP173: 8 | EQ173: 1 | ER173: - | ES173: 4 | ET173: 4 | EU173: 2
A174: 埼玉県 | B174: 見沼区(さいたま市) | C174: 七里村 | D174: 大谷第３ | E174: 21 | F174: 10 | G174: 3 | H174: 3 | I174: 1 | J174: - | K174: 6 | L174: 11 | M174: 27 | N174: - | O174: 1 | P174: 1 | Q174: 1 | R174: - | S174: 1 | T174: 3 | U174: - | V174: 5 | W174: 2 | X174: 3 | Y174: 3 | Z174: 3 | AA174: 4 | AB174: - | AC174: 60.4 | AD174: 57.9 | AE174: 63.7 | AF174: 21 | AG174: - | AH174: 1 | AI174: 1 | AJ174: 1 | AK174: - | AL174: - | AM174: 2 | AN174: - | AO174: 3 | AP174: 1 | AQ174: 3 | AR174: 2 | AS174: 3 | AT174: 4 | AU174: - | AV174: 61.8 | AW174: 57.7 | AX174: 66.3 | AY174: 19 | AZ174: - | BA174: - | BB174: 1 | BC174: 1 | BD174: - | BE174: - | BF174: 2 | BG174: - | BH174: 2 | BI174: 1 | BJ174: 3 | BK174: 2 | BL174: 3 | BM174: 4 | BN174: - | BO174: 64.3 | BP174: 61.4 | BQ174: 67.4 | BR174: 10 | BS174: - | BT174: - | BU174: - | BV174: - | BW174: - | BX174: - | BY174: 1 | BZ174: - | CA174: 1 | CB174: 1 | CC174: 1 | CD174: 2 | CE174: 2 | CF174: 2 | CG174: - | CH174: 4 | CI174: - | CJ174: - | CK174: - | CL174: - | CM174: 1 | CN174: - | CO174: - | CP174: 1 | CQ174: - | CR174: - | CS174: 1 | CT174: 1 | CU174: - | DC174: 34 | DD174: 27 | DE174: 19 | DF174: 8 | DG174: - | DH174: 3 | DI174: 2 | DJ174: 2 | DK174: 7 | DL174: 1 | DM174: - | DN174: 2 | DO174: - | DP174: 2 | DQ174: - | DR174: 1 | DS174: - | DT174: 1 | DU174: - | DV174: - | DW174: - | DX174: - | DY174: - | DZ174: - | EA174: 10 | EB174: 1,252 | EC174: 181 | ED174: 971 | EE174: 100 | EF174: 19 | EG174: 16 | EH174: 10 | EI174: 6 | EJ174: - | EK174: - | EL174: 2 | EM174: 1 | EN174: 15 | EO174: 11 | EP174: 9 | EQ174: 2 | ER174: - | ES174: 3 | ET174: - | EU174: 1
A175: 埼玉県 | B175: 見沼区(さいたま市) | C175: 春岡村 | E175: 173 | F175: 103 | G175: 17 | H175: 13 | I175: 22 | J175: 12 | K175: 64 | L175: 70 | M175: 265 | N175: 4 | O175: 6 | P175: 4 | Q175: 8 | R175: 13 | S175: 8 | T175: 17 | U175: 20 | V175: 24 | W175: 28 | X175: 24 | Y175: 33 | Z175: 40 | AA175: 21 | AB175: 15 | AC175: 62.0 | AD175: 61.2 | AE175: 63.1 | AF175: 176 | AG175: 1 | AH175: 3 | AI175: 1 | AJ175: - | AK175: 3 | AL175: 3 | AM175: 6 | AN175: 10 | AO175: 11 | AP175: 14 | AQ175: 21 | AR175: 29 | AS175: 40 | AT175: 20 | AU175: 14 | AV175: 68.8 | AW175: 70.2 | AX175: 67.2 | AY175: 155 | AZ175: - | BA175: 1 | BB175: 1 | BC175: - | BD175: 1 | BE175: 1 | BF175: 6 | BG175: 10 | BH175: 8 | BI175: 14 | BJ175: 18 | BK175: 26 | BL175: 38 | BM175: 19 | BN175: 12 | BO175: 70.2 | BP175: 69.9 | BQ175: 70.6 | BR175: 103 | BS175: - | BT175: - | BU175: 1 | BV175: - | BW175: 1 | BX175: - | BY175: 2 | BZ175: 6 | CA175: 7 | CB175: 13 | CC175: 10 | CD175: 17 | CE175: 23 | CF175: 15 | CG175: 8 | CH175: 50 | CI175: - | CJ175: - | CK175: 1 | CL175: - | CM175: - | CN175: 1 | CO175: 3 | CP175: 5 | CQ175: 3 | CR175: 9 | CS175: 11 | CT175: 11 | CU175: 6 | DC175: 368 | DD175: 267 | DE175: 155 | DF175: 98 | DG175: 14 | DH175: 36 | DI175: 30 | DJ175: 35 | DK175: 75 | DL175: 45 | DM175: - | DN175: 4 | DO175: - | DP175: 8 | DQ175: 8 | DR175: 3 | DS175: 6 | DT175: 1 | DU175: - | DV175: - | DW175: - | DX175: - | DY175: - | DZ175: - | EA175: 100 | EB175: 9,533 | EC175: 5,832 | ED175: 3,559 | EE175: 142 | EF175: 186 | EG175: 160 | EH175: 90 | EI175: 60 | EJ175: 10 | EK175: - | EL175: 13 | EM175: 13 | EN175: 182 | EO175: 107 | EP175: 65 | EQ175: 38 | ER175: 4 | ES175: 36 | ET175: 17 | EU175: 22
A176: 埼玉県 | B176: 見沼区(さいたま市) | C176: 春岡村 | D176: 中原 | E176: 10 | F176: 6 | G176: 1 | H176: - | I176: 3 | J176: 1 | K176: 2 | L176: 4 | M176: 19 | N176: - | O176: 1 | P176: - | Q176: 1 | R176: - | S176: 1 | T176: 2 | U176: 3 | V176: - | W176: 2 | X176: 2 | Y176: 2 | Z176: 4 | AA176: - | AB176: 1 | AC176: 60.1 | AD176: 57.7 | AE176: 62.3 | AF176: 11 | AG176: - | AH176: - | AI176: - | AJ176: - | AK176: - | AL176: 1 | AM176: 1 | AN176: 1 | AO176: - | AP176: - | AQ176: 2 | AR176: 1 | AS176: 4 | AT176: - | AU176: 1 | AV176: 67.5 | AW176: 66.8 | AX176: 68.0 | AY176: 9 | AZ176: - | BA176: - | BB176: - | BC176: - | BD176: - | BE176: - | BF176: 1 | BG176: 1 | BH176: - | BI176: - | BJ176: 2 | BK176: 1 | BL176: 3 | BM176: - | BN176: 1 | BO176: 69.3 | BP176: 66.8 | BQ176: 71.4 | BR176: 6 | BS176: - | BT176: - | BU176: - | BV176: - | BW176: - | BX176: - | BY176: 1 | BZ176: - | CA176: - | CB176: 1 | CC176: 1 | CD176: - | CE176: 3 | CF176: - | CG176: - | CH176: 3 | CI176: - | CJ176: - | CK176: - | CL176: - | CM176: - | CN176: - | CO176: - | CP176: 1 | CQ176: - | CR176: - | CS176: 2 | CT176: - | CU176: - | DC176: 21 | DD176: 16 | DE176: 9 | DF176: 6 | DG176: 1 | DH176: 2 | DI176: 3 | DJ176: - | DK176: 6 | DL176: 5 | DM176: - | DN176: - | DO176: - | DP176: - | DQ176: - | DR176: 1 | DS176: - | DT176: - | DU176: - | DV176: - | DW176: - | DX176: - | DY176: - | DZ176: - | EA176: 6 | EB176: 492 | EC176: 326 | ED176: 104 | EE176: 62 | EF176: 9 | EG176: 9 | EH176: 4 | EI176: 4 | EJ176: 1 | EK176: - | EL176: - | EM176: - | EN176: 12 | EO176: 7 | EP176: 5 | EQ176: 2 | ER176: - | ES176: 2 | ET176: 3 | EU176: -
A177: 埼玉県 | B177: 見沼区(さいたま市) | C177: 春岡村 | D177: 有無 | E177: 5 | F177: 2 | G177: x | H177: x | I177: x | J177: x | K177: x | L177: 3 | M177: x | N177: x | O177: x | P177: x | Q177: x | R177: x | S177: x | T177: x | U177: x | V177: x | W177: x | X177: x | Y177: x | Z177: x | AA177: x | AB177: x | AC177: 63.8 | AD177: 64.7 | AE177: 63.0 | AF177: x | AG177: x | AH177: x | AI177: x | AJ177: x | AK177: x | AL177: x | AM177: x | AN177: x | AO177: x | AP177: x | AQ177: x | AR177: x | AS177: x | AT177: x | AU177: x | AV177: 74.5 | AW177: 75.0 | AX177: 74.0 | AY177: x | AZ177: x | BA177: x | BB177: x | BC177: x | BD177: x | BE177: x | BF177: x | BG177: x | BH177: x | BI177: x | BJ177: x | BK177: x | BL177: x | BM177: x | BN177: x | BO177: 74.5 | BP177: 75.0 | BQ177: 74.0 | BR177: 2 | BS177: - | BT177: - | BU177: - | BV177: - | BW177: - | BX177: - | BY177: - | BZ177: - | CA177: - | CB177: - | CC177: - | CD177: 1 | CE177: 1 | CF177: - | CG177: - | CH177: 1 | CI177: - | CJ177: - | CK177: - | CL177: - | CM177: - | CN177: - | CO177: - | CP177: - | CQ177: - | CR177: 1 | CS177: - | CT177: - | CU177: - | DC177: 6 | DD177: 4 | DE177: 2 | DF177: 1 | DG177: 1 | DH177: - | DI177: - | DJ177: 2 | DK177: 2 | DL177: 2 | DM177: - | DN177: - | DO177: - | DP177: - | DQ177: - | DR177: - | DS177: - | DT177: - | DU177: - | DV177: - | DW177: - | DX177: - | DY177: - | DZ177: - | EA177: 2 | EB177: 175 | EC177: 100 | ED177: 75 | EE177: - | EF177: 3 | EG177: 2 | EH177: 1 | EI177: 1 | EJ177: - | EK177: - | EL177: - | EM177: 1 | EN177: 3 | EO177: 2 | EP177: 1 | EQ177: - | ER177: 1 | ES177: - | ET177: - | EU177: 1
A178: 埼玉県 | B178: 見沼区(さいたま市) | C178: 春岡村 | D178: 改良 | E178: 13 | F178: 8 | G178: 2 | H178: 2 | I178: 2 | J178: 2 | K178: 4 | L178: 5 | M178: 21 | N178: 1 | O178: 1 | P178: - | Q178: - | R178: - | S178: 1 | T178: 2 | U178: 3 | V178: - | W178: 2 | X178: 2 | Y178: 4 | Z178: 4 | AA178: - | AB178: 1 | AC178: 60.8 | AD178: 62.7 | AE178: 58.7 | AF178: 18 | AG178: 1 | AH178: 1 | AI178: - | AJ178: - | AK178: - | AL178: - | AM178: 1 | AN178: 2 | AO178: - | AP178: 2 | AQ178: 2 | AR178: 4 | AS178: 4 | AT178: - | AU178: 1 | AV178: 62.9 | AW178: 66.4 | AX178: 59.4 | AY178: 15 | AZ178: - | BA178: - | BB178: - | BC178: - | BD178: - | BE178: - | BF178: 1 | BG178: 2 | BH178: - | BI178: 2 | BJ178: 2 | BK178: 3 | BL178: 4 | BM178: - | BN178: 1 | BO178: 68.1 | BP178: 66.4 | BQ178: 70.7 | BR178: 8 | BS178: - | BT178: - | BU178: - | BV178: - | BW178: - | BX178: - | BY178: - | BZ178: 1 | CA178: - | CB178: 1 | CC178: 2 | CD178: 2 | CE178: 2 | CF178: - | CG178: - | CH178: 3 | CI178: - | CJ178: - | CK178: - | CL178: - | CM178: - | CN178: - | CO178: - | CP178: - | CQ178: 1 | CR178: - | CS178: 2 | CT178: - | CU178: - | DC178: 29 | DD178: 20 | DE178: 15 | DF178: 4 | DG178: 1 | DH178: 4 | DI178: 3 | DJ178: 2 | DK178: 7 | DL178: 2 | DM178: - | DN178: - | DO178: - | DP178: 1 | DQ178: 1 | DR178: 1 | DS178: 2 | DT178: - | DU178: - | DV178: - | DW178: - | DX178: - | DY178: - | DZ178: - | EA178: 8 | EB178: 905 | EC178: 603 | ED178: 272 | EE178: 30 | EF178: 12 | EG178: 12 | EH178: 9 | EI178: 2 | EJ178: 1 | EK178: - | EL178: - | EM178: - | EN178: 17 | EO178: 8 | EP178: 6 | EQ178: 2 | ER178: - | ES178: 4 | ET178: 3 | EU178: 2
A179: 埼玉県 | B179: 見沼区(さいたま市) | C179: 春岡村 | D179: 共和 | E179: 15 | F179: 11 | G179: 1 | H179: 1 | I179: 1 | J179: - | K179: 9 | L179: 4 | M179: 26 | N179: - | O179: - | P179: - | Q179: - | R179: 1 | S179: - | T179: - | U179: - | V179: 8 | W179: 3 | X179: 2 | Y179: 2 | Z179: 2 | AA179: 7 | AB179: 1 | AC179: 67.5 | AD179: 67.1 | AE179: 67.9 | AF179: 15 | AG179: - | AH179: - | AI179: - | AJ179: - | AK179: - | AL179: - | AM179: - | AN179: - | AO179: 2 | AP179: - | AQ179: 2 | AR179: 2 | AS179: 2 | AT179: 6 | AU179: 1 | AV179: 74.4 | AW179: 78.3 | AX179: 71.0 | AY179: 12 | AZ179: - | BA179: - | BB179: - | BC179: - | BD179: - | BE179: - | BF179: - | BG179: - | BH179: 1 | BI179: - | BJ179: 1 | BK179: 2 | BL179: 2 | BM179: 5 | BN179: 1 | BO179: 76.3 | BP179: 78.3 | BQ179: 73.4 | BR179: 11 | BS179: - | BT179: - | BU179: - | BV179: - | BW179: - | BX179: - | BY179: - | BZ179: - | CA179: 2 | CB179: 2 | CC179: 1 | CD179: - | CE179: 2 | CF179: 3 | CG179: 1 | CH179: 6 | CI179: - | CJ179: - | CK179: - | CL179: - | CM179: - | CN179: - | CO179: 1 | CP179: 1 | CQ179: - | CR179: - | CS179: 1 | CT179: 2 | CU179: 1 | DC179: 31 | DD179: 24 | DE179: 12 | DF179: 12 | DG179: - | DH179: 3 | DI179: - | DJ179: 4 | DK179: 6 | DL179: 6 | DM179: - | DN179: - | DO179: - | DP179: - | DQ179: - | DR179: - | DS179: - | DT179: - | DU179: - | DV179: - | DW179: - | DX179: - | DY179: - | DZ179: - | EA179: 11 | EB179: 1,259 | EC179: 938 | ED179: 321 | EE179: - | EF179: 17 | EG179: 15 | EH179: 7 | EI179: 8 | EJ179: - | EK179: - | EL179: - | EM179: 2 | EN179: 14 | EO179: 9 | EP179: 5 | EQ179: 4 | ER179: - | ES179: 3 | ET179: - | EU179: 2
A180: 埼玉県 | B180: 見沼区(さいたま市) | C180: 春岡村 | D180: 西原 | E180: 6 | F180: 2 | G180: x | H180: x | I180: x | J180: x | K180: x | L180: 4 | M180: x | N180: x | O180: x | P180: x | Q180: x | R180: x | S180: x | T180: x | U180: x | V180: x | W180: x | X180: x | Y180: x | Z180: x | AA180: x | AB180: x | AC180: 74.2 | AD180: 73.5 | AE180: 77.0 | AF180: x | AG180: x | AH180: x | AI180: x | AJ180: x | AK180: x | AL180: x | AM180: x | AN180: x | AO180: x | AP180: x | AQ180: x | AR180: x | AS180: x | AT180: x | AU180: x | AV180: 74.2 | AW180: 73.5 | AX180: 77.0 | AY180: x | AZ180: x | BA180: x | BB180: x | BC180: x | BD180: x | BE180: x | BF180: x | BG180: x | BH180: x | BI180: x | BJ180: x | BK180: x | BL180: x | BM180: x | BN180: x | BO180: 74.2 | BP180: 73.5 | BQ180: 77.0 | BR180: 2 | BS180: - | BT180: - | BU180: - | BV180: - | BW180: - | BX180: - | BY180: - | BZ180: - | CA180: - | CB180: - | CC180: - | CD180: - | CE180: 1 | CF180: - | CG180: 1 | CH180: 1 | CI180: - | CJ180: - | CK180: - | CL180: - | CM180: - | CN180: - | CO180: - | CP180: - | CQ180: - | CR180: - | CS180: - | CT180: - | CU180: 1 | DC180: 11 | DD180: 8 | DE180: 5 | DF180: 3 | DG180: - | DH180: 1 | DI180: 1 | DJ180: 1 | DK180: 1 | DL180: 1 | DM180: - | DN180: - | DO180: - | DP180: - | DQ180: - | DR180: - | DS180: - | DT180: - | DU180: - | DV180: - | DW180: - | DX180: - | DY180: - | DZ180: - | EA180: 2 | EB180: 120 | EC180: 78 | ED180: 42 | EE180: - | EF180: 6 | EG180: 5 | EH180: 4 | EI180: 1 | EJ180: - | EK180: - | EL180: - | EM180: 1 | EN180: 5 | EO180: 3 | EP180: 1 | EQ180: 2 | ER180: - | ES180: 1 | ET180: 1 | EU180: -
A181: 埼玉県 | B181: 見沼区(さいたま市) | C181: 春岡村 | D181: 第１ | E181: 11 | F181: 5 | G181: 2 | H181: 1 | I181: 1 | J181: - | K181: 2 | L181: 6 | M181: 14 | N181: - | O181: - | P181: - | Q181: - | R181: 2 | S181: - | T181: 1 | U181: 1 | V181: 2 | W181: 3 | X181: 2 | Y181: 1 | Z181: 2 | AA181: - | AB181: - | AC181: 59.5 | AD181: 59.7 | AE181: 59.3 | AF181: 8 | AG181: - | AH181: - | AI181: - | AJ181: - | AK181: - | AL181: - | AM181: 1 | AN181: 1 | AO181: 1 | AP181: 1 | AQ181: 1 | AR181: 1 | AS181: 2 | AT181: - | AU181: - | AV181: 63.5 | AW181: 69.8 | AX181: 57.3 | AY181: 8 | AZ181: - | BA181: - | BB181: - | BC181: - | BD181: - | BE181: - | BF181: 1 | BG181: 1 | BH181: 1 | BI181: 1 | BJ181: 1 | BK181: 1 | BL181: 2 | BM181: - | BN181: - | BO181: 63.5 | BP181: 69.8 | BQ181: 57.3 | BR181: 5 | BS181: - | BT181: - | BU181: - | BV181: - | BW181: - | BX181: - | BY181: - | BZ181: - | CA181: - | CB181: 1 | CC181: - | CD181: 1 | CE181: 1 | CF181: 1 | CG181: 1 | CH181: 1 | CI181: - | CJ181: - | CK181: - | CL181: - | CM181: - | CN181: - | CO181: - | CP181: - | CQ181: - | CR181: - | CS181: - | CT181: - | CU181: 1 | DC181: 21 | DD181: 15 | DE181: 8 | DF181: 5 | DG181: 2 | DH181: 1 | DI181: - | DJ181: 5 | DK181: 4 | DL181: - | DM181: - | DN181: 1 | DO181: - | DP181: 2 | DQ181: - | DR181: - | DS181: 1 | DT181: - | DU181: - | DV181: - | DW181: - | DX181: - | DY181: - | DZ181: - | EA181: 4 | EB181: 305 | EC181: 135 | ED181: 170 | EE181: - | EF181: 9 | EG181: 7 | EH181: 4 | EI181: 2 | EJ181: 1 | EK181: - | EL181: - | EM181: 2 | EN181: 12 | EO181: 8 | EP181: 4 | EQ181: 3 | ER181: 1 | ES181: 1 | ET181: - | EU181: 3
